Workbook

Sheet PI vs gap
A1: Measurement | B1: Hall
A2: Type | B2: Gap dependence
A4: Project | B4: ='10 mm'!B5 -> 504314
A5: PS serial no | B5: ='10 mm'!B7 -> 2410105
A7: Measurement date | B7: =LEFT('10 mm'!B4,10) -> 30-09-2024
A11: Nominal gap [mm] | B11: Encoder [counts] | C11: Encoder [mm] | D11: PI [T^2mm^3] | E11: PI spec [T^2mm^3] | F11: Encoder value at 10 mm gap:
A12: ='10 mm'!$B$53 -> 10 | B12: ='10 mm'!$B$55 -> 19.6129 | C12: =-1*($F$12-B12)+10 -> 9.99945 | D12: ='10 mm'!$K$3 -> 10682.50562 | F12: 19.61345
A13: ='15 mm'!$B$53 -> 15 | B13: ='15 mm'!$B$55 -> 24.6144 | C13: =-1*($F$12-B13)+10 -> 15.00095 | D13: ='15 mm'!$K$3 -> 7299.913548
A14: ='20 mm'!$B$53 -> 20 | B14: ='20 mm'!$B$55 -> 29.6129 | C14: 19.99945 | D14: ='20 mm'!$K$3 -> 5052.755899
A15: ='30 mm'!$B$53 -> 30 | B15: ='30 mm'!$B$55 -> 39.6111 | C15: 29.99765 | D15: ='30 mm'!$K$3 -> 2489.993195
A16: ='100 mm'!$B$53 -> 100 | B16: ='100 mm'!$B$55 -> 109.6104 | C16: 99.99695 | D16: ='100 mm'!$K$3 -> 39.96403054
A47: Measuring series at larger gaps:
A48: Reference magnet
A49: Tref | B49: 21.38 | C49: degC
A50: Hall ref field | B50: 0.505 | C50: T
A51: NMR ref field | B51: 0.50627 | C51: T
A53: Offset from Faro

Sheet 10 mm
A1: =IF('DF raw data'!A1="","",'DF raw data'!A1) -> Number of header lines | B1: =IF('DF raw data'!B1="","",'DF raw data'!B1) -> 54 | C1: =IF('DF raw data'!C1="","",'DF raw data'!C1) ->  | D1: =IF('DF raw data'!D1="","",'DF raw data'!D1) ->  | F1: T_coeff | G1: -0.001 | H1: /degC | J1: IBy total | K1: =J1267*1000 -> 22.74336382 | L1: muTm | M1: =L1267*1000 -> -3.120336186 | R1: DF ref | S1: 1
A2: =IF('DF raw data'!A2="","",'DF raw data'!A2) -> Measured by | B2: =IF('DF raw data'!B2="","",'DF raw data'!B2) -> Danfysik | C2: =IF('DF raw data'!C2="","",'DF raw data'!C2) ->  | D2: =IF('DF raw data'!D2="","",'DF raw data'!D2) ->  | F2: Tcorr | G2: 20 | H2: degC | J2: JBy total | K2: =K1267 -> 2.009660353 | L2: muTm^2 | M2: =M1267 -> 0.3407037165
A3: =IF('DF raw data'!A3="","",'DF raw data'!A3) -> Operator | B3: =IF('DF raw data'!B3="","",'DF raw data'!B3) -> PMHA | C3: =IF('DF raw data'!C3="","",'DF raw data'!C3) ->  | D3: =IF('DF raw data'!D3="","",'DF raw data'!D3) ->  | F3: Step | G3: =A68-A67 -> 0.5 | H3: mm | J3: PI total | K3: =N1267 -> 10682.50562 | L3: T^2mm^3
A4: =IF('DF raw data'!A4="","",'DF raw data'!A4) -> Data-time | B4: =IF('DF raw data'!B4="","",'DF raw data'!B4) -> 30-09-2024, 15:47:24 | C4: =IF('DF raw data'!C4="","",'DF raw data'!C4) ->  | D4: =IF('DF raw data'!D4="","",'DF raw data'!D4) -> 
A5: =IF('DF raw data'!A5="","",'DF raw data'!A5) -> Project | B5: =IF('DF raw data'!B5="","",'DF raw data'!B5) -> 504314 | C5: =IF('DF raw data'!C5="","",'DF raw data'!C5) ->  | D5: Bamb avr | F5: =(AVERAGE(B67:B107) + AVERAGE(B1227:B1267))/2 -> -4.327684024e-05 | G5: =(AVERAGE(C67:C107) + AVERAGE(C1227:C1267))/2 -> 3.314283744e-05 | H5: =(AVERAGE(D67:D107) + AVERAGE(D1227:D1267))/2 -> -2.976842073e-05
A6: =IF('DF raw data'!A6="","",'DF raw data'!A6) -> Magnet type | B6: =IF('DF raw data'!B6="","",'DF raw data'!B6) -> Dipole | C6: =IF('DF raw data'!C6="","",'DF raw data'!C6) -> 
A7: =IF('DF raw data'!A7="","",'DF raw data'!A7) -> Magnet nr. | B7: =IF('DF raw data'!B7="","",'DF raw data'!B7) -> 2410105 | C7: =IF('DF raw data'!C7="","",'DF raw data'!C7) -> 
A8: =IF('DF raw data'!A8="","",'DF raw data'!A8) -> Meas. number | B8: =IF('DF raw data'!B8="","",'DF raw data'!B8) -> 829 | C8: =IF('DF raw data'!C8="","",'DF raw data'!C8) -> 
A9: =IF('DF raw data'!A9="","",'DF raw data'!A9) -> Add. info | B9: =IF('DF raw data'!B9="","",'DF raw data'!B9) -> X-alignment scan 3) | C9: =IF('DF raw data'!C9="","",'DF raw data'!C9) ->  | D9: =IF('DF raw data'!D9="","",'DF raw data'!D9) -> 
A10: =IF('DF raw data'!A10="","",'DF raw data'!A10) -> Device | B10: =IF('DF raw data'!B10="","",'DF raw data'!B10) -> (HAL) HALL-PROBE | C10: =IF('DF raw data'!C10="","",'DF raw data'!C10) ->  | D10: =IF('DF raw data'!D10="","",'DF raw data'!D10) -> 
A11: =IF('DF raw data'!A11="","",'DF raw data'!A11) -> Goal | B11: =IF('DF raw data'!B11="","",'DF raw data'!B11) -> (AXI) AXis Integral (Line, EFB) | C11: =IF('DF raw data'!C11="","",'DF raw data'!C11) ->  | D11: =IF('DF raw data'!D11="","",'DF raw data'!D11) -> 
A12: =IF('DF raw data'!A12="","",'DF raw data'!A12) -> Power supply mode | B12: =IF('DF raw data'!B12="","",'DF raw data'!B12) -> (PM) Permanent Magnet (no MPS in use) | C12: =IF('DF raw data'!C12="","",'DF raw data'!C12) ->  | D12: =IF('DF raw data'!D12="","",'DF raw data'!D12) -> 
A13: =IF('DF raw data'!A13="","",'DF raw data'!A13) -> Data format | B13: =IF('DF raw data'!B13="","",'DF raw data'!B13) -> Raw data text file | C13: =IF('DF raw data'!C13="","",'DF raw data'!C13) ->  | D13: =IF('DF raw data'!D13="","",'DF raw data'!D13) -> 
A14: =IF('DF raw data'!A14="","",'DF raw data'!A14) -> Direction of the pos. x-axis | B14: =IF('DF raw data'!B14="","",'DF raw data'!B14) -> See test program | C14: =IF('DF raw data'!C14="","",'DF raw data'!C14) ->  | D14: =IF('DF raw data'!D14="","",'DF raw data'!D14) -> 
A15: =IF('DF raw data'!A15="","",'DF raw data'!A15) -> Direction of the pos. y-axis | B15: =IF('DF raw data'!B15="","",'DF raw data'!B15) -> Vertical up | C15: =IF('DF raw data'!C15="","",'DF raw data'!C15) ->  | D15: =IF('DF raw data'!D15="","",'DF raw data'!D15) -> 
A16: =IF('DF raw data'!A16="","",'DF raw data'!A16) -> Direction of the pos. z-axis | B16: =IF('DF raw data'!B16="","",'DF raw data'!B16) -> See test program | C16: =IF('DF raw data'!C16="","",'DF raw data'!C16) ->  | D16: =IF('DF raw data'!D16="","",'DF raw data'!D16) -> 
A17: =IF('DF raw data'!A17="","",'DF raw data'!A17) -> Mapper type | B17: =IF('DF raw data'!B17="","",'DF raw data'!B17) -> Precision Hall Mapper | C17: =IF('DF raw data'!C17="","",'DF raw data'!C17) ->  | D17: =IF('DF raw data'!D17="","",'DF raw data'!D17) -> 
A18: =IF('DF raw data'!A18="","",'DF raw data'!A18) -> Mapper Danfysik Reg. Number | B18: =IF('DF raw data'!B18="","",'DF raw data'!B18) -> 2033-D (mapper 1) | C18: =IF('DF raw data'!C18="","",'DF raw data'!C18) ->  | D18: =IF('DF raw data'!D18="","",'DF raw data'!D18) -> 
A19: =IF('DF raw data'!A19="","",'DF raw data'!A19) -> Measurement consept | B19: =IF('DF raw data'!B19="","",'DF raw data'!B19) -> Square line grid | C19: =IF('DF raw data'!C19="","",'DF raw data'!C19) ->  | D19: =IF('DF raw data'!D19="","",'DF raw data'!D19) -> 
A20: =IF('DF raw data'!A20="","",'DF raw data'!A20) -> Mode | B20: =IF('DF raw data'!B20="","",'DF raw data'!B20) -> On-the-fly measurement | C20: =IF('DF raw data'!C20="","",'DF raw data'!C20) ->  | D20: =IF('DF raw data'!D20="","",'DF raw data'!D20) -> 
A21: =IF('DF raw data'!A21="","",'DF raw data'!A21) ->  | B21: =IF('DF raw data'!B21="","",'DF raw data'!B21) ->  | C21: =IF('DF raw data'!C21="","",'DF raw data'!C21) ->  | D21: =IF('DF raw data'!D21="","",'DF raw data'!D21) -> 
A22: =IF('DF raw data'!A22="","",'DF raw data'!A22) -> Probe Name | B22: =IF('DF raw data'!B22="","",'DF raw data'!B22) -> ID12_By | C22: =IF('DF raw data'!C22="","",'DF raw data'!C22) ->  | D22: =IF('DF raw data'!D22="","",'DF raw data'!D22) -> 
A23: =IF('DF raw data'!A23="","",'DF raw data'!A23) -> Probe Type | B23: =IF('DF raw data'!B23="","",'DF raw data'!B23) -> DF_ID_3D_Bxyz | C23: =IF('DF raw data'!C23="","",'DF raw data'!C23) ->  | D23: =IF('DF raw data'!D23="","",'DF raw data'!D23) -> 
A24: =IF('DF raw data'!A24="","",'DF raw data'!A24) -> Probe Danfysik Reg. Number | B24: =IF('DF raw data'!B24="","",'DF raw data'!B24) -> 2277 | C24: =IF('DF raw data'!C24="","",'DF raw data'!C24) ->  | D24: =IF('DF raw data'!D24="","",'DF raw data'!D24) -> 
A25: =IF('DF raw data'!A25="","",'DF raw data'!A25) -> Probe Axis | B25: =IF('DF raw data'!B25="","",'DF raw data'!B25) -> By | C25: =IF('DF raw data'!C25="","",'DF raw data'!C25) ->  | D25: =IF('DF raw data'!D25="","",'DF raw data'!D25) -> 
A26: =IF('DF raw data'!A26="","",'DF raw data'!A26) -> Probe Current Supply | B26: =IF('DF raw data'!B26="","",'DF raw data'!B26) -> 1825-D | C26: =IF('DF raw data'!C26="","",'DF raw data'!C26) ->  | D26: =IF('DF raw data'!D26="","",'DF raw data'!D26) -> 
A27: =IF('DF raw data'!A27="","",'DF raw data'!A27) -> Probe Gain Correction | B27: =IF('DF raw data'!B27="","",'DF raw data'!B27) -> 0.9962 | C27: =IF('DF raw data'!C27="","",'DF raw data'!C27) ->  | D27: =IF('DF raw data'!D27="","",'DF raw data'!D27) -> 
A28: =IF('DF raw data'!A28="","",'DF raw data'!A28) -> Probe Offset Correction | B28: =IF('DF raw data'!B28="","",'DF raw data'!B28) -> 0.0027743 | C28: =IF('DF raw data'!C28="","",'DF raw data'!C28) ->  | D28: =IF('DF raw data'!D28="","",'DF raw data'!D28) -> 
A29: =IF('DF raw data'!A29="","",'DF raw data'!A29) -> DVM Number | B29: =IF('DF raw data'!B29="","",'DF raw data'!B29) -> 2 | C29: =IF('DF raw data'!C29="","",'DF raw data'!C29) ->  | D29: =IF('DF raw data'!D29="","",'DF raw data'!D29) -> 
A30: =IF('DF raw data'!A30="","",'DF raw data'!A30) -> DVM Type | B30: =IF('DF raw data'!B30="","",'DF raw data'!B30) -> K2701 | C30: =IF('DF raw data'!C30="","",'DF raw data'!C30) ->  | D30: =IF('DF raw data'!D30="","",'DF raw data'!D30) -> 
A31: =IF('DF raw data'!A31="","",'DF raw data'!A31) -> DVM Danfysik Reg. Number | B31: =IF('DF raw data'!B31="","",'DF raw data'!B31) -> 1743-D | C31: =IF('DF raw data'!C31="","",'DF raw data'!C31) ->  | D31: =IF('DF raw data'!D31="","",'DF raw data'!D31) -> 
A32: =IF('DF raw data'!A32="","",'DF raw data'!A32) -> Probe Name | B32: =IF('DF raw data'!B32="","",'DF raw data'!B32) -> ID12_Bx | C32: =IF('DF raw data'!C32="","",'DF raw data'!C32) ->  | D32: =IF('DF raw data'!D32="","",'DF raw data'!D32) -> 
A33: =IF('DF raw data'!A33="","",'DF raw data'!A33) -> Probe Type | B33: =IF('DF raw data'!B33="","",'DF raw data'!B33) -> DF_ID_3D_Bxyz | C33: =IF('DF raw data'!C33="","",'DF raw data'!C33) ->  | D33: =IF('DF raw data'!D33="","",'DF raw data'!D33) -> 
A34: =IF('DF raw data'!A34="","",'DF raw data'!A34) -> Probe Danfysik Reg. Number | B34: =IF('DF raw data'!B34="","",'DF raw data'!B34) -> 2277 | C34: =IF('DF raw data'!C34="","",'DF raw data'!C34) ->  | D34: =IF('DF raw data'!D34="","",'DF raw data'!D34) -> 
A35: =IF('DF raw data'!A35="","",'DF raw data'!A35) -> Probe Axis | B35: =IF('DF raw data'!B35="","",'DF raw data'!B35) -> Bx | C35: =IF('DF raw data'!C35="","",'DF raw data'!C35) ->  | D35: =IF('DF raw data'!D35="","",'DF raw data'!D35) -> 
A36: =IF('DF raw data'!A36="","",'DF raw data'!A36) -> Probe Current Supply | B36: =IF('DF raw data'!B36="","",'DF raw data'!B36) -> 1825-D | C36: =IF('DF raw data'!C36="","",'DF raw data'!C36) ->  | D36: =IF('DF raw data'!D36="","",'DF raw data'!D36) -> 
A37: =IF('DF raw data'!A37="","",'DF raw data'!A37) -> Probe Gain Correction | B37: =IF('DF raw data'!B37="","",'DF raw data'!B37) -> 1 | C37: =IF('DF raw data'!C37="","",'DF raw data'!C37) ->  | D37: =IF('DF raw data'!D37="","",'DF raw data'!D37) -> 
A38: =IF('DF raw data'!A38="","",'DF raw data'!A38) -> Probe Offset Correction | B38: =IF('DF raw data'!B38="","",'DF raw data'!B38) -> -0.17552 | C38: =IF('DF raw data'!C38="","",'DF raw data'!C38) ->  | D38: =IF('DF raw data'!D38="","",'DF raw data'!D38) -> 
A39: =IF('DF raw data'!A39="","",'DF raw data'!A39) -> DVM Number | B39: =IF('DF raw data'!B39="","",'DF raw data'!B39) -> 3 | C39: =IF('DF raw data'!C39="","",'DF raw data'!C39) ->  | D39: =IF('DF raw data'!D39="","",'DF raw data'!D39) -> 
A40: =IF('DF raw data'!A40="","",'DF raw data'!A40) -> DVM Type | B40: =IF('DF raw data'!B40="","",'DF raw data'!B40) -> K2701 | C40: =IF('DF raw data'!C40="","",'DF raw data'!C40) ->  | D40: =IF('DF raw data'!D40="","",'DF raw data'!D40) -> 
A41: =IF('DF raw data'!A41="","",'DF raw data'!A41) -> DVM Danfysik Reg. Number | B41: =IF('DF raw data'!B41="","",'DF raw data'!B41) -> 1744-D | C41: =IF('DF raw data'!C41="","",'DF raw data'!C41) ->  | D41: =IF('DF raw data'!D41="","",'DF raw data'!D41) -> 
A42: =IF('DF raw data'!A42="","",'DF raw data'!A42) -> Probe Name | B42: =IF('DF raw data'!B42="","",'DF raw data'!B42) -> ID12_Bz | C42: =IF('DF raw data'!C42="","",'DF raw data'!C42) ->  | D42: =IF('DF raw data'!D42="","",'DF raw data'!D42) -> 
A43: =IF('DF raw data'!A43="","",'DF raw data'!A43) -> Probe Type | B43: =IF('DF raw data'!B43="","",'DF raw data'!B43) -> DF_ID_3D_Bxyz | C43: =IF('DF raw data'!C43="","",'DF raw data'!C43) ->  | D43: =IF('DF raw data'!D43="","",'DF raw data'!D43) -> 
A44: =IF('DF raw data'!A44="","",'DF raw data'!A44) -> Probe Danfysik Reg. Number | B44: =IF('DF raw data'!B44="","",'DF raw data'!B44) -> 2277 | C44: =IF('DF raw data'!C44="","",'DF raw data'!C44) ->  | D44: =IF('DF raw data'!D44="","",'DF raw data'!D44) -> 
A45: =IF('DF raw data'!A45="","",'DF raw data'!A45) -> Probe Axis | B45: =IF('DF raw data'!B45="","",'DF raw data'!B45) -> Bz | C45: =IF('DF raw data'!C45="","",'DF raw data'!C45) ->  | D45: =IF('DF raw data'!D45="","",'DF raw data'!D45) -> 
A46: =IF('DF raw data'!A46="","",'DF raw data'!A46) -> Probe Current Supply | B46: =IF('DF raw data'!B46="","",'DF raw data'!B46) -> 1825-D | C46: =IF('DF raw data'!C46="","",'DF raw data'!C46) ->  | D46: =IF('DF raw data'!D46="","",'DF raw data'!D46) -> 
A47: =IF('DF raw data'!A47="","",'DF raw data'!A47) -> Probe Gain Correction | B47: =IF('DF raw data'!B47="","",'DF raw data'!B47) -> 1 | C47: =IF('DF raw data'!C47="","",'DF raw data'!C47) ->  | D47: =IF('DF raw data'!D47="","",'DF raw data'!D47) -> 
A48: =IF('DF raw data'!A48="","",'DF raw data'!A48) -> Probe Offset Correction | B48: =IF('DF raw data'!B48="","",'DF raw data'!B48) -> 0.0073175 | C48: =IF('DF raw data'!C48="","",'DF raw data'!C48) ->  | D48: =IF('DF raw data'!D48="","",'DF raw data'!D48) -> 
A49: =IF('DF raw data'!A49="","",'DF raw data'!A49) -> DVM Number | B49: =IF('DF raw data'!B49="","",'DF raw data'!B49) -> 8 | C49: =IF('DF raw data'!C49="","",'DF raw data'!C49) ->  | D49: =IF('DF raw data'!D49="","",'DF raw data'!D49) -> 
A50: =IF('DF raw data'!A50="","",'DF raw data'!A50) -> DVM Type | B50: =IF('DF raw data'!B50="","",'DF raw data'!B50) -> K2700 | C50: =IF('DF raw data'!C50="","",'DF raw data'!C50) ->  | D50: =IF('DF raw data'!D50="","",'DF raw data'!D50) -> 
A51: =IF('DF raw data'!A51="","",'DF raw data'!A51) -> DVM Danfysik Reg. Number | B51: =IF('DF raw data'!B51="","",'DF raw data'!B51) -> 1756-D | C51: =IF('DF raw data'!C51="","",'DF raw data'!C51) ->  | D51: =IF('DF raw data'!D51="","",'DF raw data'!D51) -> 
A52: =IF('DF raw data'!A52="","",'DF raw data'!A52) -> NTC voltage | B52: =IF('DF raw data'!B52="","",'DF raw data'!B52) -> 0.41936 | C52: =IF('DF raw data'!C52="","",'DF raw data'!C52) ->  | D52: =IF('DF raw data'!D52="","",'DF raw data'!D52) -> 
A53: =IF('DF raw data'!A53="","",'DF raw data'!A53) -> PS-Gap: | B53: =IF('DF raw data'!B53="","",'DF raw data'!B53) -> 10 | C53: =IF('DF raw data'!C53="","",'DF raw data'!C53) ->  | D53: =IF('DF raw data'!D53="","",'DF raw data'!D53) -> 
A54: =IF('DF raw data'!A54="","",'DF raw data'!A54) -> PS-Temperature: | B54: =IF('DF raw data'!B54="","",'DF raw data'!B54) -> 24.3 | C54: =IF('DF raw data'!C54="","",'DF raw data'!C54) ->  | D54: =IF('DF raw data'!D54="","",'DF raw data'!D54) -> 
A55: =IF('DF raw data'!A55="","",'DF raw data'!A55) -> PS-Encoder: | B55: =IF('DF raw data'!B55="","",'DF raw data'!B55) -> 19.6129 | C55: =IF('DF raw data'!C55="","",'DF raw data'!C55) ->  | D55: =IF('DF raw data'!D55="","",'DF raw data'!D55) -> 
A56: =IF('DF raw data'!A56="","",'DF raw data'!A56) ->  | B56: =IF('DF raw data'!B56="","",'DF raw data'!B56) -> 
A57: =IF('DF raw data'!A57="","",'DF raw data'!A57) -> Monitor-Index | B57: =IF('DF raw data'!B57="","",'DF raw data'!B57) -> [1,1,4]
A58: =IF('DF raw data'!A58="","",'DF raw data'!A58) ->  | B58: =IF('DF raw data'!B58="","",'DF raw data'!B58) -> 
A59: =IF('DF raw data'!A59="","",'DF raw data'!A59) -> Time [s] | B59: =IF('DF raw data'!B59="","",'DF raw data'!B59) -> Y [mm]
A60: =IF('DF raw data'!A60="","",'DF raw data'!A60) ->  | B60: =IF('DF raw data'!B60="","",'DF raw data'!B60) -> 
A61: =IF('DF raw data'!A61="","",'DF raw data'!A61) -> 207.8 | B61: =IF('DF raw data'!B61="","",'DF raw data'!B61) -> 31.48
A62: =IF('DF raw data'!A62="","",'DF raw data'!A62) ->  | B62: =IF('DF raw data'!B62="","",'DF raw data'!B62) -> 
A63: =IF('DF raw data'!A63="","",'DF raw data'!A63) -> Measurement-Index | B63: =IF('DF raw data'!B63="","",'DF raw data'!B63) -> [1,1,1201,2]
A64: =IF('DF raw data'!A64="","",'DF raw data'!A64) ->  | B64: =IF('DF raw data'!B64="","",'DF raw data'!B64) -> 
A65: =IF('DF raw data'!A65="","",'DF raw data'!A65) -> Z [mm] | B65: =IF('DF raw data'!B65="","",'DF raw data'!B65) -> By [T] | C65: =IF('DF raw data'!C65="","",'DF raw data'!C65) -> Bx [T] | D65: =IF('DF raw data'!D65="","",'DF raw data'!D65) -> Bz [T] | F65: By_corr | G65: Bx_corr | H65: Bz_corr | J65: Iy | K65: Jy | L65: Ix | M65: Jx | N65: PI
A66: =IF('DF raw data'!A66="","",'DF raw data'!A66) -> [1, 0, 0, 0] | B66: =IF('DF raw data'!B66="","",'DF raw data'!B66) ->  | C66: =IF('DF raw data'!C66="","",'DF raw data'!C66) ->  | D66: =IF('DF raw data'!D66="","",'DF raw data'!D66) -> 
A67: =IF('DF raw data'!A67="","",'DF raw data'!A67) -> -300 | B67: =IF('DF raw data'!B67="","",'DF raw data'!B67) -> -2.90777e-05 | C67: =IF('DF raw data'!C67="","",'DF raw data'!C67) -> 9.71016e-05 | D67: =IF('DF raw data'!D67="","",'DF raw data'!D67) -> -2.68099e-05 | F67: =(1-$G$1*($B$54-$G$2))*(B67-F$5) -> 1.426019655e-05 | G67: =(1-$G$1*($B$54-$G$2))*(C67-G$5) -> 6.423378524e-05 | H67: =(1-$G$1*($B$54-$G$2))*(D67-H$5) -> 2.971242371e-06 | J67: =F67*$G$3+J66 -> 7.130098273e-06 | K67: =J67*$G$3+K66 -> 3.565049137e-06 | L67: =G67*$G$3+L66 -> 3.211689262e-05 | M67: =L67*$G$3+M66 -> 1.605844631e-05 | N67: =(J67^2+L67^2)*$G$3+N66 -> 5.411665465e-10
A68: =IF('DF raw data'!A68="","",'DF raw data'!A68) -> -299.5 | B68: =IF('DF raw data'!B68="","",'DF raw data'!B68) -> -4.80467e-05 | C68: =IF('DF raw data'!C68="","",'DF raw data'!C68) -> 8.51176e-05 | D68: =IF('DF raw data'!D68="","",'DF raw data'!D68) -> -2.57798e-05 | F68: -4.790370153e-06 | G68: 5.219825404e-05 | H68: 4.005771801e-06 | J68: =F68*$G$3+J67 -> 4.734913197e-06 | K68: =J68*$G$3+K67 -> 5.932505735e-06 | L68: =G68*$G$3+L67 -> 5.821601964e-05 | M68: =L68*$G$3+M67 -> 4.516645613e-05 | N68: =(J68^2+L68^2)*$G$3+N67 -> 2.246928719e-09
A69: =IF('DF raw data'!A69="","",'DF raw data'!A69) -> -299 | B69: =IF('DF raw data'!B69="","",'DF raw data'!B69) -> -3.27961e-05 | C69: =IF('DF raw data'!C69="","",'DF raw data'!C69) -> 7.88892e-05 | D69: =IF('DF raw data'!D69="","",'DF raw data'!D69) -> -2.42111e-05 | F69: 1.052580743e-05 | G69: 4.594307192e-05 | H69: 5.581217211e-06 | J69: 9.99781691e-06 | K69: 1.093141419e-05 | L69: 8.11875556e-05 | M69: 8.576023393e-05 | N69: 5.592616483e-09
A70: =IF('DF raw data'!A70="","",'DF raw data'!A70) -> -298.5 | B70: =IF('DF raw data'!B70="","",'DF raw data'!B70) -> -4.27292e-05 | C70: =IF('DF raw data'!C70="","",'DF raw data'!C70) -> 8.56868e-05 | D70: =IF('DF raw data'!D70="","",'DF raw data'!D70) -> -2.36341e-05 | F70: 5.49995097e-07 | G70: 5.27699016e-05 | H70: 6.160698311e-06 | J70: 1.027281446e-05 | K70: 1.606782142e-05 | L70: 0.0001075725064 | M70: 0.0001395464871 | N70: 1.143130391e-08
A71: =IF('DF raw data'!A71="","",'DF raw data'!A71) -> -298 | B71: =IF('DF raw data'!B71="","",'DF raw data'!B71) -> -2.65161e-05 | C71: =IF('DF raw data'!C71="","",'DF raw data'!C71) -> 9.42322e-05 | D71: =IF('DF raw data'!D71="","",'DF raw data'!D71) -> -2.42675e-05 | F71: 1.683281143e-05 | G71: 6.135204682e-05 | H71: 5.524574691e-06 | J71: 1.868922017e-05 | K71: 2.541243151e-05 | L71: 0.0001382485298 | M71: 0.000208670752 | N71: 2.116227538e-08
A72: =IF('DF raw data'!A72="","",'DF raw data'!A72) -> -297.5 | B72: =IF('DF raw data'!B72="","",'DF raw data'!B72) -> -3.65126e-05 | C72: =IF('DF raw data'!C72="","",'DF raw data'!C72) -> 8.96381e-05 | D72: =IF('DF raw data'!D72="","",'DF raw data'!D72) -> -2.48384e-05 | F72: 6.793326477e-06 | G72: 5.673819219e-05 | H72: 4.951219821e-06 | J72: 2.208588341e-05 | K72: 3.645537321e-05 | L72: 0.0001666176259 | M72: 0.000291979565 | N72: 3.528688513e-08
A73: =IF('DF raw data'!A73="","",'DF raw data'!A73) -> -297 | B73: =IF('DF raw data'!B73="","",'DF raw data'!B73) -> -4.18956e-05 | C73: =IF('DF raw data'!C73="","",'DF raw data'!C73) -> 9.11629e-05 | D73: =IF('DF raw data'!D73="","",'DF raw data'!D73) -> -2.46263e-05 | F73: 1.387179577e-06 | G73: 5.826954883e-05 | H73: 5.164231851e-06 | J73: 2.27794732e-05 | K73: 4.784510981e-05 | L73: 0.0001957524003 | M73: 0.0003898557651 | N73: 5.470583845e-08
A74: =IF('DF raw data'!A74="","",'DF raw data'!A74) -> -296.5 | B74: =IF('DF raw data'!B74="","",'DF raw data'!B74) -> -3.59362e-05 | C74: =IF('DF raw data'!C74="","",'DF raw data'!C74) -> 8.79983e-05 | D74: =IF('DF raw data'!D74="","",'DF raw data'!D74) -> -2.42226e-05 | F74: 7.372204997e-06 | G74: 5.509134105e-05 | H74: 5.569667761e-06 | J74: 2.64655757e-05 | K74: 6.107789766e-05 | L74: 0.0002232980708 | M74: 0.0005015048006 | N74: 7.998706602e-08
A75: =IF('DF raw data'!A75="","",'DF raw data'!A75) -> -296 | B75: =IF('DF raw data'!B75="","",'DF raw data'!B75) -> -3.61286e-05 | C75: =IF('DF raw data'!C75="","",'DF raw data'!C75) -> 8.57455e-05 | D75: =IF('DF raw data'!D75="","",'DF raw data'!D75) -> -2.40415e-05 | F75: 7.178977677e-06 | G75: 5.282885401e-05 | H75: 5.751546491e-06 | J75: 3.005506454e-05 | K75: 7.610542993e-05 | L75: 0.0002497124978 | M75: 0.0006263610495 | N75: 1.116168853e-07
A76: =IF('DF raw data'!A76="","",'DF raw data'!A76) -> -295.5 | B76: =IF('DF raw data'!B76="","",'DF raw data'!B76) -> -4.08066e-05 | C76: =IF('DF raw data'!C76="","",'DF raw data'!C76) -> 8.90449e-05 | D76: =IF('DF raw data'!D76="","",'DF raw data'!D76) -> -2.3896e-05 | F76: 2.480862277e-06 | G76: 5.614244143e-05 | H76: 5.897672141e-06 | J76: 3.129549567e-05 | K76: 9.175317777e-05 | L76: 0.0002777837186 | M76: 0.0007652529088 | N76: 1.506884864e-07
A77: =IF('DF raw data'!A77="","",'DF raw data'!A77) -> -295 | B77: =IF('DF raw data'!B77="","",'DF raw data'!B77) -> -2.98482e-05 | C77: =IF('DF raw data'!C77="","",'DF raw data'!C77) -> 7.52422e-05 | D77: =IF('DF raw data'!D77="","",'DF raw data'!D77) -> -2.4221e-05 | F77: 1.34863834e-05 | G77: 4.228038982e-05 | H77: 5.571274641e-06 | J77: 3.803868737e-05 | K77: 0.0001107725215 | L77: 0.0002989239135 | M77: 0.0009147148655 | N77: 1.960897103e-07
A78: =IF('DF raw data'!A78="","",'DF raw data'!A78) -> -294.5 | B78: =IF('DF raw data'!B78="","",'DF raw data'!B78) -> -3.40774e-05 | C78: =IF('DF raw data'!C78="","",'DF raw data'!C78) -> 7.72764e-05 | D78: =IF('DF raw data'!D78="","",'DF raw data'!D78) -> -2.46391e-05 | F78: 9.238997837e-06 | G78: 4.432333688e-05 | H78: 5.151376811e-06 | J78: 4.265818629e-05 | K78: 0.0001321016146 | L78: 0.0003210855819 | M78: 0.001075257656 | N78: 2.485475462e-07
A79: =IF('DF raw data'!A79="","",'DF raw data'!A79) -> -294 | B79: =IF('DF raw data'!B79="","",'DF raw data'!B79) -> -4.14472e-05 | C79: =IF('DF raw data'!C79="","",'DF raw data'!C79) -> 8.4757e-05 | D79: =IF('DF raw data'!D79="","",'DF raw data'!D79) -> -2.41571e-05 | F79: 1.837507697e-06 | G79: 5.183610346e-05 | H79: 5.635449411e-06 | J79: 4.357694014e-05 | K79: 0.0001538900847 | L79: 0.0003470036336 | M79: 0.001248759473 | N79: 3.09702782e-07
A80: =IF('DF raw data'!A80="","",'DF raw data'!A80) -> -293.5 | B80: =IF('DF raw data'!B80="","",'DF raw data'!B80) -> -3.79231e-05 | C80: =IF('DF raw data'!C80="","",'DF raw data'!C80) -> 8.21765e-05 | D80: =IF('DF raw data'!D80="","",'DF raw data'!D80) -> -2.3613e-05 | F80: 5.376761327e-06 | G80: 4.924450731e-05 | H80: 6.181889041e-06 | J80: 4.62653208e-05 | K80: 0.0001770227451 | L80: 0.0003716258873 | M80: 0.001434572417 | N80: 3.79825922e-07
A81: =IF('DF raw data'!A81="","",'DF raw data'!A81) -> -293 | B81: =IF('DF raw data'!B81="","",'DF raw data'!B81) -> -2.21585e-05 | C81: =IF('DF raw data'!C81="","",'DF raw data'!C81) -> 8.67731e-05 | D81: =IF('DF raw data'!D81="","",'DF raw data'!D81) -> -2.4283e-05 | F81: 2.120914911e-05 | G81: 5.386087269e-05 | H81: 5.509008041e-06 | J81: 5.686989536e-05 | K81: 0.0002054576927 | L81: 0.0003985563236 | M81: 0.001633850579 | N81: 4.60866586e-07
A82: =IF('DF raw data'!A82="","",'DF raw data'!A82) -> -292.5 | B82: =IF('DF raw data'!B82="","",'DF raw data'!B82) -> -3.92038e-05 | C82: =IF('DF raw data'!C82="","",'DF raw data'!C82) -> 8.05598e-05 | D82: =IF('DF raw data'!D82="","",'DF raw data'!D82) -> -2.4939e-05 | F82: 4.090554317e-06 | G82: 4.76208555e-05 | H82: 4.850187241e-06 | J82: 5.891517252e-05 | K82: 0.000234915279 | L82: 0.0004223667514 | M82: 0.001845033954 | N82: 5.517989211e-07
A83: =IF('DF raw data'!A83="","",'DF raw data'!A83) -> -292 | B83: =IF('DF raw data'!B83="","",'DF raw data'!B83) -> -3.74738e-05 | C83: =IF('DF raw data'!C83="","",'DF raw data'!C83) -> 8.05458e-05 | D83: =IF('DF raw data'!D83="","",'DF raw data'!D83) -> -2.46594e-05 | F83: 5.827993317e-06 | G83: 4.76067953e-05 | H83: 5.130989521e-06 | J83: 6.182916917e-05 | K83: 0.0002658298636 | L83: 0.000446170149 | M83: 0.002068119029 | N83: 6.532442452e-07
A84: =IF('DF raw data'!A84="","",'DF raw data'!A84) -> -291.5 | B84: =IF('DF raw data'!B84="","",'DF raw data'!B84) -> -3.69584e-05 | C84: =IF('DF raw data'!C84="","",'DF raw data'!C84) -> 8.32953e-05 | D84: =IF('DF raw data'!D84="","",'DF raw data'!D84) -> -2.87662e-05 | F84: 6.345609537e-06 | G84: 5.036811815e-05 | H84: 1.006530281e-06 | J84: 6.500197394e-05 | K84: 0.0002983308506 | L84: 0.0004713542081 | M84: 0.002303796133 | N84: 7.664442682e-07
A85: =IF('DF raw data'!A85="","",'DF raw data'!A85) -> -291 | B85: =IF('DF raw data'!B85="","",'DF raw data'!B85) -> -3.25954e-05 | C85: =IF('DF raw data'!C85="","",'DF raw data'!C85) -> 7.86026e-05 | D85: =IF('DF raw data'!D85="","",'DF raw data'!D85) -> -3.72066e-05 | F85: 1.072737044e-05 | G85: 4.565523954e-05 | H85: -7.470163439e-06 | J85: 7.036565916e-05 | K85: 0.0003335136801 | L85: 0.0004941818279 | M85: 0.002550887047 | N85: 8.910277707e-07
A86: =IF('DF raw data'!A86="","",'DF raw data'!A86) -> -290.5 | B86: =IF('DF raw data'!B86="","",'DF raw data'!B86) -> -4.292e-05 | C86: =IF('DF raw data'!C86="","",'DF raw data'!C86) -> 7.21824e-05 | D86: =IF('DF raw data'!D86="","",'DF raw data'!D86) -> -2.59058e-05 | F86: 3.58374657e-07 | G86: 3.920743268e-05 | H86: 3.879230001e-06 | J86: 7.054484649e-05 | K86: 0.0003687861034 | L86: 0.0005137855442 | M86: 0.002807779819 | N86: 1.025503851e-06
A87: =IF('DF raw data'!A87="","",'DF raw data'!A87) -> -290 | B87: =IF('DF raw data'!B87="","",'DF raw data'!B87) -> -4.56144e-05 | C87: =IF('DF raw data'!C87="","",'DF raw data'!C87) -> 7.30472e-05 | D87: =IF('DF raw data'!D87="","",'DF raw data'!D87) -> -2.16733e-05 | F87: -2.347611263e-06 | G87: 4.007595132e-05 | H87: 8.129929751e-06 | J87: 6.937104086e-05 | K87: 0.0004034716238 | L87: 0.0005338235199 | M87: 0.003074691579 | N87: 1.170393797e-06
A88: =IF('DF raw data'!A88="","",'DF raw data'!A88) -> -289.5 | B88: =IF('DF raw data'!B88="","",'DF raw data'!B88) -> -4.42677e-05 | C88: =IF('DF raw data'!C88="","",'DF raw data'!C88) -> 7.67969e-05 | D88: =IF('DF raw data'!D88="","",'DF raw data'!D88) -> -2.28973e-05 | F88: -9.95120453e-07 | G88: 4.384177503e-05 | H88: 6.900666551e-06 | J88: 6.887348063e-05 | K88: 0.0004379083641 | L88: 0.0005557444074 | M88: 0.003352563783 | N88: 1.327191498e-06
A89: =IF('DF raw data'!A89="","",'DF raw data'!A89) -> -289 | B89: =IF('DF raw data'!B89="","",'DF raw data'!B89) -> -3.49735e-05 | C89: =IF('DF raw data'!C89="","",'DF raw data'!C89) -> 7.72159e-05 | D89: =IF('DF raw data'!D89="","",'DF raw data'!D89) -> -2.64289e-05 | F89: 8.339044607e-06 | G89: 4.426257673e-05 | H89: 3.353880671e-06 | J89: 7.304300293e-05 | K89: 0.0004744298656 | L89: 0.0005778756958 | M89: 0.003641501631 | N89: 1.496829298e-06
A90: =IF('DF raw data'!A90="","",'DF raw data'!A90) -> -288.5 | B90: =IF('DF raw data'!B90="","",'DF raw data'!B90) -> -3.56715e-05 | C90: =IF('DF raw data'!C90="","",'DF raw data'!C90) -> 7.89021e-05 | D90: =IF('DF raw data'!D90="","",'DF raw data'!D90) -> -3.69792e-05 | F90: 7.638043207e-06 | G90: 4.595602739e-05 | H90: -7.241785619e-06 | J90: 7.686202454e-05 | K90: 0.0005128608779 | L90: 0.0006008537095 | M90: 0.003941928485 | N90: 1.680295774e-06
A91: =IF('DF raw data'!A91="","",'DF raw data'!A91) -> -288 | B91: =IF('DF raw data'!B91="","",'DF raw data'!B91) -> -4.81716e-05 | C91: =IF('DF raw data'!C91="","",'DF raw data'!C91) -> 7.96193e-05 | D91: =IF('DF raw data'!D91="","",'DF raw data'!D91) -> -3.10874e-05 | F91: -4.915807223e-06 | G91: 4.667631135e-05 | H91: -1.324650879e-06 | J91: 7.440412093e-05 | K91: 0.0005500629383 | L91: 0.0006241918651 | M91: 0.004254024418 | N91: 1.877871503e-06
A92: =IF('DF raw data'!A92="","",'DF raw data'!A92) -> -287.5 | B92: =IF('DF raw data'!B92="","",'DF raw data'!B92) -> -3.43945e-05 | C92: =IF('DF raw data'!C92="","",'DF raw data'!C92) -> 7.77393e-05 | D92: =IF('DF raw data'!D92="","",'DF raw data'!D92) -> -2.97062e-05 | F92: 8.920534307e-06 | G92: 4.478822735e-05 | H92: 6.248828085e-08 | J92: 7.886438808e-05 | K92: 0.0005894951324 | L92: 0.0006465859788 | M92: 0.004577317407 | N92: 2.090018013e-06
A93: =IF('DF raw data'!A93="","",'DF raw data'!A93) -> -287 | B93: =IF('DF raw data'!B93="","",'DF raw data'!B93) -> -4.77296e-05 | C93: =IF('DF raw data'!C93="","",'DF raw data'!C93) -> 7.19368e-05 | D93: =IF('DF raw data'!D93="","",'DF raw data'!D93) -> -2.07562e-05 | F93: -4.471906623e-06 | G93: 3.89607766e-05 | H93: 9.050973281e-06 | J93: 7.662843477e-05 | K93: 0.0006278093498 | L93: 0.0006660663671 | M93: 0.004910350591 | N93: 2.314776174e-06
A94: =IF('DF raw data'!A94="","",'DF raw data'!A94) -> -286.5 | B94: =IF('DF raw data'!B94="","",'DF raw data'!B94) -> -4.29161e-05 | C94: =IF('DF raw data'!C94="","",'DF raw data'!C94) -> 6.35707e-05 | D94: =IF('DF raw data'!D94="","",'DF raw data'!D94) -> -3.18457e-05 | F94: 3.62291427e-07 | G94: 3.055870237e-05 | H94: -2.086211569e-06 | J94: 7.680958048e-05 | K94: 0.00066621414 | L94: 0.0006813457183 | M94: 0.00525102345 | N94: 2.549842024e-06
A95: =IF('DF raw data'!A95="","",'DF raw data'!A95) -> -286 | B95: =IF('DF raw data'!B95="","",'DF raw data'!B95) -> -3.6522e-05 | C95: =IF('DF raw data'!C95="","",'DF raw data'!C95) -> 5.85938e-05 | D95: =IF('DF raw data'!D95="","",'DF raw data'!D95) -> -1.07442e-05 | F95: 6.783886057e-06 | G95: 2.55604017e-05 | H95: 1.910602488e-05 | J95: 8.020152351e-05 | K95: 0.0007063149018 | L95: 0.0006941259191 | M95: 0.00559808641 | N95: 2.793963562e-06
A96: =IF('DF raw data'!A96="","",'DF raw data'!A96) -> -285.5 | B96: =IF('DF raw data'!B96="","",'DF raw data'!B96) -> -4.73465e-05 | C96: =IF('DF raw data'!C96="","",'DF raw data'!C96) -> 6.54571e-05 | D96: =IF('DF raw data'!D96="","",'DF raw data'!D96) -> -1.79006e-05 | F96: -4.087159293e-06 | G96: 3.245321389e-05 | H96: 1.191885236e-05 | J96: 7.815794386e-05 | K96: 0.0007453938737 | L96: 0.0007103525261 | M96: 0.005953262673 | N96: 3.049318249e-06
A97: =IF('DF raw data'!A97="","",'DF raw data'!A97) -> -285 | B97: =IF('DF raw data'!B97="","",'DF raw data'!B97) -> -4.09986e-05 | C97: =IF('DF raw data'!C97="","",'DF raw data'!C97) -> 7.05909e-05 | D97: =IF('DF raw data'!D97="","",'DF raw data'!D97) -> -2.50175e-05 | F97: 2.288036677e-06 | G97: 3.760908923e-05 | H97: 4.771349691e-06 | J97: 7.93019622e-05 | K97: 0.0007850448548 | L97: 0.0007291570707 | M97: 0.006317841208 | N97: 3.318297667e-06
A98: =IF('DF raw data'!A98="","",'DF raw data'!A98) -> -284.5 | B98: =IF('DF raw data'!B98="","",'DF raw data'!B98) -> -4.23474e-05 | C98: =IF('DF raw data'!C98="","",'DF raw data'!C98) -> 6.47218e-05 | D98: =IF('DF raw data'!D98="","",'DF raw data'!D98) -> -1.88776e-05 | F98: 9.33436837e-07 | G98: 3.17147521e-05 | H98: 1.093765126e-05 | J98: 7.976868062e-05 | K98: 0.0008249291951 | L98: 0.0007450144468 | M98: 0.006690348431 | N98: 3.599002451e-06
A99: =IF('DF raw data'!A99="","",'DF raw data'!A99) -> -284 | B99: =IF('DF raw data'!B99="","",'DF raw data'!B99) -> -4.20256e-05 | C99: =IF('DF raw data'!C99="","",'DF raw data'!C99) -> 6.92101e-05 | D99: =IF('DF raw data'!D99="","",'DF raw data'!D99) -> -2.25308e-05 | F99: 1.256620577e-06 | G99: 3.622235179e-05 | H99: 7.268742501e-06 | J99: 8.039699091e-05 | K99: 0.0008651276906 | L99: 0.0007631256227 | M99: 0.007071911243 | N99: 3.893414647e-06
A100: =IF('DF raw data'!A100="","",'DF raw data'!A100) -> -283.5 | B100: =IF('DF raw data'!B100="","",'DF raw data'!B100) -> -3.38896e-05 | C100: =IF('DF raw data'!C100="","",'DF raw data'!C100) -> 7.51537e-05 | D100: =IF('DF raw data'!D100="","",'DF raw data'!D100) -> -1.76266e-05 | F100: 9.427605377e-06 | G100: 4.219150927e-05 | H100: 1.219403056e-05 | J100: 8.51107936e-05 | K100: 0.0009076830874 | L100: 0.0007842213773 | M100: 0.007464021931 | N100: 4.204538155e-06
A101: =IF('DF raw data'!A101="","",'DF raw data'!A101) -> -283 | B101: =IF('DF raw data'!B101="","",'DF raw data'!B101) -> -2.11397e-05 | C101: =IF('DF raw data'!C101="","",'DF raw data'!C101) -> 8.81286e-05 | D101: =IF('DF raw data'!D101="","",'DF raw data'!D101) -> -1.45815e-05 | F101: 2.223232995e-05 | G101: 5.522220134e-05 | H101: 1.525222449e-05 | J101: 9.622695857e-05 | K101: 0.0009557965666 | L101: 0.000811832478 | M101: 0.00786993817 | N101: 4.538703955e-06
A102: =IF('DF raw data'!A102="","",'DF raw data'!A102) -> -282.5 | B102: =IF('DF raw data'!B102="","",'DF raw data'!B102) -> -3.32458e-05 | C102: =IF('DF raw data'!C102="","",'DF raw data'!C102) -> 9.86407e-05 | D102: =IF('DF raw data'!D102="","",'DF raw data'!D102) -> -2.2133e-05 | F102: 1.007417372e-05 | G102: 6.577950337e-05 | H102: 7.668253041e-06 | J102: 0.0001012640454 | K102: 0.001006428589 | L102: 0.0008447222296 | M102: 0.008292299285 | N102: 4.900608981e-06
A103: =IF('DF raw data'!A103="","",'DF raw data'!A103) -> -282 | B103: =IF('DF raw data'!B103="","",'DF raw data'!B103) -> -4.01624e-05 | C103: =IF('DF raw data'!C103="","",'DF raw data'!C103) -> 8.66093e-05 | D103: =IF('DF raw data'!D103="","",'DF raw data'!D103) -> -2.99368e-05 | F103: 3.127832337e-06 | G103: 5.369636835e-05 | H103: -1.691032991e-07 | J103: 0.0001028279616 | K103: 0.00105784257 | L103: 0.0008715704138 | M103: 0.008728084492 | N103: 5.285713269e-06
A104: =IF('DF raw data'!A104="","",'DF raw data'!A104) -> -281.5 | B104: =IF('DF raw data'!B104="","",'DF raw data'!B104) -> -4.0615e-05 | C104: =IF('DF raw data'!C104="","",'DF raw data'!C104) -> 7.73745e-05 | D104: =IF('DF raw data'!D104="","",'DF raw data'!D104) -> -2.25279e-05 | F104: 2.673286157e-06 | G104: 4.442185871e-05 | H104: 7.271654971e-06 | J104: 0.0001041646047 | K104: 0.001109924872 | L104: 0.0008937813432 | M104: 0.009174975164 | N104: 5.690560946e-06
A105: =IF('DF raw data'!A105="","",'DF raw data'!A105) -> -281 | B105: =IF('DF raw data'!B105="","",'DF raw data'!B105) -> -5.06754e-05 | C105: =IF('DF raw data'!C105="","",'DF raw data'!C105) -> 8.05397e-05 | D105: =IF('DF raw data'!D105="","",'DF raw data'!D105) -> -2.46848e-05 | F105: -7.430373563e-06 | G105: 4.760066907e-05 | H105: 5.105480301e-06 | J105: 0.0001004494179 | K105: 0.001160149581 | L105: 0.0009175816777 | M105: 0.009633766003 | N105: 6.116584056e-06
A106: =IF('DF raw data'!A106="","",'DF raw data'!A106) -> -280.5 | B106: =IF('DF raw data'!B106="","",'DF raw data'!B106) -> -4.12472e-05 | C106: =IF('DF raw data'!C106="","",'DF raw data'!C106) -> 7.87064e-05 | D106: =IF('DF raw data'!D106="","",'DF raw data'!D106) -> -3.56642e-05 | F106: 2.038367697e-06 | G106: 4.575948588e-05 | H106: -5.921131119e-06 | J106: 0.0001014686017 | K106: 0.001210883882 | L106: 0.0009404614206 | M106: 0.01010399671 | N106: 6.563965837e-06
A107: =IF('DF raw data'!A107="","",'DF raw data'!A107) -> -280 | B107: =IF('DF raw data'!B107="","",'DF raw data'!B107) -> -3.45223e-05 | C107: =IF('DF raw data'!C107="","",'DF raw data'!C107) -> 9.02374e-05 | D107: =IF('DF raw data'!D107="","",'DF raw data'!D107) -> -3.11228e-05 | F107: 8.792184767e-06 | G107: 5.734006918e-05 | H107: -1.360203099e-06 | J107: 0.0001058646941 | K107: 0.001263816229 | L107: 0.0009691314552 | M107: 0.01058856244 | N107: 7.039177392e-06
A108: =IF('DF raw data'!A108="","",'DF raw data'!A108) -> -279.5 | B108: =IF('DF raw data'!B108="","",'DF raw data'!B108) -> -3.99078e-05 | C108: =IF('DF raw data'!C108="","",'DF raw data'!C108) -> 9.16901e-05 | D108: =IF('DF raw data'!D108="","",'DF raw data'!D108) -> -2.58887e-05 | F108: 3.383527117e-06 | G108: 5.879901579e-05 | H108: 3.896403531e-06 | J108: 0.0001075564577 | K108: 0.001317594458 | L108: 0.0009985309631 | M108: 0.01108782792 | N108: 7.54349363e-06
A109: =IF('DF raw data'!A109="","",'DF raw data'!A109) -> -279 | B109: =IF('DF raw data'!B109="","",'DF raw data'!B109) -> -4.15224e-05 | C109: =IF('DF raw data'!C109="","",'DF raw data'!C109) -> 9.43692e-05 | D109: =IF('DF raw data'!D109="","",'DF raw data'!D109) -> -8.09915e-06 | F109: 1.761984337e-06 | G109: 6.148963592e-05 | H109: 2.17624486e-05 | J109: 0.0001084374499 | K109: 0.001371813183 | L109: 0.001029275781 | M109: 0.01160246581 | N109: 8.079077287e-06
A110: =IF('DF raw data'!A110="","",'DF raw data'!A110) -> -278.5 | B110: =IF('DF raw data'!B110="","",'DF raw data'!B110) -> -2.82518e-05 | C110: =IF('DF raw data'!C110="","",'DF raw data'!C110) -> 8.88973e-05 | D110: =IF('DF raw data'!D110="","",'DF raw data'!D110) -> -1.53798e-05 | F110: 1.508964792e-05 | G110: 5.599420675e-05 | H110: 1.44504918e-05 | J110: 0.0001159822738 | K110: 0.00142980432 | L110: 0.001057272884 | M110: 0.01213110225 | N110: 8.644716207e-06
A111: =IF('DF raw data'!A111="","",'DF raw data'!A111) -> -278 | B111: =IF('DF raw data'!B111="","",'DF raw data'!B111) -> -3.08729e-05 | C111: =IF('DF raw data'!C111="","",'DF raw data'!C111) -> 8.7825e-05 | D111: =IF('DF raw data'!D111="","",'DF raw data'!D111) -> -2.60611e-05 | F111: 1.245727719e-05 | G111: 5.491729586e-05 | H111: 3.723262211e-06 | J111: 0.0001222109124 | K111: 0.001490909776 | L111: 0.001084731532 | M111: 0.01267346802 | N111: 9.24050521e-06
A112: =IF('DF raw data'!A112="","",'DF raw data'!A112) -> -277.5 | B112: =IF('DF raw data'!B112="","",'DF raw data'!B112) -> -3.31849e-05 | C112: =IF('DF raw data'!C112="","",'DF raw data'!C112) -> 8.28954e-05 | D112: =IF('DF raw data'!D112="","",'DF raw data'!D112) -> -1.7134e-05 | F112: 1.013533559e-05 | G112: 4.996649858e-05 | H112: 1.268874874e-05 | J112: 0.0001272785802 | K112: 0.001554549066 | L112: 0.001109714782 | M112: 0.01322832541 | N112: 9.864338576e-06
A113: =IF('DF raw data'!A113="","",'DF raw data'!A113) -> -277 | B113: =IF('DF raw data'!B113="","",'DF raw data'!B113) -> -3.26696e-05 | C113: =IF('DF raw data'!C113="","",'DF raw data'!C113) -> 8.42602e-05 | D113: =IF('DF raw data'!D113="","",'DF raw data'!D113) -> -2.23881e-05 | F113: 1.065285138e-05 | G113: 5.133716722e-05 | H113: 7.412056111e-06 | J113: 0.0001326050059 | K113: 0.001620851569 | L113: 0.001135383365 | M113: 0.01379601709 | N113: 1.051767831e-05
A114: =IF('DF raw data'!A114="","",'DF raw data'!A114) -> -276.5 | B114: =IF('DF raw data'!B114="","",'DF raw data'!B114) -> -3.34391e-05 | C114: =IF('DF raw data'!C114="","",'DF raw data'!C114) -> 8.23624e-05 | D114: =IF('DF raw data'!D114="","",'DF raw data'!D114) -> -2.02812e-05 | F114: 9.880042527e-06 | G114: 4.943120668e-05 | H114: 9.528015781e-06 | J114: 0.0001375450272 | K114: 0.001689624083 | L114: 0.001160098969 | M114: 0.01437606658 | N114: 1.120005244e-05
A115: =IF('DF raw data'!A115="","",'DF raw data'!A115) -> -276 | B115: =IF('DF raw data'!B115="","",'DF raw data'!B115) -> -3.06811e-05 | C115: =IF('DF raw data'!C115="","",'DF raw data'!C115) -> 6.60266e-05 | D115: =IF('DF raw data'!D115="","",'DF raw data'!D115) -> -2.51994e-05 | F115: 1.264990193e-05 | G115: 3.302516274e-05 | H115: 4.588667521e-06 | J115: 0.0001438699781 | K115: 0.001761559072 | L115: 0.00117661155 | M115: 0.01496437235 | N115: 1.190260909e-05
A116: =IF('DF raw data'!A116="","",'DF raw data'!A116) -> -275.5 | B116: =IF('DF raw data'!B116="","",'DF raw data'!B116) -> -2.07618e-05 | C116: =IF('DF raw data'!C116="","",'DF raw data'!C116) -> 7.02714e-05 | D116: =IF('DF raw data'!D116="","",'DF raw data'!D116) -> -3.82249e-06 | F116: 2.261185492e-05 | G116: 3.728821538e-05 | H116: 2.605749823e-05 | J116: 0.0001551759056 | K116: 0.001839147025 | L116: 0.001195255658 | M116: 0.01556200018 | N116: 1.262896692e-05
A117: =IF('DF raw data'!A117="","",'DF raw data'!A117) -> -275 | B117: =IF('DF raw data'!B117="","",'DF raw data'!B117) -> -2.97228e-05 | C117: =IF('DF raw data'!C117="","",'DF raw data'!C117) -> 8.0562e-05 | D117: =IF('DF raw data'!D117="","",'DF raw data'!D117) -> -2.06586e-05 | F117: 1.361232262e-05 | G117: 4.762306496e-05 | H117: 9.148992961e-06 | J117: 0.0001619820669 | K117: 0.001920138058 | L117: 0.00121906719 | M117: 0.01617153378 | N117: 1.338514842e-05
A118: =IF('DF raw data'!A118="","",'DF raw data'!A118) -> -274.5 | B118: =IF('DF raw data'!B118="","",'DF raw data'!B118) -> -3.23556e-05 | C118: =IF('DF raw data'!C118="","",'DF raw data'!C118) -> 8.7045e-05 | D118: =IF('DF raw data'!D118="","",'DF raw data'!D118) -> -1.10819e-05 | F118: 1.096820158e-05 | G118: 5.413394186e-05 | H118: 1.876687277e-05 | J118: 0.0001674661677 | K118: 0.002003871142 | L118: 0.001246134161 | M118: 0.01679460086 | N118: 1.417559605e-05
A119: =IF('DF raw data'!A119="","",'DF raw data'!A119) -> -274 | B119: =IF('DF raw data'!B119="","",'DF raw data'!B119) -> -3.20277e-05 | C119: =IF('DF raw data'!C119="","",'DF raw data'!C119) -> 8.72964e-05 | D119: =IF('DF raw data'!D119="","",'DF raw data'!D119) -> -2.41711e-05 | F119: 1.129751155e-05 | G119: 5.438642288e-05 | H119: 5.621389211e-06 | J119: 0.0001731149234 | K119: 0.002090428604 | L119: 0.001273327373 | M119: 0.01743126454 | N119: 1.500126174e-05
A120: =IF('DF raw data'!A120="","",'DF raw data'!A120) -> -273.5 | B120: =IF('DF raw data'!B120="","",'DF raw data'!B120) -> -3.55529e-05 | C120: =IF('DF raw data'!C120="","",'DF raw data'!C120) -> 8.28183e-05 | D120: =IF('DF raw data'!D120="","",'DF raw data'!D120) -> -2.14621e-05 | F120: 7.757153187e-06 | G120: 4.988906705e-05 | H120: 8.342037911e-06 | J120: 0.0001769935 | K120: 0.002178925354 | L120: 0.001298271906 | M120: 0.0180804005 | N120: 1.585968006e-05
A121: =IF('DF raw data'!A121="","",'DF raw data'!A121) -> -273 | B121: =IF('DF raw data'!B121="","",'DF raw data'!B121) -> -2.85662e-05 | C121: =IF('DF raw data'!C121="","",'DF raw data'!C121) -> 7.91205e-05 | D121: =IF('DF raw data'!D121="","",'DF raw data'!D121) -> -2.57173e-05 | F121: 1.4773896e-05 | G121: 4.617536651e-05 | H121: 4.068540551e-06 | J121: 0.000184380448 | K121: 0.002271115578 | L121: 0.001321359589 | M121: 0.01874108029 | N121: 1.674967372e-05
A122: =IF('DF raw data'!A122="","",'DF raw data'!A122) -> -272.5 | B122: =IF('DF raw data'!B122="","",'DF raw data'!B122) -> -4.15077e-05 | C122: =IF('DF raw data'!C122="","",'DF raw data'!C122) -> 7.37721e-05 | D122: =IF('DF raw data'!D122="","",'DF raw data'!D122) -> -2.90223e-05 | F122: 1.776747547e-06 | G122: 4.080396839e-05 | H122: 7.493290509e-07 | J122: 0.0001852688218 | K122: 0.002363749989 | L122: 0.001341761574 | M122: 0.01941196108 | N122: 1.766699805e-05
A123: =IF('DF raw data'!A123="","",'DF raw data'!A123) -> -272 | B123: =IF('DF raw data'!B123="","",'DF raw data'!B123) -> -2.62563e-05 | C123: =IF('DF raw data'!C123="","",'DF raw data'!C123) -> 6.97564e-05 | D123: =IF('DF raw data'!D123="","",'DF raw data'!D123) -> -3.06099e-05 | F123: 1.709372857e-05 | G123: 3.677100088e-05 | H123: -8.450976291e-07 | J123: 0.0001938156861 | K123: 0.002460657832 | L123: 0.001360147074 | M123: 0.02009203462 | N123: 1.861078034e-05
A124: =IF('DF raw data'!A124="","",'DF raw data'!A124) -> -271.5 | B124: =IF('DF raw data'!B124="","",'DF raw data'!B124) -> -2.74139e-05 | C124: =IF('DF raw data'!C124="","",'DF raw data'!C124) -> 7.17629e-05 | D124: =IF('DF raw data'!D124="","",'DF raw data'!D124) -> -2.24198e-05 | F124: 1.593115089e-05 | G124: 3.878612883e-05 | H124: 7.380219801e-06 | J124: 0.0002017812615 | K124: 0.002561548462 | L124: 0.001379540138 | M124: 0.02078180469 | N124: 1.958270367e-05
A125: =IF('DF raw data'!A125="","",'DF raw data'!A125) -> -271 | B125: =IF('DF raw data'!B125="","",'DF raw data'!B125) -> -4.24098e-05 | C125: =IF('DF raw data'!C125="","",'DF raw data'!C125) -> 7.46581e-05 | D125: =IF('DF raw data'!D125="","",'DF raw data'!D125) -> -2.38172e-05 | F125: 8.70768517e-07 | G125: 4.169377819e-05 | H125: 5.976810981e-06 | J125: 0.0002022166458 | K125: 0.002662656785 | L125: 0.001400387027 | M125: 0.0214819982 | N125: 2.058369137e-05
A126: =IF('DF raw data'!A126="","",'DF raw data'!A126) -> -270.5 | B126: =IF('DF raw data'!B126="","",'DF raw data'!B126) -> -4.82298e-05 | C126: =IF('DF raw data'!C126="","",'DF raw data'!C126) -> 8.8252e-05 | D126: =IF('DF raw data'!D126="","",'DF raw data'!D126) -> -3.83325e-05 | F126: -4.974257483e-06 | G126: 5.534613196e-05 | H126: -8.600904809e-06 | J126: 0.0001997295171 | K126: 0.002762521544 | L126: 0.001428060093 | M126: 0.02219602825 | N126: 2.162331513e-05
A127: =IF('DF raw data'!A127="","",'DF raw data'!A127) -> -270 | B127: =IF('DF raw data'!B127="","",'DF raw data'!B127) -> -4.43872e-05 | C127: =IF('DF raw data'!C127="","",'DF raw data'!C127) -> 9.17485e-05 | D127: =IF('DF raw data'!D127="","",'DF raw data'!D127) -> -3.83423e-05 | F127: -1.115134303e-06 | G127: 5.885766691e-05 | H127: -8.610746949e-06 | J127: 0.0001991719499 | K127: 0.002862107519 | L127: 0.001457488927 | M127: 0.02292477271 | N127: 2.270528685e-05
A128: =IF('DF raw data'!A128="","",'DF raw data'!A128) -> -269.5 | B128: =IF('DF raw data'!B128="","",'DF raw data'!B128) -> -3.40137e-05 | C128: =IF('DF raw data'!C128="","",'DF raw data'!C128) -> 9.25568e-05 | D128: =IF('DF raw data'!D128="","",'DF raw data'!D128) -> -2.30488e-05 | F128: 9.302971747e-06 | G128: 5.96694426e-05 | H128: 6.748515101e-06 | J128: =F128*$G$3+J127 -> 0.0002038234358 | K128: =J128*$G$3+K127 -> 0.002964019237 | L128: =G128*$G$3+L127 -> 0.001487323648 | M128: =L128*$G$3+M127 -> 0.02366843453 | N128: =(J128^2+L128^2)*$G$3+N127 -> 2.383212466e-05
A129: =IF('DF raw data'!A129="","",'DF raw data'!A129) -> -269 | B129: =IF('DF raw data'!B129="","",'DF raw data'!B129) -> -3.08121e-05 | C129: =IF('DF raw data'!C129="","",'DF raw data'!C129) -> 9.15266e-05 | D129: =IF('DF raw data'!D129="","",'DF raw data'!D129) -> -2.17015e-05 | F129: 1.251833863e-05 | G129: 5.863481274e-05 | H129: 8.101608491e-06 | J129: 0.0002100826051 | K129: 0.003069060539 | L129: 0.001516641055 | M129: 0.02442675506 | N129: 2.500429205e-05
A130: =IF('DF raw data'!A130="","",'DF raw data'!A130) -> -268.5 | B130: =IF('DF raw data'!B130="","",'DF raw data'!B130) -> -3.81145e-05 | C130: =IF('DF raw data'!C130="","",'DF raw data'!C130) -> 8.31073e-05 | D130: =IF('DF raw data'!D130="","",'DF raw data'!D130) -> -2.3591e-05 | F130: 5.184538307e-06 | G130: 5.017930975e-05 | H130: 6.203983641e-06 | J130: 0.0002126748742 | K130: 0.003175397976 | L130: 0.001541730709 | M130: 0.02519762042 | N130: 2.621537415e-05
A131: =IF('DF raw data'!A131="","",'DF raw data'!A131) -> -268 | B131: =IF('DF raw data'!B131="","",'DF raw data'!B131) -> -3.90803e-05 | C131: =IF('DF raw data'!C131="","",'DF raw data'!C131) -> 8.30893e-05 | D131: =IF('DF raw data'!D131="","",'DF raw data'!D131) -> -1.966e-05 | F131: =(1-$G$1*($B$54-$G$2))*(B131-F$5) -> 4.214585367e-06 | G131: =(1-$G$1*($B$54-$G$2))*(C131-G$5) -> 5.016123235e-05 | H131: =(1-$G$1*($B$54-$G$2))*(D131-H$5) -> 1.015188694e-05 | J131: 0.0002147821669 | K131: 0.00328278906 | L131: 0.001566811326 | M131: 0.02598102608 | N131: 2.74658887e-05
A132: =IF('DF raw data'!A132="","",'DF raw data'!A132) -> -267.5 | B132: =IF('DF raw data'!B132="","",'DF raw data'!B132) -> -2.82482e-05 | C132: =IF('DF raw data'!C132="","",'DF raw data'!C132) -> 7.99151e-05 | D132: =IF('DF raw data'!D132="","",'DF raw data'!D132) -> -2.02282e-05 | F132: 1.50932634e-05 | G132: 4.697338329e-05 | H132: 9.581243681e-06 | J132: 0.0002223287986 | K132: 0.003393953459 | L132: 0.001590298017 | M132: 0.02677617509 | N132: 2.875512764e-05
A133: =IF('DF raw data'!A133="","",'DF raw data'!A133) -> -267 | B133: =IF('DF raw data'!B133="","",'DF raw data'!B133) -> -4.12532e-05 | C133: =IF('DF raw data'!C133="","",'DF raw data'!C133) -> 8.27945e-05 | D133: =IF('DF raw data'!D133="","",'DF raw data'!D133) -> -2.91272e-05 | F133: 2.032341897e-06 | G133: 4.986516471e-05 | H133: 6.439779809e-07 | J133: 0.0002233449696 | K133: 0.003505625944 | L133: 0.0016152306 | M133: 0.02758379039 | N133: 3.008455407e-05
A134: =IF('DF raw data'!A134="","",'DF raw data'!A134) -> -266.5 | B134: =IF('DF raw data'!B134="","",'DF raw data'!B134) -> -3.83102e-05 | C134: =IF('DF raw data'!C134="","",'DF raw data'!C134) -> 8.39155e-05 | D134: =IF('DF raw data'!D134="","",'DF raw data'!D134) -> -1.79021e-05 | F134: 4.987996797e-06 | G134: 5.099098501e-05 | H134: 1.191734591e-05 | J134: 0.000225838968 | K134: 0.003618545428 | L134: 0.001640726092 | M134: 0.02840415343 | N134: 3.145604675e-05
A135: =IF('DF raw data'!A135="","",'DF raw data'!A135) -> -266 | B135: =IF('DF raw data'!B135="","",'DF raw data'!B135) -> -3.1392e-05 | C135: =IF('DF raw data'!C135="","",'DF raw data'!C135) -> 8.84462e-05 | D135: =IF('DF raw data'!D135="","",'DF raw data'!D135) -> -1.71229e-05 | F135: 1.193594506e-05 | G135: 5.554116702e-05 | H135: 1.269989647e-05 | J135: 0.0002318069405 | K135: 0.003734448898 | L135: 0.001668496676 | M135: 0.02923840177 | N135: 3.287485455e-05
A136: =IF('DF raw data'!A136="","",'DF raw data'!A136) -> -265.5 | B136: =IF('DF raw data'!B136="","",'DF raw data'!B136) -> -3.24786e-05 | C136: =IF('DF raw data'!C136="","",'DF raw data'!C136) -> 8.09351e-05 | D136: =IF('DF raw data'!D136="","",'DF raw data'!D136) -> -1.82103e-05 | F136: 1.084467268e-05 | G136: 4.799776929e-05 | H136: 1.160782065e-05 | J136: 0.0002372292768 | K136: 0.003853063537 | L136: 0.00169249556 | M136: 0.03008464955 | N136: 3.433526403e-05
A137: =IF('DF raw data'!A137="","",'DF raw data'!A137) -> -265 | B137: =IF('DF raw data'!B137="","",'DF raw data'!B137) -> -3.47836e-05 | C137: =IF('DF raw data'!C137="","",'DF raw data'!C137) -> 7.92539e-05 | D137: =IF('DF raw data'!D137="","",'DF raw data'!D137) -> -2.44845e-05 | F137: 8.529761177e-06 | G137: 4.630934013e-05 | H137: 5.306641591e-06 | J137: 0.0002414941574 | K137: 0.003973810615 | L137: 0.00171565023 | M137: 0.03094247467 | N137: 3.58361516e-05
A138: =IF('DF raw data'!A138="","",'DF raw data'!A138) -> -264.5 | B138: =IF('DF raw data'!B138="","",'DF raw data'!B138) -> -3.23533e-05 | C138: =IF('DF raw data'!C138="","",'DF raw data'!C138) -> 8.14898e-05 | D138: =IF('DF raw data'!D138="","",'DF raw data'!D138) -> -1.37169e-05 | F138: 1.097051147e-05 | G138: 4.85548545e-05 | H138: 1.612054227e-05 | J138: 0.0002469794132 | K138: 0.004097300322 | L138: 0.001739927658 | M138: 0.03181243849 | N138: 3.738032514e-05
A139: =IF('DF raw data'!A139="","",'DF raw data'!A139) -> -264 | B139: =IF('DF raw data'!B139="","",'DF raw data'!B139) -> -2.93359e-05 | C139: =IF('DF raw data'!C139="","",'DF raw data'!C139) -> 8.58329e-05 | D139: =IF('DF raw data'!D139="","",'DF raw data'!D139) -> -2.52029e-05 | F139: 1.400088629e-05 | G139: 5.291662983e-05 | H139: 4.585152471e-06 | J139: 0.0002539798563 | K139: 0.00422429025 | L139: 0.001766385973 | M139: 0.03269563148 | N139: 3.897263773e-05
A140: =IF('DF raw data'!A140="","",'DF raw data'!A140) -> -263.5 | B140: =IF('DF raw data'!B140="","",'DF raw data'!B140) -> -3.79239e-05 | C140: =IF('DF raw data'!C140="","",'DF raw data'!C140) -> 8.71456e-05 | D140: =IF('DF raw data'!D140="","",'DF raw data'!D140) -> -2.08097e-05 | F140: 5.375957887e-06 | G140: 5.423497444e-05 | H140: 8.997243231e-06 | J140: 0.0002566678352 | K140: 0.004352624168 | L140: 0.00179350346 | M140: 0.03359238321 | N140: 4.061390425e-05
A141: =IF('DF raw data'!A141="","",'DF raw data'!A141) -> -263 | B141: =IF('DF raw data'!B141="","",'DF raw data'!B141) -> -4.70902e-05 | C141: =IF('DF raw data'!C141="","",'DF raw data'!C141) -> 9.31668e-05 | D141: =IF('DF raw data'!D141="","",'DF raw data'!D141) -> -2.0564e-05 | F141: -3.829757203e-06 | G141: 6.02820656e-05 | H141: 9.243999741e-06 | J141: 0.0002547529566 | K141: 0.004480000646 | L141: 0.001823644493 | M141: 0.03450420546 | N141: 4.23091934e-05
A142: =IF('DF raw data'!A142="","",'DF raw data'!A142) -> -262.5 | B142: =IF('DF raw data'!B142="","",'DF raw data'!B142) -> -4.57453e-05 | C142: =IF('DF raw data'!C142="","",'DF raw data'!C142) -> 9.38873e-05 | D142: =IF('DF raw data'!D142="","",'DF raw data'!D142) -> -1.5266e-05 | F142: -2.479074133e-06 | G142: 6.100566375e-05 | H142: 1.456478114e-05 | J142: 0.0002535134196 | K142: 0.004606757356 | L142: 0.001854147324 | M142: 0.03543127912 | N142: 4.406025908e-05
A143: =IF('DF raw data'!A143="","",'DF raw data'!A143) -> -262 | B143: =IF('DF raw data'!B143="","",'DF raw data'!B143) -> -4.58721e-05 | C143: =IF('DF raw data'!C143="","",'DF raw data'!C143) -> 8.98815e-05 | D143: =IF('DF raw data'!D143="","",'DF raw data'!D143) -> -2.17199e-05 | F143: -2.606419373e-06 | G143: 5.698263881e-05 | H143: 8.083129371e-06 | J143: 0.0002522102099 | K143: 0.004732862461 | L143: 0.001882638644 | M143: 0.03637259844 | N143: 4.58642282e-05
A144: =IF('DF raw data'!A144="","",'DF raw data'!A144) -> -261.5 | B144: =IF('DF raw data'!B144="","",'DF raw data'!B144) -> -3.43322e-05 | C144: =IF('DF raw data'!C144="","",'DF raw data'!C144) -> 7.88585e-05 | D144: =IF('DF raw data'!D144="","",'DF raw data'!D144) -> -2.55965e-05 | F144: 8.983102197e-06 | G144: 4.591223991e-05 | H144: 4.189859991e-06 | J144: 0.000256701761 | K144: 0.004861213341 | L144: 0.001905594764 | M144: 0.03732539582 | N144: 4.77128218e-05
A145: =IF('DF raw data'!A145="","",'DF raw data'!A145) -> -261 | B145: =IF('DF raw data'!B145="","",'DF raw data'!B145) -> -3.20994e-05 | C145: =IF('DF raw data'!C145="","",'DF raw data'!C145) -> 6.8802e-05 | D145: =IF('DF raw data'!D145="","",'DF raw data'!D145) -> -1.31293e-05 | F145: 1.122550324e-05 | G145: 3.581249696e-05 | H145: 1.671066895e-05 | J145: 0.0002623145126 | K145: 0.004992370598 | L145: 0.001923501012 | M145: 0.03828714633 | N145: 4.959715433e-05
A146: =IF('DF raw data'!A146="","",'DF raw data'!A146) -> -260.5 | B146: =IF('DF raw data'!B146="","",'DF raw data'!B146) -> -2.26683e-05 | C146: =IF('DF raw data'!C146="","",'DF raw data'!C146) -> 6.93727e-05 | D146: =IF('DF raw data'!D146="","",'DF raw data'!D146) -> -2.75526e-05 | F146: 2.069715697e-05 | G146: 3.638565097e-05 | H146: 2.225348761e-06 | J146: 0.0002726630911 | K146: 0.005128702143 | L146: 0.001941693838 | M146: 0.03925799325 | N146: 5.151941439e-05
A147: =IF('DF raw data'!A147="","",'DF raw data'!A147) -> -260 | B147: =IF('DF raw data'!B147="","",'DF raw data'!B147) -> -3.26693e-05 | C147: =IF('DF raw data'!C147="","",'DF raw data'!C147) -> 7.66535e-05 | D147: =IF('DF raw data'!D147="","",'DF raw data'!D147) -> -2.38307e-05 | F147: 1.065315267e-05 | G147: 4.369775841e-05 | H147: 5.963252931e-06 | J147: 0.0002779896674 | K147: 0.005267696977 | L147: 0.001963542717 | M147: 0.04023976461 | N147: 5.348580351e-05
A148: =IF('DF raw data'!A148="","",'DF raw data'!A148) -> -259.5 | B148: =IF('DF raw data'!B148="","",'DF raw data'!B148) -> -2.8052e-05 | C148: =IF('DF raw data'!C148="","",'DF raw data'!C148) -> 7.81916e-05 | D148: =IF('DF raw data'!D148="","",'DF raw data'!D148) -> -2.59581e-05 | F148: 1.529030706e-05 | G148: 4.524247224e-05 | H148: 3.826705111e-06 | J148: 0.000285634821 | K148: 0.005410514387 | L148: 0.001986163953 | M148: 0.04123284658 | N148: 5.549902076e-05
A149: =IF('DF raw data'!A149="","",'DF raw data'!A149) -> -259 | B149: =IF('DF raw data'!B149="","",'DF raw data'!B149) -> -4.31813e-05 | C149: =IF('DF raw data'!C149="","",'DF raw data'!C149) -> 8.73158e-05 | D149: =IF('DF raw data'!D149="","",'DF raw data'!D149) -> -2.04855e-05 | F149: 9.595106695e-08 | G149: 5.44059063e-05 | H149: 9.322837291e-06 | J149: 0.0002856827965 | K149: 0.005553355786 | L149: 0.002013366906 | M149: 0.04223953004 | N149: 5.756665124e-05
A150: =IF('DF raw data'!A150="","",'DF raw data'!A150) -> -258.5 | B150: =IF('DF raw data'!B150="","",'DF raw data'!B150) -> -4.3302e-05 | C150: =IF('DF raw data'!C150="","",'DF raw data'!C150) -> 8.55614e-05 | D150: =IF('DF raw data'!D150="","",'DF raw data'!D150) -> -2.76567e-05 | F150: -2.526794305e-08 | G150: 5.264396238e-05 | H150: 2.120801131e-06 | J150: 0.0002856701625 | K150: 0.005696190867 | L150: 0.002039688887 | M150: 0.04325937448 | N150: 5.968762034e-05
A151: =IF('DF raw data'!A151="","",'DF raw data'!A151) -> -258 | B151: =IF('DF raw data'!B151="","",'DF raw data'!B151) -> -2.88962e-05 | C151: =IF('DF raw data'!C151="","",'DF raw data'!C151) -> 8.16318e-05 | D151: =IF('DF raw data'!D151="","",'DF raw data'!D151) -> -1.19952e-05 | F151: 1.4442477e-05 | G151: 4.86974651e-05 | H151: 1.784964558e-05 | J151: 0.000292891401 | K151: 0.005842636567 | L151: 0.00206403762 | M151: 0.04429139329 | N151: 6.186063868e-05
A152: =IF('DF raw data'!A152="","",'DF raw data'!A152) -> -257.5 | B152: =IF('DF raw data'!B152="","",'DF raw data'!B152) -> -2.24183e-05 | C152: =IF('DF raw data'!C152="","",'DF raw data'!C152) -> 8.16022e-05 | D152: =IF('DF raw data'!D152="","",'DF raw data'!D152) -> -1.76826e-05 | F152: 2.094823197e-05 | G152: 4.866773782e-05 | H152: 1.213778976e-05 | J152: 0.000303365517 | K152: 0.005994319326 | L152: 0.002088371489 | M152: 0.04533557903 | N152: 6.408730173e-05
A153: =IF('DF raw data'!A153="","",'DF raw data'!A153) -> -257 | B153: =IF('DF raw data'!B153="","",'DF raw data'!B153) -> -4.51715e-05 | C153: =IF('DF raw data'!C153="","",'DF raw data'!C153) -> 7.85022e-05 | D153: =IF('DF raw data'!D153="","",'DF raw data'!D153) -> -1.54359e-05 | F153: -1.902806793e-06 | G153: 4.555440782e-05 | H153: 1.439415057e-05 | J153: 0.0003024141136 | K153: 0.006145526383 | L153: 0.002111148693 | M153: 0.04639115338 | N153: 6.636150328e-05
A154: =IF('DF raw data'!A154="","",'DF raw data'!A154) -> -256.5 | B154: =IF('DF raw data'!B154="","",'DF raw data'!B154) -> -3.50437e-05 | C154: =IF('DF raw data'!C154="","",'DF raw data'!C154) -> 6.98842e-05 | D154: =IF('DF raw data'!D154="","",'DF raw data'!D154) -> -1.48989e-05 | F154: 8.268542747e-06 | G154: 3.689935042e-05 | H154: 1.493345967e-05 | J154: 0.000306548385 | K154: 0.006298800575 | L154: 0.002129598368 | M154: 0.04745595256 | N154: 6.867608384e-05
A155: =IF('DF raw data'!A155="","",'DF raw data'!A155) -> -256 | B155: =IF('DF raw data'!B155="","",'DF raw data'!B155) -> -2.75442e-05 | C155: =IF('DF raw data'!C155="","",'DF raw data'!C155) -> 7.766e-05 | D155: =IF('DF raw data'!D155="","",'DF raw data'!D155) -> -2.17216e-05 | F155: 1.58002906e-05 | G155: 4.470858636e-05 | H155: 8.081422061e-06 | J155: 0.0003144485303 | K155: 0.00645602484 | L155: 0.002151952661 | M155: 0.0485319289 | N155: 7.104097291e-05
A156: =IF('DF raw data'!A156="","",'DF raw data'!A156) -> -255.5 | B156: =IF('DF raw data'!B156="","",'DF raw data'!B156) -> -3.126e-05 | C156: =IF('DF raw data'!C156="","",'DF raw data'!C156) -> 7.99697e-05 | D156: =IF('DF raw data'!D156="","",'DF raw data'!D156) -> -1.94979e-05 | F156: 1.206851266e-05 | G156: 4.702821807e-05 | H156: 1.031468397e-05 | J156: 0.0003204827866 | K156: 0.006616266234 | L156: 0.00217546677 | M156: 0.04961966228 | N156: 7.345865535e-05
A157: =IF('DF raw data'!A157="","",'DF raw data'!A157) -> -255 | B157: =IF('DF raw data'!B157="","",'DF raw data'!B157) -> -3.69022e-05 | C157: =IF('DF raw data'!C157="","",'DF raw data'!C157) -> 8.27062e-05 | D157: =IF('DF raw data'!D157="","",'DF raw data'!D157) -> -1.9361e-05 | F157: 6.402051197e-06 | G157: 4.977648502e-05 | H157: 1.045217264e-05 | J157: 0.0003236838122 | K157: 0.00677810814 | L157: 0.002200355013 | M157: 0.05071983979 | N157: 7.593182205e-05
A158: =IF('DF raw data'!A158="","",'DF raw data'!A158) -> -254.5 | B158: =IF('DF raw data'!B158="","",'DF raw data'!B158) -> -2.25423e-05 | C158: =IF('DF raw data'!C158="","",'DF raw data'!C158) -> 9.96945e-05 | D158: =IF('DF raw data'!D158="","",'DF raw data'!D158) -> -2.3774e-05 | F158: 2.082369877e-05 | G158: 6.683783471e-05 | H158: 6.020196741e-06 | J158: 0.0003340956616 | K158: 0.00694515597 | L158: 0.00223377393 | M158: 0.05183672675 | N158: 7.848250499e-05
A159: =IF('DF raw data'!A159="","",'DF raw data'!A159) -> -254 | B159: =IF('DF raw data'!B159="","",'DF raw data'!B159) -> -3.79881e-05 | C159: =IF('DF raw data'!C159="","",'DF raw data'!C159) -> 9.96291e-05 | D159: =IF('DF raw data'!D159="","",'DF raw data'!D159) -> -2.52722e-05 | F159: 5.311481827e-06 | G159: 6.677215349e-05 | H159: 4.515554481e-06 | J159: 0.0003367514025 | K159: 0.007113531672 | L159: 0.002267160007 | M159: 0.05297030676 | N159: 8.110921299e-05
A160: =IF('DF raw data'!A160="","",'DF raw data'!A160) -> -253.5 | B160: =IF('DF raw data'!B160="","",'DF raw data'!B160) -> -4.71553e-05 | C160: =IF('DF raw data'!C160="","",'DF raw data'!C160) -> 8.72043e-05 | D160: =IF('DF raw data'!D160="","",'DF raw data'!D160) -> -1.36303e-05 | F160: -3.895137133e-06 | G160: 5.429392685e-05 | H160: 1.620751465e-05 | J160: 0.0003348038339 | K160: 0.007280933589 | L160: 0.00229430697 | M160: 0.05411746024 | N160: 8.379718203e-05
A161: =IF('DF raw data'!A161="","",'DF raw data'!A161) -> -253 | B161: =IF('DF raw data'!B161="","",'DF raw data'!B161) -> -3.23549e-05 | C161: =IF('DF raw data'!C161="","",'DF raw data'!C161) -> 8.32e-05 | D161: =IF('DF raw data'!D161="","",'DF raw data'!D161) -> -1.51282e-05 | F161: 1.096890459e-05 | G161: 5.027240836e-05 | H161: 1.470317368e-05 | J161: 0.0003402882862 | K161: 0.007451077732 | L161: 0.002319443174 | M161: 0.05527718183 | N161: 8.654498841e-05
A162: =IF('DF raw data'!A162="","",'DF raw data'!A162) -> -252.5 | B162: =IF('DF raw data'!B162="","",'DF raw data'!B162) -> -3.55502e-05 | C162: =IF('DF raw data'!C162="","",'DF raw data'!C162) -> 8.01713e-05 | D162: =IF('DF raw data'!D162="","",'DF raw data'!D162) -> -2.39665e-05 | F162: 7.759864797e-06 | G162: 4.723068495e-05 | H162: 5.826868991e-06 | J162: 0.0003441682186 | K162: 0.007623161841 | L162: 0.002343058517 | M162: 0.05644871109 | N162: 8.93491759e-05
A163: =IF('DF raw data'!A163="","",'DF raw data'!A163) -> -252 | B163: =IF('DF raw data'!B163="","",'DF raw data'!B163) -> -3.56889e-05 | C163: =IF('DF raw data'!C163="","",'DF raw data'!C163) -> 7.72485e-05 | D163: =IF('DF raw data'!D163="","",'DF raw data'!D163) -> -1.30106e-05 | F163: 7.620568387e-06 | G163: 4.429531691e-05 | H163: 1.682987936e-05 | J163: 0.0003479785028 | K163: 0.007797151092 | L163: 0.002365206175 | M163: 0.05763131417 | N163: 9.220682054e-05
A164: =IF('DF raw data'!A164="","",'DF raw data'!A164) -> -251.5 | B164: =IF('DF raw data'!B164="","",'DF raw data'!B164) -> -2.81208e-05 | C164: =IF('DF raw data'!C164="","",'DF raw data'!C164) -> 8.95735e-05 | D164: =IF('DF raw data'!D164="","",'DF raw data'!D164) -> -1.8253e-05 | F164: 1.522121122e-05 | G164: 5.667331441e-05 | H164: 1.156493704e-05 | J164: 0.0003555891084 | K164: 0.007974945647 | L164: 0.002393542833 | M164: 0.05882808559 | N164: 9.5134566e-05
A165: =IF('DF raw data'!A165="","",'DF raw data'!A165) -> -251 | B165: =IF('DF raw data'!B165="","",'DF raw data'!B165) -> -3.54959e-05 | C165: =IF('DF raw data'!C165="","",'DF raw data'!C165) -> 9.05777e-05 | D165: =IF('DF raw data'!D165="","",'DF raw data'!D165) -> -1.4233e-05 | F165: 7.814398287e-06 | G165: 5.768183247e-05 | H165: 1.560222304e-05 | J165: 0.0003594963076 | K165: 0.0081546938 | L165: 0.002422383749 | M165: 0.06003927746 | N165: 9.813315631e-05
A166: =IF('DF raw data'!A166="","",'DF raw data'!A166) -> -250.5 | B166: =IF('DF raw data'!B166="","",'DF raw data'!B166) -> -2.90225e-05 | C166: =IF('DF raw data'!C166="","",'DF raw data'!C166) -> 9.32336e-05 | D166: =IF('DF raw data'!D166="","",'DF raw data'!D166) -> -1.11e-05 | F166: 1.431563391e-05 | G166: 6.034915284e-05 | H166: 1.874869494e-05 | J166: 0.0003666541245 | K166: 0.008338020863 | L166: 0.002452558325 | M166: 0.06126555663 | N166: 0.0001012078951
A167: =IF('DF raw data'!A167="","",'DF raw data'!A167) -> -250 | B167: =IF('DF raw data'!B167="","",'DF raw data'!B167) -> -3.47258e-05 | C167: =IF('DF raw data'!C167="","",'DF raw data'!C167) -> 9.9753e-05 | D167: =IF('DF raw data'!D167="","",'DF raw data'!D167) -> -1.565e-05 | F167: 8.587809717e-06 | G167: 6.689658626e-05 | H167: 1.417912994e-05 | J167: 0.0003709480294 | K167: 0.008523494877 | L167: 0.002486006618 | M167: 0.06250855994 | N167: 0.0001043668108
A168: =IF('DF raw data'!A168="","",'DF raw data'!A168) -> -249.5 | B168: =IF('DF raw data'!B168="","",'DF raw data'!B168) -> -4.33677e-05 | C168: =IF('DF raw data'!C168="","",'DF raw data'!C168) -> 8.87515e-05 | D168: =IF('DF raw data'!D168="","",'DF raw data'!D168) -> -2.43804e-05 | F168: -9.125045305e-08 | G168: 5.584777981e-05 | H168: 5.411189221e-06 | J168: 0.0003709024042 | K168: 0.008708946079 | L168: 0.002513930508 | M168: 0.06376552519 | N168: 0.0001075955184
A169: =IF('DF raw data'!A169="","",'DF raw data'!A169) -> -249 | B169: =IF('DF raw data'!B169="","",'DF raw data'!B169) -> -3.09415e-05 | C169: =IF('DF raw data'!C169="","",'DF raw data'!C169) -> 8.25367e-05 | D169: =IF('DF raw data'!D169="","",'DF raw data'!D169) -> -2.06957e-05 | F169: 1.238838221e-05 | G169: 4.960625617e-05 | H169: 9.111733431e-06 | J169: 0.0003770965953 | K169: 0.008897494377 | L169: 0.002538733636 | M169: 0.06503489201 | N169: 0.0001108892035
A170: =IF('DF raw data'!A170="","",'DF raw data'!A170) -> -248.5 | B170: =IF('DF raw data'!B170="","",'DF raw data'!B170) -> -2.12633e-05 | C170: =IF('DF raw data'!C170="","",'DF raw data'!C170) -> 9.29171e-05 | D170: =IF('DF raw data'!D170="","",'DF raw data'!D170) -> -1.97128e-05 | F170: 2.210819847e-05 | G170: 6.003129189e-05 | H170: 1.00988599e-05 | J170: 0.0003881506945 | K170: 0.009091569724 | L170: 0.002568749282 | M170: 0.06631926665 | N170: 0.0001142637704
A171: =IF('DF raw data'!A171="","",'DF raw data'!A171) -> -248 | B171: =IF('DF raw data'!B171="","",'DF raw data'!B171) -> -3.49847e-05 | C171: =IF('DF raw data'!C171="","",'DF raw data'!C171) -> 9.32676e-05 | D171: =IF('DF raw data'!D171="","",'DF raw data'!D171) -> -1.15798e-05 | F171: 8.327796447e-06 | G171: 6.038329904e-05 | H171: 1.82668318e-05 | J171: 0.0003923145927 | K171: 0.009287727021 | L171: 0.002598940932 | M171: 0.06761873712 | N171: 0.0001177179728
A172: =IF('DF raw data'!A172="","",'DF raw data'!A172) -> -247.5 | B172: =IF('DF raw data'!B172="","",'DF raw data'!B172) -> -3.13239e-05 | C172: =IF('DF raw data'!C172="","",'DF raw data'!C172) -> 9.25122e-05 | D172: =IF('DF raw data'!D172="","",'DF raw data'!D172) -> -1.95184e-05 | F172: 1.200433789e-05 | G172: 5.962465082e-05 | H172: 1.029409582e-05 | J172: 0.0003983167617 | K172: 0.009486885402 | L172: 0.002628753257 | M172: 0.06893311374 | N172: 0.0001212524728
A173: =IF('DF raw data'!A173="","",'DF raw data'!A173) -> -247 | B173: =IF('DF raw data'!B173="","",'DF raw data'!B173) -> -3.75438e-05 | C173: =IF('DF raw data'!C173="","",'DF raw data'!C173) -> 8.68123e-05 | D173: =IF('DF raw data'!D173="","",'DF raw data'!D173) -> -1.86445e-05 | F173: 5.757692317e-06 | G173: 5.390024125e-05 | H173: 1.117175359e-05 | J173: 0.0004011956078 | K173: 0.009687483205 | L173: 0.002655703378 | M173: 0.07026096543 | N173: 0.0001248593319
A174: =IF('DF raw data'!A174="","",'DF raw data'!A174) -> -246.5 | B174: =IF('DF raw data'!B174="","",'DF raw data'!B174) -> -4.78595e-05 | C174: =IF('DF raw data'!C174="","",'DF raw data'!C174) -> 8.63585e-05 | D174: =IF('DF raw data'!D174="","",'DF raw data'!D174) -> -1.42953e-05 | F174: -4.602365193e-06 | G174: 5.344448991e-05 | H174: 1.553965515e-05 | J174: 0.0003988944252 | K174: 0.009886930418 | L174: 0.002682425623 | M174: 0.07160217824 | N174: 0.0001285365939
A175: =IF('DF raw data'!A175="","",'DF raw data'!A175) -> -246 | B175: =IF('DF raw data'!B175="","",'DF raw data'!B175) -> -3.54888e-05 | C175: =IF('DF raw data'!C175="","",'DF raw data'!C175) -> 8.66661e-05 | D175: =IF('DF raw data'!D175="","",'DF raw data'!D175) -> -2.51423e-05 | F175: 7.821528817e-06 | G175: 5.375341259e-05 | H175: 4.646013051e-06 | J175: 0.0004028051896 | K175: 0.01008833301 | L175: 0.002709302329 | M175: 0.07295682941 | N175: 0.0001322878795
A176: =IF('DF raw data'!A176="","",'DF raw data'!A176) -> -245.5 | B176: =IF('DF raw data'!B176="","",'DF raw data'!B176) -> -1.87667e-05 | C176: =IF('DF raw data'!C176="","",'DF raw data'!C176) -> 8.50723e-05 | D176: =IF('DF raw data'!D176="","",'DF raw data'!D176) -> -1.58274e-05 | F176: 2.461553385e-05 | G176: 5.215275925e-05 | H176: 1.400096712e-05 | J176: 0.0004151129566 | K176: 0.01029588949 | L176: 0.002735378709 | M176: 0.07432451876 | N176: 0.0001361151872
A177: =IF('DF raw data'!A177="","",'DF raw data'!A177) -> -245 | B177: =IF('DF raw data'!B177="","",'DF raw data'!B177) -> -2.83146e-05 | C177: =IF('DF raw data'!C177="","",'DF raw data'!C177) -> 8.67249e-05 | D177: =IF('DF raw data'!D177="","",'DF raw data'!D177) -> -1.98161e-05 | F177: 1.502657788e-05 | G177: 5.381246543e-05 | H177: 9.995115711e-06 | J177: 0.0004226262455 | K177: 0.01050720261 | L177: 0.002762284941 | M177: 0.07570566123 | N177: 0.0001400196027
A178: =IF('DF raw data'!A178="","",'DF raw data'!A178) -> -244.5 | B178: =IF('DF raw data'!B178="","",'DF raw data'!B178) -> -3.17068e-05 | C178: =IF('DF raw data'!C178="","",'DF raw data'!C178) -> 9.04984e-05 | D178: =IF('DF raw data'!D178="","",'DF raw data'!D178) -> -2.15537e-05 | F178: 1.161979142e-05 | G178: 5.760219148e-05 | H178: 8.250044031e-06 | J178: 0.0004284361412 | K178: 0.01072142068 | L178: 0.002791086037 | M178: 0.07710120425 | N178: 0.0001440064621
A179: =IF('DF raw data'!A179="","",'DF raw data'!A179) -> -244 | B179: =IF('DF raw data'!B179="","",'DF raw data'!B179) -> -3.40871e-05 | C179: =IF('DF raw data'!C179="","",'DF raw data'!C179) -> 9.19463e-05 | D179: =IF('DF raw data'!D179="","",'DF raw data'!D179) -> -1.25548e-05 | F179: 9.229256127e-06 | G179: 5.905631745e-05 | H179: 1.72876393e-05 | J179: 0.0004330507693 | K179: 0.01093794607 | L179: 0.002820614196 | M179: 0.07851151135 | N179: 0.0001480781608
A180: =IF('DF raw data'!A180="","",'DF raw data'!A180) -> -243.5 | B180: =IF('DF raw data'!B180="","",'DF raw data'!B180) -> -3.94646e-05 | C180: =IF('DF raw data'!C180="","",'DF raw data'!C180) -> 8.87795e-05 | D180: =IF('DF raw data'!D180="","",'DF raw data'!D180) -> -1.48368e-05 | F180: 3.828632877e-06 | G180: 5.587590021e-05 | H180: 1.49958267e-05 | J180: 0.0004349650857 | K180: 0.01115542861 | L180: 0.002848552146 | M180: 0.07993578742 | N180: 0.0001522298828
A181: =IF('DF raw data'!A181="","",'DF raw data'!A181) -> -243 | B181: =IF('DF raw data'!B181="","",'DF raw data'!B181) -> -3.95243e-05 | C181: =IF('DF raw data'!C181="","",'DF raw data'!C181) -> 8.37056e-05 | D181: =IF('DF raw data'!D181="","",'DF raw data'!D181) -> -2.85075e-05 | F181: 3.768676167e-06 | G181: 5.078018244e-05 | H181: 1.266342691e-06 | J181: 0.0004368494238 | K181: 0.01137385332 | L181: 0.002873942237 | M181: 0.08137275854 | N181: 0.0001564550735
A182: =IF('DF raw data'!A182="","",'DF raw data'!A182) -> -242.5 | B182: =IF('DF raw data'!B182="","",'DF raw data'!B182) -> -3.93418e-05 | C182: =IF('DF raw data'!C182="","",'DF raw data'!C182) -> 8.84036e-05 | D182: =IF('DF raw data'!D182="","",'DF raw data'!D182) -> -6.40396e-06 | F182: 3.951960917e-06 | G182: 5.549838384e-05 | H182: 2.346492791e-05 | J182: 0.0004388254042 | K182: 0.01159326603 | L182: 0.002901691429 | M182: 0.08282360426 | N182: 0.000160761264
A183: =IF('DF raw data'!A183="","",'DF raw data'!A183) -> -242 | B183: =IF('DF raw data'!B183="","",'DF raw data'!B183) -> -3.89589e-05 | C183: =IF('DF raw data'!C183="","",'DF raw data'!C183) -> 8.54984e-05 | D183: =IF('DF raw data'!D183="","",'DF raw data'!D183) -> -1.0724e-05 | F183: 4.336507387e-06 | G183: 5.258069148e-05 | H183: 1.912631174e-05 | J183: 0.0004409936579 | K183: 0.01181376285 | L183: 0.002927981775 | M183: 0.08428759514 | N183: 0.0001651450403
A184: =IF('DF raw data'!A184="","",'DF raw data'!A184) -> -241.5 | B184: =IF('DF raw data'!B184="","",'DF raw data'!B184) -> -4.17079e-05 | C184: =IF('DF raw data'!C184="","",'DF raw data'!C184) -> 8.52363e-05 | D184: =IF('DF raw data'!D184="","",'DF raw data'!D184) -> -1.37117e-05 | F184: 1.575686687e-06 | G184: 5.231746445e-05 | H184: 1.612576463e-05 | J184: 0.0004417815013 | K184: 0.01203465361 | L184: 0.002954140507 | M184: 0.0857646654 | N184: 0.0001696060988
A185: =IF('DF raw data'!A185="","",'DF raw data'!A185) -> -241 | B185: =IF('DF raw data'!B185="","",'DF raw data'!B185) -> -4.7491e-05 | C185: =IF('DF raw data'!C185="","",'DF raw data'!C185) -> 8.5342e-05 | D185: =IF('DF raw data'!D185="","",'DF raw data'!D185) -> 2.64167e-06 | F185: -4.232280643e-06 | G185: 5.242361896e-05 | H185: 3.254945412e-05 | J185: 0.000439665361 | K185: 0.01225448629 | L185: 0.002980352317 | M185: 0.08725484156 | N185: 0.0001741440016
A186: =IF('DF raw data'!A186="","",'DF raw data'!A186) -> -240.5 | B186: =IF('DF raw data'!B186="","",'DF raw data'!B186) -> -4.90164e-05 | C186: =IF('DF raw data'!C186="","",'DF raw data'!C186) -> 9.62218e-05 | D186: =IF('DF raw data'!D186="","",'DF raw data'!D186) -> -8.41547e-06 | F186: -5.764239863e-06 | G186: 6.33502021e-05 | H186: 2.144476842e-05 | J186: 0.000436783241 | K186: 0.01247287791 | L186: 0.003012027418 | M186: 0.08876085526 | N186: 0.000178775546
A187: =IF('DF raw data'!A187="","",'DF raw data'!A187) -> -240 | B187: =IF('DF raw data'!B187="","",'DF raw data'!B187) -> -3.35815e-05 | C187: =IF('DF raw data'!C187="","",'DF raw data'!C187) -> 0.000100342 | D187: =IF('DF raw data'!D187="","",'DF raw data'!D187) -> -1.67135e-06 | F187: 9.737030207e-06 | G187: 6.748811896e-05 | H187: 2.821788814e-05 | J187: 0.0004416517561 | K187: 0.01269370378 | L187: 0.003045771477 | M187: 0.090283741 | N187: 0.0001835114361
A188: =IF('DF raw data'!A188="","",'DF raw data'!A188) -> -239.5 | B188: =IF('DF raw data'!B188="","",'DF raw data'!B188) -> -3.88893e-05 | C188: =IF('DF raw data'!C188="","",'DF raw data'!C188) -> 9.49369e-05 | D188: =IF('DF raw data'!D188="","",'DF raw data'!D188) -> -1.26374e-05 | F188: 4.406406667e-06 | G188: 6.205977703e-05 | H188: 1.720468412e-05 | J188: 0.0004438549595 | K188: 0.01291563126 | L188: 0.003076801366 | M188: 0.09182214169 | N188: 0.000188343293
A189: =IF('DF raw data'!A189="","",'DF raw data'!A189) -> -239 | B189: =IF('DF raw data'!B189="","",'DF raw data'!B189) -> -5.29265e-05 | C189: =IF('DF raw data'!C189="","",'DF raw data'!C189) -> 9.44846e-05 | D189: =IF('DF raw data'!D189="","",'DF raw data'!D189) -> -1.54465e-05 | F189: -9.691153293e-06 | G189: 6.160553214e-05 | H189: 1.438350499e-05 | J189: 0.0004390093828 | K189: 0.01313513596 | L189: 0.003107604132 | M189: 0.09337594375 | N189: 0.0001932682593
A190: =IF('DF raw data'!A190="","",'DF raw data'!A190) -> -238.5 | B190: =IF('DF raw data'!B190="","",'DF raw data'!B190) -> -3.58083e-05 | C190: =IF('DF raw data'!C190="","",'DF raw data'!C190) -> 0.000109213 | D190: =IF('DF raw data'!D190="","",'DF raw data'!D190) -> -2.05832e-05 | F190: 7.500654967e-06 | G190: 7.639726426e-05 | H190: 9.224717181e-06 | J190: 0.0004427597103 | K190: 0.01335651581 | L190: 0.003145802764 | M190: 0.09494884513 | N190: 0.0001983143149
A191: =IF('DF raw data'!A191="","",'DF raw data'!A191) -> -238 | B191: =IF('DF raw data'!B191="","",'DF raw data'!B191) -> -4.65893e-05 | C191: =IF('DF raw data'!C191="","",'DF raw data'!C191) -> 9.58761e-05 | D191: =IF('DF raw data'!D191="","",'DF raw data'!D191) -> -4.09969e-06 | F191: -3.326703333e-06 | G191: 6.300301559e-05 | H191: 2.577910627e-05 | J191: 0.0004410963586 | K191: 0.01357706399 | L191: 0.003177304272 | M191: 0.09653749727 | N191: 0.0002034592291
A192: =IF('DF raw data'!A192="","",'DF raw data'!A192) -> -237.5 | B192: =IF('DF raw data'!B192="","",'DF raw data'!B192) -> -3.9406e-05 | C192: =IF('DF raw data'!C192="","",'DF raw data'!C192) -> 8.76334e-05 | D192: =IF('DF raw data'!D192="","",'DF raw data'!D192) -> -6.54038e-06 | F192: 3.887484857e-06 | G192: 5.472487198e-05 | H192: 2.332792131e-05 | J192: =F192*$G$3+J191 -> 0.0004430401011 | K192: =J192*$G$3+K191 -> 0.01379858404 | L192: =G192*$G$3+L191 -> 0.003204666708 | M192: =L192*$G$3+M191 -> 0.09813983062 | N192: =(J192^2+L192^2)*$G$3+N191 -> 0.0002086923158
A193: =IF('DF raw data'!A193="","",'DF raw data'!A193) -> -237 | B193: =IF('DF raw data'!B193="","",'DF raw data'!B193) -> -4.60695e-05 | C193: =IF('DF raw data'!C193="","",'DF raw data'!C193) -> 8.92139e-05 | D193: =IF('DF raw data'!D193="","",'DF raw data'!D193) -> -1.48035e-05 | F193: -2.804668193e-06 | G193: 5.631216813e-05 | H193: 1.502926989e-05 | J193: 0.000441637767 | K193: 0.01401940292 | L193: 0.003232822792 | M193: 0.09975624202 | N193: 0.0002140154093
A194: =IF('DF raw data'!A194="","",'DF raw data'!A194) -> -236.5 | B194: =IF('DF raw data'!B194="","",'DF raw data'!B194) -> -3.74167e-05 | C194: =IF('DF raw data'!C194="","",'DF raw data'!C194) -> 9.7324e-05 | D194: =IF('DF raw data'!D194="","",'DF raw data'!D194) -> -1.09279e-05 | F194: 5.885338847e-06 | G194: 6.445714156e-05 | H194: 1.892153497e-05 | J194: 0.0004445804364 | K194: 0.01424169314 | L194: 0.003265051362 | M194: 0.1013887677 | N194: 0.0002194445154
A195: =IF('DF raw data'!A195="","",'DF raw data'!A195) -> -236 | B195: =IF('DF raw data'!B195="","",'DF raw data'!B195) -> -3.90862e-05 | C195: =IF('DF raw data'!C195="","",'DF raw data'!C195) -> 9.66321e-05 | D195: =IF('DF raw data'!D195="","",'DF raw data'!D195) -> -1.17538e-05 | F195: =(1-$G$1*($B$54-$G$2))*(B195-F$5) -> 4.208659997e-06 | G195: =(1-$G$1*($B$54-$G$2))*(C195-G$5) -> 6.376226639e-05 | H195: =(1-$G$1*($B$54-$G$2))*(D195-H$5) -> 1.80920836e-05 | J195: 0.0004466847664 | K195: 0.01446503553 | L195: 0.003296932496 | M195: 0.1030372339 | N195: 0.000224979161
A196: =IF('DF raw data'!A196="","",'DF raw data'!A196) -> -235.5 | B196: =IF('DF raw data'!B196="","",'DF raw data'!B196) -> -4.04295e-05 | C196: =IF('DF raw data'!C196="","",'DF raw data'!C196) -> 9.82893e-05 | D196: =IF('DF raw data'!D196="","",'DF raw data'!D196) -> -9.21856e-06 | F196: 2.859583807e-06 | G196: 6.542659235e-05 | H196: 2.063822513e-05 | J196: 0.0004481145583 | K196: 0.0146890928 | L196: 0.003329645792 | M196: 0.1047020568 | N196: 0.0002306228349
A197: =IF('DF raw data'!A197="","",'DF raw data'!A197) -> -235 | B197: =IF('DF raw data'!B197="","",'DF raw data'!B197) -> -4.49797e-05 | C197: =IF('DF raw data'!C197="","",'DF raw data'!C197) -> 8.96447e-05 | D197: =IF('DF raw data'!D197="","",'DF raw data'!D197) -> -1.53725e-05 | F197: -1.710182053e-06 | G197: 5.674482057e-05 | H197: 1.445782319e-05 | J197: 0.0004472594673 | K197: 0.01491272254 | L197: 0.003358018202 | M197: 0.1063810659 | N197: 0.0002363609985
A198: =IF('DF raw data'!A198="","",'DF raw data'!A198) -> -234.5 | B198: =IF('DF raw data'!B198="","",'DF raw data'!B198) -> -3.96622e-05 | C198: =IF('DF raw data'!C198="","",'DF raw data'!C198) -> 8.73679e-05 | D198: =IF('DF raw data'!D198="","",'DF raw data'!D198) -> -6.65026e-06 | F198: 3.630183197e-06 | G198: 5.445823033e-05 | H198: 2.321756882e-05 | J198: 0.0004490745589 | K198: 0.01513725982 | L198: 0.003385247317 | M198: 0.1080736896 | N198: 0.0002421917822
A199: =IF('DF raw data'!A199="","",'DF raw data'!A199) -> -234 | B199: =IF('DF raw data'!B199="","",'DF raw data'!B199) -> -4.68446e-05 | C199: =IF('DF raw data'!C199="","",'DF raw data'!C199) -> 9.17974e-05 | D199: =IF('DF raw data'!D199="","",'DF raw data'!D199) -> -5.48294e-06 | F199: -3.583101123e-06 | G199: 5.890677718e-05 | H199: 2.43899083e-05 | J199: 0.0004472830083 | K199: 0.01536090132 | L199: 0.003414700706 | M199: 0.10978104 | N199: 0.0002481219037
A200: =IF('DF raw data'!A200="","",'DF raw data'!A200) -> -233.5 | B200: =IF('DF raw data'!B200="","",'DF raw data'!B200) -> -4.32442e-05 | C200: =IF('DF raw data'!C200="","",'DF raw data'!C200) -> 0.000104371 | D200: =IF('DF raw data'!D200="","",'DF raw data'!D200) -> -1.66609e-05 | F200: 3.278059695e-08 | G200: 7.153444366e-05 | H200: 1.316388307e-05 | J200: 0.0004472993986 | K200: 0.01558455102 | L200: 0.003450467928 | M200: 0.1115062739 | N200: 0.0002541748065
... 1079 more rows

Sheet 15 mm
A1: =IF('DF raw data'!E1="","",'DF raw data'!E1) -> Number of header lines | B1: =IF('DF raw data'!F1="","",'DF raw data'!F1) -> 54 | C1: =IF('DF raw data'!C1="","",'DF raw data'!C1) ->  | D1: =IF('DF raw data'!D1="","",'DF raw data'!D1) ->  | F1: T_coeff | G1: -0.001 | H1: /degC | J1: IBy total | K1: =J1267*1000 -> 11.09943466 | L1: muTm | M1: =L1267*1000 -> -12.26068656 | R1: DF ref | S1: 1
A2: =IF('DF raw data'!E2="","",'DF raw data'!E2) -> Measured by | B2: =IF('DF raw data'!F2="","",'DF raw data'!F2) -> Danfysik | C2: =IF('DF raw data'!C2="","",'DF raw data'!C2) ->  | D2: =IF('DF raw data'!D2="","",'DF raw data'!D2) ->  | F2: Tcorr | G2: 20 | H2: degC | J2: JBy total | K2: =K1267 -> -0.641281601 | L2: muTm^2 | M2: =M1267 -> -6.062871661
A3: =IF('DF raw data'!E3="","",'DF raw data'!E3) -> Operator | B3: =IF('DF raw data'!F3="","",'DF raw data'!F3) -> PMHA | C3: =IF('DF raw data'!C3="","",'DF raw data'!C3) ->  | D3: =IF('DF raw data'!D3="","",'DF raw data'!D3) ->  | F3: Step | G3: =A68-A67 -> 0.5 | H3: mm | J3: PI total | K3: =N1267 -> 7299.913548 | L3: T^2mm^3
A4: =IF('DF raw data'!E4="","",'DF raw data'!E4) -> Data-time | B4: =IF('DF raw data'!F4="","",'DF raw data'!F4) -> 30-09-2024, 16:25:41 | C4: =IF('DF raw data'!C4="","",'DF raw data'!C4) ->  | D4: =IF('DF raw data'!D4="","",'DF raw data'!D4) -> 
A5: =IF('DF raw data'!E5="","",'DF raw data'!E5) -> Project | B5: =IF('DF raw data'!F5="","",'DF raw data'!F5) -> 504314 | C5: =IF('DF raw data'!C5="","",'DF raw data'!C5) ->  | D5: Bamb avr | F5: =(AVERAGE(B67:B107) + AVERAGE(B1227:B1267))/2 -> -4.123675854e-05 | G5: =(AVERAGE(C67:C107) + AVERAGE(C1227:C1267))/2 -> 3.778580854e-05 | H5: =(AVERAGE(D67:D107) + AVERAGE(D1227:D1267))/2 -> -3.15962439e-05
A6: =IF('DF raw data'!E6="","",'DF raw data'!E6) -> Magnet type | B6: =IF('DF raw data'!F6="","",'DF raw data'!F6) -> Dipole | C6: =IF('DF raw data'!C6="","",'DF raw data'!C6) -> 
A7: =IF('DF raw data'!E7="","",'DF raw data'!E7) -> Magnet nr. | B7: =IF('DF raw data'!F7="","",'DF raw data'!F7) -> 2410105 | C7: =IF('DF raw data'!C7="","",'DF raw data'!C7) -> 
A8: =IF('DF raw data'!E8="","",'DF raw data'!E8) -> Meas. number | B8: =IF('DF raw data'!F8="","",'DF raw data'!F8) -> 837 | C8: =IF('DF raw data'!C8="","",'DF raw data'!C8) -> 
A9: =IF('DF raw data'!E9="","",'DF raw data'!E9) -> Add. info | B9: =IF('DF raw data'!F9="","",'DF raw data'!F9) ->  | C9: =IF('DF raw data'!C9="","",'DF raw data'!C9) ->  | D9: =IF('DF raw data'!D9="","",'DF raw data'!D9) -> 
A10: =IF('DF raw data'!E10="","",'DF raw data'!E10) -> Device | B10: =IF('DF raw data'!F10="","",'DF raw data'!F10) -> (HAL) HALL-PROBE | C10: =IF('DF raw data'!C10="","",'DF raw data'!C10) ->  | D10: =IF('DF raw data'!D10="","",'DF raw data'!D10) -> 
A11: =IF('DF raw data'!E11="","",'DF raw data'!E11) -> Goal | B11: =IF('DF raw data'!F11="","",'DF raw data'!F11) -> (AXI) AXis Integral (Line, EFB) | C11: =IF('DF raw data'!C11="","",'DF raw data'!C11) ->  | D11: =IF('DF raw data'!D11="","",'DF raw data'!D11) -> 
A12: =IF('DF raw data'!E12="","",'DF raw data'!E12) -> Power supply mode | B12: =IF('DF raw data'!F12="","",'DF raw data'!F12) -> (PM) Permanent Magnet (no MPS in use) | C12: =IF('DF raw data'!C12="","",'DF raw data'!C12) ->  | D12: =IF('DF raw data'!D12="","",'DF raw data'!D12) -> 
A13: =IF('DF raw data'!E13="","",'DF raw data'!E13) -> Data format | B13: =IF('DF raw data'!F13="","",'DF raw data'!F13) -> Raw data text file | C13: =IF('DF raw data'!C13="","",'DF raw data'!C13) ->  | D13: =IF('DF raw data'!D13="","",'DF raw data'!D13) -> 
A14: =IF('DF raw data'!E14="","",'DF raw data'!E14) -> Direction of the pos. x-axis | B14: =IF('DF raw data'!F14="","",'DF raw data'!F14) -> See test program | C14: =IF('DF raw data'!C14="","",'DF raw data'!C14) ->  | D14: =IF('DF raw data'!D14="","",'DF raw data'!D14) -> 
A15: =IF('DF raw data'!E15="","",'DF raw data'!E15) -> Direction of the pos. y-axis | B15: =IF('DF raw data'!F15="","",'DF raw data'!F15) -> Vertical up | C15: =IF('DF raw data'!C15="","",'DF raw data'!C15) ->  | D15: =IF('DF raw data'!D15="","",'DF raw data'!D15) -> 
A16: =IF('DF raw data'!E16="","",'DF raw data'!E16) -> Direction of the pos. z-axis | B16: =IF('DF raw data'!F16="","",'DF raw data'!F16) -> See test program | C16: =IF('DF raw data'!C16="","",'DF raw data'!C16) ->  | D16: =IF('DF raw data'!D16="","",'DF raw data'!D16) -> 
A17: =IF('DF raw data'!E17="","",'DF raw data'!E17) -> Mapper type | B17: =IF('DF raw data'!F17="","",'DF raw data'!F17) -> Precision Hall Mapper | C17: =IF('DF raw data'!C17="","",'DF raw data'!C17) ->  | D17: =IF('DF raw data'!D17="","",'DF raw data'!D17) -> 
A18: =IF('DF raw data'!E18="","",'DF raw data'!E18) -> Mapper Danfysik Reg. Number | B18: =IF('DF raw data'!F18="","",'DF raw data'!F18) -> 2033-D (mapper 1) | C18: =IF('DF raw data'!C18="","",'DF raw data'!C18) ->  | D18: =IF('DF raw data'!D18="","",'DF raw data'!D18) -> 
A19: =IF('DF raw data'!E19="","",'DF raw data'!E19) -> Measurement consept | B19: =IF('DF raw data'!F19="","",'DF raw data'!F19) -> Square line grid | C19: =IF('DF raw data'!C19="","",'DF raw data'!C19) ->  | D19: =IF('DF raw data'!D19="","",'DF raw data'!D19) -> 
A20: =IF('DF raw data'!E20="","",'DF raw data'!E20) -> Mode | B20: =IF('DF raw data'!F20="","",'DF raw data'!F20) -> On-the-fly measurement | C20: =IF('DF raw data'!C20="","",'DF raw data'!C20) ->  | D20: =IF('DF raw data'!D20="","",'DF raw data'!D20) -> 
A21: =IF('DF raw data'!E21="","",'DF raw data'!E21) ->  | B21: =IF('DF raw data'!F21="","",'DF raw data'!F21) ->  | C21: =IF('DF raw data'!C21="","",'DF raw data'!C21) ->  | D21: =IF('DF raw data'!D21="","",'DF raw data'!D21) -> 
A22: =IF('DF raw data'!E22="","",'DF raw data'!E22) -> Probe Name | B22: =IF('DF raw data'!F22="","",'DF raw data'!F22) -> ID12_By | C22: =IF('DF raw data'!C22="","",'DF raw data'!C22) ->  | D22: =IF('DF raw data'!D22="","",'DF raw data'!D22) -> 
A23: =IF('DF raw data'!E23="","",'DF raw data'!E23) -> Probe Type | B23: =IF('DF raw data'!F23="","",'DF raw data'!F23) -> DF_ID_3D_Bxyz | C23: =IF('DF raw data'!C23="","",'DF raw data'!C23) ->  | D23: =IF('DF raw data'!D23="","",'DF raw data'!D23) -> 
A24: =IF('DF raw data'!E24="","",'DF raw data'!E24) -> Probe Danfysik Reg. Number | B24: =IF('DF raw data'!F24="","",'DF raw data'!F24) -> 2277 | C24: =IF('DF raw data'!C24="","",'DF raw data'!C24) ->  | D24: =IF('DF raw data'!D24="","",'DF raw data'!D24) -> 
A25: =IF('DF raw data'!E25="","",'DF raw data'!E25) -> Probe Axis | B25: =IF('DF raw data'!F25="","",'DF raw data'!F25) -> By | C25: =IF('DF raw data'!C25="","",'DF raw data'!C25) ->  | D25: =IF('DF raw data'!D25="","",'DF raw data'!D25) -> 
A26: =IF('DF raw data'!E26="","",'DF raw data'!E26) -> Probe Current Supply | B26: =IF('DF raw data'!F26="","",'DF raw data'!F26) -> 1825-D | C26: =IF('DF raw data'!C26="","",'DF raw data'!C26) ->  | D26: =IF('DF raw data'!D26="","",'DF raw data'!D26) -> 
A27: =IF('DF raw data'!E27="","",'DF raw data'!E27) -> Probe Gain Correction | B27: =IF('DF raw data'!F27="","",'DF raw data'!F27) -> 0.9962 | C27: =IF('DF raw data'!C27="","",'DF raw data'!C27) ->  | D27: =IF('DF raw data'!D27="","",'DF raw data'!D27) -> 
A28: =IF('DF raw data'!E28="","",'DF raw data'!E28) -> Probe Offset Correction | B28: =IF('DF raw data'!F28="","",'DF raw data'!F28) -> 0.0027743 | C28: =IF('DF raw data'!C28="","",'DF raw data'!C28) ->  | D28: =IF('DF raw data'!D28="","",'DF raw data'!D28) -> 
A29: =IF('DF raw data'!E29="","",'DF raw data'!E29) -> DVM Number | B29: =IF('DF raw data'!F29="","",'DF raw data'!F29) -> 2 | C29: =IF('DF raw data'!C29="","",'DF raw data'!C29) ->  | D29: =IF('DF raw data'!D29="","",'DF raw data'!D29) -> 
A30: =IF('DF raw data'!E30="","",'DF raw data'!E30) -> DVM Type | B30: =IF('DF raw data'!F30="","",'DF raw data'!F30) -> K2701 | C30: =IF('DF raw data'!C30="","",'DF raw data'!C30) ->  | D30: =IF('DF raw data'!D30="","",'DF raw data'!D30) -> 
A31: =IF('DF raw data'!E31="","",'DF raw data'!E31) -> DVM Danfysik Reg. Number | B31: =IF('DF raw data'!F31="","",'DF raw data'!F31) -> 1743-D | C31: =IF('DF raw data'!C31="","",'DF raw data'!C31) ->  | D31: =IF('DF raw data'!D31="","",'DF raw data'!D31) -> 
A32: =IF('DF raw data'!E32="","",'DF raw data'!E32) -> Probe Name | B32: =IF('DF raw data'!F32="","",'DF raw data'!F32) -> ID12_Bx | C32: =IF('DF raw data'!C32="","",'DF raw data'!C32) ->  | D32: =IF('DF raw data'!D32="","",'DF raw data'!D32) -> 
A33: =IF('DF raw data'!E33="","",'DF raw data'!E33) -> Probe Type | B33: =IF('DF raw data'!F33="","",'DF raw data'!F33) -> DF_ID_3D_Bxyz | C33: =IF('DF raw data'!C33="","",'DF raw data'!C33) ->  | D33: =IF('DF raw data'!D33="","",'DF raw data'!D33) -> 
A34: =IF('DF raw data'!E34="","",'DF raw data'!E34) -> Probe Danfysik Reg. Number | B34: =IF('DF raw data'!F34="","",'DF raw data'!F34) -> 2277 | C34: =IF('DF raw data'!C34="","",'DF raw data'!C34) ->  | D34: =IF('DF raw data'!D34="","",'DF raw data'!D34) -> 
A35: =IF('DF raw data'!E35="","",'DF raw data'!E35) -> Probe Axis | B35: =IF('DF raw data'!F35="","",'DF raw data'!F35) -> Bx | C35: =IF('DF raw data'!C35="","",'DF raw data'!C35) ->  | D35: =IF('DF raw data'!D35="","",'DF raw data'!D35) -> 
A36: =IF('DF raw data'!E36="","",'DF raw data'!E36) -> Probe Current Supply | B36: =IF('DF raw data'!F36="","",'DF raw data'!F36) -> 1825-D | C36: =IF('DF raw data'!C36="","",'DF raw data'!C36) ->  | D36: =IF('DF raw data'!D36="","",'DF raw data'!D36) -> 
A37: =IF('DF raw data'!E37="","",'DF raw data'!E37) -> Probe Gain Correction | B37: =IF('DF raw data'!F37="","",'DF raw data'!F37) -> 1 | C37: =IF('DF raw data'!C37="","",'DF raw data'!C37) ->  | D37: =IF('DF raw data'!D37="","",'DF raw data'!D37) -> 
A38: =IF('DF raw data'!E38="","",'DF raw data'!E38) -> Probe Offset Correction | B38: =IF('DF raw data'!F38="","",'DF raw data'!F38) -> -0.17552 | C38: =IF('DF raw data'!C38="","",'DF raw data'!C38) ->  | D38: =IF('DF raw data'!D38="","",'DF raw data'!D38) -> 
A39: =IF('DF raw data'!E39="","",'DF raw data'!E39) -> DVM Number | B39: =IF('DF raw data'!F39="","",'DF raw data'!F39) -> 3 | C39: =IF('DF raw data'!C39="","",'DF raw data'!C39) ->  | D39: =IF('DF raw data'!D39="","",'DF raw data'!D39) -> 
A40: =IF('DF raw data'!E40="","",'DF raw data'!E40) -> DVM Type | B40: =IF('DF raw data'!F40="","",'DF raw data'!F40) -> K2701 | C40: =IF('DF raw data'!C40="","",'DF raw data'!C40) ->  | D40: =IF('DF raw data'!D40="","",'DF raw data'!D40) -> 
A41: =IF('DF raw data'!E41="","",'DF raw data'!E41) -> DVM Danfysik Reg. Number | B41: =IF('DF raw data'!F41="","",'DF raw data'!F41) -> 1744-D | C41: =IF('DF raw data'!C41="","",'DF raw data'!C41) ->  | D41: =IF('DF raw data'!D41="","",'DF raw data'!D41) -> 
A42: =IF('DF raw data'!E42="","",'DF raw data'!E42) -> Probe Name | B42: =IF('DF raw data'!F42="","",'DF raw data'!F42) -> ID12_Bz | C42: =IF('DF raw data'!C42="","",'DF raw data'!C42) ->  | D42: =IF('DF raw data'!D42="","",'DF raw data'!D42) -> 
A43: =IF('DF raw data'!E43="","",'DF raw data'!E43) -> Probe Type | B43: =IF('DF raw data'!F43="","",'DF raw data'!F43) -> DF_ID_3D_Bxyz | C43: =IF('DF raw data'!C43="","",'DF raw data'!C43) ->  | D43: =IF('DF raw data'!D43="","",'DF raw data'!D43) -> 
A44: =IF('DF raw data'!E44="","",'DF raw data'!E44) -> Probe Danfysik Reg. Number | B44: =IF('DF raw data'!F44="","",'DF raw data'!F44) -> 2277 | C44: =IF('DF raw data'!C44="","",'DF raw data'!C44) ->  | D44: =IF('DF raw data'!D44="","",'DF raw data'!D44) -> 
A45: =IF('DF raw data'!E45="","",'DF raw data'!E45) -> Probe Axis | B45: =IF('DF raw data'!F45="","",'DF raw data'!F45) -> Bz | C45: =IF('DF raw data'!C45="","",'DF raw data'!C45) ->  | D45: =IF('DF raw data'!D45="","",'DF raw data'!D45) -> 
A46: =IF('DF raw data'!E46="","",'DF raw data'!E46) -> Probe Current Supply | B46: =IF('DF raw data'!F46="","",'DF raw data'!F46) -> 1825-D | C46: =IF('DF raw data'!C46="","",'DF raw data'!C46) ->  | D46: =IF('DF raw data'!D46="","",'DF raw data'!D46) -> 
A47: =IF('DF raw data'!E47="","",'DF raw data'!E47) -> Probe Gain Correction | B47: =IF('DF raw data'!F47="","",'DF raw data'!F47) -> 1 | C47: =IF('DF raw data'!C47="","",'DF raw data'!C47) ->  | D47: =IF('DF raw data'!D47="","",'DF raw data'!D47) -> 
A48: =IF('DF raw data'!E48="","",'DF raw data'!E48) -> Probe Offset Correction | B48: =IF('DF raw data'!F48="","",'DF raw data'!F48) -> 0.0073175 | C48: =IF('DF raw data'!C48="","",'DF raw data'!C48) ->  | D48: =IF('DF raw data'!D48="","",'DF raw data'!D48) -> 
A49: =IF('DF raw data'!E49="","",'DF raw data'!E49) -> DVM Number | B49: =IF('DF raw data'!F49="","",'DF raw data'!F49) -> 8 | C49: =IF('DF raw data'!C49="","",'DF raw data'!C49) ->  | D49: =IF('DF raw data'!D49="","",'DF raw data'!D49) -> 
A50: =IF('DF raw data'!E50="","",'DF raw data'!E50) -> DVM Type | B50: =IF('DF raw data'!F50="","",'DF raw data'!F50) -> K2700 | C50: =IF('DF raw data'!C50="","",'DF raw data'!C50) ->  | D50: =IF('DF raw data'!D50="","",'DF raw data'!D50) -> 
A51: =IF('DF raw data'!E51="","",'DF raw data'!E51) -> DVM Danfysik Reg. Number | B51: =IF('DF raw data'!F51="","",'DF raw data'!F51) -> 1756-D | C51: =IF('DF raw data'!C51="","",'DF raw data'!C51) ->  | D51: =IF('DF raw data'!D51="","",'DF raw data'!D51) -> 
A52: =IF('DF raw data'!E52="","",'DF raw data'!E52) -> NTC voltage | B52: =IF('DF raw data'!F52="","",'DF raw data'!F52) -> 0.41936 | C52: =IF('DF raw data'!C52="","",'DF raw data'!C52) ->  | D52: =IF('DF raw data'!D52="","",'DF raw data'!D52) -> 
A53: =IF('DF raw data'!E53="","",'DF raw data'!E53) -> PS-Gap: | B53: =IF('DF raw data'!F53="","",'DF raw data'!F53) -> 15 | C53: =IF('DF raw data'!C53="","",'DF raw data'!C53) ->  | D53: =IF('DF raw data'!D53="","",'DF raw data'!D53) -> 
A54: =IF('DF raw data'!E54="","",'DF raw data'!E54) -> PS-Temperature: | B54: =IF('DF raw data'!F54="","",'DF raw data'!F54) -> 24.7 | C54: =IF('DF raw data'!C54="","",'DF raw data'!C54) ->  | D54: =IF('DF raw data'!D54="","",'DF raw data'!D54) -> 
A55: =IF('DF raw data'!E55="","",'DF raw data'!E55) -> PS-Encoder: | B55: =IF('DF raw data'!F55="","",'DF raw data'!F55) -> 24.6144 | C55: =IF('DF raw data'!C55="","",'DF raw data'!C55) ->  | D55: =IF('DF raw data'!D55="","",'DF raw data'!D55) -> 
A56: =IF('DF raw data'!E56="","",'DF raw data'!E56) ->  | B56: =IF('DF raw data'!F56="","",'DF raw data'!F56) -> 
A57: =IF('DF raw data'!E57="","",'DF raw data'!E57) -> Monitor-Index | B57: =IF('DF raw data'!F57="","",'DF raw data'!F57) -> [1,1,4]
A58: =IF('DF raw data'!E58="","",'DF raw data'!E58) ->  | B58: =IF('DF raw data'!F58="","",'DF raw data'!F58) -> 
A59: =IF('DF raw data'!E59="","",'DF raw data'!E59) -> Time [s] | B59: =IF('DF raw data'!F59="","",'DF raw data'!F59) -> Y [mm]
A60: =IF('DF raw data'!E60="","",'DF raw data'!E60) ->  | B60: =IF('DF raw data'!F60="","",'DF raw data'!F60) -> 
A61: =IF('DF raw data'!E61="","",'DF raw data'!E61) -> 207.8 | B61: =IF('DF raw data'!F61="","",'DF raw data'!F61) -> 31.48
A62: =IF('DF raw data'!E62="","",'DF raw data'!E62) ->  | B62: =IF('DF raw data'!F62="","",'DF raw data'!F62) -> 
A63: =IF('DF raw data'!E63="","",'DF raw data'!E63) -> Measurement-Index | B63: =IF('DF raw data'!F63="","",'DF raw data'!F63) -> [1,1,1201,2]
A64: =IF('DF raw data'!E64="","",'DF raw data'!E64) ->  | B64: =IF('DF raw data'!F64="","",'DF raw data'!F64) -> 
A65: =IF('DF raw data'!E65="","",'DF raw data'!E65) -> Z [mm] | B65: =IF('DF raw data'!F65="","",'DF raw data'!F65) -> By [T] | C65: =IF('DF raw data'!G65="","",'DF raw data'!G65) -> Bx [T] | D65: =IF('DF raw data'!H65="","",'DF raw data'!H65) -> Bz [T] | F65: By_corr | G65: Bx_corr | H65: Bz_corr | J65: Iy | K65: Jy | L65: Ix | M65: Jx | N65: PI
B66: =IF('DF raw data'!F66="","",'DF raw data'!F66) ->  | C66: =IF('DF raw data'!G66="","",'DF raw data'!G66) ->  | D66: =IF('DF raw data'!H66="","",'DF raw data'!H66) -> 
A67: =IF('DF raw data'!E67="","",'DF raw data'!E67) -> -300 | B67: =IF('DF raw data'!F67="","",'DF raw data'!F67) -> -3.99181e-05 | C67: =IF('DF raw data'!G67="","",'DF raw data'!G67) -> 2.75739e-05 | D67: =IF('DF raw data'!H67="","",'DF raw data'!H67) -> -2.97586e-05 | F67: =(1-$G$1*($B$54-$G$2))*(B67-F$5) -> 1.324856232e-06 | G67: =(1-$G$1*($B$54-$G$2))*(C67-G$5) -> -1.025990451e-05 | H67: =(1-$G$1*($B$54-$G$2))*(D67-H$5) -> 1.846280829e-06 | J67: =F67*$G$3+J66 -> 6.624281159e-07 | K67: =J67*$G$3+K66 -> 3.312140579e-07 | L67: =G67*$G$3+L66 -> -5.129952253e-06 | M67: =L67*$G$3+M66 -> -2.564976127e-06 | N67: =(J67^2+L67^2)*$G$3+N66 -> 1.337761057e-11
A68: =IF('DF raw data'!E68="","",'DF raw data'!E68) -> -299.5 | B68: =IF('DF raw data'!F68="","",'DF raw data'!F68) -> -3.91489e-05 | C68: =IF('DF raw data'!G68="","",'DF raw data'!G68) -> 3.24405e-05 | D68: =IF('DF raw data'!H68="","",'DF raw data'!H68) -> -3.0053e-05 | F68: 2.097671472e-06 | G68: -5.370431487e-06 | H68: 1.550497149e-06 | J68: =F68*$G$3+J67 -> 1.711263852e-06 | K68: =J68*$G$3+K67 -> 1.186845984e-06 | L68: =G68*$G$3+L67 -> -7.815167997e-06 | M68: =L68*$G$3+M67 -> -6.472560125e-06 | N68: =(J68^2+L68^2)*$G$3+N67 -> 4.538024796e-11
A69: =IF('DF raw data'!E69="","",'DF raw data'!E69) -> -299 | B69: =IF('DF raw data'!F69="","",'DF raw data'!F69) -> -3.22917e-05 | C69: =IF('DF raw data'!G69="","",'DF raw data'!G69) -> 3.7716e-05 | D69: =IF('DF raw data'!H69="","",'DF raw data'!H69) -> -3.06353e-05 | F69: 8.987100312e-06 | G69: -7.013663671e-08 | H69: 9.654603388e-07 | J69: 6.204814008e-06 | K69: 4.289252988e-06 | L69: -7.850236315e-06 | M69: -1.039767828e-05 | N69: 9.544321149e-11
A70: =IF('DF raw data'!E70="","",'DF raw data'!E70) -> -298.5 | B70: =IF('DF raw data'!F70="","",'DF raw data'!F70) -> -4.43394e-05 | C70: =IF('DF raw data'!G70="","",'DF raw data'!G70) -> 3.84656e-05 | D70: =IF('DF raw data'!H70="","",'DF raw data'!H70) -> -3.0717e-05 | F70: -3.117223878e-06 | G70: 6.829864833e-07 | H70: 8.833763488e-07 | J70: 4.646202068e-06 | K70: 6.612354022e-06 | L70: -7.508743073e-06 | M70: -1.415204982e-05 | N70: 1.344274196e-10
A71: =IF('DF raw data'!E71="","",'DF raw data'!E71) -> -298 | B71: =IF('DF raw data'!F71="","",'DF raw data'!F71) -> -4.02382e-05 | C71: =IF('DF raw data'!G71="","",'DF raw data'!G71) -> 4.61459e-05 | D71: =IF('DF raw data'!H71="","",'DF raw data'!H71) -> -3.04023e-05 | F71: 1.003251762e-06 | G71: 8.399383893e-06 | H71: 1.199555439e-06 | J71: 5.147827949e-06 | K71: 9.186267996e-06 | L71: -3.309051127e-06 | M71: -1.580657538e-05 | N71: 1.531523956e-10
A72: =IF('DF raw data'!E72="","",'DF raw data'!E72) -> -297.5 | B72: =IF('DF raw data'!F72="","",'DF raw data'!F72) -> -3.83797e-05 | C72: =IF('DF raw data'!G72="","",'DF raw data'!G72) -> 4.03797e-05 | D72: =IF('DF raw data'!H72="","",'DF raw data'!H72) -> -3.03404e-05 | F72: 2.870486712e-06 | G72: 2.606082753e-06 | H72: 1.261746369e-06 | J72: 6.583071305e-06 | K72: 1.247780365e-05 | L72: -2.00600975e-06 | M72: -1.680958026e-05 | N72: 1.76832847e-10
A73: =IF('DF raw data'!E73="","",'DF raw data'!E73) -> -297 | B73: =IF('DF raw data'!F73="","",'DF raw data'!F73) -> -4.0046e-05 | C73: =IF('DF raw data'!G73="","",'DF raw data'!G73) -> 2.48426e-05 | D73: =IF('DF raw data'!H73="","",'DF raw data'!H73) -> -3.04022e-05 | F73: 1.196355102e-06 | G73: -1.300404162e-05 | H73: 1.199655909e-06 | J73: 7.181248856e-06 | K73: 1.606842808e-05 | L73: -8.508030558e-06 | M73: -2.106359554e-05 | N73: 2.388113066e-10
A74: =IF('DF raw data'!E74="","",'DF raw data'!E74) -> -296.5 | B74: =IF('DF raw data'!F74="","",'DF raw data'!F74) -> -4.21608e-05 | C74: =IF('DF raw data'!G74="","",'DF raw data'!G74) -> 2.85955e-05 | D74: =IF('DF raw data'!H74="","",'DF raw data'!H74) -> -3.00256e-05 | F74: -9.283844583e-07 | G74: -9.233502987e-06 | H74: 1.578025929e-06 | J74: 6.717056627e-06 | K74: 1.942695639e-05 | L74: -1.312478205e-05 | M74: -2.762598656e-05 | N74: 3.475006834e-10
A75: =IF('DF raw data'!E75="","",'DF raw data'!E75) -> -296 | B75: =IF('DF raw data'!F75="","",'DF raw data'!F75) -> -3.94698e-05 | C75: =IF('DF raw data'!G75="","",'DF raw data'!G75) -> 4.39387e-05 | D75: =IF('DF raw data'!H75="","",'DF raw data'!H75) -> -2.9506e-05 | F75: 1.775263242e-06 | G75: 6.181810053e-06 | H75: 2.100068049e-06 | J75: 7.604688248e-06 | K75: 2.322930051e-05 | L75: -1.003387703e-05 | M75: -3.264292508e-05 | N75: 4.267556692e-10
A76: =IF('DF raw data'!E76="","",'DF raw data'!E76) -> -295.5 | B76: =IF('DF raw data'!F76="","",'DF raw data'!F76) -> -3.26769e-05 | C76: =IF('DF raw data'!G76="","",'DF raw data'!G76) -> 4.1172e-05 | D76: =IF('DF raw data'!H76="","",'DF raw data'!H76) -> -2.94395e-05 | F76: 8.600089872e-06 | G76: 3.402106563e-06 | H76: 2.166880599e-06 | J76: 1.190473318e-05 | K76: 2.918166711e-05 | L76: -8.332823744e-06 | M76: -3.680933695e-05 | N76: 5.32334981e-10
A77: =IF('DF raw data'!E77="","",'DF raw data'!E77) -> -295 | B77: =IF('DF raw data'!F77="","",'DF raw data'!F77) -> -3.33174e-05 | C77: =IF('DF raw data'!G77="","",'DF raw data'!G77) -> 3.52479e-05 | D77: =IF('DF raw data'!H77="","",'DF raw data'!H77) -> -2.98772e-05 | F77: 7.956579522e-06 | G77: -2.549836707e-06 | H77: 1.727123409e-06 | J77: 1.588302294e-05 | K77: 3.712317858e-05 | L77: -9.607742097e-06 | M77: -4.1613208e-05 | N77: 7.04624544e-10
A78: =IF('DF raw data'!E78="","",'DF raw data'!E78) -> -294.5 | B78: =IF('DF raw data'!F78="","",'DF raw data'!F78) -> -2.76134e-05 | C78: =IF('DF raw data'!G78="","",'DF raw data'!G78) -> 4.05347e-05 | D78: =IF('DF raw data'!H78="","",'DF raw data'!H78) -> -3.04752e-05 | F78: 1.368738832e-05 | G78: 2.761811253e-06 | H78: 1.126312809e-06 | J78: 2.272671711e-05 | K78: 4.848653713e-05 | L78: -8.22683647e-06 | M78: -4.572662623e-05 | N78: 9.967167984e-10
A79: =IF('DF raw data'!E79="","",'DF raw data'!E79) -> -294 | B79: =IF('DF raw data'!F79="","",'DF raw data'!F79) -> -3.51754e-05 | C79: =IF('DF raw data'!G79="","",'DF raw data'!G79) -> 4.37065e-05 | D79: =IF('DF raw data'!H79="","",'DF raw data'!H79) -> -3.07288e-05 | F79: 6.089846922e-06 | G79: 5.948518713e-06 | H79: 8.715208888e-07 | J79: 2.577164057e-05 | K79: 6.137235741e-05 | L79: -5.252577114e-06 | M79: -4.835291479e-05 | N79: 1.34260031e-09
A80: =IF('DF raw data'!E80="","",'DF raw data'!E80) -> -293.5 | B80: =IF('DF raw data'!F80="","",'DF raw data'!F80) -> -3.45344e-05 | C80: =IF('DF raw data'!G80="","",'DF raw data'!G80) -> 3.71918e-05 | D80: =IF('DF raw data'!H80="","",'DF raw data'!H80) -> -3.09707e-05 | F80: 6.733859622e-06 | G80: -5.968003767e-07 | H80: 6.284839588e-07 | J80: 2.913857038e-05 | K80: 7.59416426e-05 | L80: -5.550977302e-06 | M80: -5.112840344e-05 | N80: 1.782535127e-09
A81: =IF('DF raw data'!E81="","",'DF raw data'!E81) -> -293 | B81: =IF('DF raw data'!F81="","",'DF raw data'!F81) -> -3.03044e-05 | C81: =IF('DF raw data'!G81="","",'DF raw data'!G81) -> 2.63507e-05 | D81: =IF('DF raw data'!H81="","",'DF raw data'!H81) -> -3.15712e-05 | F81: 1.098374062e-05 | G81: -1.148885355e-05 | H81: 2.516160878e-08 | J81: 3.463044069e-05 | K81: 9.325686295e-05 | L81: -1.129540408e-05 | M81: -5.677610548e-05 | N81: 2.445961914e-09
A82: =IF('DF raw data'!E82="","",'DF raw data'!E82) -> -292.5 | B82: =IF('DF raw data'!F82="","",'DF raw data'!F82) -> -4.52358e-05 | C82: =IF('DF raw data'!G82="","",'DF raw data'!G82) -> 2.93449e-05 | D82: =IF('DF raw data'!H82="","",'DF raw data'!H82) -> -3.17045e-05 | F82: -4.017836958e-06 | G82: -8.480580807e-06 | H82: -1.087649012e-07 | J82: 3.262152221e-05 | K82: 0.0001095676241 | L82: -1.553569448e-05 | M82: -6.454395272e-05 | N82: 3.098722671e-09
A83: =IF('DF raw data'!E83="","",'DF raw data'!E83) -> -292 | B83: =IF('DF raw data'!F83="","",'DF raw data'!F83) -> -4.61335e-05 | C83: =IF('DF raw data'!G83="","",'DF raw data'!G83) -> 3.07212e-05 | D83: =IF('DF raw data'!H83="","",'DF raw data'!H83) -> -3.09506e-05 | F83: -4.919756148e-06 | G83: -7.097812197e-06 | H83: 6.486784288e-07 | J83: 3.016164413e-05 | K83: 0.0001246484461 | L83: -1.908460058e-05 | M83: -7.4086253e-05 | N83: 3.735696049e-09
A84: =IF('DF raw data'!E84="","",'DF raw data'!E84) -> -291.5 | B84: =IF('DF raw data'!F84="","",'DF raw data'!F84) -> -4.76184e-05 | C84: =IF('DF raw data'!G84="","",'DF raw data'!G84) -> 2.24695e-05 | D84: =IF('DF raw data'!H84="","",'DF raw data'!H84) -> -1.40884e-05 | F84: -6.411635178e-06 | G84: -1.538829519e-05 | H84: 1.759013077e-05 | J84: 2.695582655e-05 | K84: 0.0001381263594 | L84: -2.677874817e-05 | M84: -8.747562709e-05 | N84: 4.457555019e-09
A85: =IF('DF raw data'!E85="","",'DF raw data'!E85) -> -291 | B85: =IF('DF raw data'!F85="","",'DF raw data'!F85) -> -3.89517e-05 | C85: =IF('DF raw data'!G85="","",'DF raw data'!G85) -> 2.58591e-05 | D85: =IF('DF raw data'!H85="","",'DF raw data'!H85) -> -3.7764e-05 | F85: 2.295798312e-06 | G85: -1.198276407e-05 | H85: -6.196744551e-06 | J85: 2.81037257e-05 | K85: 0.0001521782222 | L85: -3.27701302e-05 | M85: -0.0001038606922 | N85: 5.389405435e-09
A86: =IF('DF raw data'!E86="","",'DF raw data'!E86) -> -290.5 | B86: =IF('DF raw data'!F86="","",'DF raw data'!F86) -> -4.86428e-05 | C86: =IF('DF raw data'!G86="","",'DF raw data'!G86) -> 2.68505e-05 | D86: =IF('DF raw data'!H86="","",'DF raw data'!H86) -> -1.55149e-05 | F86: -7.440849858e-06 | G86: -1.098670449e-05 | H86: 1.615692622e-05 | J86: 2.438330077e-05 | K86: 0.0001643698726 | L86: -3.826348245e-05 | M86: -0.0001229924334 | N86: 6.418725157e-09
A87: =IF('DF raw data'!E87="","",'DF raw data'!E87) -> -290 | B87: =IF('DF raw data'!F87="","",'DF raw data'!F87) -> -4.58171e-05 | C87: =IF('DF raw data'!G87="","",'DF raw data'!G87) -> 2.94674e-05 | D87: =IF('DF raw data'!H87="","",'DF raw data'!H87) -> -2.48845e-05 | F87: -4.601869068e-06 | G87: -8.357505057e-06 | H87: 6.743289099e-06 | J87: 2.208236624e-05 | K87: 0.0001754110557 | L87: -4.244223498e-05 | M87: -0.0001442135509 | N87: 7.563212261e-09
A88: =IF('DF raw data'!E88="","",'DF raw data'!E88) -> -289.5 | B88: =IF('DF raw data'!F88="","",'DF raw data'!F88) -> -3.92132e-05 | C88: =IF('DF raw data'!G88="","",'DF raw data'!G88) -> 3.09108e-05 | D88: =IF('DF raw data'!H88="","",'DF raw data'!H88) -> -2.96731e-05 | F88: 2.033069262e-06 | G88: -6.907321077e-06 | H88: 1.932182679e-06 | J88: 2.309890087e-05 | K88: 0.0001869605062 | L88: -4.589589551e-05 | M88: -0.0001671614987 | N88: 8.883208485e-09
A89: =IF('DF raw data'!E89="","",'DF raw data'!E89) -> -289 | B89: =IF('DF raw data'!F89="","",'DF raw data'!F89) -> -4.15227e-05 | C89: =IF('DF raw data'!G89="","",'DF raw data'!G89) -> 3.06822e-05 | D89: =IF('DF raw data'!H89="","",'DF raw data'!H89) -> -2.57704e-05 | F89: -2.872853883e-07 | G89: -7.136995497e-06 | H89: 5.853225369e-06 | J89: 2.295525817e-05 | K89: 0.0001984381353 | L89: -4.946439326e-05 | M89: -0.0001918936953 | N89: 1.037004352e-08
A90: =IF('DF raw data'!E90="","",'DF raw data'!E90) -> -288.5 | B90: =IF('DF raw data'!F90="","",'DF raw data'!F90) -> -3.53647e-05 | C90: =IF('DF raw data'!G90="","",'DF raw data'!G90) -> 4.28431e-05 | D90: =IF('DF raw data'!H90="","",'DF raw data'!H90) -> -3.49568e-05 | F90: 5.899657212e-06 | G90: 5.081060733e-06 | H90: -3.376350711e-06 | J90: 2.590508678e-05 | K90: 0.0002113906787 | L90: -4.69238629e-05 | M90: -0.0002153556267 | N90: 1.180650474e-08
A91: =IF('DF raw data'!E91="","",'DF raw data'!E91) -> -288 | B91: =IF('DF raw data'!F91="","",'DF raw data'!F91) -> -4.24777e-05 | C91: =IF('DF raw data'!G91="","",'DF raw data'!G91) -> 3.44551e-05 | D91: =IF('DF raw data'!H91="","",'DF raw data'!H91) -> -3.56227e-05 | F91: -1.246773888e-06 | G91: -3.346362867e-06 | H91: -4.045380441e-06 | J91: 2.528169984e-05 | K91: 0.0002240315286 | L91: -4.859704433e-05 | M91: -0.0002396541489 | N91: 1.330692327e-08
A92: =IF('DF raw data'!E92="","",'DF raw data'!E92) -> -287.5 | B92: =IF('DF raw data'!F92="","",'DF raw data'!F92) -> -4.14519e-05 | C92: =IF('DF raw data'!G92="","",'DF raw data'!G92) -> 3.2616e-05 | D92: =IF('DF raw data'!H92="","",'DF raw data'!H92) -> -3.64095e-05 | F92: -2.161526283e-07 | G92: -5.194106637e-06 | H92: -4.835878401e-06 | J92: 2.517362352e-05 | K92: 0.0002366183403 | L92: -5.119409765e-05 | M92: -0.0002652511977 | N92: 1.493419675e-08
A93: =IF('DF raw data'!E93="","",'DF raw data'!E93) -> -287 | B93: =IF('DF raw data'!F93="","",'DF raw data'!F93) -> -4.57521e-05 | C93: =IF('DF raw data'!G93="","",'DF raw data'!G93) -> 3.1611e-05 | D93: =IF('DF raw data'!H93="","",'DF raw data'!H93) -> -2.60096e-05 | F93: -4.536563568e-06 | G93: -6.203830137e-06 | H93: 5.612901129e-06 | J93: 2.290534174e-05 | K93: 0.0002480710112 | L93: -5.429601272e-05 | M93: -0.0002923992041 | N93: 1.667055259e-08
A94: =IF('DF raw data'!E94="","",'DF raw data'!E94) -> -286.5 | B94: =IF('DF raw data'!F94="","",'DF raw data'!F94) -> -3.06246e-05 | C94: =IF('DF raw data'!G94="","",'DF raw data'!G94) -> 2.7416e-05 | D94: =IF('DF raw data'!H94="","",'DF raw data'!H94) -> -3.16763e-05 | F94: 1.066203568e-05 | G94: -1.041854664e-05 | H94: -8.043236122e-08 | J94: 2.823635958e-05 | K94: 0.000262189191 | L94: -5.950528603e-05 | M94: -0.0003221518471 | N94: 1.883963812e-08
A95: =IF('DF raw data'!E95="","",'DF raw data'!E95) -> -286 | B95: =IF('DF raw data'!F95="","",'DF raw data'!F95) -> -2.84428e-05 | C95: =IF('DF raw data'!G95="","",'DF raw data'!G95) -> 2.95004e-05 | D95: =IF('DF raw data'!H95="","",'DF raw data'!H95) -> -3.61883e-05 | F95: 1.285409014e-05 | G95: -8.324349957e-06 | H95: -4.613638761e-06 | J95: 3.466340465e-05 | K95: 0.0002795208933 | L95: -6.366746101e-05 | M95: -0.0003539855776 | N95: 2.146718673e-08
A96: =IF('DF raw data'!E96="","",'DF raw data'!E96) -> -285.5 | B96: =IF('DF raw data'!F96="","",'DF raw data'!F96) -> -3.48583e-05 | C96: =IF('DF raw data'!G96="","",'DF raw data'!G96) -> 2.94233e-05 | D96: =IF('DF raw data'!H96="","",'DF raw data'!H96) -> -2.53595e-05 | F96: 6.408437292e-06 | G96: -8.401812327e-06 | H96: 6.266056599e-06 | J96: 3.78676233e-05 | K96: 0.000298454705 | L96: -6.786836718e-05 | M96: -0.0003879197612 | N96: 2.448722281e-08
A97: =IF('DF raw data'!E97="","",'DF raw data'!E97) -> -285 | B97: =IF('DF raw data'!F97="","",'DF raw data'!F97) -> -4.08152e-05 | C97: =IF('DF raw data'!G97="","",'DF raw data'!G97) -> 1.65856e-05 | D97: =IF('DF raw data'!H97="","",'DF raw data'!H97) -> -2.97806e-05 | F97: 4.235398617e-07 | G97: -2.129984952e-05 | H97: 1.824177429e-06 | J97: 3.807939323e-05 | K97: 0.0003174944016 | L97: -7.851829193e-05 | M97: -0.0004271789072 | N97: 2.829480399e-08
A98: =IF('DF raw data'!E98="","",'DF raw data'!E98) -> -284.5 | B98: =IF('DF raw data'!F98="","",'DF raw data'!F98) -> -4.00446e-05 | C98: =IF('DF raw data'!G98="","",'DF raw data'!G98) -> 2.1371e-05 | D98: =IF('DF raw data'!H98="","",'DF raw data'!H98) -> -3.26276e-05 | F98: 1.197761682e-06 | G98: -1.649195814e-05 | H98: -1.036203471e-06 | J98: 3.867827407e-05 | K98: 0.0003368335386 | L98: -8.6764271e-05 | M98: -0.0004705610427 | N98: 3.280682779e-08
A99: =IF('DF raw data'!E99="","",'DF raw data'!E99) -> -284 | B99: =IF('DF raw data'!F99="","",'DF raw data'!F99) -> -4.22911e-05 | C99: =IF('DF raw data'!G99="","",'DF raw data'!G99) -> 2.38676e-05 | D99: =IF('DF raw data'!H99="","",'DF raw data'!H99) -> -2.63671e-05 | F99: -1.059296868e-06 | G99: -1.398362412e-05 | H99: 5.253720879e-06 | J99: 3.814862563e-05 | K99: 0.0003559078514 | L99: -9.375608306e-05 | M99: -0.0005174390842 | N99: 3.792958816e-08
A100: =IF('DF raw data'!E100="","",'DF raw data'!E100) -> -283.5 | B100: =IF('DF raw data'!F100="","",'DF raw data'!F100) -> -3.96655e-05 | C100: =IF('DF raw data'!G100="","",'DF raw data'!G100) -> 4.32598e-05 | D100: =IF('DF raw data'!H100="","",'DF raw data'!H100) -> -2.41203e-05 | F100: 1.578643452e-06 | G100: 5.499719223e-06 | H100: 7.511080839e-06 | J100: 3.893794736e-05 | K100: 0.0003753768251 | L100: -9.100622345e-05 | M100: -0.0005629421959 | N100: 4.282873639e-08
A101: =IF('DF raw data'!E101="","",'DF raw data'!E101) -> -283 | B101: =IF('DF raw data'!F101="","",'DF raw data'!F101) -> -4.27333e-05 | C101: =IF('DF raw data'!G101="","",'DF raw data'!G101) -> 4.03102e-05 | D101: =IF('DF raw data'!H101="","",'DF raw data'!H101) -> -3.62965e-05 | F101: -1.503575208e-06 | G101: 2.536256103e-06 | H101: -4.722347301e-06 | J101: 3.818615975e-05 | K101: 0.000394469905 | L101: -8.97380954e-05 | M101: -0.0006078112436 | N101: 4.758429067e-08
A102: =IF('DF raw data'!E102="","",'DF raw data'!E102) -> -282.5 | B102: =IF('DF raw data'!F102="","",'DF raw data'!F102) -> -4.94071e-05 | C102: =IF('DF raw data'!G102="","",'DF raw data'!G102) -> 3.78787e-05 | D102: =IF('DF raw data'!H102="","",'DF raw data'!H102) -> -2.29471e-05 | F102: -8.208742068e-06 | G102: 9.332805329e-08 | H102: 8.689794879e-06 | J102: 3.408178872e-05 | K102: 0.0004115107993 | L102: -8.969143137e-05 | M102: -0.0006526569593 | N102: 5.218735126e-08
A103: =IF('DF raw data'!E103="","",'DF raw data'!E103) -> -282 | B103: =IF('DF raw data'!F103="","",'DF raw data'!F103) -> -4.88269e-05 | C103: =IF('DF raw data'!G103="","",'DF raw data'!G103) -> 4.39991e-05 | D103: =IF('DF raw data'!H103="","",'DF raw data'!H103) -> -2.77711e-05 | F103: -7.625815128e-06 | G103: 6.242493933e-06 | H103: 3.843122079e-06 | J103: 3.026888116e-05 | K103: 0.0004266452399 | L103: -8.65701844e-05 | M103: -0.0006959420515 | N103: 5.639265226e-08
A104: =IF('DF raw data'!E104="","",'DF raw data'!E104) -> -281.5 | B104: =IF('DF raw data'!F104="","",'DF raw data'!F104) -> -4.81209e-05 | C104: =IF('DF raw data'!G104="","",'DF raw data'!G104) -> 4.89235e-05 | D104: =IF('DF raw data'!H104="","",'DF raw data'!H104) -> -3.01394e-05 | F104: -6.916496928e-06 | G104: 1.119003861e-05 | H104: 1.463691069e-06 | J104: 2.681063269e-05 | K104: 0.0004400505563 | L104: -8.09751651e-05 | M104: -0.0007364296341 | N104: 6.003054595e-08
A105: =IF('DF raw data'!E105="","",'DF raw data'!E105) -> -281 | B105: =IF('DF raw data'!F105="","",'DF raw data'!F105) -> -4.24223e-05 | C105: =IF('DF raw data'!G105="","",'DF raw data'!G105) -> 4.54799e-05 | D105: =IF('DF raw data'!H105="","",'DF raw data'!H105) -> -2.16036e-05 | F105: -1.191113508e-06 | G105: 7.730253693e-06 | H105: 1.003960933e-05 | J105: 2.621507594e-05 | K105: 0.0004531580942 | L105: -7.711003825e-05 | M105: -0.0007749846532 | N105: 6.334714006e-08
A106: =IF('DF raw data'!E106="","",'DF raw data'!E106) -> -280.5 | B106: =IF('DF raw data'!F106="","",'DF raw data'!F106) -> -5.88878e-05 | C106: =IF('DF raw data'!G106="","",'DF raw data'!G106) -> 4.12821e-05 | D106: =IF('DF raw data'!H106="","",'DF raw data'!H106) -> -2.91052e-05 | F106: -1.773400136e-05 | G106: 3.512724033e-06 | H106: 2.502751809e-06 | J106: 1.734807526e-05 | K106: 0.0004618321319 | L106: -7.535367623e-05 | M106: -0.0008126614913 | N106: 6.633670617e-08
A107: =IF('DF raw data'!E107="","",'DF raw data'!E107) -> -280 | B107: =IF('DF raw data'!F107="","",'DF raw data'!F107) -> -4.90817e-05 | C107: =IF('DF raw data'!G107="","",'DF raw data'!G107) -> 4.732e-05 | D107: =IF('DF raw data'!H107="","",'DF raw data'!H107) -> -3.01899e-05 | F107: -7.881812688e-06 | G107: 9.579002163e-06 | H107: 1.412953719e-06 | J107: 1.340716892e-05 | K107: 0.0004685357163 | L107: -7.056417515e-05 | M107: -0.0008479435789 | N107: 6.891623367e-08
A108: =IF('DF raw data'!E108="","",'DF raw data'!E108) -> -279.5 | B108: =IF('DF raw data'!F108="","",'DF raw data'!F108) -> -3.76085e-05 | C108: =IF('DF raw data'!G108="","",'DF raw data'!G108) -> 4.10888e-05 | D108: =IF('DF raw data'!H108="","",'DF raw data'!H108) -> -3.39562e-05 | F108: 3.645311352e-06 | G108: 3.318515523e-06 | H108: -2.371047891e-06 | J108: 1.522982459e-05 | K108: 0.0004761506286 | L108: -6.890491739e-05 | M108: -0.0008823960376 | N108: 7.140615127e-08
A109: =IF('DF raw data'!E109="","",'DF raw data'!E109) -> -279 | B109: =IF('DF raw data'!F109="","",'DF raw data'!F109) -> -5.31821e-05 | C109: =IF('DF raw data'!G109="","",'DF raw data'!G109) -> 3.75414e-05 | D109: =IF('DF raw data'!H109="","",'DF raw data'!H109) -> -3.11603e-05 | F109: -1.200148457e-05 | G109: -2.455572567e-07 | H109: 4.379928388e-07 | J109: 9.229082307e-06 | K109: 0.0004807651698 | L109: -6.902769602e-05 | M109: -0.0009169098856 | N109: 7.383115066e-08
A110: =IF('DF raw data'!E110="","",'DF raw data'!E110) -> -278.5 | B110: =IF('DF raw data'!F110="","",'DF raw data'!F110) -> -4.28096e-05 | C110: =IF('DF raw data'!G110="","",'DF raw data'!G110) -> 4.25019e-05 | D110: =IF('DF raw data'!H110="","",'DF raw data'!H110) -> -1.84579e-05 | F110: -1.580233818e-06 | G110: 4.738257093e-06 | H110: 1.320009412e-05 | J110: 8.438965398e-06 | K110: 0.0004849846525 | L110: -6.665856747e-05 | M110: -0.0009502391693 | N110: 7.608844104e-08
A111: =IF('DF raw data'!E111="","",'DF raw data'!E111) -> -278 | B111: =IF('DF raw data'!F111="","",'DF raw data'!F111) -> -4.99175e-05 | C111: =IF('DF raw data'!G111="","",'DF raw data'!G111) -> 4.09404e-05 | D111: =IF('DF raw data'!H111="","",'DF raw data'!H111) -> -2.55384e-05 | F111: -8.721540948e-06 | G111: 3.169418043e-06 | H111: 6.086315769e-06 | J111: 4.078194923e-06 | K111: 0.0004870237499 | L111: -6.507385845e-05 | M111: -0.0009827760985 | N111: 7.82140604e-08
A112: =IF('DF raw data'!E112="","",'DF raw data'!E112) -> -277.5 | B112: =IF('DF raw data'!F112="","",'DF raw data'!F112) -> -4.59418e-05 | C112: =IF('DF raw data'!G112="","",'DF raw data'!G112) -> 3.77528e-05 | D112: =IF('DF raw data'!H112="","",'DF raw data'!H112) -> -3.06349e-05 | F112: -4.727155158e-06 | G112: -3.316367671e-08 | H112: 9.658622188e-07 | J112: 1.714617344e-06 | K112: 0.0004878810586 | L112: -6.509044029e-05 | M112: -0.001015321319 | N112: 8.033391306e-08
A113: =IF('DF raw data'!E113="","",'DF raw data'!E113) -> -277 | B113: =IF('DF raw data'!F113="","",'DF raw data'!F113) -> -4.31237e-05 | C113: =IF('DF raw data'!G113="","",'DF raw data'!G113) -> 4.0043e-05 | D113: =IF('DF raw data'!H113="","",'DF raw data'!H113) -> -2.6982e-05 | F113: -1.895810088e-06 | G113: 2.267800263e-06 | H113: 4.635930849e-06 | J113: 7.667123001e-07 | K113: 0.0004882644148 | L113: -6.395654016e-05 | M113: -0.001047299589 | N113: 8.23794265e-08
A114: =IF('DF raw data'!E114="","",'DF raw data'!E114) -> -276.5 | B114: =IF('DF raw data'!F114="","",'DF raw data'!F114) -> -4.51125e-05 | C114: =IF('DF raw data'!G114="","",'DF raw data'!G114) -> 4.35084e-05 | D114: =IF('DF raw data'!H114="","",'DF raw data'!H114) -> -2.46255e-05 | F114: -3.893957448e-06 | G114: 5.749487643e-06 | H114: 7.003506399e-06 | J114: -1.180266424e-06 | K114: 0.0004876742815 | L114: -6.108179634e-05 | M114: -0.001077840487 | N114: 8.424561594e-08
A115: =IF('DF raw data'!E115="","",'DF raw data'!E115) -> -276 | B115: =IF('DF raw data'!F115="","",'DF raw data'!F115) -> -4.57509e-05 | C115: =IF('DF raw data'!G115="","",'DF raw data'!G115) -> 4.1575e-05 | D115: =IF('DF raw data'!H115="","",'DF raw data'!H115) -> -2.7291e-05 | F115: -4.535357928e-06 | G115: 3.807000663e-06 | H115: 4.325478549e-06 | J115: -3.447945388e-06 | K115: 0.0004859503089 | L115: -5.9178296e-05 | M115: -0.001107429635 | N115: 8.600259546e-08
A116: =IF('DF raw data'!E116="","",'DF raw data'!E116) -> -275.5 | B116: =IF('DF raw data'!F116="","",'DF raw data'!F116) -> -3.63316e-05 | C116: =IF('DF raw data'!G116="","",'DF raw data'!G116) -> 2.96557e-05 | D116: =IF('DF raw data'!H116="","",'DF raw data'!H116) -> -2.67488e-05 | F116: 4.928212782e-06 | G116: -8.168320047e-06 | H116: 4.870226889e-06 | J116: -9.838389973e-07 | K116: 0.0004854583894 | L116: -6.326245603e-05 | M116: -0.001139060863 | N116: 8.80041486e-08
A117: =IF('DF raw data'!E117="","",'DF raw data'!E117) -> -275 | B117: =IF('DF raw data'!F117="","",'DF raw data'!F117) -> -4.49174e-05 | C117: =IF('DF raw data'!G117="","",'DF raw data'!G117) -> 2.33962e-05 | D117: =IF('DF raw data'!H117="","",'DF raw data'!H117) -> -2.77915e-05 | F117: -3.697940478e-06 | G117: -1.44572397e-05 | H117: 3.822626199e-06 | J117: -2.832809236e-06 | K117: 0.0004840419847 | L117: -7.049107588e-05 | M117: -0.001174306401 | N117: 9.04926569e-08
A118: =IF('DF raw data'!E118="","",'DF raw data'!E118) -> -274.5 | B118: =IF('DF raw data'!F118="","",'DF raw data'!F118) -> -3.53048e-05 | C118: =IF('DF raw data'!G118="","",'DF raw data'!G118) -> 2.68319e-05 | D118: =IF('DF raw data'!H118="","",'DF raw data'!H118) -> -2.93607e-05 | F118: 5.959838742e-06 | G118: -1.100539191e-05 | H118: 2.246050959e-06 | J118: 1.471101344e-07 | K118: 0.0004841155398 | L118: -7.599377183e-05 | M118: -0.001212303287 | N118: 9.338019439e-08
A119: =IF('DF raw data'!E119="","",'DF raw data'!E119) -> -274 | B119: =IF('DF raw data'!F119="","",'DF raw data'!F119) -> -4.91573e-05 | C119: =IF('DF raw data'!G119="","",'DF raw data'!G119) -> 2.82961e-05 | D119: =IF('DF raw data'!H119="","",'DF raw data'!H119) -> -1.15475e-05 | F119: -7.957768008e-06 | G119: -9.534310167e-06 | H119: 2.0142973e-05 | J119: -3.83177387e-06 | K119: 0.0004821996529 | L119: -8.076092691e-05 | M119: -0.00125268375 | N119: 9.66486993e-08
A120: =IF('DF raw data'!E120="","",'DF raw data'!E120) -> -273.5 | B120: =IF('DF raw data'!F120="","",'DF raw data'!F120) -> -4.19068e-05 | C120: =IF('DF raw data'!G120="","",'DF raw data'!G120) -> 2.88293e-05 | D120: =IF('DF raw data'!H120="","",'DF raw data'!H120) -> -2.73299e-05 | F120: -6.731906583e-07 | G120: -8.998604127e-06 | H120: 4.286395719e-06 | J120: -4.168369199e-06 | K120: 0.0004801154683 | L120: -8.526022898e-05 | M120: -0.001295313865 | N120: 1.002920403e-07
A121: =IF('DF raw data'!E121="","",'DF raw data'!E121) -> -273 | B121: =IF('DF raw data'!F121="","",'DF raw data'!F121) -> -5.7099e-05 | C121: =IF('DF raw data'!G121="","",'DF raw data'!G121) -> 4.05938e-05 | D121: =IF('DF raw data'!H121="","",'DF raw data'!H121) -> -1.85993e-05 | F121: -1.5936794e-05 | G121: 2.821189023e-06 | H121: 1.305802954e-05 | J121: -1.21367662e-05 | K121: 0.0004740470852 | L121: -8.384963446e-05 | M121: -0.001337238682 | N121: 1.038810714e-07
A122: =IF('DF raw data'!E122="","",'DF raw data'!E122) -> -272.5 | B122: =IF('DF raw data'!F122="","",'DF raw data'!F122) -> -4.78643e-05 | C122: =IF('DF raw data'!G122="","",'DF raw data'!G122) -> 4.55558e-05 | D122: =IF('DF raw data'!H122="","",'DF raw data'!H122) -> -3.1539e-05 | F122: -6.658690908e-06 | G122: 7.806510423e-06 | H122: 5.751294878e-08 | J122: -1.546611165e-05 | K122: 0.0004663140293 | L122: -7.994637925e-05 | M122: -0.001377211872 | N122: 1.071963835e-07
A123: =IF('DF raw data'!E123="","",'DF raw data'!E123) -> -272 | B123: =IF('DF raw data'!F123="","",'DF raw data'!F123) -> -4.31222e-05 | C123: =IF('DF raw data'!G123="","",'DF raw data'!G123) -> 4.91932e-05 | D123: =IF('DF raw data'!H123="","",'DF raw data'!H123) -> -2.84033e-05 | F123: -1.894303038e-06 | G123: 1.14610062e-05 | H123: 3.207950739e-06 | J123: -1.641326317e-05 | K123: 0.0004581073978 | L123: -7.421587615e-05 | M123: -0.00141431981 | N123: 1.100850792e-07
A124: =IF('DF raw data'!E124="","",'DF raw data'!E124) -> -271.5 | B124: =IF('DF raw data'!F124="","",'DF raw data'!F124) -> -4.45421e-05 | C124: =IF('DF raw data'!G124="","",'DF raw data'!G124) -> 3.93094e-05 | D124: =IF('DF raw data'!H124="","",'DF raw data'!H124) -> -1.58842e-05 | F124: -3.320876568e-06 | G124: 1.530752343e-06 | H124: 1.578589051e-05 | J124: -1.807370146e-05 | K124: 0.000449070547 | L124: -7.345049998e-05 | M124: -0.00145104506 | N124: 1.129458966e-07
A125: =IF('DF raw data'!E125="","",'DF raw data'!E125) -> -271 | B125: =IF('DF raw data'!F125="","",'DF raw data'!F125) -> -4.03722e-05 | C125: =IF('DF raw data'!G125="","",'DF raw data'!G125) -> 3.88494e-05 | D125: =IF('DF raw data'!H125="","",'DF raw data'!H125) -> -1.95007e-05 | F125: 8.686219617e-07 | G125: 1.068590343e-06 | H125: 1.215239296e-05 | J125: -1.763939047e-05 | K125: 0.0004402508518 | L125: -7.291620481e-05 | M125: -0.001487503162 | N125: 1.157598571e-07
A126: =IF('DF raw data'!E126="","",'DF raw data'!E126) -> -270.5 | B126: =IF('DF raw data'!F126="","",'DF raw data'!F126) -> -4.13955e-05 | C126: =IF('DF raw data'!G126="","",'DF raw data'!G126) -> 4.00851e-05 | D126: =IF('DF raw data'!H126="","",'DF raw data'!H126) -> -2.59225e-05 | F126: -1.594875483e-07 | G126: 2.310098133e-06 | H126: 5.700410499e-06 | J126: -1.771913425e-05 | K126: 0.0004313912847 | L126: -7.176115574e-05 | M126: -0.00152338374 | N126: 1.184916727e-07
A127: =IF('DF raw data'!E127="","",'DF raw data'!E127) -> -270 | B127: =IF('DF raw data'!F127="","",'DF raw data'!F127) -> -2.65921e-05 | C127: =IF('DF raw data'!G127="","",'DF raw data'!G127) -> 4.41156e-05 | D127: =IF('DF raw data'!H127="","",'DF raw data'!H127) -> -2.30103e-05 | F127: 1.471348843e-05 | G127: 6.359541483e-06 | H127: 8.626297839e-06 | J127: -1.036239003e-05 | K127: 0.0004262100897 | L127: -6.8581385e-05 | M127: -0.001557674432 | N127: 1.208970654e-07
A128: =IF('DF raw data'!E128="","",'DF raw data'!E128) -> -269.5 | B128: =IF('DF raw data'!F128="","",'DF raw data'!F128) -> -4.90157e-05 | C128: =IF('DF raw data'!G128="","",'DF raw data'!G128) -> 4.39193e-05 | D128: =IF('DF raw data'!H128="","",'DF raw data'!H128) -> -3.56117e-05 | F128: -7.815502488e-06 | G128: 6.162318873e-06 | H128: -4.034328741e-06 | J128: -1.427014128e-05 | K128: 0.000419075019 | L128: -6.550022556e-05 | M128: -0.001590424545 | N128: 1.231440237e-07
A129: =IF('DF raw data'!E129="","",'DF raw data'!E129) -> -269 | B129: =IF('DF raw data'!F129="","",'DF raw data'!F129) -> -4.62013e-05 | C129: =IF('DF raw data'!G129="","",'DF raw data'!G129) -> 3.93556e-05 | D129: =IF('DF raw data'!H129="","",'DF raw data'!H129) -> -2.28322e-05 | F129: -4.987874808e-06 | G129: 1.577169483e-06 | H129: 8.805234909e-06 | J129: -1.676407868e-05 | K129: 0.0004106929797 | L129: -6.471164082e-05 | M129: -0.001622780366 | N129: 1.25378339e-07
A130: =IF('DF raw data'!E130="","",'DF raw data'!E130) -> -268.5 | B130: =IF('DF raw data'!F130="","",'DF raw data'!F130) -> -4.3184e-05 | C130: =IF('DF raw data'!G130="","",'DF raw data'!G130) -> 3.40224e-05 | D130: =IF('DF raw data'!H130="","",'DF raw data'!H130) -> -3.57772e-05 | F130: -1.956393498e-06 | G130: -3.781096557e-06 | H130: -4.200606591e-06 | J130: -1.774227543e-05 | K130: 0.000401821842 | L130: -6.66021891e-05 | M130: -0.00165608146 | N130: 1.27753659e-07
A131: =IF('DF raw data'!E131="","",'DF raw data'!E131) -> -268 | B131: =IF('DF raw data'!F131="","",'DF raw data'!F131) -> -4.81697e-05 | C131: =IF('DF raw data'!G131="","",'DF raw data'!G131) -> 3.90626e-05 | D131: =IF('DF raw data'!H131="","",'DF raw data'!H131) -> -5.1025e-05 | F131: =(1-$G$1*($B$54-$G$2))*(B131-F$5) -> -6.965526288e-06 | G131: =(1-$G$1*($B$54-$G$2))*(C131-G$5) -> 1.282792383e-06 | H131: =(1-$G$1*($B$54-$G$2))*(D131-H$5) -> -1.952007125e-05 | J131: -2.122503857e-05 | K131: 0.0003912093227 | L131: -6.596079291e-05 | M131: -0.001689061857 | N131: 1.301543232e-07
A132: =IF('DF raw data'!E132="","",'DF raw data'!E132) -> -267.5 | B132: =IF('DF raw data'!F132="","",'DF raw data'!F132) -> -4.7931e-05 | C132: =IF('DF raw data'!G132="","",'DF raw data'!G132) -> 4.76392e-05 | D132: =IF('DF raw data'!H132="","",'DF raw data'!H132) -> -2.86847e-05 | F132: -6.725704398e-06 | G132: 9.899702403e-06 | H132: 2.925228159e-06 | J132: =F132*$G$3+J131 -> -2.458789077e-05 | K132: =J132*$G$3+K131 -> 0.0003789153773 | L132: =G132*$G$3+L131 -> -6.101094171e-05 | M132: =L132*$G$3+M131 -> -0.001719567327 | N132: =(J132^2+L132^2)*$G$3+N131 -> 1.323177729e-07
A133: =IF('DF raw data'!E133="","",'DF raw data'!E133) -> -267 | B133: =IF('DF raw data'!F133="","",'DF raw data'!F133) -> -4.31263e-05 | C133: =IF('DF raw data'!G133="","",'DF raw data'!G133) -> 5.23761e-05 | D133: =IF('DF raw data'!H133="","",'DF raw data'!H133) -> -2.12392e-05 | F133: -1.898422308e-06 | G133: 1.465886583e-05 | H133: 1.040572201e-05 | J133: -2.553710193e-05 | K133: 0.0003661468263 | L133: -5.368150879e-05 | M133: -0.001746408082 | N133: 1.340846969e-07
A134: =IF('DF raw data'!E134="","",'DF raw data'!E134) -> -266.5 | B134: =IF('DF raw data'!F134="","",'DF raw data'!F134) -> -4.01764e-05 | C134: =IF('DF raw data'!G134="","",'DF raw data'!G134) -> 4.41624e-05 | D134: =IF('DF raw data'!H134="","",'DF raw data'!H134) -> -2.91622e-05 | F134: 1.065342222e-06 | G134: 6.406561443e-06 | H134: 2.445483909e-06 | J134: -2.500443082e-05 | K134: 0.0003536446109 | L134: -5.047822807e-05 | M134: -0.001771647196 | N134: 1.356713334e-07
A135: =IF('DF raw data'!E135="","",'DF raw data'!E135) -> -266 | B135: =IF('DF raw data'!F135="","",'DF raw data'!F135) -> -4.2936e-05 | C135: =IF('DF raw data'!G135="","",'DF raw data'!G135) -> 4.34987e-05 | D135: =IF('DF raw data'!H135="","",'DF raw data'!H135) -> -1.82512e-05 | F135: -1.707227898e-06 | G135: 5.739742053e-06 | H135: 1.340776561e-05 | J135: -2.585804477e-05 | K135: 0.0003407155885 | L135: -4.760835704e-05 | M135: -0.001795451374 | N135: 1.371389305e-07
A136: =IF('DF raw data'!E136="","",'DF raw data'!E136) -> -265.5 | B136: =IF('DF raw data'!F136="","",'DF raw data'!F136) -> -3.96614e-05 | C136: =IF('DF raw data'!G136="","",'DF raw data'!G136) -> 3.9044e-05 | D136: =IF('DF raw data'!H136="","",'DF raw data'!H136) -> -3.23154e-05 | F136: 1.582762722e-06 | G136: 1.264104963e-06 | H136: -7.225361312e-07 | J136: -2.506666341e-05 | K136: 0.0003281822568 | L136: -4.697630456e-05 | M136: -0.001818939527 | N136: 1.385564859e-07
A137: =IF('DF raw data'!E137="","",'DF raw data'!E137) -> -265 | B137: =IF('DF raw data'!F137="","",'DF raw data'!F137) -> -3.69059e-05 | C137: =IF('DF raw data'!G137="","",'DF raw data'!G137) -> 3.60196e-05 | D137: =IF('DF raw data'!H137="","",'DF raw data'!H137) -> -2.76125e-05 | F137: 4.351213572e-06 | G137: -1.774509717e-06 | H137: 4.002467499e-06 | J137: -2.289105662e-05 | K137: 0.0003167367285 | L137: -4.786355942e-05 | M137: -0.001842871306 | N137: 1.399639463e-07
A138: =IF('DF raw data'!E138="","",'DF raw data'!E138) -> -264.5 | B138: =IF('DF raw data'!F138="","",'DF raw data'!F138) -> -4.66568e-05 | C138: =IF('DF raw data'!G138="","",'DF raw data'!G138) -> 4.19028e-05 | D138: =IF('DF raw data'!H138="","",'DF raw data'!H138) -> -1.72607e-05 | F138: -5.445515658e-06 | G138: 4.136341323e-06 | H138: 1.440292096e-05 | J138: -2.561381445e-05 | K138: 0.0003039298213 | L138: -4.579538876e-05 | M138: -0.001865769001 | N138: 1.413405889e-07
A139: =IF('DF raw data'!E139="","",'DF raw data'!E139) -> -264 | B139: =IF('DF raw data'!F139="","",'DF raw data'!F139) -> -4.88278e-05 | C139: =IF('DF raw data'!G139="","",'DF raw data'!G139) -> 4.4318e-05 | D139: =IF('DF raw data'!H139="","",'DF raw data'!H139) -> -2.38672e-05 | F139: -7.626719358e-06 | G139: 6.562892763e-06 | H139: 7.765370409e-06 | J139: -2.942717413e-05 | K139: 0.0002892162342 | L139: -4.251394237e-05 | M139: -0.001887025972 | N139: 1.426772858e-07
A140: =IF('DF raw data'!E140="","",'DF raw data'!E140) -> -263.5 | B140: =IF('DF raw data'!F140="","",'DF raw data'!F140) -> -4.31248e-05 | C140: =IF('DF raw data'!G140="","",'DF raw data'!G140) -> 4.40141e-05 | D140: =IF('DF raw data'!H140="","",'DF raw data'!H140) -> -2.83392e-05 | F140: -1.896915258e-06 | G140: 6.257564433e-06 | H140: 3.272352009e-06 | J140: -3.037563176e-05 | K140: 0.0002740284184 | L140: -3.938516016e-05 | M140: -0.001906718552 | N140: 1.439142207e-07
A141: =IF('DF raw data'!E141="","",'DF raw data'!E141) -> -263 | B141: =IF('DF raw data'!F141="","",'DF raw data'!F141) -> -4.64623e-05 | C141: =IF('DF raw data'!G141="","",'DF raw data'!G141) -> 4.18662e-05 | D141: =IF('DF raw data'!H141="","",'DF raw data'!H141) -> -1.53005e-05 | F141: -5.250101508e-06 | G141: 4.099569303e-06 | H141: 1.63723339e-05 | J141: -3.300068251e-05 | K141: 0.0002575280771 | L141: -3.733537551e-05 | M141: -0.00192538624 | N141: 1.451557084e-07
A142: =IF('DF raw data'!E142="","",'DF raw data'!E142) -> -262.5 | B142: =IF('DF raw data'!F142="","",'DF raw data'!F142) -> -4.37723e-05 | C142: =IF('DF raw data'!G142="","",'DF raw data'!G142) -> 3.78695e-05 | D142: =IF('DF raw data'!H142="","",'DF raw data'!H142) -> -1.83126e-05 | F142: -2.547458508e-06 | G142: 8.408481329e-08 | H142: 1.334607703e-05 | J142: -3.427441177e-05 | K142: 0.0002403908712 | L142: -3.72933331e-05 | M142: -0.001944032906 | N142: 1.464384724e-07
A143: =IF('DF raw data'!E143="","",'DF raw data'!E143) -> -262 | B143: =IF('DF raw data'!F143="","",'DF raw data'!F143) -> -3.89656e-05 | C143: =IF('DF raw data'!G143="","",'DF raw data'!G143) -> 3.40112e-05 | D143: =IF('DF raw data'!H143="","",'DF raw data'!H143) -> -1.38048e-05 | F143: 2.281832982e-06 | G143: -3.792349197e-06 | H143: 1.787506369e-05 | J143: -3.313349527e-05 | K143: 0.0002238241236 | L143: -3.91895077e-05 | M143: -0.00196362766 | N143: 1.477552954e-07
A144: =IF('DF raw data'!E144="","",'DF raw data'!E144) -> -261.5 | B144: =IF('DF raw data'!F144="","",'DF raw data'!F144) -> -4.90967e-05 | C144: =IF('DF raw data'!G144="","",'DF raw data'!G144) -> 2.77828e-05 | D144: =IF('DF raw data'!H144="","",'DF raw data'!H144) -> -1.05935e-05 | F144: -7.896883188e-06 | G144: -1.005002268e-05 | H144: 2.11014568e-05 | J144: -3.708193687e-05 | K144: 0.0002052831551 | L144: -4.421451904e-05 | M144: -0.00198573492 | N144: 1.494202923e-07
A145: =IF('DF raw data'!E145="","",'DF raw data'!E145) -> -261 | B145: =IF('DF raw data'!F145="","",'DF raw data'!F145) -> -4.5249e-05 | C145: =IF('DF raw data'!G145="","",'DF raw data'!G145) -> 3.34539e-05 | D145: =IF('DF raw data'!H145="","",'DF raw data'!H145) -> -8.41039e-06 | F145: -4.031098998e-06 | G145: -4.352268507e-06 | H145: 2.329482742e-05 | J145: -3.909748637e-05 | K145: 0.000185734412 | L145: -4.639065329e-05 | M145: -0.002008930246 | N145: 1.512606453e-07
A146: =IF('DF raw data'!E146="","",'DF raw data'!E146) -> -260.5 | B146: =IF('DF raw data'!F146="","",'DF raw data'!F146) -> -4.6019e-05 | C146: =IF('DF raw data'!G146="","",'DF raw data'!G146) -> 2.91838e-05 | D146: =IF('DF raw data'!H146="","",'DF raw data'!H146) -> -1.29063e-05 | F146: -4.804717998e-06 | G146: -8.642437977e-06 | H146: 1.877778664e-05 | J146: -4.149984537e-05 | K146: 0.0001649844893 | L146: -5.071187228e-05 | M146: -0.002034286183 | N146: 1.534076109e-07
A147: =IF('DF raw data'!E147="","",'DF raw data'!E147) -> -260 | B147: =IF('DF raw data'!F147="","",'DF raw data'!F147) -> -4.024e-05 | C147: =IF('DF raw data'!G147="","",'DF raw data'!G147) -> 3.49368e-05 | D147: =IF('DF raw data'!H147="","",'DF raw data'!H147) -> -2.46088e-05 | F147: 1.001443302e-06 | G147: -2.862398877e-06 | H147: 7.020284889e-06 | J147: -4.099912372e-05 | K147: 0.0001444849274 | L147: -5.214307172e-05 | M147: -0.002060357718 | N147: 1.55607525e-07
A148: =IF('DF raw data'!E148="","",'DF raw data'!E148) -> -259.5 | B148: =IF('DF raw data'!F148="","",'DF raw data'!F148) -> -4.08179e-05 | C148: =IF('DF raw data'!G148="","",'DF raw data'!G148) -> 3.17424e-05 | D148: =IF('DF raw data'!H148="","",'DF raw data'!H148) -> -2.87972e-05 | F148: 4.208271717e-07 | G148: -6.071812557e-06 | H148: 2.812199409e-06 | J148: -4.078871013e-05 | K148: 0.0001240905724 | L148: -5.5178978e-05 | M148: -0.002087947207 | N148: 1.579617442e-07
A149: =IF('DF raw data'!E149="","",'DF raw data'!E149) -> -259 | B149: =IF('DF raw data'!F149="","",'DF raw data'!F149) -> -3.6074e-05 | C149: =IF('DF raw data'!G149="","",'DF raw data'!G149) -> 3.27533e-05 | D149: =IF('DF raw data'!H149="","",'DF raw data'!H149) -> -2.55679e-05 | F149: 5.187023502e-06 | G149: -5.056161327e-06 | H149: 6.056677119e-06 | J149: -3.819519838e-05 | K149: 0.0001049929732 | L149: -5.770705866e-05 | M149: -0.002116800737 | N149: 1.603562331e-07
A150: =IF('DF raw data'!E150="","",'DF raw data'!E150) -> -258.5 | B150: =IF('DF raw data'!F150="","",'DF raw data'!F150) -> -4.55701e-05 | C150: =IF('DF raw data'!G150="","",'DF raw data'!G150) -> 3.10996e-05 | D150: =IF('DF raw data'!H150="","",'DF raw data'!H150) -> -1.41409e-05 | F150: -4.353708168e-06 | G150: -6.717633717e-06 | H150: 1.753738402e-05 | J150: -4.037205246e-05 | K150: 8.480694693e-05 | L150: -6.106587552e-05 | M150: -0.002147333674 | N150: 1.63035705e-07
A151: =IF('DF raw data'!E151="","",'DF raw data'!E151) -> -258 | B151: =IF('DF raw data'!F151="","",'DF raw data'!F151) -> -3.8708e-05 | C151: =IF('DF raw data'!G151="","",'DF raw data'!G151) -> 3.59394e-05 | D151: =IF('DF raw data'!H151="","",'DF raw data'!H151) -> -1.50588e-05 | F151: 2.540643702e-06 | G151: -1.855086657e-06 | H151: 1.661516989e-05 | J151: -3.910173061e-05 | K151: 6.525608163e-05 | L151: -6.199341885e-05 | M151: -0.002178330384 | N151: 1.657217696e-07
A152: =IF('DF raw data'!E152="","",'DF raw data'!E152) -> -257.5 | B152: =IF('DF raw data'!F152="","",'DF raw data'!F152) -> -4.53701e-05 | C152: =IF('DF raw data'!G152="","",'DF raw data'!G152) -> 2.99406e-05 | D152: =IF('DF raw data'!H152="","",'DF raw data'!H152) -> -2.6093e-05 | F152: -4.152768168e-06 | G152: -7.882081017e-06 | H152: 5.529109149e-06 | J152: -4.11781147e-05 | K152: 4.466702428e-05 | L152: -6.593445935e-05 | M152: -0.002211297614 | N152: 1.687432647e-07
A153: =IF('DF raw data'!E153="","",'DF raw data'!E153) -> -257 | B153: =IF('DF raw data'!F153="","",'DF raw data'!F153) -> -4.58094e-05 | C153: =IF('DF raw data'!G153="","",'DF raw data'!G153) -> 2.65039e-05 | D153: =IF('DF raw data'!H153="","",'DF raw data'!H153) -> -3.26023e-05 | F153: -4.594132878e-06 | G153: -1.133493351e-05 | H153: -1.010784561e-06 | J153: -4.347518114e-05 | K153: 2.292943371e-05 | L153: -7.160192611e-05 | M153: -0.002247098577 | N153: 1.722517283e-07
A154: =IF('DF raw data'!E154="","",'DF raw data'!E154) -> -256.5 | B154: =IF('DF raw data'!F154="","",'DF raw data'!F154) -> -4.92156e-05 | C154: =IF('DF raw data'!G154="","",'DF raw data'!G154) -> 1.39562e-05 | D154: =IF('DF raw data'!H154="","",'DF raw data'!H154) -> -2.61432e-05 | F154: -8.016342018e-06 | G154: -2.39416077e-05 | H154: 5.478673209e-06 | J154: -4.748335214e-05 | K154: -8.122423635e-07 | L154: -8.357272996e-05 | M154: -0.002288884942 | N154: 1.768712632e-07
A155: =IF('DF raw data'!E155="","",'DF raw data'!E155) -> -256 | B155: =IF('DF raw data'!F155="","",'DF raw data'!F155) -> -3.45469e-05 | C155: =IF('DF raw data'!G155="","",'DF raw data'!G155) -> 1.73489e-05 | D155: =IF('DF raw data'!H155="","",'DF raw data'!H155) -> -8.52253e-06 | F155: 6.721300872e-06 | G155: -2.053296201e-05 | H155: 2.318216036e-05 | J155: -4.412270171e-05 | K155: -2.287359322e-05 | L155: -9.383921096e-05 | M155: -0.002335804547 | N155: 1.822475684e-07
A156: =IF('DF raw data'!E156="","",'DF raw data'!E156) -> -255.5 | B156: =IF('DF raw data'!F156="","",'DF raw data'!F156) -> -3.76861e-05 | C156: =IF('DF raw data'!G156="","",'DF raw data'!G156) -> 2.08526e-05 | D156: =IF('DF raw data'!H156="","",'DF raw data'!H156) -> -1.6209e-05 | F156: 3.567346632e-06 | G156: -1.701279462e-05 | H156: 1.545956395e-05 | J156: -4.233902839e-05 | K156: -4.404310741e-05 | L156: -0.0001023456083 | M156: -0.002386977351 | N156: 1.883811768e-07
A157: =IF('DF raw data'!E157="","",'DF raw data'!E157) -> -255 | B157: =IF('DF raw data'!F157="","",'DF raw data'!F157) -> -3.45343e-05 | C157: =IF('DF raw data'!G157="","",'DF raw data'!G157) -> 2.15733e-05 | D157: =IF('DF raw data'!H157="","",'DF raw data'!H157) -> -2.80294e-05 | F157: 6.733960092e-06 | G157: -1.628870733e-05 | H157: 3.583608069e-06 | J157: -3.897204835e-05 | K157: -6.352913159e-05 | L157: -0.0001104899619 | M157: -0.002442222332 | N157: 1.952446029e-07
A158: =IF('DF raw data'!E158="","",'DF raw data'!E158) -> -254.5 | B158: =IF('DF raw data'!F158="","",'DF raw data'!F158) -> -5.45952e-05 | C158: =IF('DF raw data'!G158="","",'DF raw data'!G158) -> 2.87462e-05 | D158: =IF('DF raw data'!H158="","",'DF raw data'!H158) -> -3.15292e-05 | F158: -1.342122614e-05 | G158: -9.082094697e-06 | H158: 6.735900878e-08 | J158: -4.568266142e-05 | K158: -8.63704623e-05 | L158: -0.0001150310093 | M158: -0.002499737837 | N158: 2.029041223e-07
A159: =IF('DF raw data'!E159="","",'DF raw data'!E159) -> -254 | B159: =IF('DF raw data'!F159="","",'DF raw data'!F159) -> -4.0564e-05 | C159: =IF('DF raw data'!G159="","",'DF raw data'!G159) -> 3.93397e-05 | D159: =IF('DF raw data'!H159="","",'DF raw data'!H159) -> -1.87579e-05 | F159: 6.759205017e-07 | G159: 1.561194753e-06 | H159: 1.289868412e-05 | J159: -4.534470117e-05 | K159: -0.0001090428129 | L159: -0.0001142504119 | M159: -0.002556863043 | N159: 2.104587715e-07
A160: =IF('DF raw data'!E160="","",'DF raw data'!E160) -> -253.5 | B160: =IF('DF raw data'!F160="","",'DF raw data'!F160) -> -4.4597e-05 | C160: =IF('DF raw data'!G160="","",'DF raw data'!G160) -> 3.74175e-05 | D160: =IF('DF raw data'!H160="","",'DF raw data'!H160) -> -3.20258e-05 | F160: -3.376034598e-06 | G160: -3.700395867e-07 | H160: -4.315750112e-07 | J160: -4.703271846e-05 | K160: -0.0001325591721 | L160: -0.0001144354317 | M160: -0.002614080759 | N160: 2.181125439e-07
A161: =IF('DF raw data'!E161="","",'DF raw data'!E161) -> -253 | B161: =IF('DF raw data'!F161="","",'DF raw data'!F161) -> -4.47283e-05 | C161: =IF('DF raw data'!G161="","",'DF raw data'!G161) -> 3.90106e-05 | D161: =IF('DF raw data'!H161="","",'DF raw data'!H161) -> -2.03045e-05 | F161: -3.507951708e-06 | G161: 1.230547983e-06 | H161: 1.13448151e-05 | J161: -4.878669432e-05 | K161: -0.0001569525193 | L161: -0.0001138201577 | M161: -0.002670990837 | N161: 2.257801288e-07
A162: =IF('DF raw data'!E162="","",'DF raw data'!E162) -> -252.5 | B162: =IF('DF raw data'!F162="","",'DF raw data'!F162) -> -5.0313e-05 | C162: =IF('DF raw data'!G162="","",'DF raw data'!G162) -> 2.65736e-05 | D162: =IF('DF raw data'!H162="","",'DF raw data'!H162) -> -1.28779e-05 | F162: -9.118899798e-06 | G162: -1.126490592e-05 | H162: 1.880632012e-05 | J162: -5.334614422e-05 | K162: -0.0001836255914 | L162: -0.0001194526107 | M162: -0.002730717143 | N162: 2.343374974e-07
A163: =IF('DF raw data'!E163="","",'DF raw data'!E163) -> -252 | B163: =IF('DF raw data'!F163="","",'DF raw data'!F163) -> -3.3258e-05 | C163: =IF('DF raw data'!G163="","",'DF raw data'!G163) -> 2.51642e-05 | D163: =IF('DF raw data'!H163="","",'DF raw data'!H163) -> -1.99632e-05 | F163: 8.016258702e-06 | G163: -1.26809301e-05 | H163: 1.168771921e-05 | J163: -4.933801487e-05 | K163: -0.0002082945988 | L163: -0.0001257930757 | M163: -0.002793613681 | N163: 2.434665662e-07
A164: =IF('DF raw data'!E164="","",'DF raw data'!E164) -> -251.5 | B164: =IF('DF raw data'!F164="","",'DF raw data'!F164) -> -3.92909e-05 | C164: =IF('DF raw data'!G164="","",'DF raw data'!G164) -> 2.72596e-05 | D164: =IF('DF raw data'!H164="","",'DF raw data'!H164) -> -1.14638e-05 | F164: 1.955004072e-06 | G164: -1.057568172e-05 | H164: 2.022706639e-05 | J164: -4.836051283e-05 | K164: -0.0002324748552 | L164: -0.0001310809166 | M164: -0.002859154139 | N164: 2.532270392e-07
A165: =IF('DF raw data'!E165="","",'DF raw data'!E165) -> -251 | B165: =IF('DF raw data'!F165="","",'DF raw data'!F165) -> -3.79385e-05 | C165: =IF('DF raw data'!G165="","",'DF raw data'!G165) -> 3.81213e-05 | D165: =IF('DF raw data'!H165="","",'DF raw data'!H165) -> -1.61808e-05 | F165: 3.313760352e-06 | G165: 3.370682733e-07 | H165: 1.548789649e-05 | J165: -4.670363266e-05 | K165: -0.0002558266716 | L165: -0.0001309123824 | M165: -0.00292461033 | N165: 2.628866798e-07
A166: =IF('DF raw data'!E166="","",'DF raw data'!E166) -> -250.5 | B166: =IF('DF raw data'!F166="","",'DF raw data'!F166) -> -5.90958e-05 | C166: =IF('DF raw data'!G166="","",'DF raw data'!G166) -> 2.81961e-05 | D166: =IF('DF raw data'!H166="","",'DF raw data'!H166) -> -8.50225e-06 | F166: -1.794297896e-05 | G166: -9.634780167e-06 | H166: 2.320253567e-05 | J166: -5.567512213e-05 | K166: -0.0002836642326 | L166: -0.0001357297725 | M166: -0.002992475216 | N166: 2.73647825e-07
A167: =IF('DF raw data'!E167="","",'DF raw data'!E167) -> -250 | B167: =IF('DF raw data'!F167="","",'DF raw data'!F167) -> -3.59499e-05 | C167: =IF('DF raw data'!G167="","",'DF raw data'!G167) -> 2.43859e-05 | D167: =IF('DF raw data'!H167="","",'DF raw data'!H167) -> -1.95347e-05 | F167: 5.311706772e-06 | G167: -1.346288811e-05 | H167: 1.211823316e-05 | J167: -5.301926875e-05 | K167: -0.000310173867 | L167: -0.0001424612166 | M167: -0.003063705825 | N167: 2.852009455e-07
A168: =IF('DF raw data'!E168="","",'DF raw data'!E168) -> -249.5 | B168: =IF('DF raw data'!F168="","",'DF raw data'!F168) -> -4.01807e-05 | C168: =IF('DF raw data'!G168="","",'DF raw data'!G168) -> 1.94231e-05 | D168: =IF('DF raw data'!H168="","",'DF raw data'!H168) -> -2.31417e-05 | F168: 1.061022012e-06 | G168: -1.844901327e-05 | H168: 8.494280259e-06 | J168: -5.248875774e-05 | K168: -0.0003364182459 | L168: -0.0001516857232 | M168: -0.003139548686 | N168: 2.980827597e-07
A169: =IF('DF raw data'!E169="","",'DF raw data'!E169) -> -249 | B169: =IF('DF raw data'!F169="","",'DF raw data'!F169) -> -4.00511e-05 | C169: =IF('DF raw data'!G169="","",'DF raw data'!G169) -> 3.01687e-05 | D169: =IF('DF raw data'!H169="","",'DF raw data'!H169) -> -1.96581e-05 | F169: 1.191231132e-06 | G169: -7.652908947e-06 | H169: 1.199425318e-05 | J169: -5.189314218e-05 | K169: -0.000362364817 | L169: -0.0001555121777 | M169: -0.003217304775 | N169: 3.115212275e-07
A170: =IF('DF raw data'!E170="","",'DF raw data'!E170) -> -248.5 | B170: =IF('DF raw data'!F170="","",'DF raw data'!F170) -> -4.91534e-05 | C170: =IF('DF raw data'!G170="","",'DF raw data'!G170) -> 2.46896e-05 | D170: =IF('DF raw data'!H170="","",'DF raw data'!H170) -> -2.18432e-05 | F170: -7.953849678e-06 | G170: -1.315776072e-05 | H170: 9.798883209e-06 | J170: -5.587006702e-05 | K170: -0.0003902998505 | L170: -0.000162091058 | M170: -0.003298350304 | N170: 3.262187152e-07
A171: =IF('DF raw data'!E171="","",'DF raw data'!E171) -> -248 | B171: =IF('DF raw data'!F171="","",'DF raw data'!F171) -> -4.28115e-05 | C171: =IF('DF raw data'!G171="","",'DF raw data'!G171) -> 2.1455e-05 | D171: =IF('DF raw data'!H171="","",'DF raw data'!H171) -> -1.21203e-05 | F171: -1.582142748e-06 | G171: -1.640756334e-05 | H171: 1.956748084e-05 | J171: -5.666113839e-05 | K171: -0.0004186304197 | L171: -0.0001702948397 | M171: -0.003383497724 | N171: 3.423241237e-07
A172: =IF('DF raw data'!E172="","",'DF raw data'!E172) -> -247.5 | B172: =IF('DF raw data'!F172="","",'DF raw data'!F172) -> -4.71071e-05 | C172: =IF('DF raw data'!G172="","",'DF raw data'!G172) -> 1.71065e-05 | D172: =IF('DF raw data'!H172="","",'DF raw data'!H172) -> -1.48252e-05 | F172: -5.897932068e-06 | G172: -2.077650129e-05 | H172: 1.684986781e-05 | J172: -5.961010442e-05 | K172: -0.0004484354719 | L172: -0.0001806830903 | M172: -0.003473839269 | N172: 3.604239956e-07
A173: =IF('DF raw data'!E173="","",'DF raw data'!E173) -> -247 | B173: =IF('DF raw data'!F173="","",'DF raw data'!F173) -> -4.31268e-05 | C173: =IF('DF raw data'!G173="","",'DF raw data'!G173) -> 1.95568e-05 | D173: =IF('DF raw data'!H173="","",'DF raw data'!H173) -> -1.98704e-05 | F173: -1.898924658e-06 | G173: -1.831468488e-05 | H173: 1.178095537e-05 | J173: -6.055956675e-05 | K173: -0.0004787152553 | L173: -0.0001898404328 | M173: -0.003568759486 | N173: 3.802774211e-07
A174: =IF('DF raw data'!E174="","",'DF raw data'!E174) -> -246.5 | B174: =IF('DF raw data'!F174="","",'DF raw data'!F174) -> -4.70518e-05 | C174: =IF('DF raw data'!G174="","",'DF raw data'!G174) -> 2.22947e-05 | D174: =IF('DF raw data'!H174="","",'DF raw data'!H174) -> -9.4883e-07 | F174: -5.842372158e-06 | G174: -1.556391675e-05 | H174: 3.079145675e-05 | J174: -6.348075283e-05 | K174: -0.0005104556317 | L174: -0.0001976223912 | M174: -0.003667570681 | N174: 4.018196288e-07
A175: =IF('DF raw data'!E175="","",'DF raw data'!E175) -> -246 | B175: =IF('DF raw data'!F175="","",'DF raw data'!F175) -> -3.63937e-05 | C175: =IF('DF raw data'!G175="","",'DF raw data'!G175) -> 2.03848e-05 | D175: =IF('DF raw data'!H175="","",'DF raw data'!H175) -> -2.69584e-05 | F175: 4.865820912e-06 | G175: -1.748279328e-05 | H175: 4.659641769e-06 | J175: -6.104784238e-05 | K175: -0.0005409795529 | L175: -0.0002063637878 | M175: -0.003770752575 | N175: 4.249760548e-07
A176: =IF('DF raw data'!E176="","",'DF raw data'!E176) -> -245.5 | B176: =IF('DF raw data'!F176="","",'DF raw data'!F176) -> -4.7297e-05 | C176: =IF('DF raw data'!G176="","",'DF raw data'!G176) -> 6.03979e-06 | D176: =IF('DF raw data'!H176="","",'DF raw data'!H176) -> -1.81176e-05 | F176: -6.088724598e-06 | G176: -3.189522482e-05 | H176: 1.354199353e-05 | J176: -6.409220468e-05 | K176: -0.0005730256552 | L176: -0.0002223114002 | M176: -0.003881908275 | N176: 4.517411395e-07
A177: =IF('DF raw data'!E177="","",'DF raw data'!E177) -> -245 | B177: =IF('DF raw data'!F177="","",'DF raw data'!F177) -> -3.89002e-05 | C177: =IF('DF raw data'!G177="","",'DF raw data'!G177) -> 1.93301e-06 | D177: =IF('DF raw data'!H177="","",'DF raw data'!H177) -> -1.5863e-05 | F177: 2.347540362e-06 | G177: -3.602130669e-05 | H177: 1.580719015e-05 | J177: -6.29184345e-05 | K177: -0.0006044848724 | L177: -0.0002403220536 | M177: -0.004002069302 | N177: 4.825978489e-07
A178: =IF('DF raw data'!E178="","",'DF raw data'!E178) -> -244.5 | B178: =IF('DF raw data'!F178="","",'DF raw data'!F178) -> -4.42932e-05 | C178: =IF('DF raw data'!G178="","",'DF raw data'!G178) -> 3.58196e-06 | D178: =IF('DF raw data'!H178="","",'DF raw data'!H178) -> -5.12762e-06 | F178: -3.070806738e-06 | G178: -3.436460662e-05 | H178: 2.659302643e-05 | J178: -6.445383786e-05 | K178: -0.0006367117914 | L178: -0.0002575043569 | M178: -0.00413082148 | N178: 5.178292444e-07
A179: =IF('DF raw data'!E179="","",'DF raw data'!E179) -> -244 | B179: =IF('DF raw data'!F179="","",'DF raw data'!F179) -> -3.74917e-05 | C179: =IF('DF raw data'!G179="","",'DF raw data'!G179) -> 1.54018e-05 | D179: =IF('DF raw data'!H179="","",'DF raw data'!H179) -> -1.40431e-05 | F179: 3.762660312e-06 | G179: -2.248921338e-05 | H179: 1.763564368e-05 | J179: -6.257250771e-05 | K179: -0.0006679980452 | L179: -0.0002687489636 | M179: -0.004265195962 | N179: 5.558999065e-07
A180: =IF('DF raw data'!E180="","",'DF raw data'!E180) -> -243.5 | B180: =IF('DF raw data'!F180="","",'DF raw data'!F180) -> -5.72281e-05 | C180: =IF('DF raw data'!G180="","",'DF raw data'!G180) -> 1.80427e-05 | D180: =IF('DF raw data'!H180="","",'DF raw data'!H180) -> -2.13459e-05 | F180: -1.606650077e-05 | G180: -1.983590115e-05 | H180: 1.029852052e-05 | J180: -7.060575809e-05 | K180: -0.0007033009243 | L180: -0.0002786669141 | M180: -0.004404529419 | N180: 5.972201175e-07
A181: =IF('DF raw data'!E181="","",'DF raw data'!E181) -> -243 | B181: =IF('DF raw data'!F181="","",'DF raw data'!F181) -> -3.99876e-05 | C181: =IF('DF raw data'!G181="","",'DF raw data'!G181) -> 1.73859e-05 | D181: =IF('DF raw data'!H181="","",'DF raw data'!H181) -> -1.94199e-05 | F181: 1.255029582e-06 | G181: -2.049578811e-05 | H181: 1.223357272e-05 | J181: -6.99782433e-05 | K181: -0.0007382900459 | L181: -0.0002889148082 | M181: -0.004548986823 | N181: 6.41404478e-07
A182: =IF('DF raw data'!E182="","",'DF raw data'!E182) -> -242.5 | B182: =IF('DF raw data'!F182="","",'DF raw data'!F182) -> -6.17188e-05 | C182: =IF('DF raw data'!G182="","",'DF raw data'!G182) -> 1.37796e-05 | D182: =IF('DF raw data'!H182="","",'DF raw data'!H182) -> -1.40493e-05 | F182: -2.057830706e-05 | G182: -2.411903772e-05 | H182: 1.762941454e-05 | J182: -8.026739683e-05 | K182: -0.0007784237443 | L182: -0.000300974327 | M182: -0.004699473987 | N182: 6.899186782e-07
A183: =IF('DF raw data'!E183="","",'DF raw data'!E183) -> -242 | B183: =IF('DF raw data'!F183="","",'DF raw data'!F183) -> -3.61992e-05 | C183: =IF('DF raw data'!G183="","",'DF raw data'!G183) -> 1.81997e-05 | D183: =IF('DF raw data'!H183="","",'DF raw data'!H183) -> -3.15163e-05 | F183: 5.061235062e-06 | G183: -1.967816325e-05 | H183: 8.031963878e-08 | J183: -7.77367793e-05 | K183: -0.000817292134 | L183: -0.0003108134087 | M183: -0.004854880691 | N183: 7.412426692e-07
A184: =IF('DF raw data'!E184="","",'DF raw data'!E184) -> -241.5 | B184: =IF('DF raw data'!F184="","",'DF raw data'!F184) -> -4.38337e-05 | C184: =IF('DF raw data'!G184="","",'DF raw data'!G184) -> 2.2689e-05 | D184: =IF('DF raw data'!H184="","",'DF raw data'!H184) -> -2.15685e-05 | F184: -2.609147088e-06 | G184: -1.516776354e-05 | H184: 1.00748743e-05 | J184: -7.904135284e-05 | K184: -0.0008568128104 | L184: -0.0003183972904 | M184: -0.005014079336 | N184: 7.950548542e-07
A185: =IF('DF raw data'!E185="","",'DF raw data'!E185) -> -241 | B185: =IF('DF raw data'!F185="","",'DF raw data'!F185) -> -3.57618e-05 | C185: =IF('DF raw data'!G185="","",'DF raw data'!G185) -> 2.55714e-05 | D185: =IF('DF raw data'!H185="","",'DF raw data'!H185) -> -1.42551e-05 | F185: 5.500690842e-06 | G185: -1.227181626e-05 | H185: 1.742264728e-05 | J185: -7.629100742e-05 | K185: -0.0008949583141 | L185: -0.0003245331986 | M185: -0.005176345936 | N185: 8.506259116e-07
A186: =IF('DF raw data'!E186="","",'DF raw data'!E186) -> -240.5 | B186: =IF('DF raw data'!F186="","",'DF raw data'!F186) -> -5.85145e-05 | C186: =IF('DF raw data'!G186="","",'DF raw data'!G186) -> 3.35327e-05 | D186: =IF('DF raw data'!H186="","",'DF raw data'!H186) -> -1.27296e-05 | F186: -1.735894685e-05 | G186: -4.273098147e-06 | H186: 1.895531713e-05 | J186: -8.497048085e-05 | K186: -0.0009374435545 | L186: -0.0003266697476 | M186: -0.005339680809 | N186: 9.075924649e-07
A187: =IF('DF raw data'!E187="","",'DF raw data'!E187) -> -240 | B187: =IF('DF raw data'!F187="","",'DF raw data'!F187) -> -4.2945e-05 | C187: =IF('DF raw data'!G187="","",'DF raw data'!G187) -> 3.18544e-05 | D187: =IF('DF raw data'!H187="","",'DF raw data'!H187) -> -5.71103e-06 | F187: -1.716270198e-06 | G187: -5.959286157e-06 | H187: 2.600687441e-05 | J187: -8.582861595e-05 | K187: -0.0009803578625 | L187: -0.0003296493907 | M187: -0.005504505505 | N187: 9.656101009e-07
A188: =IF('DF raw data'!E188="","",'DF raw data'!E188) -> -239.5 | B188: =IF('DF raw data'!F188="","",'DF raw data'!F188) -> -5.11492e-05 | C188: =IF('DF raw data'!G188="","",'DF raw data'!G188) -> 1.75274e-05 | D188: =IF('DF raw data'!H188="","",'DF raw data'!H188) -> -5.40103e-06 | F188: -9.959029938e-06 | G188: -2.035362306e-05 | H188: 2.631833141e-05 | J188: -9.080813092e-05 | K188: -0.001025761928 | L188: -0.0003398262022 | M188: -0.005674418606 | N188: 1.027474083e-06
A189: =IF('DF raw data'!E189="","",'DF raw data'!E189) -> -239 | B189: =IF('DF raw data'!F189="","",'DF raw data'!F189) -> -4.28758e-05 | C189: =IF('DF raw data'!G189="","",'DF raw data'!G189) -> 2.12958e-05 | D189: =IF('DF raw data'!H189="","",'DF raw data'!H189) -> -1.37578e-05 | F189: -1.646744958e-06 | G189: -1.656751158e-05 | H189: 1.792228459e-05 | J189: -9.163150339e-05 | K189: -0.00107157768 | L189: -0.000348109958 | M189: -0.005848473585 | N189: 1.092262521e-06
A190: =IF('DF raw data'!E190="","",'DF raw data'!E190) -> -238.5 | B190: =IF('DF raw data'!F190="","",'DF raw data'!F190) -> -5.38391e-05 | C190: =IF('DF raw data'!G190="","",'DF raw data'!G190) -> 1.54994e-05 | D190: =IF('DF raw data'!H190="","",'DF raw data'!H190) -> -7.86612e-06 | F190: -1.266157247e-05 | G190: -2.239115466e-05 | H190: 2.384165548e-05 | J190: -9.796228963e-05 | K190: -0.001120558824 | L190: -0.0003593055354 | M190: -0.006028126353 | N190: 1.16161106e-06
A191: =IF('DF raw data'!E191="","",'DF raw data'!E191) -> -238 | B191: =IF('DF raw data'!F191="","",'DF raw data'!F191) -> -4.77422e-05 | C191: =IF('DF raw data'!G191="","",'DF raw data'!G191) -> 1.89753e-05 | D191: =IF('DF raw data'!H191="","",'DF raw data'!H191) -> -1.98517e-05 | F191: -6.536017038e-06 | G191: -1.889891793e-05 | H191: 1.179974326e-05 | J191: -0.0001012302981 | K191: -0.001171173974 | L191: -0.0003687549943 | M191: -0.00621250385 | N191: 1.234724969e-06
A192: =IF('DF raw data'!E192="","",'DF raw data'!E192) -> -237.5 | B192: =IF('DF raw data'!F192="","",'DF raw data'!F192) -> -4.40945e-05 | C192: =IF('DF raw data'!G192="","",'DF raw data'!G192) -> 1.38761e-05 | D192: =IF('DF raw data'!H192="","",'DF raw data'!H192) -> -1.32103e-05 | F192: -2.871172848e-06 | G192: -2.402208417e-05 | H192: 1.847235784e-05 | J192: -0.0001026658846 | K192: -0.001222506916 | L192: -0.0003807660364 | M192: -0.006402886868 | N192: 1.312486498e-06
A193: =IF('DF raw data'!E193="","",'DF raw data'!E193) -> -237 | B193: =IF('DF raw data'!F193="","",'DF raw data'!F193) -> -4.92125e-05 | C193: =IF('DF raw data'!G193="","",'DF raw data'!G193) -> 8.00537e-06 | D193: =IF('DF raw data'!H193="","",'DF raw data'!H193) -> -2.60075e-05 | F193: -8.013227448e-06 | G193: -2.99204066e-05 | H193: 5.615010999e-06 | J193: -0.0001066724983 | K193: -0.001275843165 | L193: -0.0003957262397 | M193: -0.006600749988 | N193: 1.396475638e-06
A194: =IF('DF raw data'!E194="","",'DF raw data'!E194) -> -236.5 | B194: =IF('DF raw data'!F194="","",'DF raw data'!F194) -> -4.31958e-05 | C194: =IF('DF raw data'!G194="","",'DF raw data'!G194) -> 6.06629e-06 | D194: =IF('DF raw data'!H194="","",'DF raw data'!H194) -> -1.54849e-05 | F194: -1.968248958e-06 | G194: -3.186860027e-05 | H194: 1.618706722e-05 | J194: -0.0001076566228 | K194: -0.001329671476 | L194: -0.0004116605398 | M194: -0.006806580258 | N194: 1.487002812e-06
A195: =IF('DF raw data'!E195="","",'DF raw data'!E195) -> -236 | B195: =IF('DF raw data'!F195="","",'DF raw data'!F195) -> -4.78064e-05 | C195: =IF('DF raw data'!G195="","",'DF raw data'!G195) -> 2.41579e-05 | D195: =IF('DF raw data'!H195="","",'DF raw data'!H195) -> -2.00657e-05 | F195: =(1-$G$1*($B$54-$G$2))*(B195-F$5) -> -6.600518778e-06 | G195: =(1-$G$1*($B$54-$G$2))*(C195-G$5) -> -1.369195971e-05 | H195: =(1-$G$1*($B$54-$G$2))*(D195-H$5) -> 1.158473746e-05 | J195: -0.0001109568822 | K195: -0.001385149917 | L195: -0.0004185065197 | M195: -0.007015833518 | N195: 1.58073238e-06
A196: =IF('DF raw data'!E196="","",'DF raw data'!E196) -> -235.5 | B196: =IF('DF raw data'!F196="","",'DF raw data'!F196) -> -5.80037e-05 | C196: =IF('DF raw data'!G196="","",'DF raw data'!G196) -> 3.11552e-05 | D196: =IF('DF raw data'!H196="","",'DF raw data'!H196) -> -8.33654e-06 | F196: -1.684574609e-05 | G196: -6.661772397e-06 | H196: 2.336902451e-05 | J196: =F196*$G$3+J195 -> -0.0001193797552 | K196: =J196*$G$3+K195 -> -0.001444839795 | L196: =G196*$G$3+L195 -> -0.0004218374059 | M196: =L196*$G$3+M195 -> -0.007226752221 | N196: =(J196^2+L196^2)*$G$3+N195 -> 1.676831542e-06
A197: =IF('DF raw data'!E197="","",'DF raw data'!E197) -> -235 | B197: =IF('DF raw data'!F197="","",'DF raw data'!F197) -> -5.29414e-05 | C197: =IF('DF raw data'!G197="","",'DF raw data'!G197) -> 3.11857e-05 | D197: =IF('DF raw data'!H197="","",'DF raw data'!H197) -> -7.4656e-06 | F197: -1.175965328e-05 | G197: -6.631129047e-06 | H197: 2.424405793e-05 | J197: -0.0001252595818 | K197: -0.001507469586 | L197: -0.0004251529704 | M197: -0.007439328706 | N197: 1.775054047e-06
A198: =IF('DF raw data'!E198="","",'DF raw data'!E198) -> -234.5 | B198: =IF('DF raw data'!F198="","",'DF raw data'!F198) -> -5.37074e-05 | C198: =IF('DF raw data'!G198="","",'DF raw data'!G198) -> 3.22583e-05 | D198: =IF('DF raw data'!H198="","",'DF raw data'!H198) -> -1.25261e-05 | F198: -1.252925348e-05 | G198: -5.553487827e-06 | H198: 1.915977358e-05 | J198: -0.0001315242086 | K198: -0.00157323169 | L198: -0.0004279297143 | M198: -0.007653293563 | N198: 1.875265276e-06
A199: =IF('DF raw data'!E199="","",'DF raw data'!E199) -> -234 | B199: =IF('DF raw data'!F199="","",'DF raw data'!F199) -> -4.47288e-05 | C199: =IF('DF raw data'!G199="","",'DF raw data'!G199) -> 2.52299e-05 | D199: =IF('DF raw data'!H199="","",'DF raw data'!H199) -> -2.27579e-05 | F199: -3.508454058e-06 | G199: -1.261492131e-05 | H199: 8.879884119e-06 | J199: -0.0001332784356 | K199: -0.001639870908 | L199: -0.000434237175 | M199: -0.00787041215 | N199: 1.978427809e-06
A200: =IF('DF raw data'!E200="","",'DF raw data'!E200) -> -233.5 | B200: =IF('DF raw data'!F200="","",'DF raw data'!F200) -> -5.01828e-05 | C200: =IF('DF raw data'!G200="","",'DF raw data'!G200) -> 3.04478e-05 | D200: =IF('DF raw data'!H200="","",'DF raw data'!H200) -> -1.20975e-05 | F200: -8.988087858e-06 | G200: -7.372497177e-06 | H200: 1.9590388e-05 | J200: -0.0001377724795 | K200: -0.001708757148 | L200: -0.0004379234236 | M200: -0.008089373862 | N200: 2.0838069e-06
... 1079 more rows

Sheet 20 mm
A1: =IF('DF raw data'!I1="","",'DF raw data'!I1) -> Number of header lines | B1: =IF('DF raw data'!J1="","",'DF raw data'!J1) -> 54 | C1: =IF('DF raw data'!C1="","",'DF raw data'!C1) ->  | D1: =IF('DF raw data'!D1="","",'DF raw data'!D1) ->  | F1: T_coeff | G1: -0.001 | H1: /degC | J1: IBy total | K1: =J1267*1000 -> 3.58248447 | L1: muTm | M1: =L1267*1000 -> -13.65574212 | R1: DF ref | S1: 1
A2: =IF('DF raw data'!I2="","",'DF raw data'!I2) -> Measured by | B2: =IF('DF raw data'!J2="","",'DF raw data'!J2) -> Danfysik | C2: =IF('DF raw data'!C2="","",'DF raw data'!C2) ->  | D2: =IF('DF raw data'!D2="","",'DF raw data'!D2) ->  | F2: Tcorr | G2: 20 | H2: degC | J2: JBy total | K2: =K1267 -> -1.854778199 | L2: muTm^2 | M2: =M1267 -> -3.225419123
A3: =IF('DF raw data'!I3="","",'DF raw data'!I3) -> Operator | B3: =IF('DF raw data'!J3="","",'DF raw data'!J3) -> PMHA | C3: =IF('DF raw data'!C3="","",'DF raw data'!C3) ->  | D3: =IF('DF raw data'!D3="","",'DF raw data'!D3) ->  | F3: Step | G3: =A68-A67 -> 0.5 | H3: mm | J3: PI total | K3: =N1267 -> 5052.755899 | L3: T^2mm^3
A4: =IF('DF raw data'!I4="","",'DF raw data'!I4) -> Data-time | B4: =IF('DF raw data'!J4="","",'DF raw data'!J4) -> 30-09-2024, 16:30:49 | C4: =IF('DF raw data'!C4="","",'DF raw data'!C4) ->  | D4: =IF('DF raw data'!D4="","",'DF raw data'!D4) -> 
A5: =IF('DF raw data'!I5="","",'DF raw data'!I5) -> Project | B5: =IF('DF raw data'!J5="","",'DF raw data'!J5) -> 504314 | C5: =IF('DF raw data'!C5="","",'DF raw data'!C5) ->  | D5: Bamb avr | F5: =(AVERAGE(B67:B107) + AVERAGE(B1227:B1267))/2 -> -3.307873415e-05 | G5: =(AVERAGE(C67:C107) + AVERAGE(C1227:C1267))/2 -> 0.0001595191817 | H5: =(AVERAGE(D67:D107) + AVERAGE(D1227:D1267))/2 -> -1.998782976e-05
A6: =IF('DF raw data'!I6="","",'DF raw data'!I6) -> Magnet type | B6: =IF('DF raw data'!J6="","",'DF raw data'!J6) -> Dipole | C6: =IF('DF raw data'!C6="","",'DF raw data'!C6) -> 
A7: =IF('DF raw data'!I7="","",'DF raw data'!I7) -> Magnet nr. | B7: =IF('DF raw data'!J7="","",'DF raw data'!J7) -> 2410105 | C7: =IF('DF raw data'!C7="","",'DF raw data'!C7) -> 
A8: =IF('DF raw data'!I8="","",'DF raw data'!I8) -> Meas. number | B8: =IF('DF raw data'!J8="","",'DF raw data'!J8) -> 838 | C8: =IF('DF raw data'!C8="","",'DF raw data'!C8) -> 
A9: =IF('DF raw data'!I9="","",'DF raw data'!I9) -> Add. info | B9: =IF('DF raw data'!J9="","",'DF raw data'!J9) ->  | C9: =IF('DF raw data'!C9="","",'DF raw data'!C9) ->  | D9: =IF('DF raw data'!D9="","",'DF raw data'!D9) -> 
A10: =IF('DF raw data'!I10="","",'DF raw data'!I10) -> Device | B10: =IF('DF raw data'!J10="","",'DF raw data'!J10) -> (HAL) HALL-PROBE | C10: =IF('DF raw data'!C10="","",'DF raw data'!C10) ->  | D10: =IF('DF raw data'!D10="","",'DF raw data'!D10) -> 
A11: =IF('DF raw data'!I11="","",'DF raw data'!I11) -> Goal | B11: =IF('DF raw data'!J11="","",'DF raw data'!J11) -> (AXI) AXis Integral (Line, EFB) | C11: =IF('DF raw data'!C11="","",'DF raw data'!C11) ->  | D11: =IF('DF raw data'!D11="","",'DF raw data'!D11) -> 
A12: =IF('DF raw data'!I12="","",'DF raw data'!I12) -> Power supply mode | B12: =IF('DF raw data'!J12="","",'DF raw data'!J12) -> (PM) Permanent Magnet (no MPS in use) | C12: =IF('DF raw data'!C12="","",'DF raw data'!C12) ->  | D12: =IF('DF raw data'!D12="","",'DF raw data'!D12) -> 
A13: =IF('DF raw data'!I13="","",'DF raw data'!I13) -> Data format | B13: =IF('DF raw data'!J13="","",'DF raw data'!J13) -> Raw data text file | C13: =IF('DF raw data'!C13="","",'DF raw data'!C13) ->  | D13: =IF('DF raw data'!D13="","",'DF raw data'!D13) -> 
A14: =IF('DF raw data'!I14="","",'DF raw data'!I14) -> Direction of the pos. x-axis | B14: =IF('DF raw data'!J14="","",'DF raw data'!J14) -> See test program | C14: =IF('DF raw data'!C14="","",'DF raw data'!C14) ->  | D14: =IF('DF raw data'!D14="","",'DF raw data'!D14) -> 
A15: =IF('DF raw data'!I15="","",'DF raw data'!I15) -> Direction of the pos. y-axis | B15: =IF('DF raw data'!J15="","",'DF raw data'!J15) -> Vertical up | C15: =IF('DF raw data'!C15="","",'DF raw data'!C15) ->  | D15: =IF('DF raw data'!D15="","",'DF raw data'!D15) -> 
A16: =IF('DF raw data'!I16="","",'DF raw data'!I16) -> Direction of the pos. z-axis | B16: =IF('DF raw data'!J16="","",'DF raw data'!J16) -> See test program | C16: =IF('DF raw data'!C16="","",'DF raw data'!C16) ->  | D16: =IF('DF raw data'!D16="","",'DF raw data'!D16) -> 
A17: =IF('DF raw data'!I17="","",'DF raw data'!I17) -> Mapper type | B17: =IF('DF raw data'!J17="","",'DF raw data'!J17) -> Precision Hall Mapper | C17: =IF('DF raw data'!C17="","",'DF raw data'!C17) ->  | D17: =IF('DF raw data'!D17="","",'DF raw data'!D17) -> 
A18: =IF('DF raw data'!I18="","",'DF raw data'!I18) -> Mapper Danfysik Reg. Number | B18: =IF('DF raw data'!J18="","",'DF raw data'!J18) -> 2033-D (mapper 1) | C18: =IF('DF raw data'!C18="","",'DF raw data'!C18) ->  | D18: =IF('DF raw data'!D18="","",'DF raw data'!D18) -> 
A19: =IF('DF raw data'!I19="","",'DF raw data'!I19) -> Measurement consept | B19: =IF('DF raw data'!J19="","",'DF raw data'!J19) -> Square line grid | C19: =IF('DF raw data'!C19="","",'DF raw data'!C19) ->  | D19: =IF('DF raw data'!D19="","",'DF raw data'!D19) -> 
A20: =IF('DF raw data'!I20="","",'DF raw data'!I20) -> Mode | B20: =IF('DF raw data'!J20="","",'DF raw data'!J20) -> On-the-fly measurement | C20: =IF('DF raw data'!C20="","",'DF raw data'!C20) ->  | D20: =IF('DF raw data'!D20="","",'DF raw data'!D20) -> 
A21: =IF('DF raw data'!I21="","",'DF raw data'!I21) ->  | B21: =IF('DF raw data'!J21="","",'DF raw data'!J21) ->  | C21: =IF('DF raw data'!C21="","",'DF raw data'!C21) ->  | D21: =IF('DF raw data'!D21="","",'DF raw data'!D21) -> 
A22: =IF('DF raw data'!I22="","",'DF raw data'!I22) -> Probe Name | B22: =IF('DF raw data'!J22="","",'DF raw data'!J22) -> ID12_By | C22: =IF('DF raw data'!C22="","",'DF raw data'!C22) ->  | D22: =IF('DF raw data'!D22="","",'DF raw data'!D22) -> 
A23: =IF('DF raw data'!I23="","",'DF raw data'!I23) -> Probe Type | B23: =IF('DF raw data'!J23="","",'DF raw data'!J23) -> DF_ID_3D_Bxyz | C23: =IF('DF raw data'!C23="","",'DF raw data'!C23) ->  | D23: =IF('DF raw data'!D23="","",'DF raw data'!D23) -> 
A24: =IF('DF raw data'!I24="","",'DF raw data'!I24) -> Probe Danfysik Reg. Number | B24: =IF('DF raw data'!J24="","",'DF raw data'!J24) -> 2277 | C24: =IF('DF raw data'!C24="","",'DF raw data'!C24) ->  | D24: =IF('DF raw data'!D24="","",'DF raw data'!D24) -> 
A25: =IF('DF raw data'!I25="","",'DF raw data'!I25) -> Probe Axis | B25: =IF('DF raw data'!J25="","",'DF raw data'!J25) -> By | C25: =IF('DF raw data'!C25="","",'DF raw data'!C25) ->  | D25: =IF('DF raw data'!D25="","",'DF raw data'!D25) -> 
A26: =IF('DF raw data'!I26="","",'DF raw data'!I26) -> Probe Current Supply | B26: =IF('DF raw data'!J26="","",'DF raw data'!J26) -> 1825-D | C26: =IF('DF raw data'!C26="","",'DF raw data'!C26) ->  | D26: =IF('DF raw data'!D26="","",'DF raw data'!D26) -> 
A27: =IF('DF raw data'!I27="","",'DF raw data'!I27) -> Probe Gain Correction | B27: =IF('DF raw data'!J27="","",'DF raw data'!J27) -> 0.9962 | C27: =IF('DF raw data'!C27="","",'DF raw data'!C27) ->  | D27: =IF('DF raw data'!D27="","",'DF raw data'!D27) -> 
A28: =IF('DF raw data'!I28="","",'DF raw data'!I28) -> Probe Offset Correction | B28: =IF('DF raw data'!J28="","",'DF raw data'!J28) -> 0.0027743 | C28: =IF('DF raw data'!C28="","",'DF raw data'!C28) ->  | D28: =IF('DF raw data'!D28="","",'DF raw data'!D28) -> 
A29: =IF('DF raw data'!I29="","",'DF raw data'!I29) -> DVM Number | B29: =IF('DF raw data'!J29="","",'DF raw data'!J29) -> 2 | C29: =IF('DF raw data'!C29="","",'DF raw data'!C29) ->  | D29: =IF('DF raw data'!D29="","",'DF raw data'!D29) -> 
A30: =IF('DF raw data'!I30="","",'DF raw data'!I30) -> DVM Type | B30: =IF('DF raw data'!J30="","",'DF raw data'!J30) -> K2701 | C30: =IF('DF raw data'!C30="","",'DF raw data'!C30) ->  | D30: =IF('DF raw data'!D30="","",'DF raw data'!D30) -> 
A31: =IF('DF raw data'!I31="","",'DF raw data'!I31) -> DVM Danfysik Reg. Number | B31: =IF('DF raw data'!J31="","",'DF raw data'!J31) -> 1743-D | C31: =IF('DF raw data'!C31="","",'DF raw data'!C31) ->  | D31: =IF('DF raw data'!D31="","",'DF raw data'!D31) -> 
A32: =IF('DF raw data'!I32="","",'DF raw data'!I32) -> Probe Name | B32: =IF('DF raw data'!J32="","",'DF raw data'!J32) -> ID12_Bx | C32: =IF('DF raw data'!C32="","",'DF raw data'!C32) ->  | D32: =IF('DF raw data'!D32="","",'DF raw data'!D32) -> 
A33: =IF('DF raw data'!I33="","",'DF raw data'!I33) -> Probe Type | B33: =IF('DF raw data'!J33="","",'DF raw data'!J33) -> DF_ID_3D_Bxyz | C33: =IF('DF raw data'!C33="","",'DF raw data'!C33) ->  | D33: =IF('DF raw data'!D33="","",'DF raw data'!D33) -> 
A34: =IF('DF raw data'!I34="","",'DF raw data'!I34) -> Probe Danfysik Reg. Number | B34: =IF('DF raw data'!J34="","",'DF raw data'!J34) -> 2277 | C34: =IF('DF raw data'!C34="","",'DF raw data'!C34) ->  | D34: =IF('DF raw data'!D34="","",'DF raw data'!D34) -> 
A35: =IF('DF raw data'!I35="","",'DF raw data'!I35) -> Probe Axis | B35: =IF('DF raw data'!J35="","",'DF raw data'!J35) -> Bx | C35: =IF('DF raw data'!C35="","",'DF raw data'!C35) ->  | D35: =IF('DF raw data'!D35="","",'DF raw data'!D35) -> 
A36: =IF('DF raw data'!I36="","",'DF raw data'!I36) -> Probe Current Supply | B36: =IF('DF raw data'!J36="","",'DF raw data'!J36) -> 1825-D | C36: =IF('DF raw data'!C36="","",'DF raw data'!C36) ->  | D36: =IF('DF raw data'!D36="","",'DF raw data'!D36) -> 
A37: =IF('DF raw data'!I37="","",'DF raw data'!I37) -> Probe Gain Correction | B37: =IF('DF raw data'!J37="","",'DF raw data'!J37) -> 1 | C37: =IF('DF raw data'!C37="","",'DF raw data'!C37) ->  | D37: =IF('DF raw data'!D37="","",'DF raw data'!D37) -> 
A38: =IF('DF raw data'!I38="","",'DF raw data'!I38) -> Probe Offset Correction | B38: =IF('DF raw data'!J38="","",'DF raw data'!J38) -> -0.17552 | C38: =IF('DF raw data'!C38="","",'DF raw data'!C38) ->  | D38: =IF('DF raw data'!D38="","",'DF raw data'!D38) -> 
A39: =IF('DF raw data'!I39="","",'DF raw data'!I39) -> DVM Number | B39: =IF('DF raw data'!J39="","",'DF raw data'!J39) -> 3 | C39: =IF('DF raw data'!C39="","",'DF raw data'!C39) ->  | D39: =IF('DF raw data'!D39="","",'DF raw data'!D39) -> 
A40: =IF('DF raw data'!I40="","",'DF raw data'!I40) -> DVM Type | B40: =IF('DF raw data'!J40="","",'DF raw data'!J40) -> K2701 | C40: =IF('DF raw data'!C40="","",'DF raw data'!C40) ->  | D40: =IF('DF raw data'!D40="","",'DF raw data'!D40) -> 
A41: =IF('DF raw data'!I41="","",'DF raw data'!I41) -> DVM Danfysik Reg. Number | B41: =IF('DF raw data'!J41="","",'DF raw data'!J41) -> 1744-D | C41: =IF('DF raw data'!C41="","",'DF raw data'!C41) ->  | D41: =IF('DF raw data'!D41="","",'DF raw data'!D41) -> 
A42: =IF('DF raw data'!I42="","",'DF raw data'!I42) -> Probe Name | B42: =IF('DF raw data'!J42="","",'DF raw data'!J42) -> ID12_Bz | C42: =IF('DF raw data'!C42="","",'DF raw data'!C42) ->  | D42: =IF('DF raw data'!D42="","",'DF raw data'!D42) -> 
A43: =IF('DF raw data'!I43="","",'DF raw data'!I43) -> Probe Type | B43: =IF('DF raw data'!J43="","",'DF raw data'!J43) -> DF_ID_3D_Bxyz | C43: =IF('DF raw data'!C43="","",'DF raw data'!C43) ->  | D43: =IF('DF raw data'!D43="","",'DF raw data'!D43) -> 
A44: =IF('DF raw data'!I44="","",'DF raw data'!I44) -> Probe Danfysik Reg. Number | B44: =IF('DF raw data'!J44="","",'DF raw data'!J44) -> 2277 | C44: =IF('DF raw data'!C44="","",'DF raw data'!C44) ->  | D44: =IF('DF raw data'!D44="","",'DF raw data'!D44) -> 
A45: =IF('DF raw data'!I45="","",'DF raw data'!I45) -> Probe Axis | B45: =IF('DF raw data'!J45="","",'DF raw data'!J45) -> Bz | C45: =IF('DF raw data'!C45="","",'DF raw data'!C45) ->  | D45: =IF('DF raw data'!D45="","",'DF raw data'!D45) -> 
A46: =IF('DF raw data'!I46="","",'DF raw data'!I46) -> Probe Current Supply | B46: =IF('DF raw data'!J46="","",'DF raw data'!J46) -> 1825-D | C46: =IF('DF raw data'!C46="","",'DF raw data'!C46) ->  | D46: =IF('DF raw data'!D46="","",'DF raw data'!D46) -> 
A47: =IF('DF raw data'!I47="","",'DF raw data'!I47) -> Probe Gain Correction | B47: =IF('DF raw data'!J47="","",'DF raw data'!J47) -> 1 | C47: =IF('DF raw data'!C47="","",'DF raw data'!C47) ->  | D47: =IF('DF raw data'!D47="","",'DF raw data'!D47) -> 
A48: =IF('DF raw data'!I48="","",'DF raw data'!I48) -> Probe Offset Correction | B48: =IF('DF raw data'!J48="","",'DF raw data'!J48) -> 0.0073175 | C48: =IF('DF raw data'!C48="","",'DF raw data'!C48) ->  | D48: =IF('DF raw data'!D48="","",'DF raw data'!D48) -> 
A49: =IF('DF raw data'!I49="","",'DF raw data'!I49) -> DVM Number | B49: =IF('DF raw data'!J49="","",'DF raw data'!J49) -> 8 | C49: =IF('DF raw data'!C49="","",'DF raw data'!C49) ->  | D49: =IF('DF raw data'!D49="","",'DF raw data'!D49) -> 
A50: =IF('DF raw data'!I50="","",'DF raw data'!I50) -> DVM Type | B50: =IF('DF raw data'!J50="","",'DF raw data'!J50) -> K2700 | C50: =IF('DF raw data'!C50="","",'DF raw data'!C50) ->  | D50: =IF('DF raw data'!D50="","",'DF raw data'!D50) -> 
A51: =IF('DF raw data'!I51="","",'DF raw data'!I51) -> DVM Danfysik Reg. Number | B51: =IF('DF raw data'!J51="","",'DF raw data'!J51) -> 1756-D | C51: =IF('DF raw data'!C51="","",'DF raw data'!C51) ->  | D51: =IF('DF raw data'!D51="","",'DF raw data'!D51) -> 
A52: =IF('DF raw data'!I52="","",'DF raw data'!I52) -> NTC voltage | B52: =IF('DF raw data'!J52="","",'DF raw data'!J52) -> 0.41936 | C52: =IF('DF raw data'!C52="","",'DF raw data'!C52) ->  | D52: =IF('DF raw data'!D52="","",'DF raw data'!D52) -> 
A53: =IF('DF raw data'!I53="","",'DF raw data'!I53) -> PS-Gap: | B53: =IF('DF raw data'!J53="","",'DF raw data'!J53) -> 20 | C53: =IF('DF raw data'!C53="","",'DF raw data'!C53) ->  | D53: =IF('DF raw data'!D53="","",'DF raw data'!D53) -> 
A54: =IF('DF raw data'!I54="","",'DF raw data'!I54) -> PS-Temperature: | B54: =IF('DF raw data'!J54="","",'DF raw data'!J54) -> 24.7 | C54: =IF('DF raw data'!C54="","",'DF raw data'!C54) ->  | D54: =IF('DF raw data'!D54="","",'DF raw data'!D54) -> 
A55: =IF('DF raw data'!I55="","",'DF raw data'!I55) -> PS-Encoder: | B55: =IF('DF raw data'!J55="","",'DF raw data'!J55) -> 29.6129 | C55: =IF('DF raw data'!C55="","",'DF raw data'!C55) ->  | D55: =IF('DF raw data'!D55="","",'DF raw data'!D55) -> 
A56: =IF('DF raw data'!I56="","",'DF raw data'!I56) ->  | B56: =IF('DF raw data'!J56="","",'DF raw data'!J56) -> 
A57: =IF('DF raw data'!I57="","",'DF raw data'!I57) -> Monitor-Index | B57: =IF('DF raw data'!J57="","",'DF raw data'!J57) -> [1,1,4]
A58: =IF('DF raw data'!I58="","",'DF raw data'!I58) ->  | B58: =IF('DF raw data'!J58="","",'DF raw data'!J58) -> 
A59: =IF('DF raw data'!I59="","",'DF raw data'!I59) -> Time [s] | B59: =IF('DF raw data'!J59="","",'DF raw data'!J59) -> Y [mm]
A60: =IF('DF raw data'!I60="","",'DF raw data'!I60) ->  | B60: =IF('DF raw data'!J60="","",'DF raw data'!J60) -> 
A61: =IF('DF raw data'!I61="","",'DF raw data'!I61) -> 207.2 | B61: =IF('DF raw data'!J61="","",'DF raw data'!J61) -> 31.48
A62: =IF('DF raw data'!I62="","",'DF raw data'!I62) ->  | B62: =IF('DF raw data'!J62="","",'DF raw data'!J62) -> 
A63: =IF('DF raw data'!I63="","",'DF raw data'!I63) -> Measurement-Index | B63: =IF('DF raw data'!J63="","",'DF raw data'!J63) -> [1,1,1201,2]
A64: =IF('DF raw data'!I64="","",'DF raw data'!I64) ->  | B64: =IF('DF raw data'!J64="","",'DF raw data'!J64) -> 
A65: =IF('DF raw data'!I65="","",'DF raw data'!I65) -> Z [mm] | B65: =IF('DF raw data'!J65="","",'DF raw data'!J65) -> By [T] | C65: =IF('DF raw data'!K65="","",'DF raw data'!K65) -> Bx [T] | D65: =IF('DF raw data'!L65="","",'DF raw data'!L65) -> Bz [T] | F65: By_corr | G65: Bx_corr | H65: Bz_corr | J65: Iy | K65: Jy | L65: Ix | M65: Jx | N65: PI
A66: =IF('DF raw data'!I66="","",'DF raw data'!I66) -> [1, 0, 0, 0] | B66: =IF('DF raw data'!J66="","",'DF raw data'!J66) ->  | C66: =IF('DF raw data'!K66="","",'DF raw data'!K66) ->  | D66: =IF('DF raw data'!L66="","",'DF raw data'!L66) -> 
A67: =IF('DF raw data'!I67="","",'DF raw data'!I67) -> -300 | B67: =IF('DF raw data'!J67="","",'DF raw data'!J67) -> -2.59479e-05 | C67: =IF('DF raw data'!K67="","",'DF raw data'!K67) -> 0.000203129 | D67: =IF('DF raw data'!L67="","",'DF raw data'!L67) -> -1.87832e-05 | F67: =(1-$G$1*($B$54-$G$2))*(B67-F$5) -> 7.164349067e-06 | G67: =(1-$G$1*($B$54-$G$2))*(C67-G$5) -> 4.381478444e-05 | H67: =(1-$G$1*($B$54-$G$2))*(D67-H$5) -> 1.210291516e-06 | J67: =F67*$G$3+J66 -> 3.582174533e-06 | K67: =J67*$G$3+K66 -> 1.791087267e-06 | L67: =G67*$G$3+L66 -> 2.190739222e-05 | M67: =L67*$G$3+M66 -> 1.095369611e-05 | N67: =(J67^2+L67^2)*$G$3+N66 -> 2.463829041e-10
A68: =IF('DF raw data'!I68="","",'DF raw data'!I68) -> -299.5 | B68: =IF('DF raw data'!J68="","",'DF raw data'!J68) -> -4.26092e-05 | C68: =IF('DF raw data'!K68="","",'DF raw data'!K68) -> 0.000200743 | D68: =IF('DF raw data'!L68="","",'DF raw data'!L68) -> -1.76244e-05 | F68: -9.575259043e-06 | G68: 4.141757024e-05 | H68: 2.374537876e-06 | J68: =F68*$G$3+J67 -> -1.205454988e-06 | K68: =J68*$G$3+K67 -> 1.188359773e-06 | L68: =G68*$G$3+L67 -> 4.261617734e-05 | M68: =L68*$G$3+M67 -> 3.226178478e-05 | N68: =(J68^2+L68^2)*$G$3+N67 -> 1.15517875e-09
A69: =IF('DF raw data'!I69="","",'DF raw data'!I69) -> -299 | B69: =IF('DF raw data'!J69="","",'DF raw data'!J69) -> -3.66512e-05 | C69: =IF('DF raw data'!K69="","",'DF raw data'!K69) -> 0.000206199 | D69: =IF('DF raw data'!L69="","",'DF raw data'!L69) -> -1.60513e-05 | F69: -3.589256443e-06 | G69: 4.689921344e-05 | H69: 3.955031446e-06 | J69: -3.00008321e-06 | K69: -3.116818323e-07 | L69: 6.606578406e-05 | M69: 6.529467681e-05 | N69: 3.342022912e-09
A70: =IF('DF raw data'!I70="","",'DF raw data'!I70) -> -298.5 | B70: =IF('DF raw data'!J70="","",'DF raw data'!J70) -> -2.69123e-05 | C70: =IF('DF raw data'!K70="","",'DF raw data'!K70) -> 0.000212355 | D70: =IF('DF raw data'!L70="","",'DF raw data'!L70) -> -1.59675e-05 | F70: 6.195416387e-06 | G70: 5.308414664e-05 | H70: 4.039225306e-06 | J70: 9.762498366e-08 | K70: -2.628693404e-07 | L70: 9.260785738e-05 | M70: 0.0001115986055 | N70: 7.630135301e-09
A71: =IF('DF raw data'!I71="","",'DF raw data'!I71) -> -298 | B71: =IF('DF raw data'!J71="","",'DF raw data'!J71) -> -3.53696e-05 | C71: =IF('DF raw data'!K71="","",'DF raw data'!K71) -> 0.000207115 | D71: =IF('DF raw data'!L71="","",'DF raw data'!L71) -> -1.63743e-05 | F71: -2.301632923e-06 | G71: 4.781951864e-05 | H71: 3.630513346e-06 | J71: -1.053191478e-06 | K71: -7.894650794e-07 | L71: 0.0001165176167 | M71: 0.0001698574138 | N71: 1.441886741e-08
A72: =IF('DF raw data'!I72="","",'DF raw data'!I72) -> -297.5 | B72: =IF('DF raw data'!J72="","",'DF raw data'!J72) -> -3.60106e-05 | C72: =IF('DF raw data'!K72="","",'DF raw data'!K72) -> 0.000215114 | D72: =IF('DF raw data'!L72="","",'DF raw data'!L72) -> -1.60262e-05 | F72: -2.945645623e-06 | G72: 5.585611394e-05 | H72: 3.980249416e-06 | J72: -2.52601429e-06 | K72: -2.052472224e-06 | L72: 0.0001444456737 | M72: 0.0002420802507 | N72: 2.48543341e-08
A73: =IF('DF raw data'!I73="","",'DF raw data'!I73) -> -297 | B73: =IF('DF raw data'!J73="","",'DF raw data'!J73) -> -3.332e-05 | C73: =IF('DF raw data'!K73="","",'DF raw data'!K73) -> 0.000213074 | D73: =IF('DF raw data'!L73="","",'DF raw data'!L73) -> -1.53713e-05 | F73: -2.423998032e-07 | G73: 5.380652594e-05 | H73: 4.638227446e-06 | J73: -2.647214191e-06 | K73: -3.37607932e-06 | L73: 0.0001713489366 | M73: 0.000327754719 | N73: 3.953806702e-08
A74: =IF('DF raw data'!I74="","",'DF raw data'!I74) -> -296.5 | B74: =IF('DF raw data'!J74="","",'DF raw data'!J74) -> -2.8066e-05 | C74: =IF('DF raw data'!K74="","",'DF raw data'!K74) -> 0.000215116 | D74: =IF('DF raw data'!L74="","",'DF raw data'!L74) -> -1.53374e-05 | F74: 5.036293997e-06 | G74: 5.585812334e-05 | H74: 4.672286776e-06 | J74: -1.290671927e-07 | K74: -3.440612916e-06 | L74: 0.0001992779983 | M74: 0.0004273937181 | N74: 5.939393565e-08
A75: =IF('DF raw data'!I75="","",'DF raw data'!I75) -> -296 | B75: =IF('DF raw data'!J75="","",'DF raw data'!J75) -> -2.55024e-05 | C75: =IF('DF raw data'!K75="","",'DF raw data'!K75) -> 0.000217047 | D75: =IF('DF raw data'!L75="","",'DF raw data'!L75) -> -1.60267e-05 | F75: 7.611942917e-06 | G75: 5.779819904e-05 | H75: 3.979747066e-06 | J75: 3.676904266e-06 | K75: -1.602160783e-06 | L75: 0.0002281770978 | M75: 0.0005414822671 | N75: 8.543308945e-08
A76: =IF('DF raw data'!I76="","",'DF raw data'!I76) -> -295.5 | B76: =IF('DF raw data'!J76="","",'DF raw data'!J76) -> -2.33876e-05 | C76: =IF('DF raw data'!K76="","",'DF raw data'!K76) -> 0.000213441 | D76: =IF('DF raw data'!L76="","",'DF raw data'!L76) -> -1.66128e-05 | F76: 9.736682477e-06 | G76: 5.417525084e-05 | H76: 3.390892396e-06 | J76: 8.545245504e-06 | K76: 2.670461969e-06 | L76: 0.0002552647232 | M76: 0.0006691146287 | N76: 1.180496395e-07
A77: =IF('DF raw data'!I77="","",'DF raw data'!I77) -> -295 | B77: =IF('DF raw data'!J77="","",'DF raw data'!J77) -> -3.72278e-05 | C77: =IF('DF raw data'!K77="","",'DF raw data'!K77) -> 0.000209357 | D77: =IF('DF raw data'!L77="","",'DF raw data'!L77) -> -1.63827e-05 | F77: -4.168566463e-06 | G77: 5.007205604e-05 | H77: 3.622073866e-06 | J77: 6.460962273e-06 | K77: 5.900943105e-06 | L77: 0.0002803007513 | M77: 0.0008092650043 | N77: 1.573547671e-07
A78: =IF('DF raw data'!I78="","",'DF raw data'!I78) -> -294.5 | B78: =IF('DF raw data'!J78="","",'DF raw data'!J78) -> -2.37726e-05 | C78: =IF('DF raw data'!K78="","",'DF raw data'!K78) -> 0.000202268 | D78: =IF('DF raw data'!L78="","",'DF raw data'!L78) -> -1.60444e-05 | F78: 9.349872977e-06 | G78: 4.294973774e-05 | H78: 3.961963876e-06 | J78: 1.113589876e-05 | K78: 1.146889249e-05 | L78: 0.0003017756201 | M78: 0.0009601528144 | N78: 2.029510337e-07
A79: =IF('DF raw data'!I79="","",'DF raw data'!I79) -> -294 | B79: =IF('DF raw data'!J79="","",'DF raw data'!J79) -> -2.94751e-05 | C79: =IF('DF raw data'!K79="","",'DF raw data'!K79) -> 0.000198886 | D79: =IF('DF raw data'!L79="","",'DF raw data'!L79) -> -1.59802e-05 | F79: 3.620571227e-06 | G79: 3.955184234e-05 | H79: 4.026465616e-06 | J79: 1.294618437e-05 | K79: 1.794198467e-05 | L79: 0.0003215515413 | M79: 0.001120928585 | N79: 2.547325324e-07
A80: =IF('DF raw data'!I80="","",'DF raw data'!I80) -> -293.5 | B80: =IF('DF raw data'!J80="","",'DF raw data'!J80) -> -2.92829e-05 | C80: =IF('DF raw data'!K80="","",'DF raw data'!K80) -> 0.000210765 | D80: =IF('DF raw data'!L80="","",'DF raw data'!L80) -> -1.61077e-05 | F80: 3.813674567e-06 | G80: 5.148667364e-05 | H80: 3.898366366e-06 | J80: 1.485302166e-05 | K80: 2.53684955e-05 | L80: 0.0003472948781 | M80: 0.001294576024 | N80: 3.151497047e-07
A81: =IF('DF raw data'!I81="","",'DF raw data'!I81) -> -293 | B81: =IF('DF raw data'!J81="","",'DF raw data'!J81) -> -2.19143e-05 | C81: =IF('DF raw data'!K81="","",'DF raw data'!K81) -> 0.000218083 | D81: =IF('DF raw data'!L81="","",'DF raw data'!L81) -> -1.6366e-05 | F81: 1.121690699e-05 | G81: 5.883906824e-05 | H81: 3.638852356e-06 | J81: 2.046147515e-05 | K81: 3.559923308e-05 | L81: 0.0003767144122 | M81: 0.00148293323 | N81: 3.863159149e-07
A82: =IF('DF raw data'!I82="","",'DF raw data'!I82) -> -292.5 | B82: =IF('DF raw data'!J82="","",'DF raw data'!J82) -> -3.37036e-05 | C82: =IF('DF raw data'!K82="","",'DF raw data'!K82) -> 0.000207856 | D82: =IF('DF raw data'!L82="","",'DF raw data'!L82) -> -1.65793e-05 | F82: -6.278027232e-07 | G82: 4.856400134e-05 | H82: 3.424549846e-06 | J82: 2.014757379e-05 | K82: 4.567301997e-05 | L82: 0.0004009964129 | M82: 0.001683431437 | N82: 4.669179388e-07
A83: =IF('DF raw data'!I83="","",'DF raw data'!I83) -> -292 | B83: =IF('DF raw data'!J83="","",'DF raw data'!J83) -> -2.4541e-05 | C83: =IF('DF raw data'!K83="","",'DF raw data'!K83) -> 0.000193656 | D83: =IF('DF raw data'!L83="","",'DF raw data'!L83) -> -1.68232e-05 | F83: 8.577861497e-06 | G83: 3.429726134e-05 | H83: 3.179503516e-06 | J83: 2.443650454e-05 | K83: 5.789127224e-05 | L83: 0.0004181450436 | M83: 0.001892503958 | N83: 5.546391489e-07
A84: =IF('DF raw data'!I84="","",'DF raw data'!I84) -> -291.5 | B84: =IF('DF raw data'!J84="","",'DF raw data'!J84) -> -3.40266e-05 | C84: =IF('DF raw data'!K84="","",'DF raw data'!K84) -> 0.000196299 | D84: =IF('DF raw data'!L84="","",'DF raw data'!L84) -> -1.22641e-05 | F84: -9.523208232e-07 | G84: 3.695268344e-05 | H84: 7.760031286e-06 | J84: 2.396034413e-05 | K84: 6.98714443e-05 | L84: 0.0004366213853 | M84: 0.002110814651 | N84: 6.50245315e-07
A85: =IF('DF raw data'!I85="","",'DF raw data'!I85) -> -291 | B85: =IF('DF raw data'!J85="","",'DF raw data'!J85) -> -3.48593e-05 | C85: =IF('DF raw data'!K85="","",'DF raw data'!K85) -> 0.000199553 | D85: =IF('DF raw data'!L85="","",'DF raw data'!L85) -> -1.28376e-05 | F85: -1.788934513e-06 | G85: 4.022197724e-05 | H85: 7.183835836e-06 | J85: 2.306587687e-05 | K85: 8.140438274e-05 | L85: 0.0004567323739 | M85: 0.002339180838 | N85: 7.548135631e-07
A86: =IF('DF raw data'!I86="","",'DF raw data'!I86) -> -290.5 | B86: =IF('DF raw data'!J86="","",'DF raw data'!J86) -> -3.47911e-05 | C86: =IF('DF raw data'!K86="","",'DF raw data'!K86) -> 0.00019052 | D86: =IF('DF raw data'!L86="","",'DF raw data'!L86) -> -1.92945e-05 | F86: -1.720413973e-06 | G86: 3.114652214e-05 | H86: 6.96588406e-07 | J86: 2.220566988e-05 | K86: 9.250721768e-05 | L86: 0.000472305635 | M86: 0.002575333656 | N86: 8.665964154e-07
A87: =IF('DF raw data'!I87="","",'DF raw data'!I87) -> -290 | B87: =IF('DF raw data'!J87="","",'DF raw data'!J87) -> -2.73689e-05 | C87: =IF('DF raw data'!K87="","",'DF raw data'!K87) -> 0.000184319 | D87: =IF('DF raw data'!L87="","",'DF raw data'!L87) -> -3.37444e-06 | F87: 5.736670367e-06 | G87: 2.491637744e-05 | H87: 1.669147269e-05 | J87: 2.507400507e-05 | K87: 0.0001050442202 | L87: 0.0004847638237 | M87: 0.002817715567 | N87: 9.844087506e-07
A88: =IF('DF raw data'!I88="","",'DF raw data'!I88) -> -289.5 | B88: =IF('DF raw data'!J88="","",'DF raw data'!J88) -> -2.88372e-05 | C88: =IF('DF raw data'!K88="","",'DF raw data'!K88) -> 0.000196709 | D88: =IF('DF raw data'!L88="","",'DF raw data'!L88) -> -1.1418e-05 | F88: 4.261469357e-06 | G88: 3.736461044e-05 | H88: 8.610107956e-06 | J88: 2.720473975e-05 | K88: 0.0001186465901 | L88: 0.0005034461289 | M88: 0.003069438632 | N88: 1.111507802e-06
A89: =IF('DF raw data'!I89="","",'DF raw data'!I89) -> -289 | B89: =IF('DF raw data'!J89="","",'DF raw data'!J89) -> -2.28885e-05 | C89: =IF('DF raw data'!K89="","",'DF raw data'!K89) -> 0.000203652 | D89: =IF('DF raw data'!L89="","",'DF raw data'!L89) -> 4.16275e-06 | F89: 1.023812825e-05 | G89: 4.434024254e-05 | H89: 2.426408748e-05 | J89: 3.232380387e-05 | K89: 0.000134808492 | L89: 0.0005256162502 | M89: 0.003332246757 | N89: 1.250166437e-06
A90: =IF('DF raw data'!I90="","",'DF raw data'!I90) -> -288.5 | B90: =IF('DF raw data'!J90="","",'DF raw data'!J90) -> -2.71081e-05 | C90: =IF('DF raw data'!K90="","",'DF raw data'!K90) -> 0.000201843 | D90: =IF('DF raw data'!L90="","",'DF raw data'!L90) -> -9.97388e-06 | F90: 5.998696127e-06 | G90: 4.252274024e-05 | H90: 1.006101532e-05 | J90: 3.532315193e-05 | K90: 0.000152470068 | L90: 0.0005468776203 | M90: 0.003605685567 | N90: 1.400327866e-06
A91: =IF('DF raw data'!I91="","",'DF raw data'!I91) -> -288 | B91: =IF('DF raw data'!J91="","",'DF raw data'!J91) -> -1.35227e-05 | C91: =IF('DF raw data'!K91="","",'DF raw data'!K91) -> 0.000193726 | D91: =IF('DF raw data'!L91="","",'DF raw data'!L91) -> -1.32239e-05 | F91: 1.964794751e-05 | G91: 3.436759034e-05 | H91: 6.795720226e-06 | J91: 4.514712569e-05 | K91: 0.0001750436308 | L91: 0.0005640614155 | M91: 0.003887716275 | N91: 1.560429637e-06
A92: =IF('DF raw data'!I92="","",'DF raw data'!I92) -> -287.5 | B92: =IF('DF raw data'!J92="","",'DF raw data'!J92) -> -3.18512e-05 | C92: =IF('DF raw data'!K92="","",'DF raw data'!K92) -> 0.000195453 | D92: =IF('DF raw data'!L92="","",'DF raw data'!L92) -> -7.28616e-06 | F92: 1.233303557e-06 | G92: 3.610270724e-05 | H92: 1.27613676e-05 | J92: 4.576377746e-05 | K92: 0.0001979255196 | L92: 0.0005821127691 | M92: 0.004178772659 | N92: 1.730904437e-06
A93: =IF('DF raw data'!I93="","",'DF raw data'!I93) -> -287 | B93: =IF('DF raw data'!J93="","",'DF raw data'!J93) -> -2.04442e-05 | C93: =IF('DF raw data'!K93="","",'DF raw data'!K93) -> 0.00020084 | D93: =IF('DF raw data'!L93="","",'DF raw data'!L93) -> -1.09768e-05 | F93: 1.269391646e-05 | G93: 4.151502614e-05 | H93: 9.053381596e-06 | J93: 5.211073569e-05 | K93: 0.0002239808874 | L93: 0.0006028702822 | M93: 0.004480207801 | N93: 1.91398849e-06
A94: =IF('DF raw data'!I94="","",'DF raw data'!I94) -> -286.5 | B94: =IF('DF raw data'!J94="","",'DF raw data'!J94) -> -2.74926e-05 | C94: =IF('DF raw data'!K94="","",'DF raw data'!K94) -> 0.000197263 | D94: =IF('DF raw data'!L94="","",'DF raw data'!L94) -> -9.4565e-06 | F94: 5.612388977e-06 | G94: 3.792121424e-05 | H94: 1.058082701e-05 | J94: 5.491693018e-05 | K94: 0.0002514393525 | L94: 0.0006218308893 | M94: 0.004791123245 | N94: 2.108833252e-06
A95: =IF('DF raw data'!I95="","",'DF raw data'!I95) -> -286 | B95: =IF('DF raw data'!J95="","",'DF raw data'!J95) -> -3.06932e-05 | C95: =IF('DF raw data'!K95="","",'DF raw data'!K95) -> 0.000192529 | D95: =IF('DF raw data'!L95="","",'DF raw data'!L95) -> -1.57049e-05 | F95: 2.396746157e-06 | G95: 3.316496444e-05 | H95: 4.303059526e-06 | J95: 5.611530326e-05 | K95: 0.0002794970041 | L95: 0.0006384133715 | M95: 0.005110329931 | N95: 2.314193532e-06
A96: =IF('DF raw data'!I96="","",'DF raw data'!I96) -> -285.5 | B96: =IF('DF raw data'!J96="","",'DF raw data'!J96) -> -2.39691e-05 | C96: =IF('DF raw data'!K96="","",'DF raw data'!K96) -> 0.000194368 | D96: =IF('DF raw data'!L96="","",'DF raw data'!L96) -> -8.41973e-06 | F96: 9.152449427e-06 | G96: 3.501260774e-05 | H96: 1.162246982e-05 | J96: 6.069152797e-05 | K96: 0.0003098427681 | L96: 0.0006559196754 | M96: 0.005438289769 | N96: 2.531150573e-06
A97: =IF('DF raw data'!I97="","",'DF raw data'!I97) -> -285 | B97: =IF('DF raw data'!J97="","",'DF raw data'!J97) -> -2.33921e-05 | C97: =IF('DF raw data'!K97="","",'DF raw data'!K97) -> 0.000205131 | D97: =IF('DF raw data'!L97="","",'DF raw data'!L97) -> -1.02967e-05 | F97: 9.732161327e-06 | G97: 4.582619384e-05 | H97: 9.736678066e-06 | J97: 6.555760864e-05 | K97: 0.0003426215724 | L97: 0.0006788327723 | M97: 0.005777706155 | N97: 2.76370644e-06
A98: =IF('DF raw data'!I98="","",'DF raw data'!I98) -> -284.5 | B98: =IF('DF raw data'!J98="","",'DF raw data'!J98) -> -3.28719e-05 | C98: =IF('DF raw data'!K98="","",'DF raw data'!K98) -> 0.000205989 | D98: =IF('DF raw data'!L98="","",'DF raw data'!L98) -> -1.33217e-05 | F98: 2.078062668e-07 | G98: 4.668822644e-05 | H98: 6.697460566e-06 | J98: 6.566151177e-05 | K98: 0.0003754523283 | L98: 0.0007021768855 | M98: 0.006128794598 | N98: 3.012388346e-06
A99: =IF('DF raw data'!I99="","",'DF raw data'!I99) -> -284 | B99: =IF('DF raw data'!J99="","",'DF raw data'!J99) -> -1.92272e-05 | C99: =IF('DF raw data'!K99="","",'DF raw data'!K99) -> 0.000199068 | D99: =IF('DF raw data'!L99="","",'DF raw data'!L99) -> -1.06889e-05 | F99: 1.391663636e-05 | G99: 3.973469774e-05 | H99: 9.342634726e-06 | J99: 7.261982995e-05 | K99: 0.0004117622433 | L99: 0.0007220442344 | M99: 0.006489816715 | N99: 3.275699104e-06
A100: =IF('DF raw data'!I100="","",'DF raw data'!I100) -> -283.5 | B100: =IF('DF raw data'!J100="","",'DF raw data'!J100) -> -2.46066e-05 | C100: =IF('DF raw data'!K100="","",'DF raw data'!K100) -> 0.000199807 | D100: =IF('DF raw data'!L100="","",'DF raw data'!L100) -> -1.30539e-05 | F100: 8.511953177e-06 | G100: 4.047717104e-05 | H100: 6.966519226e-06 | J100: 7.687580654e-05 | K100: 0.0004502001466 | L100: 0.0007422828199 | M100: 0.006860958125 | N100: 3.554145941e-06
A101: =IF('DF raw data'!I101="","",'DF raw data'!I101) -> -283 | B101: =IF('DF raw data'!J101="","",'DF raw data'!J101) -> -3.10137e-05 | C101: =IF('DF raw data'!K101="","",'DF raw data'!K101) -> 0.000200118 | D101: =IF('DF raw data'!L101="","",'DF raw data'!L101) -> -1.59844e-05 | F101: 2.074739807e-06 | G101: 4.078963274e-05 | H101: 4.022245876e-06 | J101: 7.791317644e-05 | K101: 0.0004891567348 | L101: 0.0007626776363 | M101: 0.007242296943 | N101: 3.848019761e-06
A102: =IF('DF raw data'!I102="","",'DF raw data'!I102) -> -282.5 | B102: =IF('DF raw data'!J102="","",'DF raw data'!J102) -> -2.63387e-05 | C102: =IF('DF raw data'!K102="","",'DF raw data'!K102) -> 0.000207397 | D102: =IF('DF raw data'!L102="","",'DF raw data'!L102) -> -9.65576e-06 | F102: 6.771712307e-06 | G102: 4.810284404e-05 | H102: 1.038063048e-05 | J102: 8.129903259e-05 | K102: 0.0005298062511 | L102: 0.0007867290583 | M102: 0.007635661472 | N102: 4.160795833e-06
A103: =IF('DF raw data'!I103="","",'DF raw data'!I103) -> -282 | B103: =IF('DF raw data'!J103="","",'DF raw data'!J103) -> -3.01215e-05 | C103: =IF('DF raw data'!K103="","",'DF raw data'!K103) -> 0.000210959 | D103: =IF('DF raw data'!L103="","",'DF raw data'!L103) -> -8.69162e-06 | F103: 2.971133147e-06 | G103: 5.168158544e-05 | H103: 1.134930194e-05 | J103: 8.278459917e-05 | K103: 0.0005711985507 | L103: 0.000812569851 | M103: 0.008041946397 | N103: 4.494357359e-06
A104: =IF('DF raw data'!I104="","",'DF raw data'!I104) -> -281.5 | B104: =IF('DF raw data'!J104="","",'DF raw data'!J104) -> -2.63366e-05 | C104: =IF('DF raw data'!K104="","",'DF raw data'!K104) -> 0.000219006 | D104: =IF('DF raw data'!L104="","",'DF raw data'!L104) -> -1.26933e-05 | F104: 6.773822177e-06 | G104: 5.976640634e-05 | H104: 7.328814046e-06 | J104: 8.617151025e-05 | K104: 0.0006142843058 | L104: 0.0008424530542 | M104: 0.008463172925 | N104: 4.852933698e-06
A105: =IF('DF raw data'!I105="","",'DF raw data'!I105) -> -281 | B105: =IF('DF raw data'!J105="","",'DF raw data'!J105) -> -2.28817e-05 | C105: =IF('DF raw data'!K105="","",'DF raw data'!K105) -> 0.000207478 | D105: =IF('DF raw data'!L105="","",'DF raw data'!L105) -> -7.50527e-06 | F105: 1.024496021e-05 | G105: 4.818422474e-05 | H105: 1.254122779e-05 | J105: 9.129399036e-05 | K105: 0.000659931301 | L105: 0.0008665451666 | M105: 0.008896445508 | N105: 5.232551257e-06
A106: =IF('DF raw data'!I106="","",'DF raw data'!I106) -> -280.5 | B106: =IF('DF raw data'!J106="","",'DF raw data'!J106) -> -3.92777e-05 | C106: =IF('DF raw data'!K106="","",'DF raw data'!K106) -> 0.000209384 | D106: =IF('DF raw data'!L106="","",'DF raw data'!L106) -> -1.44806e-05 | F106: -6.228100993e-06 | G106: 5.009918294e-05 | H106: 5.533113736e-06 | J106: 8.817993986e-05 | K106: 0.0007040212709 | L106: 0.000891594758 | M106: 0.009342242887 | N106: 5.633909715e-06
A107: =IF('DF raw data'!I107="","",'DF raw data'!I107) -> -280 | B107: =IF('DF raw data'!J107="","",'DF raw data'!J107) -> -3.62099e-05 | C107: =IF('DF raw data'!K107="","",'DF raw data'!K107) -> 0.000212436 | D107: =IF('DF raw data'!L107="","",'DF raw data'!L107) -> -7.12222e-06 | F107: -3.145882333e-06 | G107: 5.316552734e-05 | H107: 1.292607812e-05 | J107: 8.66069987e-05 | K107: 0.0007473247702 | L107: 0.0009181775217 | M107: 0.009801331648 | N107: 6.059185081e-06
A108: =IF('DF raw data'!I108="","",'DF raw data'!I108) -> -279.5 | B108: =IF('DF raw data'!J108="","",'DF raw data'!J108) -> -4.36383e-05 | C108: =IF('DF raw data'!K108="","",'DF raw data'!K108) -> 0.000219855 | D108: =IF('DF raw data'!L108="","",'DF raw data'!L108) -> -8.69047e-06 | F108: -1.060919581e-05 | G108: 6.061939664e-05 | H108: 1.135045735e-05 | J108: 8.130240079e-05 | K108: 0.0007879759706 | L108: 0.00094848722 | M108: 0.01027557526 | N108: 6.512304125e-06
A109: =IF('DF raw data'!I109="","",'DF raw data'!I109) -> -279 | B109: =IF('DF raw data'!J109="","",'DF raw data'!J109) -> -2.21121e-05 | C109: =IF('DF raw data'!K109="","",'DF raw data'!K109) -> 0.000206915 | D109: =IF('DF raw data'!L109="","",'DF raw data'!L109) -> -8.7275e-06 | F109: 1.101817733e-05 | G109: 4.761857864e-05 | H109: 1.131325331e-05 | J109: 8.681148945e-05 | K109: 0.0008313817154 | L109: 0.0009722965093 | M109: 0.01076172351 | N109: 6.988752493e-06
A110: =IF('DF raw data'!I110="","",'DF raw data'!I110) -> -278.5 | B110: =IF('DF raw data'!J110="","",'DF raw data'!J110) -> -3.30633e-05 | C110: =IF('DF raw data'!K110="","",'DF raw data'!K110) -> 0.000202767 | D110: =IF('DF raw data'!L110="","",'DF raw data'!L110) -> -1.38606e-05 | F110: 1.550668683e-08 | G110: 4.345108304e-05 | H110: 6.156027736e-06 | J110: 8.68192428e-05 | K110: 0.0008747913368 | L110: 0.0009940220509 | M110: 0.01125873454 | N110: 7.486561202e-06
A111: =IF('DF raw data'!I111="","",'DF raw data'!I111) -> -278 | B111: =IF('DF raw data'!J111="","",'DF raw data'!J111) -> -2.90259e-05 | C111: =IF('DF raw data'!K111="","",'DF raw data'!K111) -> 0.000196137 | D111: =IF('DF raw data'!L111="","",'DF raw data'!L111) -> -1.86967e-05 | F111: 4.071882467e-06 | G111: 3.678992204e-05 | H111: 1.297198066e-06 | J111: 8.885518403e-05 | K111: 0.0009192189288 | L111: 0.001012417012 | M111: 0.01176494304 | N111: 8.003002927e-06
A112: =IF('DF raw data'!I112="","",'DF raw data'!I112) -> -277.5 | B112: =IF('DF raw data'!J112="","",'DF raw data'!J112) -> -2.4223e-05 | C112: =IF('DF raw data'!K112="","",'DF raw data'!K112) -> 0.000204651 | D112: =IF('DF raw data'!L112="","",'DF raw data'!L112) -> -1.12533e-05 | F112: 8.897356097e-06 | G112: 4.534393784e-05 | H112: 8.775582046e-06 | J112: 9.330386208e-05 | K112: 0.0009658708598 | L112: 0.001035088981 | M112: 0.01228248753 | N112: 8.543060332e-06
A113: =IF('DF raw data'!I113="","",'DF raw data'!I113) -> -277 | B113: =IF('DF raw data'!J113="","",'DF raw data'!J113) -> -3.30678e-05 | C113: =IF('DF raw data'!K113="","",'DF raw data'!K113) -> 0.000205733 | D113: =IF('DF raw data'!L113="","",'DF raw data'!L113) -> -1.11622e-05 | F113: 1.098553683e-08 | G113: 4.643102324e-05 | H113: 8.867110216e-06 | J113: 9.330935485e-05 | K113: 0.001012525537 | L113: 0.001058304492 | M113: 0.01281163978 | N113: 9.107417849e-06
A114: =IF('DF raw data'!I114="","",'DF raw data'!I114) -> -276.5 | B114: =IF('DF raw data'!J114="","",'DF raw data'!J114) -> -2.74894e-05 | C114: =IF('DF raw data'!K114="","",'DF raw data'!K114) -> 0.000209808 | D114: =IF('DF raw data'!L114="","",'DF raw data'!L114) -> -1.2876e-05 | F114: 5.615604017e-06 | G114: 5.052517574e-05 | H114: 7.145255356e-06 | J114: 9.611715685e-05 | K114: 0.001060584116 | L114: 0.00108356708 | M114: 0.01335342332 | N114: 9.699095911e-06
A115: =IF('DF raw data'!I115="","",'DF raw data'!I115) -> -276 | B115: =IF('DF raw data'!J115="","",'DF raw data'!J115) -> -3.89024e-05 | C115: =IF('DF raw data'!K115="","",'DF raw data'!K115) -> 0.000207979 | D115: =IF('DF raw data'!L115="","",'DF raw data'!L115) -> -5.51758e-06 | F115: -5.851037083e-06 | G115: 4.868757944e-05 | H115: 1.453825993e-05 | J115: 9.319163831e-05 | K115: 0.001107179935 | L115: 0.00110791087 | M115: 0.01390737876 | N115: 1.03171715e-05
A116: =IF('DF raw data'!I116="","",'DF raw data'!I116) -> -275.5 | B116: =IF('DF raw data'!J116="","",'DF raw data'!J116) -> -2.2951e-05 | C116: =IF('DF raw data'!K116="","",'DF raw data'!K116) -> 0.000204248 | D116: =IF('DF raw data'!L116="","",'DF raw data'!L116) -> 3.39089e-06 | F116: 1.01753345e-05 | G116: 4.493904374e-05 | H116: 2.348859974e-05 | J116: 9.827930556e-05 | K116: 0.001156319588 | L116: 0.001130380392 | M116: 0.01447256895 | N116: 1.096088083e-05
A117: =IF('DF raw data'!I117="","",'DF raw data'!I117) -> -275 | B117: =IF('DF raw data'!J117="","",'DF raw data'!J117) -> -3.81932e-05 | C117: =IF('DF raw data'!K117="","",'DF raw data'!K117) -> 0.000196654 | D117: =IF('DF raw data'!L117="","",'DF raw data'!L117) -> -1.26923e-05 | F117: -5.138503843e-06 | G117: 3.730935194e-05 | H117: 7.329818746e-06 | J117: 9.571005364e-05 | K117: 0.001204174614 | L117: 0.001149035068 | M117: 0.01504708649 | N117: 1.162560183e-05
A118: =IF('DF raw data'!I118="","",'DF raw data'!I118) -> -274.5 | B118: =IF('DF raw data'!J118="","",'DF raw data'!J118) -> -3.35174e-05 | C118: =IF('DF raw data'!K118="","",'DF raw data'!K118) -> 0.000201921 | D118: =IF('DF raw data'!L118="","",'DF raw data'!L118) -> -4.32841e-06 | F118: -4.407275832e-07 | G118: 4.260110684e-05 | H118: 1.573301903e-05 | J118: 9.548968985e-05 | K118: 0.001251919459 | L118: 0.001170335621 | M118: 0.0156322543 | N118: 1.23150037e-05
A119: =IF('DF raw data'!I119="","",'DF raw data'!I119) -> -274 | B119: =IF('DF raw data'!J119="","",'DF raw data'!J119) -> -4.28726e-05 | C119: =IF('DF raw data'!K119="","",'DF raw data'!K119) -> 0.000199956 | D119: =IF('DF raw data'!L119="","",'DF raw data'!L119) -> -1.00793e-05 | F119: -9.839897023e-06 | G119: 4.062687134e-05 | H119: 9.955099846e-06 | J119: 9.056974134e-05 | K119: 0.00129720433 | L119: 0.001190649057 | M119: 0.01622757882 | N119: 1.302792773e-05
A120: =IF('DF raw data'!I120="","",'DF raw data'!I120) -> -273.5 | B120: =IF('DF raw data'!J120="","",'DF raw data'!J120) -> -1.45448e-05 | C120: =IF('DF raw data'!K120="","",'DF raw data'!K120) -> 0.000205056 | D120: =IF('DF raw data'!L120="","",'DF raw data'!L120) -> -1.64264e-05 | F120: 1.862104364e-05 | G120: 4.575084134e-05 | H120: 3.578168476e-06 | J120: 9.988026315e-05 | K120: 0.001347144462 | L120: 0.001213524478 | M120: 0.01683434106 | N120: 1.376923659e-05
A121: =IF('DF raw data'!I121="","",'DF raw data'!I121) -> -273 | B121: =IF('DF raw data'!J121="","",'DF raw data'!J121) -> -3.67936e-05 | C121: =IF('DF raw data'!K121="","",'DF raw data'!K121) -> 0.000198286 | D121: =IF('DF raw data'!L121="","",'DF raw data'!L121) -> 2.97322e-06 | F121: -3.732325723e-06 | G121: 3.894902234e-05 | H121: 2.306896669e-05 | J121: 9.801410029e-05 | K121: 0.001396151512 | L121: 0.001232998989 | M121: 0.01745084056 | N121: 1.453418323e-05
A122: =IF('DF raw data'!I122="","",'DF raw data'!I122) -> -272.5 | B122: =IF('DF raw data'!J122="","",'DF raw data'!J122) -> -2.57091e-05 | C122: =IF('DF raw data'!K122="","",'DF raw data'!K122) -> 0.000205574 | D122: =IF('DF raw data'!L122="","",'DF raw data'!L122) -> 8.54842e-06 | F122: 7.404271427e-06 | G122: 4.627127594e-05 | H122: 2.867037013e-05 | J122: 0.000101716236 | K122: 0.00144700963 | L122: 0.001256134627 | M122: 0.01807890787 | N122: 1.532829342e-05
A123: =IF('DF raw data'!I123="","",'DF raw data'!I123) -> -272 | B123: =IF('DF raw data'!J123="","",'DF raw data'!J123) -> -3.53131e-05 | C123: =IF('DF raw data'!K123="","",'DF raw data'!K123) -> 0.000190125 | D123: =IF('DF raw data'!L123="","",'DF raw data'!L123) -> -7.64911e-06 | F123: -2.244867373e-06 | G123: 3.074966564e-05 | H123: 1.239671174e-05 | J123: 0.0001005938023 | K123: 0.001497306531 | L123: 0.00127150946 | M123: 0.0187146626 | N123: 1.614172113e-05
A124: =IF('DF raw data'!I124="","",'DF raw data'!I124) -> -271.5 | B124: =IF('DF raw data'!J124="","",'DF raw data'!J124) -> -2.84484e-05 | C124: =IF('DF raw data'!K124="","",'DF raw data'!K124) -> 0.000196716 | D124: =IF('DF raw data'!L124="","",'DF raw data'!L124) -> -1.60536e-05 | F124: 4.652096717e-06 | G124: 3.737164334e-05 | H124: 3.952720636e-06 | J124: 0.0001029198507 | K124: 0.001548766456 | L124: 0.001290195281 | M124: 0.01935976024 | N124: 1.697931931e-05
A125: =IF('DF raw data'!I125="","",'DF raw data'!I125) -> -271 | B125: =IF('DF raw data'!J125="","",'DF raw data'!J125) -> -3.83295e-05 | C125: =IF('DF raw data'!K125="","",'DF raw data'!K125) -> 0.000197364 | D125: =IF('DF raw data'!L125="","",'DF raw data'!L125) -> 1.87417e-07 | F125: -5.275444453e-06 | G125: 3.802268894e-05 | H125: 2.027007042e-05 | J125: 0.0001002821285 | K125: 0.00159890752 | L125: 0.001309206626 | M125: 0.02001436355 | N125: 1.784135856e-05
A126: =IF('DF raw data'!I126="","",'DF raw data'!I126) -> -270.5 | B126: =IF('DF raw data'!J126="","",'DF raw data'!J126) -> -2.12068e-05 | C126: =IF('DF raw data'!K126="","",'DF raw data'!K126) -> 0.000199267 | D126: =IF('DF raw data'!L126="","",'DF raw data'!L126) -> -1.86224e-05 | F126: 1.192773224e-05 | G126: 3.993463304e-05 | H126: 1.371847276e-06 | J126: 0.0001062459946 | K126: 0.001652030518 | L126: 0.001329173942 | M126: 0.02067895053 | N126: 1.873035435e-05
A127: =IF('DF raw data'!I127="","",'DF raw data'!I127) -> -270 | B127: =IF('DF raw data'!J127="","",'DF raw data'!J127) -> -3.7235e-05 | C127: =IF('DF raw data'!K127="","",'DF raw data'!K127) -> 0.000195572 | D127: =IF('DF raw data'!L127="","",'DF raw data'!L127) -> -7.4613e-06 | F127: -4.175800303e-06 | G127: 3.622226654e-05 | H127: 1.258540445e-05 | J127: 0.0001041580944 | K127: 0.001704109565 | L127: 0.001347285075 | M127: 0.02135259306 | N127: 1.964336734e-05
A128: =IF('DF raw data'!I128="","",'DF raw data'!I128) -> -269.5 | B128: =IF('DF raw data'!J128="","",'DF raw data'!J128) -> -3.21056e-05 | C128: =IF('DF raw data'!K128="","",'DF raw data'!K128) -> 0.000202401 | D128: =IF('DF raw data'!L128="","",'DF raw data'!L128) -> -8.40561e-06 | F128: 9.777078768e-07 | G128: 4.308336284e-05 | H128: 1.163665619e-05 | J128: 0.0001046469484 | K128: 0.001756433039 | L128: 0.001368826757 | M128: 0.02203700644 | N128: 2.058568618e-05
A129: =IF('DF raw data'!I129="","",'DF raw data'!I129) -> -269 | B129: =IF('DF raw data'!J129="","",'DF raw data'!J129) -> -4.19061e-05 | C129: =IF('DF raw data'!K129="","",'DF raw data'!K129) -> 0.000208195 | D129: =IF('DF raw data'!L129="","",'DF raw data'!L129) -> -1.69129e-05 | F129: -8.868854473e-06 | G129: 4.890459464e-05 | H129: 3.089381926e-06 | J129: 0.0001002125211 | K129: 0.0018065393 | L129: 0.001393279054 | M129: 0.02273364597 | N129: 2.156132071e-05
A130: =IF('DF raw data'!I130="","",'DF raw data'!I130) -> -268.5 | B130: =IF('DF raw data'!J130="","",'DF raw data'!J130) -> -2.12097e-05 | C130: =IF('DF raw data'!K130="","",'DF raw data'!K130) -> 0.000210851 | D130: =IF('DF raw data'!L130="","",'DF raw data'!L130) -> -1.4588e-05 | F130: 1.192481861e-05 | G130: 5.157307784e-05 | H130: 5.425208956e-06 | J130: 0.0001061749304 | K130: 0.001859626765 | L130: 0.001419065593 | M130: 0.02344317877 | N130: 2.257383085e-05
A131: =IF('DF raw data'!I131="","",'DF raw data'!I131) -> -268 | B131: =IF('DF raw data'!J131="","",'DF raw data'!J131) -> -3.59559e-05 | C131: =IF('DF raw data'!K131="","",'DF raw data'!K131) -> 0.000196645 | D131: =IF('DF raw data'!L131="","",'DF raw data'!L131) -> -3.1708e-06 | F131: =(1-$G$1*($B$54-$G$2))*(B131-F$5) -> -2.890688533e-06 | G131: =(1-$G$1*($B$54-$G$2))*(C131-G$5) -> 3.730030964e-05 | H131: =(1-$G$1*($B$54-$G$2))*(D131-H$5) -> 1.68960698e-05 | J131: 0.0001047295862 | K131: 0.001911991558 | L131: 0.001437715748 | M131: 0.02416203664 | N131: 2.361282828e-05
A132: =IF('DF raw data'!I132="","",'DF raw data'!I132) -> -267.5 | B132: =IF('DF raw data'!J132="","",'DF raw data'!J132) -> -1.80727e-05 | C132: =IF('DF raw data'!K132="","",'DF raw data'!K132) -> 0.000202969 | D132: =IF('DF raw data'!L132="","",'DF raw data'!L132) -> -1.07709e-05 | F132: 1.507656251e-05 | G132: 4.365403244e-05 | H132: 9.260249326e-06 | J132: =F132*$G$3+J131 -> 0.0001122678674 | K132: =J132*$G$3+K131 -> 0.001968125492 | L132: =G132*$G$3+L131 -> 0.001459542764 | M132: =L132*$G$3+M131 -> 0.02489180802 | N132: =(J132^2+L132^2)*$G$3+N131 -> 2.468426286e-05
A133: =IF('DF raw data'!I133="","",'DF raw data'!I133) -> -267 | B133: =IF('DF raw data'!J133="","",'DF raw data'!J133) -> -3.8963e-05 | C133: =IF('DF raw data'!K133="","",'DF raw data'!K133) -> 0.000200354 | D133: =IF('DF raw data'!L133="","",'DF raw data'!L133) -> -1.00781e-05 | F133: -5.911921903e-06 | G133: 4.102674194e-05 | H133: 9.956305486e-06 | J133: 0.0001093119065 | K133: 0.002022781445 | L133: 0.001480056135 | M133: 0.02563183609 | N133: 2.578552048e-05
A134: =IF('DF raw data'!I134="","",'DF raw data'!I134) -> -266.5 | B134: =IF('DF raw data'!J134="","",'DF raw data'!J134) -> -1.353e-05 | C134: =IF('DF raw data'!K134="","",'DF raw data'!K134) -> 0.000200119 | D134: =IF('DF raw data'!L134="","",'DF raw data'!L134) -> -1.02765e-06 | F134: 1.96406132e-05 | G134: 4.079063744e-05 | H134: 1.90492926e-05 | J134: 0.0001191322131 | K134: 0.002082347551 | L134: 0.001500451454 | M134: 0.02638206182 | N134: 2.691829401e-05
A135: =IF('DF raw data'!I135="","",'DF raw data'!I135) -> -266 | B135: =IF('DF raw data'!J135="","",'DF raw data'!J135) -> -3.32021e-05 | C135: =IF('DF raw data'!K135="","",'DF raw data'!K135) -> 0.000200445 | D135: =IF('DF raw data'!L135="","",'DF raw data'!L135) -> -6.94273e-07 | F135: -1.239456732e-07 | G135: 4.111816964e-05 | H135: 1.938423647e-05 | J135: 0.0001190702402 | K135: 0.002141882672 | L135: 0.001521010539 | M135: 0.02714256709 | N135: 2.80821194e-05
A136: =IF('DF raw data'!I136="","",'DF raw data'!I136) -> -265.5 | B136: =IF('DF raw data'!J136="","",'DF raw data'!J136) -> -3.47926e-05 | C136: =IF('DF raw data'!K136="","",'DF raw data'!K136) -> 0.000201571 | D136: =IF('DF raw data'!L136="","",'DF raw data'!L136) -> -1.54968e-05 | F136: -1.721921023e-06 | G136: 4.224946184e-05 | H136: 4.512137596e-06 | J136: 0.0001182092797 | K136: 0.002200987311 | L136: 0.00154213527 | M136: 0.02791363472 | N136: 2.927819671e-05
A137: =IF('DF raw data'!I137="","",'DF raw data'!I137) -> -265 | B137: =IF('DF raw data'!J137="","",'DF raw data'!J137) -> -4.23007e-05 | C137: =IF('DF raw data'!K137="","",'DF raw data'!K137) -> 0.000210885 | D137: =IF('DF raw data'!L137="","",'DF raw data'!L137) -> -4.88836e-07 | F137: -9.265309093e-06 | G137: 5.160723764e-05 | H137: 1.959063903e-05 | J137: 0.0001135766252 | K137: 0.002257775624 | L137: 0.001567938888 | M137: 0.02869760416 | N137: 3.051386271e-05
A138: =IF('DF raw data'!I138="","",'DF raw data'!I138) -> -264.5 | B138: =IF('DF raw data'!J138="","",'DF raw data'!J138) -> -1.6468e-05 | C138: =IF('DF raw data'!K138="","",'DF raw data'!K138) -> 0.000210399 | D138: =IF('DF raw data'!L138="","",'DF raw data'!L138) -> -1.52809e-05 | F138: 1.66888046e-05 | G138: 5.111895344e-05 | H138: 4.729052326e-06 | J138: 0.0001219210275 | K138: 0.002318736138 | L138: 0.001593498365 | M138: 0.02949435335 | N138: 3.17909136e-05
A139: =IF('DF raw data'!I139="","",'DF raw data'!I139) -> -264 | B139: =IF('DF raw data'!J139="","",'DF raw data'!J139) -> -3.57005e-05 | C139: =IF('DF raw data'!K139="","",'DF raw data'!K139) -> 0.000202113 | D139: =IF('DF raw data'!L139="","",'DF raw data'!L139) -> -1.16585e-06 | F139: -2.634088153e-06 | G139: 4.279400924e-05 | H139: 1.891044306e-05 | J139: 0.0001206039834 | K139: 0.002379038129 | L139: 0.00161489537 | M139: 0.03030180103 | N139: 3.310212979e-05
A140: =IF('DF raw data'!I140="","",'DF raw data'!I140) -> -263.5 | B140: =IF('DF raw data'!J140="","",'DF raw data'!J140) -> -2.3136e-05 | C140: =IF('DF raw data'!K140="","",'DF raw data'!K140) -> 0.000204963 | D140: =IF('DF raw data'!L140="","",'DF raw data'!L140) -> -8.41965e-06 | F140: 9.989464997e-06 | G140: 4.565740424e-05 | H140: 1.16225502e-05 | J140: 0.0001255987159 | K140: 0.002441837487 | L140: 0.001637724072 | M140: 0.03112066307 | N140: 3.445108738e-05
A141: =IF('DF raw data'!I141="","",'DF raw data'!I141) -> -263 | B141: =IF('DF raw data'!J141="","",'DF raw data'!J141) -> -2.46798e-05 | C141: =IF('DF raw data'!K141="","",'DF raw data'!K141) -> 0.000209177 | D141: =IF('DF raw data'!L141="","",'DF raw data'!L141) -> -9.92013e-07 | F141: 8.438409137e-06 | G141: 4.989121004e-05 | H141: 1.908509709e-05 | J141: 0.0001298179205 | K141: 0.002506746448 | L141: 0.001662669677 | M141: 0.03195199791 | N141: 3.584174895e-05
A142: =IF('DF raw data'!I142="","",'DF raw data'!I142) -> -262.5 | B142: =IF('DF raw data'!J142="","",'DF raw data'!J142) -> -1.12263e-05 | C142: =IF('DF raw data'!K142="","",'DF raw data'!K142) -> 0.000196547 | D142: =IF('DF raw data'!L142="","",'DF raw data'!L142) -> 3.40959e-06 | F142: 2.195514059e-05 | G142: 3.720184904e-05 | H142: 2.350738763e-05 | J142: 0.0001407954907 | K142: 0.002577144193 | L142: 0.001681270601 | M142: 0.03279263321 | N142: 3.726499605e-05
A143: =IF('DF raw data'!I143="","",'DF raw data'!I143) -> -262 | B143: =IF('DF raw data'!J143="","",'DF raw data'!J143) -> -3.21121e-05 | C143: =IF('DF raw data'!K143="","",'DF raw data'!K143) -> 0.000186877 | D143: =IF('DF raw data'!L143="","",'DF raw data'!L143) -> -1.26857e-06 | F143: 9.711773268e-07 | G143: 2.748640004e-05 | H143: 1.880724028e-05 | J143: 0.0001412810794 | K143: 0.002647784733 | L143: 0.001695013801 | M143: 0.03364014011 | N143: 3.871151212e-05
A144: =IF('DF raw data'!I144="","",'DF raw data'!I144) -> -261.5 | B144: =IF('DF raw data'!J144="","",'DF raw data'!J144) -> -2.67827e-05 | C144: =IF('DF raw data'!K144="","",'DF raw data'!K144) -> 0.000197965 | D144: =IF('DF raw data'!L144="","",'DF raw data'!L144) -> -1.7279e-05 | F144: 6.325625507e-06 | G144: 3.862651364e-05 | H144: 2.721561256e-06 | J144: 0.0001444438922 | K144: 0.002720006679 | L144: 0.001714327058 | M144: 0.03449730364 | N144: 4.019140277e-05
A145: =IF('DF raw data'!I145="","",'DF raw data'!I145) -> -261 | B145: =IF('DF raw data'!J145="","",'DF raw data'!J145) -> -3.96066e-05 | C145: =IF('DF raw data'!K145="","",'DF raw data'!K145) -> 0.00020728 | D145: =IF('DF raw data'!L145="","",'DF raw data'!L145) -> -4.49324e-06 | F145: -6.558546823e-06 | G145: 4.798529414e-05 | H145: 1.556741433e-05 | J145: 0.0001411646187 | K145: 0.002790588988 | L145: 0.001738319705 | M145: 0.03536646349 | N145: 4.171224419e-05
A146: =IF('DF raw data'!I146="","",'DF raw data'!I146) -> -260.5 | B146: =IF('DF raw data'!J146="","",'DF raw data'!J146) -> -1.76864e-05 | C146: =IF('DF raw data'!K146="","",'DF raw data'!K146) -> 0.000202229 | D146: =IF('DF raw data'!L146="","",'DF raw data'!L146) -> -1.41243e-05 | F146: 1.546467812e-05 | G146: 4.291055444e-05 | H146: 5.891088346e-06 | J146: 0.0001488969578 | K146: 0.002865037467 | L146: 0.001759774983 | M146: 0.03624635098 | N146: 4.327173334e-05
A147: =IF('DF raw data'!I147="","",'DF raw data'!I147) -> -260 | B147: =IF('DF raw data'!J147="","",'DF raw data'!J147) -> -4.00617e-05 | C147: =IF('DF raw data'!K147="","",'DF raw data'!K147) -> 0.000197975 | D147: =IF('DF raw data'!L147="","",'DF raw data'!L147) -> 5.78483e-06 | F147: -7.015785793e-06 | G147: 3.863656064e-05 | H147: 2.589379126e-05 | J147: 0.0001453890649 | K147: 0.002937731999 | L147: 0.001779093263 | M147: 0.03713589761 | N147: 4.486488875e-05
A148: =IF('DF raw data'!I148="","",'DF raw data'!I148) -> -259.5 | B148: =IF('DF raw data'!J148="","",'DF raw data'!J148) -> -3.83191e-05 | C148: =IF('DF raw data'!K148="","",'DF raw data'!K148) -> 0.000200729 | D148: =IF('DF raw data'!L148="","",'DF raw data'!L148) -> -1.26539e-05 | F148: -5.264995573e-06 | G148: 4.140350444e-05 | H148: 7.368399226e-06 | J148: 0.0001427565671 | K148: 0.003009110283 | L148: 0.001799795015 | M148: 0.03803579512 | N148: 4.649470952e-05
A149: =IF('DF raw data'!I149="","",'DF raw data'!I149) -> -259 | B149: =IF('DF raw data'!J149="","",'DF raw data'!J149) -> -3.3138e-05 | C149: =IF('DF raw data'!K149="","",'DF raw data'!K149) -> 0.000195432 | D149: =IF('DF raw data'!L149="","",'DF raw data'!L149) -> 5.3858e-07 | F149: -5.954440317e-08 | G149: 3.608160854e-05 | H149: 2.062288388e-05 | J149: 0.0001427267949 | K149: 0.00308047368 | L149: 0.001817835819 | M149: 0.03894471303 | N149: 4.815715852e-05
A150: =IF('DF raw data'!I150="","",'DF raw data'!I150) -> -258.5 | B150: =IF('DF raw data'!J150="","",'DF raw data'!J150) -> -3.64649e-05 | C150: =IF('DF raw data'!K150="","",'DF raw data'!K150) -> 0.000204114 | D150: =IF('DF raw data'!L150="","",'DF raw data'!L150) -> -6.7631e-06 | F150: -3.402080833e-06 | G150: 4.480441394e-05 | H150: 1.328688599e-05 | J150: 0.0001410257545 | K150: 0.003150986558 | L150: 0.001840238026 | M150: 0.03986483204 | N150: 4.986034065e-05
A151: =IF('DF raw data'!I151="","",'DF raw data'!I151) -> -258 | B151: =IF('DF raw data'!J151="","",'DF raw data'!J151) -> -3.44173e-05 | C151: =IF('DF raw data'!K151="","",'DF raw data'!K151) -> 0.000204225 | D151: =IF('DF raw data'!L151="","",'DF raw data'!L151) -> -2.36852e-06 | F151: -1.344857113e-06 | G151: 4.491593564e-05 | H151: 1.770212051e-05 | J151: 0.000140353326 | K151: 0.003221163221 | L151: 0.001862695994 | M151: 0.04079618004 | N151: 5.160500836e-05
A152: =IF('DF raw data'!I152="","",'DF raw data'!I152) -> -257.5 | B152: =IF('DF raw data'!J152="","",'DF raw data'!J152) -> -3.81945e-05 | C152: =IF('DF raw data'!K152="","",'DF raw data'!K152) -> 0.000195001 | D152: =IF('DF raw data'!L152="","",'DF raw data'!L152) -> -7.45561e-06 | F152: -5.139809953e-06 | G152: 3.564858284e-05 | H152: 1.259112119e-05 | J152: 0.000137783421 | K152: 0.003290054931 | L152: 0.001880520286 | M152: 0.04173644018 | N152: 5.338267877e-05
A153: =IF('DF raw data'!I153="","",'DF raw data'!I153) -> -257 | B153: =IF('DF raw data'!J153="","",'DF raw data'!J153) -> -3.30071e-05 | C153: =IF('DF raw data'!K153="","",'DF raw data'!K153) -> 0.000192631 | D153: =IF('DF raw data'!L153="","",'DF raw data'!L153) -> -3.31635e-06 | F153: 7.197082683e-08 | G153: 3.326744384e-05 | H153: 1.674983571e-05 | J153: 0.0001378194064 | K153: 0.003358964634 | L153: 0.001897154007 | M153: 0.04268501719 | N153: 5.519177252e-05
A154: =IF('DF raw data'!I154="","",'DF raw data'!I154) -> -256.5 | B154: =IF('DF raw data'!J154="","",'DF raw data'!J154) -> -2.94114e-05 | C154: =IF('DF raw data'!K154="","",'DF raw data'!K154) -> 0.000190868 | D154: =IF('DF raw data'!L154="","",'DF raw data'!L154) -> -1.53067e-05 | F154: 3.684570617e-06 | G154: 3.149615774e-05 | H154: 4.703131066e-06 | J154: 0.0001396616917 | K154: 0.00342879548 | L154: 0.001912902086 | M154: 0.04364146823 | N154: 5.703112241e-05
A155: =IF('DF raw data'!I155="","",'DF raw data'!I155) -> -256 | B155: =IF('DF raw data'!J155="","",'DF raw data'!J155) -> -3.34543e-05 | C155: =IF('DF raw data'!K155="","",'DF raw data'!K155) -> 0.000196397 | D155: =IF('DF raw data'!L155="","",'DF raw data'!L155) -> -5.58084e-06 | F155: -3.773310132e-07 | G155: 3.705114404e-05 | H155: 1.447470261e-05 | J155: 0.0001394730262 | K155: 0.003498531993 | L155: 0.001931427658 | M155: 0.04460718206 | N155: 5.890605518e-05
A156: =IF('DF raw data'!I156="","",'DF raw data'!I156) -> -255.5 | B156: =IF('DF raw data'!J156="","",'DF raw data'!J156) -> -3.22961e-05 | C156: =IF('DF raw data'!K156="","",'DF raw data'!K156) -> 0.000190393 | D156: =IF('DF raw data'!L156="","",'DF raw data'!L156) -> -1.30592e-05 | F156: 7.863125268e-07 | G156: 3.101892524e-05 | H156: 6.961194316e-06 | J156: 0.0001398661825 | K156: 0.003568465085 | L156: 0.001946937121 | M156: 0.04558065062 | N156: 6.081111853e-05
A157: =IF('DF raw data'!I157="","",'DF raw data'!I157) -> -255 | B157: =IF('DF raw data'!J157="","",'DF raw data'!J157) -> -4.5959e-05 | C157: =IF('DF raw data'!K157="","",'DF raw data'!K157) -> 0.0001911 | D157: =IF('DF raw data'!L157="","",'DF raw data'!L157) -> 1.04115e-05 | F157: -1.29408031e-05 | G157: 3.172924814e-05 | H157: 3.054220661e-05 | J157: 0.0001333957809 | K157: 0.003635162975 | L157: 0.001962801745 | M157: 0.04656205149 | N157: 6.274631109e-05
A158: =IF('DF raw data'!I158="","",'DF raw data'!I158) -> -254.5 | B158: =IF('DF raw data'!J158="","",'DF raw data'!J158) -> -4.22919e-05 | C158: =IF('DF raw data'!K158="","",'DF raw data'!K158) -> 0.000197656 | D158: =IF('DF raw data'!L158="","",'DF raw data'!L158) -> -1.22292e-05 | F158: -9.256467733e-06 | G158: 3.831606134e-05 | H158: 7.795095316e-06 | J158: 0.000128767547 | K158: 0.003699546749 | L158: 0.001981959776 | M158: 0.04755303138 | N158: 6.471868391e-05
A159: =IF('DF raw data'!I159="","",'DF raw data'!I159) -> -254 | B159: =IF('DF raw data'!J159="","",'DF raw data'!J159) -> -4.30706e-05 | C159: =IF('DF raw data'!K159="","",'DF raw data'!K159) -> 0.000193214 | D159: =IF('DF raw data'!L159="","",'DF raw data'!L159) -> 2.49335e-06 | F159: -1.003882762e-05 | G159: 3.385318394e-05 | H159: 2.25868413e-05 | J159: 0.0001237481332 | K159: 0.003761420815 | L159: 0.001998886368 | M159: 0.04855247456 | N159: 6.672411406e-05
A160: =IF('DF raw data'!I160="","",'DF raw data'!I160) -> -253.5 | B160: =IF('DF raw data'!J160="","",'DF raw data'!J160) -> -3.49843e-05 | C160: =IF('DF raw data'!K160="","",'DF raw data'!K160) -> 0.000198907 | D160: =IF('DF raw data'!L160="","",'DF raw data'!L160) -> -1.74181e-05 | F160: -1.914522013e-06 | G160: 3.957294104e-05 | H160: 2.581807486e-06 | J160: 0.0001227908722 | K160: 0.003822816251 | L160: 0.002018672838 | M160: 0.04956181098 | N160: 6.876917288e-05
A161: =IF('DF raw data'!I161="","",'DF raw data'!I161) -> -253 | B161: =IF('DF raw data'!J161="","",'DF raw data'!J161) -> -2.75617e-05 | C161: =IF('DF raw data'!K161="","",'DF raw data'!K161) -> 0.000207671 | D161: =IF('DF raw data'!L161="","",'DF raw data'!L161) -> -2.21144e-06 | F161: 5.542964207e-06 | G161: 4.837813184e-05 | H161: 1.785993879e-05 | J161: 0.0001255623543 | K161: 0.003885597428 | L161: 0.002042861904 | M161: 0.05058324193 | N161: 7.086369821e-05
A162: =IF('DF raw data'!I162="","",'DF raw data'!I162) -> -252.5 | B162: =IF('DF raw data'!J162="","",'DF raw data'!J162) -> -3.6137e-05 | C162: =IF('DF raw data'!K162="","",'DF raw data'!K162) -> 0.00020437 | D162: =IF('DF raw data'!L162="","",'DF raw data'!L162) -> -1.81729e-05 | F162: -3.072639703e-06 | G162: 4.506161714e-05 | H162: 1.823459926e-06 | J162: 0.0001240260345 | K162: 0.003947610446 | L162: 0.002065392713 | M162: 0.05161593829 | N162: 7.300431296e-05
A163: =IF('DF raw data'!I163="","",'DF raw data'!I163) -> -252 | B163: =IF('DF raw data'!J163="","",'DF raw data'!J163) -> -3.38442e-05 | C163: =IF('DF raw data'!K163="","",'DF raw data'!K163) -> 0.000219194 | D163: =IF('DF raw data'!L163="","",'DF raw data'!L163) -> 2.98135e-06 | F163: -7.690635432e-07 | G163: 5.995528994e-05 | H163: 2.30771349e-05 | J163: 0.0001236415027 | K163: 0.004009431197 | L163: 0.002095370358 | M163: 0.05266362347 | N163: 7.520724504e-05
A164: =IF('DF raw data'!I164="","",'DF raw data'!I164) -> -251.5 | B164: =IF('DF raw data'!J164="","",'DF raw data'!J164) -> -3.81975e-05 | C164: =IF('DF raw data'!K164="","",'DF raw data'!K164) -> 0.000226244 | D164: =IF('DF raw data'!L164="","",'DF raw data'!L164) -> -2.86159e-06 | F164: -5.142824053e-06 | G164: 6.703842494e-05 | H164: 1.720673308e-05 | J164: 0.0001210700907 | K164: 0.004069966242 | L164: 0.00212888957 | M164: 0.05372806825 | N164: 7.748065943e-05
A165: =IF('DF raw data'!I165="","",'DF raw data'!I165) -> -251 | B165: =IF('DF raw data'!J165="","",'DF raw data'!J165) -> -3.44904e-05 | C165: =IF('DF raw data'!K165="","",'DF raw data'!K165) -> 0.000217149 | D165: =IF('DF raw data'!L165="","",'DF raw data'!L165) -> 1.13774e-05 | F165: -1.418300683e-06 | G165: 5.790067844e-05 | H165: 3.151264634e-05 | J165: 0.0001203609403 | K165: 0.004130146713 | L165: 0.002157839909 | M165: 0.05480698821 | N165: 7.981603934e-05
A166: =IF('DF raw data'!I166="","",'DF raw data'!I166) -> -250.5 | B166: =IF('DF raw data'!J166="","",'DF raw data'!J166) -> -2.91001e-05 | C166: =IF('DF raw data'!K166="","",'DF raw data'!K166) -> 0.00021054 | D166: =IF('DF raw data'!L166="","",'DF raw data'!L166) -> -1.06154e-06 | F166: 3.997333727e-06 | G166: 5.126061614e-05 | H166: 1.901524332e-05 | J166: 0.0001223596072 | K166: 0.004191326516 | L166: 0.002183470217 | M166: 0.05589872332 | N166: 8.220729637e-05
A167: =IF('DF raw data'!I167="","",'DF raw data'!I167) -> -250 | B167: =IF('DF raw data'!J167="","",'DF raw data'!J167) -> -3.42261e-05 | C167: =IF('DF raw data'!K167="","",'DF raw data'!K167) -> 0.000213554 | D167: =IF('DF raw data'!L167="","",'DF raw data'!L167) -> -9.86252e-07 | F167: -1.152758473e-06 | G167: 5.428878194e-05 | H167: 1.909088517e-05 | J167: 0.000121783228 | K167: 0.00425221813 | L167: 0.002210614608 | M167: 0.05700403062 | N167: 8.465812043e-05
A168: =IF('DF raw data'!I168="","",'DF raw data'!I168) -> -249.5 | B168: =IF('DF raw data'!J168="","",'DF raw data'!J168) -> -3.71713e-05 | C168: =IF('DF raw data'!K168="","",'DF raw data'!K168) -> 0.000210799 | D168: =IF('DF raw data'!L168="","",'DF raw data'!L168) -> -4.15306e-06 | F168: -4.111800913e-06 | G168: 5.152083344e-05 | H168: 1.590919317e-05 | J168: 0.0001197273275 | K168: 0.004312081794 | L168: 0.002236375025 | M168: 0.05812221813 | N168: 8.716597437e-05
A169: =IF('DF raw data'!I169="","",'DF raw data'!I169) -> -249 | B169: =IF('DF raw data'!J169="","",'DF raw data'!J169) -> -2.95432e-05 | C169: =IF('DF raw data'!K169="","",'DF raw data'!K169) -> 0.000208942 | D169: =IF('DF raw data'!L169="","",'DF raw data'!L169) -> -9.52732e-06 | F169: 3.552151157e-06 | G169: 4.965510554e-05 | H169: 1.050967415e-05 | J169: 0.0001215034031 | K169: 0.004372833495 | L169: 0.002261202578 | M169: 0.05925281942 | N169: 8.972987446e-05
A170: =IF('DF raw data'!I170="","",'DF raw data'!I170) -> -248.5 | B170: =IF('DF raw data'!J170="","",'DF raw data'!J170) -> -2.91746e-05 | C170: =IF('DF raw data'!K170="","",'DF raw data'!K170) -> 0.000202938 | D170: =IF('DF raw data'!L170="","",'DF raw data'!L170) -> 1.4705e-05 | F170: 3.922483577e-06 | G170: 4.362288674e-05 | H170: 3.485588606e-05 | J170: 0.0001234646449 | K170: 0.004434565818 | L170: 0.002283014021 | M170: 0.06039432643 | N170: 9.234357273e-05
A171: =IF('DF raw data'!I171="","",'DF raw data'!I171) -> -248 | B171: =IF('DF raw data'!J171="","",'DF raw data'!J171) -> -3.29453e-05 | C171: =IF('DF raw data'!K171="","",'DF raw data'!K171) -> 0.000204661 | D171: =IF('DF raw data'!L171="","",'DF raw data'!L171) -> 1.31656e-07 | F171: 1.340612868e-07 | G171: 4.535398484e-05 | H171: 2.021404734e-05 | J171: 0.0001235316755 | K171: 0.004496331656 | L171: 0.002305691014 | M171: 0.06154717194 | N171: 9.500930829e-05
A172: =IF('DF raw data'!I172="","",'DF raw data'!I172) -> -247.5 | B172: =IF('DF raw data'!J172="","",'DF raw data'!J172) -> -2.85254e-05 | C172: =IF('DF raw data'!K172="","",'DF raw data'!K172) -> 0.00019734 | D172: =IF('DF raw data'!L172="","",'DF raw data'!L172) -> 1.93562e-06 | F172: 4.574734817e-06 | G172: 3.799857614e-05 | H172: 2.202648997e-05 | J172: 0.0001258190429 | K172: 0.004559241177 | L172: 0.002324690302 | M172: 0.06270951709 | N172: 9.7719316e-05
A173: =IF('DF raw data'!I173="","",'DF raw data'!I173) -> -247 | B173: =IF('DF raw data'!J173="","",'DF raw data'!J173) -> -2.83944e-05 | C173: =IF('DF raw data'!K173="","",'DF raw data'!K173) -> 0.000202442 | D173: =IF('DF raw data'!L173="","",'DF raw data'!L173) -> -2.28599e-06 | F173: 4.706350517e-06 | G173: 4.312455554e-05 | H173: 1.77850384e-05 | J173: 0.0001281722182 | K173: 0.004623327286 | L173: 0.00234625258 | M173: 0.06388264338 | N173: 0.0001004799806
A174: =IF('DF raw data'!I174="","",'DF raw data'!I174) -> -246.5 | B174: =IF('DF raw data'!J174="","",'DF raw data'!J174) -> -2.61578e-05 | C174: =IF('DF raw data'!K174="","",'DF raw data'!K174) -> 0.000204552 | D174: =IF('DF raw data'!L174="","",'DF raw data'!L174) -> 6.79686e-06 | F174: 6.953462537e-06 | G174: 4.524447254e-05 | H174: 2.69105778e-05 | J174: 0.0001316489494 | K174: 0.004689151761 | L174: 0.002368874816 | M174: 0.06506708079 | N174: 0.0001032944303
A175: =IF('DF raw data'!I175="","",'DF raw data'!I175) -> -246 | B175: =IF('DF raw data'!J175="","",'DF raw data'!J175) -> -2.73037e-05 | C175: =IF('DF raw data'!K175="","",'DF raw data'!K175) -> 0.00020113 | D175: =IF('DF raw data'!L175="","",'DF raw data'!L175) -> -4.64554e-06 | F175: 5.802176807e-06 | G175: 4.180638914e-05 | H175: 1.541439852e-05 | J175: 0.0001345500378 | K175: 0.00475642678 | L175: 0.00238977801 | M175: 0.06626196979 | N175: 0.0001061590016
A176: =IF('DF raw data'!I176="","",'DF raw data'!I176) -> -245.5 | B176: =IF('DF raw data'!J176="","",'DF raw data'!J176) -> -3.51872e-05 | C176: =IF('DF raw data'!K176="","",'DF raw data'!K176) -> 0.000200838 | D176: =IF('DF raw data'!L176="","",'DF raw data'!L176) -> -1.29322e-06 | F176: -2.118375643e-06 | G176: 4.151301674e-05 | H176: 1.878247442e-05 | J176: 0.00013349085 | K176: 0.004823172205 | L176: 0.002410534519 | M176: 0.06746723705 | N176: 0.0001090732499
A177: =IF('DF raw data'!I177="","",'DF raw data'!I177) -> -245 | B177: =IF('DF raw data'!J177="","",'DF raw data'!J177) -> -3.73707e-05 | C177: =IF('DF raw data'!K177="","",'DF raw data'!K177) -> 0.000202834 | D177: =IF('DF raw data'!L177="","",'DF raw data'!L177) -> 7.1832e-06 | F177: -4.312138093e-06 | G177: 4.351839794e-05 | H177: 2.72987336e-05 | J177: 0.000131334781 | K177: 0.004888839595 | L177: 0.002432293718 | M177: 0.06868338391 | N177: 0.0001120399007
A178: =IF('DF raw data'!I178="","",'DF raw data'!I178) -> -244.5 | B178: =IF('DF raw data'!J178="","",'DF raw data'!J178) -> -2.30723e-05 | C178: =IF('DF raw data'!K178="","",'DF raw data'!K178) -> 0.000200322 | D178: =IF('DF raw data'!L178="","",'DF raw data'!L178) -> -8.9778e-06 | F178: 1.005346439e-05 | G178: 4.099459154e-05 | H178: 1.10617769e-05 | J178: 0.0001363615132 | K178: 0.004957020352 | L178: 0.002452791013 | M178: 0.06990977942 | N178: 0.0001150572898
A179: =IF('DF raw data'!I179="","",'DF raw data'!I179) -> -244 | B179: =IF('DF raw data'!J179="","",'DF raw data'!J179) -> -3.93517e-05 | C179: =IF('DF raw data'!K179="","",'DF raw data'!K179) -> 0.000196961 | D179: =IF('DF raw data'!L179="","",'DF raw data'!L179) -> -8.51424e-07 | F179: -6.302448793e-06 | G179: 3.761779484e-05 | H179: 1.922634686e-05 | J179: 0.0001332102888 | K179: 0.005023625496 | L179: 0.002471599911 | M179: 0.07114557937 | N179: 0.0001181205653
A180: =IF('DF raw data'!I180="","",'DF raw data'!I180) -> -243.5 | B180: =IF('DF raw data'!J180="","",'DF raw data'!J180) -> -3.23067e-05 | C180: =IF('DF raw data'!K180="","",'DF raw data'!K180) -> 0.000196018 | D180: =IF('DF raw data'!L180="","",'DF raw data'!L180) -> 2.54847e-06 | F180: 7.756627068e-07 | G180: 3.667036274e-05 | H180: 2.264222036e-05 | J180: 0.0001335981201 | K180: 0.005090424556 | L180: 0.002489935092 | M180: 0.07239054692 | N180: 0.0001212293779
A181: =IF('DF raw data'!I181="","",'DF raw data'!I181) -> -243 | B181: =IF('DF raw data'!J181="","",'DF raw data'!J181) -> -2.79457e-05 | C181: =IF('DF raw data'!K181="","",'DF raw data'!K181) -> 0.000197569 | D181: =IF('DF raw data'!L181="","",'DF raw data'!L181) -> -2.21031e-06 | F181: 5.157159407e-06 | G181: 3.822865244e-05 | H181: 1.78610741e-05 | J181: 0.0001361766998 | K181: 0.005158512906 | L181: 0.002509049418 | M181: 0.07364507163 | N181: 0.0001243863145
A182: =IF('DF raw data'!I182="","",'DF raw data'!I182) -> -242.5 | B182: =IF('DF raw data'!J182="","",'DF raw data'!J182) -> -3.33975e-05 | C182: =IF('DF raw data'!K182="","",'DF raw data'!K182) -> 0.000193271 | D182: =IF('DF raw data'!L182="","",'DF raw data'!L182) -> 5.0853e-06 | F182: -3.202640532e-07 | G182: 3.391045184e-05 | H182: 2.519097347e-05 | J182: 0.0001360165678 | K182: 0.00522652119 | L182: 0.002526004644 | M182: 0.07490807395 | N182: 0.0001275859144
A183: =IF('DF raw data'!I183="","",'DF raw data'!I183) -> -242 | B183: =IF('DF raw data'!J183="","",'DF raw data'!J183) -> -3.81999e-05 | C183: =IF('DF raw data'!K183="","",'DF raw data'!K183) -> 0.000193253 | D183: =IF('DF raw data'!L183="","",'DF raw data'!L183) -> 2.02036e-06 | F183: -5.145235333e-06 | G183: 3.389236724e-05 | H183: 2.211162825e-05 | J183: 0.0001334439501 | K183: 0.005293243165 | L183: 0.002542950828 | M183: 0.07617954937 | N183: 0.0001308281175
A184: =IF('DF raw data'!I184="","",'DF raw data'!I184) -> -241.5 | B184: =IF('DF raw data'!J184="","",'DF raw data'!J184) -> -4.36466e-05 | C184: =IF('DF raw data'!K184="","",'DF raw data'!K184) -> 0.000187646 | D184: =IF('DF raw data'!L184="","",'DF raw data'!L184) -> 5.14786e-07 | F184: -1.061753482e-05 | G184: 2.825901434e-05 | H184: 2.059897805e-05 | J184: 0.0001281351827 | K184: 0.005357310757 | L184: 0.002557080335 | M184: 0.07745808953 | N184: 0.0001341056568
A185: =IF('DF raw data'!I185="","",'DF raw data'!I185) -> -241 | B185: =IF('DF raw data'!J185="","",'DF raw data'!J185) -> -5.13989e-05 | C185: =IF('DF raw data'!K185="","",'DF raw data'!K185) -> 0.000194359 | D185: =IF('DF raw data'!L185="","",'DF raw data'!L185) -> 2.87346e-06 | F185: -1.840627063e-05 | G185: 3.500356544e-05 | H185: 2.296873782e-05 | J185: 0.0001189320474 | K185: 0.00541677678 | L185: 0.002574582118 | M185: 0.07874538059 | N185: 0.0001374269657
A186: =IF('DF raw data'!I186="","",'DF raw data'!I186) -> -240.5 | B186: =IF('DF raw data'!J186="","",'DF raw data'!J186) -> -4.61437e-05 | C186: =IF('DF raw data'!K186="","",'DF raw data'!K186) -> 0.000194439 | D186: =IF('DF raw data'!L186="","",'DF raw data'!L186) -> -3.03652e-06 | F186: -1.312637119e-05 | G186: 3.508394144e-05 | H186: 1.703098091e-05 | J186: 0.0001123688618 | K186: 0.005472961211 | L186: 0.002592124089 | M186: 0.08004144264 | N186: 0.0001407928328
A187: =IF('DF raw data'!I187="","",'DF raw data'!I187) -> -240 | B187: =IF('DF raw data'!J187="","",'DF raw data'!J187) -> -4.30069e-05 | C187: =IF('DF raw data'!K187="","",'DF raw data'!K187) -> 0.000206424 | D187: =IF('DF raw data'!L187="","",'DF raw data'!L187) -> 5.35822e-06 | F187: -9.974828233e-06 | G187: 4.712527094e-05 | H187: 2.546517619e-05 | J187: 0.0001073814477 | K187: 0.005526651935 | L187: 0.002615686724 | M187: 0.081349286 | N187: 0.0001442195067
A188: =IF('DF raw data'!I188="","",'DF raw data'!I188) -> -239.5 | B188: =IF('DF raw data'!J188="","",'DF raw data'!J188) -> -4.19174e-05 | C188: =IF('DF raw data'!K188="","",'DF raw data'!K188) -> 0.000206678 | D188: =IF('DF raw data'!L188="","",'DF raw data'!L188) -> 1.08774e-06 | F188: -8.880207583e-06 | G188: 4.738046474e-05 | H188: 2.117462493e-05 | J188: 0.0001029413439 | K188: 0.005578122607 | L188: 0.002639376956 | M188: 0.08266897448 | N188: 0.0001477079605
A189: =IF('DF raw data'!I189="","",'DF raw data'!I189) -> -239 | B189: =IF('DF raw data'!J189="","",'DF raw data'!J189) -> -3.84553e-05 | C189: =IF('DF raw data'!K189="","",'DF raw data'!K189) -> 0.000201168 | D189: =IF('DF raw data'!L189="","",'DF raw data'!L189) -> 1.52644e-06 | F189: -5.401835713e-06 | G189: 4.184456774e-05 | H189: 2.161538682e-05 | J189: 0.0001002404261 | K189: 0.00562824282 | L189: 0.00266029924 | M189: 0.0839991241 | N189: 0.0001512515806
A190: =IF('DF raw data'!I190="","",'DF raw data'!I190) -> -238.5 | B190: =IF('DF raw data'!J190="","",'DF raw data'!J190) -> -4.48636e-05 | C190: =IF('DF raw data'!K190="","",'DF raw data'!K190) -> 0.000198177 | D190: =IF('DF raw data'!L190="","",'DF raw data'!L190) -> -1.35696e-06 | F190: -1.184025472e-05 | G190: 3.883951004e-05 | H190: 1.871843484e-05 | J190: 9.432029869e-05 | K190: 0.005675402969 | L190: 0.002679718995 | M190: 0.0853389836 | N190: 0.0001548464757
A191: =IF('DF raw data'!I191="","",'DF raw data'!I191) -> -238 | B191: =IF('DF raw data'!J191="","",'DF raw data'!J191) -> -3.18612e-05 | C191: =IF('DF raw data'!K191="","",'DF raw data'!K191) -> 0.000204018 | D191: =IF('DF raw data'!L191="","",'DF raw data'!L191) -> 1.00001e-05 | F191: 1.223256557e-06 | G191: 4.470796274e-05 | H191: 3.012887303e-05 | J191: 9.493192697e-05 | K191: 0.005722868933 | L191: 0.002702072977 | M191: 0.08669002008 | N191: 0.0001585015809
A192: =IF('DF raw data'!I192="","",'DF raw data'!I192) -> -237.5 | B192: =IF('DF raw data'!J192="","",'DF raw data'!J192) -> -3.96069e-05 | C192: =IF('DF raw data'!K192="","",'DF raw data'!K192) -> 0.000200836 | D192: =IF('DF raw data'!L192="","",'DF raw data'!L192) -> -5.41832e-06 | F192: -6.558848233e-06 | G192: 4.151100734e-05 | H192: 1.463798645e-05 | J192: 9.165250285e-05 | K192: 0.005768695184 | L192: 0.00272282848 | M192: 0.08805143432 | N192: 0.0001622126785
A193: =IF('DF raw data'!I193="","",'DF raw data'!I193) -> -237 | B193: =IF('DF raw data'!J193="","",'DF raw data'!J193) -> -4.15327e-05 | C193: =IF('DF raw data'!K193="","",'DF raw data'!K193) -> 0.000202833 | D193: =IF('DF raw data'!L193="","",'DF raw data'!L193) -> 5.56215e-06 | F193: -8.493699493e-06 | G193: 4.351739324e-05 | H193: 2.567006466e-05 | J193: 8.74056531e-05 | K193: 0.005812398011 | L193: 0.002744587177 | M193: 0.08942372791 | N193: 0.0001659828777
A194: =IF('DF raw data'!I194="","",'DF raw data'!I194) -> -236.5 | B194: =IF('DF raw data'!J194="","",'DF raw data'!J194) -> -4.2878e-05 | C194: =IF('DF raw data'!K194="","",'DF raw data'!K194) -> 0.000195584 | D194: =IF('DF raw data'!L194="","",'DF raw data'!L194) -> -6.04439e-07 | F194: -9.845322403e-06 | G194: 3.623432294e-05 | H194: 1.947449269e-05 | J194: 8.24829919e-05 | K194: 0.005853639507 | L194: 0.002762704338 | M194: 0.09080508008 | N194: 0.0001698025471
A195: =IF('DF raw data'!I195="","",'DF raw data'!I195) -> -236 | B195: =IF('DF raw data'!J195="","",'DF raw data'!J195) -> -4.51934e-05 | C195: =IF('DF raw data'!K195="","",'DF raw data'!K195) -> 0.000203157 | D195: =IF('DF raw data'!L195="","",'DF raw data'!L195) -> 1.91085e-05 | F195: =(1-$G$1*($B$54-$G$2))*(B195-F$5) -> -1.217160478e-05 | G195: =(1-$G$1*($B$54-$G$2))*(C195-G$5) -> 4.384291604e-05 | H195: =(1-$G$1*($B$54-$G$2))*(D195-H$5) -> 3.928008251e-05 | J195: 7.639718951e-05 | K195: 0.005891838101 | L195: 0.002784625796 | M195: 0.09219739298 | N195: 0.0001736825358
A196: =IF('DF raw data'!I196="","",'DF raw data'!I196) -> -235.5 | B196: =IF('DF raw data'!J196="","",'DF raw data'!J196) -> -2.67992e-05 | C196: =IF('DF raw data'!K196="","",'DF raw data'!K196) -> 0.000202 | D196: =IF('DF raw data'!L196="","",'DF raw data'!L196) -> 5.63153e-06 | F196: 6.309047957e-06 | G196: 4.268047814e-05 | H196: 2.573977075e-05 | J196: =F196*$G$3+J195 -> 7.955171349e-05 | K196: =J196*$G$3+K195 -> 0.005931613958 | L196: =G196*$G$3+L195 -> 0.002805966036 | M196: =L196*$G$3+M195 -> 0.093600376 | N196: =(J196^2+L196^2)*$G$3+N195 -> 0.0001776224227
A197: =IF('DF raw data'!I197="","",'DF raw data'!I197) -> -235 | B197: =IF('DF raw data'!J197="","",'DF raw data'!J197) -> -3.40974e-05 | C197: =IF('DF raw data'!K197="","",'DF raw data'!K197) -> 0.00020485 | D197: =IF('DF raw data'!L197="","",'DF raw data'!L197) -> 6.67227e-07 | F197: -1.023453583e-06 | G197: 4.554387314e-05 | H197: 2.075213552e-05 | J197: 7.90399867e-05 | K197: 0.005971133952 | L197: 0.002828737972 | M197: 0.09501474498 | N197: 0.0001816264256
A198: =IF('DF raw data'!I198="","",'DF raw data'!I198) -> -234.5 | B198: =IF('DF raw data'!J198="","",'DF raw data'!J198) -> -3.43636e-05 | C198: =IF('DF raw data'!K198="","",'DF raw data'!K198) -> 0.000208639 | D198: =IF('DF raw data'!L198="","",'DF raw data'!L198) -> 1.09232e-05 | F198: -1.290904723e-06 | G198: 4.935068144e-05 | H198: 3.10563116e-05 | J198: 7.839453434e-05 | K198: 0.006010331219 | L198: 0.002853413313 | M198: 0.09644145164 | N198: 0.0001857004822
A199: =IF('DF raw data'!I199="","",'DF raw data'!I199) -> -234 | B199: =IF('DF raw data'!J199="","",'DF raw data'!J199) -> -3.00639e-05 | C199: =IF('DF raw data'!K199="","",'DF raw data'!K199) -> 0.000208738 | D199: =IF('DF raw data'!L199="","",'DF raw data'!L199) -> 5.14781e-06 | F199: 3.029003867e-06 | G199: 4.945014674e-05 | H199: 2.525377726e-05 | J199: 7.990903627e-05 | K199: 0.006050285737 | L199: 0.002878138386 | M199: 0.09788052083 | N199: 0.0001898455152
A200: =IF('DF raw data'!I200="","",'DF raw data'!I200) -> -233.5 | B200: =IF('DF raw data'!J200="","",'DF raw data'!J200) -> -4.17914e-05 | C200: =IF('DF raw data'!K200="","",'DF raw data'!K200) -> 0.000206562 | D200: =IF('DF raw data'!L200="","",'DF raw data'!L200) -> 3.15486e-06 | F200: -8.753615383e-06 | G200: 4.726391954e-05 | H200: 2.32514604e-05 | J200: 7.553222858e-05 | K200: 0.006088051851 | L200: 0.002901770346 | M200: 0.09933140601 | N200: 0.0001940585034
... 1079 more rows

Sheet 30 mm
A1: =IF('DF raw data'!M1="","",'DF raw data'!M1) -> Number of header lines | B1: =IF('DF raw data'!N1="","",'DF raw data'!N1) -> 54 | C1: =IF('DF raw data'!C1="","",'DF raw data'!C1) ->  | D1: =IF('DF raw data'!D1="","",'DF raw data'!D1) ->  | F1: T_coeff | G1: -0.001 | H1: /degC | J1: IBy total | K1: =J1267*1000 -> -5.126453472 | L1: muTm | M1: =L1267*1000 -> 7.201727663 | R1: DF ref | S1: 1
A2: =IF('DF raw data'!M2="","",'DF raw data'!M2) -> Measured by | B2: =IF('DF raw data'!N2="","",'DF raw data'!N2) -> Danfysik | C2: =IF('DF raw data'!C2="","",'DF raw data'!C2) ->  | D2: =IF('DF raw data'!D2="","",'DF raw data'!D2) ->  | F2: Tcorr | G2: 20 | H2: degC | J2: JBy total | K2: =K1267 -> -3.781537602 | L2: muTm^2 | M2: =M1267 -> 1.003822751
A3: =IF('DF raw data'!M3="","",'DF raw data'!M3) -> Operator | B3: =IF('DF raw data'!N3="","",'DF raw data'!N3) -> PMHA | C3: =IF('DF raw data'!C3="","",'DF raw data'!C3) ->  | D3: =IF('DF raw data'!D3="","",'DF raw data'!D3) ->  | F3: Step | G3: =A68-A67 -> 0.5 | H3: mm | J3: PI total | K3: =N1267 -> 2489.993195 | L3: T^2mm^3
A4: =IF('DF raw data'!M4="","",'DF raw data'!M4) -> Data-time | B4: =IF('DF raw data'!N4="","",'DF raw data'!N4) -> 30-09-2024, 16:09:04 | C4: =IF('DF raw data'!C4="","",'DF raw data'!C4) ->  | D4: =IF('DF raw data'!D4="","",'DF raw data'!D4) -> 
A5: =IF('DF raw data'!M5="","",'DF raw data'!M5) -> Project | B5: =IF('DF raw data'!N5="","",'DF raw data'!N5) -> 504314 | C5: =IF('DF raw data'!C5="","",'DF raw data'!C5) ->  | D5: Bamb avr | F5: =(AVERAGE(B67:B107) + AVERAGE(B1227:B1267))/2 -> -4.127418659e-05 | G5: =(AVERAGE(C67:C107) + AVERAGE(C1227:C1267))/2 -> 9.323150488e-05 | H5: =(AVERAGE(D67:D107) + AVERAGE(D1227:D1267))/2 -> -2.752290756e-05
A6: =IF('DF raw data'!M6="","",'DF raw data'!M6) -> Magnet type | B6: =IF('DF raw data'!N6="","",'DF raw data'!N6) -> Dipole | C6: =IF('DF raw data'!C6="","",'DF raw data'!C6) -> 
A7: =IF('DF raw data'!M7="","",'DF raw data'!M7) -> Magnet nr. | B7: =IF('DF raw data'!N7="","",'DF raw data'!N7) -> 2410105 | C7: =IF('DF raw data'!C7="","",'DF raw data'!C7) -> 
A8: =IF('DF raw data'!M8="","",'DF raw data'!M8) -> Meas. number | B8: =IF('DF raw data'!N8="","",'DF raw data'!N8) -> 834 | C8: =IF('DF raw data'!C8="","",'DF raw data'!C8) -> 
A9: =IF('DF raw data'!M9="","",'DF raw data'!M9) -> Add. info | B9: =IF('DF raw data'!N9="","",'DF raw data'!N9) -> X-alignment scan 3) | C9: =IF('DF raw data'!C9="","",'DF raw data'!C9) ->  | D9: =IF('DF raw data'!D9="","",'DF raw data'!D9) -> 
A10: =IF('DF raw data'!M10="","",'DF raw data'!M10) -> Device | B10: =IF('DF raw data'!N10="","",'DF raw data'!N10) -> (HAL) HALL-PROBE | C10: =IF('DF raw data'!C10="","",'DF raw data'!C10) ->  | D10: =IF('DF raw data'!D10="","",'DF raw data'!D10) -> 
A11: =IF('DF raw data'!M11="","",'DF raw data'!M11) -> Goal | B11: =IF('DF raw data'!N11="","",'DF raw data'!N11) -> (AXI) AXis Integral (Line, EFB) | C11: =IF('DF raw data'!C11="","",'DF raw data'!C11) ->  | D11: =IF('DF raw data'!D11="","",'DF raw data'!D11) -> 
A12: =IF('DF raw data'!M12="","",'DF raw data'!M12) -> Power supply mode | B12: =IF('DF raw data'!N12="","",'DF raw data'!N12) -> (PM) Permanent Magnet (no MPS in use) | C12: =IF('DF raw data'!C12="","",'DF raw data'!C12) ->  | D12: =IF('DF raw data'!D12="","",'DF raw data'!D12) -> 
A13: =IF('DF raw data'!M13="","",'DF raw data'!M13) -> Data format | B13: =IF('DF raw data'!N13="","",'DF raw data'!N13) -> Raw data text file | C13: =IF('DF raw data'!C13="","",'DF raw data'!C13) ->  | D13: =IF('DF raw data'!D13="","",'DF raw data'!D13) -> 
A14: =IF('DF raw data'!M14="","",'DF raw data'!M14) -> Direction of the pos. x-axis | B14: =IF('DF raw data'!N14="","",'DF raw data'!N14) -> See test program | C14: =IF('DF raw data'!C14="","",'DF raw data'!C14) ->  | D14: =IF('DF raw data'!D14="","",'DF raw data'!D14) -> 
A15: =IF('DF raw data'!M15="","",'DF raw data'!M15) -> Direction of the pos. y-axis | B15: =IF('DF raw data'!N15="","",'DF raw data'!N15) -> Vertical up | C15: =IF('DF raw data'!C15="","",'DF raw data'!C15) ->  | D15: =IF('DF raw data'!D15="","",'DF raw data'!D15) -> 
A16: =IF('DF raw data'!M16="","",'DF raw data'!M16) -> Direction of the pos. z-axis | B16: =IF('DF raw data'!N16="","",'DF raw data'!N16) -> See test program | C16: =IF('DF raw data'!C16="","",'DF raw data'!C16) ->  | D16: =IF('DF raw data'!D16="","",'DF raw data'!D16) -> 
A17: =IF('DF raw data'!M17="","",'DF raw data'!M17) -> Mapper type | B17: =IF('DF raw data'!N17="","",'DF raw data'!N17) -> Precision Hall Mapper | C17: =IF('DF raw data'!C17="","",'DF raw data'!C17) ->  | D17: =IF('DF raw data'!D17="","",'DF raw data'!D17) -> 
A18: =IF('DF raw data'!M18="","",'DF raw data'!M18) -> Mapper Danfysik Reg. Number | B18: =IF('DF raw data'!N18="","",'DF raw data'!N18) -> 2033-D (mapper 1) | C18: =IF('DF raw data'!C18="","",'DF raw data'!C18) ->  | D18: =IF('DF raw data'!D18="","",'DF raw data'!D18) -> 
A19: =IF('DF raw data'!M19="","",'DF raw data'!M19) -> Measurement consept | B19: =IF('DF raw data'!N19="","",'DF raw data'!N19) -> Square line grid | C19: =IF('DF raw data'!C19="","",'DF raw data'!C19) ->  | D19: =IF('DF raw data'!D19="","",'DF raw data'!D19) -> 
A20: =IF('DF raw data'!M20="","",'DF raw data'!M20) -> Mode | B20: =IF('DF raw data'!N20="","",'DF raw data'!N20) -> On-the-fly measurement | C20: =IF('DF raw data'!C20="","",'DF raw data'!C20) ->  | D20: =IF('DF raw data'!D20="","",'DF raw data'!D20) -> 
A21: =IF('DF raw data'!M21="","",'DF raw data'!M21) ->  | B21: =IF('DF raw data'!N21="","",'DF raw data'!N21) ->  | C21: =IF('DF raw data'!C21="","",'DF raw data'!C21) ->  | D21: =IF('DF raw data'!D21="","",'DF raw data'!D21) -> 
A22: =IF('DF raw data'!M22="","",'DF raw data'!M22) -> Probe Name | B22: =IF('DF raw data'!N22="","",'DF raw data'!N22) -> ID12_By | C22: =IF('DF raw data'!C22="","",'DF raw data'!C22) ->  | D22: =IF('DF raw data'!D22="","",'DF raw data'!D22) -> 
A23: =IF('DF raw data'!M23="","",'DF raw data'!M23) -> Probe Type | B23: =IF('DF raw data'!N23="","",'DF raw data'!N23) -> DF_ID_3D_Bxyz | C23: =IF('DF raw data'!C23="","",'DF raw data'!C23) ->  | D23: =IF('DF raw data'!D23="","",'DF raw data'!D23) -> 
A24: =IF('DF raw data'!M24="","",'DF raw data'!M24) -> Probe Danfysik Reg. Number | B24: =IF('DF raw data'!N24="","",'DF raw data'!N24) -> 2277 | C24: =IF('DF raw data'!C24="","",'DF raw data'!C24) ->  | D24: =IF('DF raw data'!D24="","",'DF raw data'!D24) -> 
A25: =IF('DF raw data'!M25="","",'DF raw data'!M25) -> Probe Axis | B25: =IF('DF raw data'!N25="","",'DF raw data'!N25) -> By | C25: =IF('DF raw data'!C25="","",'DF raw data'!C25) ->  | D25: =IF('DF raw data'!D25="","",'DF raw data'!D25) -> 
A26: =IF('DF raw data'!M26="","",'DF raw data'!M26) -> Probe Current Supply | B26: =IF('DF raw data'!N26="","",'DF raw data'!N26) -> 1825-D | C26: =IF('DF raw data'!C26="","",'DF raw data'!C26) ->  | D26: =IF('DF raw data'!D26="","",'DF raw data'!D26) -> 
A27: =IF('DF raw data'!M27="","",'DF raw data'!M27) -> Probe Gain Correction | B27: =IF('DF raw data'!N27="","",'DF raw data'!N27) -> 0.9962 | C27: =IF('DF raw data'!C27="","",'DF raw data'!C27) ->  | D27: =IF('DF raw data'!D27="","",'DF raw data'!D27) -> 
A28: =IF('DF raw data'!M28="","",'DF raw data'!M28) -> Probe Offset Correction | B28: =IF('DF raw data'!N28="","",'DF raw data'!N28) -> 0.0027743 | C28: =IF('DF raw data'!C28="","",'DF raw data'!C28) ->  | D28: =IF('DF raw data'!D28="","",'DF raw data'!D28) -> 
A29: =IF('DF raw data'!M29="","",'DF raw data'!M29) -> DVM Number | B29: =IF('DF raw data'!N29="","",'DF raw data'!N29) -> 2 | C29: =IF('DF raw data'!C29="","",'DF raw data'!C29) ->  | D29: =IF('DF raw data'!D29="","",'DF raw data'!D29) -> 
A30: =IF('DF raw data'!M30="","",'DF raw data'!M30) -> DVM Type | B30: =IF('DF raw data'!N30="","",'DF raw data'!N30) -> K2701 | C30: =IF('DF raw data'!C30="","",'DF raw data'!C30) ->  | D30: =IF('DF raw data'!D30="","",'DF raw data'!D30) -> 
A31: =IF('DF raw data'!M31="","",'DF raw data'!M31) -> DVM Danfysik Reg. Number | B31: =IF('DF raw data'!N31="","",'DF raw data'!N31) -> 1743-D | C31: =IF('DF raw data'!C31="","",'DF raw data'!C31) ->  | D31: =IF('DF raw data'!D31="","",'DF raw data'!D31) -> 
A32: =IF('DF raw data'!M32="","",'DF raw data'!M32) -> Probe Name | B32: =IF('DF raw data'!N32="","",'DF raw data'!N32) -> ID12_Bx | C32: =IF('DF raw data'!C32="","",'DF raw data'!C32) ->  | D32: =IF('DF raw data'!D32="","",'DF raw data'!D32) -> 
A33: =IF('DF raw data'!M33="","",'DF raw data'!M33) -> Probe Type | B33: =IF('DF raw data'!N33="","",'DF raw data'!N33) -> DF_ID_3D_Bxyz | C33: =IF('DF raw data'!C33="","",'DF raw data'!C33) ->  | D33: =IF('DF raw data'!D33="","",'DF raw data'!D33) -> 
A34: =IF('DF raw data'!M34="","",'DF raw data'!M34) -> Probe Danfysik Reg. Number | B34: =IF('DF raw data'!N34="","",'DF raw data'!N34) -> 2277 | C34: =IF('DF raw data'!C34="","",'DF raw data'!C34) ->  | D34: =IF('DF raw data'!D34="","",'DF raw data'!D34) -> 
A35: =IF('DF raw data'!M35="","",'DF raw data'!M35) -> Probe Axis | B35: =IF('DF raw data'!N35="","",'DF raw data'!N35) -> Bx | C35: =IF('DF raw data'!C35="","",'DF raw data'!C35) ->  | D35: =IF('DF raw data'!D35="","",'DF raw data'!D35) -> 
A36: =IF('DF raw data'!M36="","",'DF raw data'!M36) -> Probe Current Supply | B36: =IF('DF raw data'!N36="","",'DF raw data'!N36) -> 1825-D | C36: =IF('DF raw data'!C36="","",'DF raw data'!C36) ->  | D36: =IF('DF raw data'!D36="","",'DF raw data'!D36) -> 
A37: =IF('DF raw data'!M37="","",'DF raw data'!M37) -> Probe Gain Correction | B37: =IF('DF raw data'!N37="","",'DF raw data'!N37) -> 1 | C37: =IF('DF raw data'!C37="","",'DF raw data'!C37) ->  | D37: =IF('DF raw data'!D37="","",'DF raw data'!D37) -> 
A38: =IF('DF raw data'!M38="","",'DF raw data'!M38) -> Probe Offset Correction | B38: =IF('DF raw data'!N38="","",'DF raw data'!N38) -> -0.17552 | C38: =IF('DF raw data'!C38="","",'DF raw data'!C38) ->  | D38: =IF('DF raw data'!D38="","",'DF raw data'!D38) -> 
A39: =IF('DF raw data'!M39="","",'DF raw data'!M39) -> DVM Number | B39: =IF('DF raw data'!N39="","",'DF raw data'!N39) -> 3 | C39: =IF('DF raw data'!C39="","",'DF raw data'!C39) ->  | D39: =IF('DF raw data'!D39="","",'DF raw data'!D39) -> 
A40: =IF('DF raw data'!M40="","",'DF raw data'!M40) -> DVM Type | B40: =IF('DF raw data'!N40="","",'DF raw data'!N40) -> K2701 | C40: =IF('DF raw data'!C40="","",'DF raw data'!C40) ->  | D40: =IF('DF raw data'!D40="","",'DF raw data'!D40) -> 
A41: =IF('DF raw data'!M41="","",'DF raw data'!M41) -> DVM Danfysik Reg. Number | B41: =IF('DF raw data'!N41="","",'DF raw data'!N41) -> 1744-D | C41: =IF('DF raw data'!C41="","",'DF raw data'!C41) ->  | D41: =IF('DF raw data'!D41="","",'DF raw data'!D41) -> 
A42: =IF('DF raw data'!M42="","",'DF raw data'!M42) -> Probe Name | B42: =IF('DF raw data'!N42="","",'DF raw data'!N42) -> ID12_Bz | C42: =IF('DF raw data'!C42="","",'DF raw data'!C42) ->  | D42: =IF('DF raw data'!D42="","",'DF raw data'!D42) -> 
A43: =IF('DF raw data'!M43="","",'DF raw data'!M43) -> Probe Type | B43: =IF('DF raw data'!N43="","",'DF raw data'!N43) -> DF_ID_3D_Bxyz | C43: =IF('DF raw data'!C43="","",'DF raw data'!C43) ->  | D43: =IF('DF raw data'!D43="","",'DF raw data'!D43) -> 
A44: =IF('DF raw data'!M44="","",'DF raw data'!M44) -> Probe Danfysik Reg. Number | B44: =IF('DF raw data'!N44="","",'DF raw data'!N44) -> 2277 | C44: =IF('DF raw data'!C44="","",'DF raw data'!C44) ->  | D44: =IF('DF raw data'!D44="","",'DF raw data'!D44) -> 
A45: =IF('DF raw data'!M45="","",'DF raw data'!M45) -> Probe Axis | B45: =IF('DF raw data'!N45="","",'DF raw data'!N45) -> Bz | C45: =IF('DF raw data'!C45="","",'DF raw data'!C45) ->  | D45: =IF('DF raw data'!D45="","",'DF raw data'!D45) -> 
A46: =IF('DF raw data'!M46="","",'DF raw data'!M46) -> Probe Current Supply | B46: =IF('DF raw data'!N46="","",'DF raw data'!N46) -> 1825-D | C46: =IF('DF raw data'!C46="","",'DF raw data'!C46) ->  | D46: =IF('DF raw data'!D46="","",'DF raw data'!D46) -> 
A47: =IF('DF raw data'!M47="","",'DF raw data'!M47) -> Probe Gain Correction | B47: =IF('DF raw data'!N47="","",'DF raw data'!N47) -> 1 | C47: =IF('DF raw data'!C47="","",'DF raw data'!C47) ->  | D47: =IF('DF raw data'!D47="","",'DF raw data'!D47) -> 
A48: =IF('DF raw data'!M48="","",'DF raw data'!M48) -> Probe Offset Correction | B48: =IF('DF raw data'!N48="","",'DF raw data'!N48) -> 0.0073175 | C48: =IF('DF raw data'!C48="","",'DF raw data'!C48) ->  | D48: =IF('DF raw data'!D48="","",'DF raw data'!D48) -> 
A49: =IF('DF raw data'!M49="","",'DF raw data'!M49) -> DVM Number | B49: =IF('DF raw data'!N49="","",'DF raw data'!N49) -> 8 | C49: =IF('DF raw data'!C49="","",'DF raw data'!C49) ->  | D49: =IF('DF raw data'!D49="","",'DF raw data'!D49) -> 
A50: =IF('DF raw data'!M50="","",'DF raw data'!M50) -> DVM Type | B50: =IF('DF raw data'!N50="","",'DF raw data'!N50) -> K2700 | C50: =IF('DF raw data'!C50="","",'DF raw data'!C50) ->  | D50: =IF('DF raw data'!D50="","",'DF raw data'!D50) -> 
A51: =IF('DF raw data'!M51="","",'DF raw data'!M51) -> DVM Danfysik Reg. Number | B51: =IF('DF raw data'!N51="","",'DF raw data'!N51) -> 1756-D | C51: =IF('DF raw data'!C51="","",'DF raw data'!C51) ->  | D51: =IF('DF raw data'!D51="","",'DF raw data'!D51) -> 
A52: =IF('DF raw data'!M52="","",'DF raw data'!M52) -> NTC voltage | B52: =IF('DF raw data'!N52="","",'DF raw data'!N52) -> 0.41936 | C52: =IF('DF raw data'!C52="","",'DF raw data'!C52) ->  | D52: =IF('DF raw data'!D52="","",'DF raw data'!D52) -> 
A53: =IF('DF raw data'!M53="","",'DF raw data'!M53) -> PS-Gap: | B53: =IF('DF raw data'!N53="","",'DF raw data'!N53) -> 30 | C53: =IF('DF raw data'!C53="","",'DF raw data'!C53) ->  | D53: =IF('DF raw data'!D53="","",'DF raw data'!D53) -> 
A54: =IF('DF raw data'!M54="","",'DF raw data'!M54) -> PS-Temperature: | B54: =IF('DF raw data'!N54="","",'DF raw data'!N54) -> 24.6 | C54: =IF('DF raw data'!C54="","",'DF raw data'!C54) ->  | D54: =IF('DF raw data'!D54="","",'DF raw data'!D54) -> 
A55: =IF('DF raw data'!M55="","",'DF raw data'!M55) -> PS-Encoder: | B55: =IF('DF raw data'!N55="","",'DF raw data'!N55) -> 39.6111 | C55: =IF('DF raw data'!C55="","",'DF raw data'!C55) ->  | D55: =IF('DF raw data'!D55="","",'DF raw data'!D55) -> 
A56: =IF('DF raw data'!M56="","",'DF raw data'!M56) ->  | B56: =IF('DF raw data'!N56="","",'DF raw data'!N56) -> 
A57: =IF('DF raw data'!M57="","",'DF raw data'!M57) -> Monitor-Index | B57: =IF('DF raw data'!N57="","",'DF raw data'!N57) -> [1,1,4]
A58: =IF('DF raw data'!M58="","",'DF raw data'!M58) ->  | B58: =IF('DF raw data'!N58="","",'DF raw data'!N58) -> 
A59: =IF('DF raw data'!M59="","",'DF raw data'!M59) -> Time [s] | B59: =IF('DF raw data'!N59="","",'DF raw data'!N59) -> Y [mm]
A60: =IF('DF raw data'!M60="","",'DF raw data'!M60) ->  | B60: =IF('DF raw data'!N60="","",'DF raw data'!N60) -> 
A61: =IF('DF raw data'!M61="","",'DF raw data'!M61) -> 207.9 | B61: =IF('DF raw data'!N61="","",'DF raw data'!N61) -> 31.48
A62: =IF('DF raw data'!M62="","",'DF raw data'!M62) ->  | B62: =IF('DF raw data'!N62="","",'DF raw data'!N62) -> 
A63: =IF('DF raw data'!M63="","",'DF raw data'!M63) -> Measurement-Index | B63: =IF('DF raw data'!N63="","",'DF raw data'!N63) -> [1,1,1201,2]
A64: =IF('DF raw data'!M64="","",'DF raw data'!M64) ->  | B64: =IF('DF raw data'!N64="","",'DF raw data'!N64) -> 
A65: =IF('DF raw data'!M65="","",'DF raw data'!M65) -> Z [mm] | B65: =IF('DF raw data'!N65="","",'DF raw data'!N65) -> By [T] | C65: =IF('DF raw data'!O65="","",'DF raw data'!O65) -> Bx [T] | D65: =IF('DF raw data'!P65="","",'DF raw data'!P65) -> Bz [T] | F65: By_corr | G65: Bx_corr | H65: Bz_corr | J65: Iy | K65: Jy | L65: Ix | M65: Jx | N65: PI
B66: =IF('DF raw data'!N66="","",'DF raw data'!N66) ->  | C66: =IF('DF raw data'!O66="","",'DF raw data'!O66) ->  | D66: =IF('DF raw data'!P66="","",'DF raw data'!P66) -> 
A67: =IF('DF raw data'!M67="","",'DF raw data'!M67) -> -300 | B67: =IF('DF raw data'!N67="","",'DF raw data'!N67) -> -3.72452e-05 | C67: =IF('DF raw data'!O67="","",'DF raw data'!O67) -> 9.68966e-05 | D67: =IF('DF raw data'!P67="","",'DF raw data'!P67) -> -2.25573e-05 | F67: =(1-$G$1*($B$54-$G$2))*(B67-F$5) -> 4.047519924e-06 | G67: =(1-$G$1*($B$54-$G$2))*(C67-G$5) -> 3.68195456e-06 | H67: =(1-$G$1*($B$54-$G$2))*(D67-H$5) -> 4.988449356e-06 | J67: =F67*$G$3+J66 -> 2.023759962e-06 | K67: =J67*$G$3+K66 -> 1.011879981e-06 | L67: =G67*$G$3+L66 -> 1.84097728e-06 | M67: =L67*$G$3+M66 -> 9.204886399e-07 | N67: =(J67^2+L67^2)*$G$3+N66 -> 3.742400864e-12
A68: =IF('DF raw data'!M68="","",'DF raw data'!M68) -> -299.5 | B68: =IF('DF raw data'!N68="","",'DF raw data'!N68) -> -4.58964e-05 | C68: =IF('DF raw data'!O68="","",'DF raw data'!O68) -> 0.000108111 | D68: =IF('DF raw data'!P68="","",'DF raw data'!P68) -> -2.18624e-05 | F68: -4.643475596e-06 | G68: 1.49479408e-05 | H68: 5.686545896e-06 | J68: =F68*$G$3+J67 -> -2.979778363e-07 | K68: =J68*$G$3+K67 -> 8.628910627e-07 | L68: =G68*$G$3+L67 -> 9.31494768e-06 | M68: =L68*$G$3+M67 -> 5.57796248e-06 | N68: =(J68^2+L68^2)*$G$3+N67 -> 4.71709214e-11
A69: =IF('DF raw data'!M69="","",'DF raw data'!M69) -> -299 | B69: =IF('DF raw data'!N69="","",'DF raw data'!N69) -> -4.673e-05 | C69: =IF('DF raw data'!O69="","",'DF raw data'!O69) -> 0.000111142 | D69: =IF('DF raw data'!P69="","",'DF raw data'!P69) -> -2.08444e-05 | F69: -5.480910156e-06 | G69: 1.79928834e-05 | H69: 6.709228696e-06 | J69: -3.038432915e-06 | K69: -6.563253945e-07 | L69: 1.831138938e-05 | M69: 1.473365717e-05 | N69: 2.194404492e-10
A70: =IF('DF raw data'!M70="","",'DF raw data'!M70) -> -298.5 | B70: =IF('DF raw data'!N70="","",'DF raw data'!N70) -> -3.66694e-05 | C70: =IF('DF raw data'!O70="","",'DF raw data'!O70) -> 0.00010727 | D70: =IF('DF raw data'!P70="","",'DF raw data'!P70) -> -2.07204e-05 | F70: 4.625968604e-06 | G70: 1.41030722e-05 | H70: 6.833799096e-06 | J70: -7.254486127e-07 | K70: -1.019049701e-06 | L70: 2.536292548e-05 | M70: 2.741511991e-05 | N70: 5.413425815e-10
A71: =IF('DF raw data'!M71="","",'DF raw data'!M71) -> -298 | B71: =IF('DF raw data'!N71="","",'DF raw data'!N71) -> -4.28854e-05 | C71: =IF('DF raw data'!O71="","",'DF raw data'!O71) -> 0.000111491 | D71: =IF('DF raw data'!P71="","",'DF raw data'!P71) -> -2.07778e-05 | F71: -1.618624996e-06 | G71: 1.83434888e-05 | H71: 6.776135056e-06 | J71: -1.534761111e-06 | K71: -1.786430256e-06 | L71: 3.453466988e-05 | M71: 4.468245485e-05 | N71: 1.138842039e-09
A72: =IF('DF raw data'!M72="","",'DF raw data'!M72) -> -297.5 | B72: =IF('DF raw data'!N72="","",'DF raw data'!N72) -> -4.60884e-05 | C72: =IF('DF raw data'!O72="","",'DF raw data'!O72) -> 0.000108475 | D72: =IF('DF raw data'!P72="","",'DF raw data'!P72) -> -2.04339e-05 | F72: -4.836358796e-06 | G72: 1.53136152e-05 | H72: 7.121616996e-06 | J72: -3.952940509e-06 | K72: -3.762900511e-06 | L72: 4.219147748e-05 | M72: 6.577819359e-05 | N72: 2.036715294e-09
A73: =IF('DF raw data'!M73="","",'DF raw data'!M73) -> -297 | B73: =IF('DF raw data'!N73="","",'DF raw data'!N73) -> -3.4171e-05 | C73: =IF('DF raw data'!O73="","",'DF raw data'!O73) -> 0.00011242 | D73: =IF('DF raw data'!P73="","",'DF raw data'!P73) -> -2.06245e-05 | F73: 7.135861244e-06 | G73: 1.92767622e-05 | H73: 6.930140236e-06 | J73: -3.850098872e-07 | K73: -3.955405454e-06 | L73: 5.182985858e-05 | M73: 9.169312288e-05 | N73: 3.379956531e-09
A74: =IF('DF raw data'!M74="","",'DF raw data'!M74) -> -296.5 | B74: =IF('DF raw data'!N74="","",'DF raw data'!N74) -> -3.51307e-05 | C74: =IF('DF raw data'!O74="","",'DF raw data'!O74) -> 0.000116832 | D74: =IF('DF raw data'!P74="","",'DF raw data'!P74) -> -2.12449e-05 | F74: 6.171746624e-06 | G74: 2.37090574e-05 | H74: 6.306886396e-06 | J74: 2.700863425e-06 | K74: -2.604973742e-06 | L74: 6.368438728e-05 | M74: 0.0001235353165 | N74: 5.411454454e-09
A75: =IF('DF raw data'!M75="","",'DF raw data'!M75) -> -296 | B75: =IF('DF raw data'!N75="","",'DF raw data'!N75) -> -4.93577e-05 | C75: =IF('DF raw data'!O75="","",'DF raw data'!O75) -> 0.00011142 | D75: =IF('DF raw data'!P75="","",'DF raw data'!P75) -> -2.12205e-05 | F75: -8.120697576e-06 | G75: 1.82721622e-05 | H75: 6.331398636e-06 | J75: -1.359485364e-06 | K75: -3.284716424e-06 | L75: 7.282046838e-05 | M75: 0.0001599455507 | N75: 8.063788861e-09
A76: =IF('DF raw data'!M76="","",'DF raw data'!M76) -> -295.5 | B76: =IF('DF raw data'!N76="","",'DF raw data'!N76) -> -3.37209e-05 | C76: =IF('DF raw data'!O76="","",'DF raw data'!O76) -> 0.000105742 | D76: =IF('DF raw data'!P76="","",'DF raw data'!P76) -> -2.09527e-05 | F76: 7.588031704e-06 | G76: 1.25680434e-05 | H76: 6.600430516e-06 | J76: 2.434530488e-06 | K76: -2.06745118e-06 | L76: 7.910449008e-05 | M76: 0.0001994977957 | N76: 1.119551251e-08
A77: =IF('DF raw data'!M77="","",'DF raw data'!M77) -> -295 | B77: =IF('DF raw data'!N77="","",'DF raw data'!N77) -> -4.65381e-05 | C77: =IF('DF raw data'!O77="","",'DF raw data'!O77) -> 0.000100536 | D77: =IF('DF raw data'!P77="","",'DF raw data'!P77) -> -2.10494e-05 | F77: -5.288127416e-06 | G77: 7.3380958e-06 | H77: 6.503285696e-06 | J77: -2.095332199e-07 | K77: -2.17221779e-06 | L77: 8.277353798e-05 | M77: 0.0002408845647 | N77: 1.462126375e-08
A78: =IF('DF raw data'!M78="","",'DF raw data'!M78) -> -294.5 | B78: =IF('DF raw data'!N78="","",'DF raw data'!N78) -> -3.57708e-05 | C78: =IF('DF raw data'!O78="","",'DF raw data'!O78) -> 0.000104819 | D78: =IF('DF raw data'!P78="","",'DF raw data'!P78) -> -2.16232e-05 | F78: 5.528702164e-06 | G78: 1.16407976e-05 | H78: 5.926846216e-06 | J78: 2.554817862e-06 | K78: -8.948088587e-07 | L78: 8.859393678e-05 | M78: 0.0002851815331 | N78: 1.854897012e-08
A79: =IF('DF raw data'!M79="","",'DF raw data'!M79) -> -294 | B79: =IF('DF raw data'!N79="","",'DF raw data'!N79) -> -4.6346e-05 | C79: =IF('DF raw data'!O79="","",'DF raw data'!O79) -> 0.000103156 | D79: =IF('DF raw data'!P79="","",'DF raw data'!P79) -> -2.18539e-05 | F79: -5.095143756e-06 | G79: 9.9701478e-06 | H79: 5.695084996e-06 | J79: 7.24598378e-09 | K79: -8.911858668e-07 | L79: 9.357901068e-05 | M79: 0.0003319710385 | N79: 2.292748576e-08
A80: =IF('DF raw data'!M80="","",'DF raw data'!M80) -> -293.5 | B80: =IF('DF raw data'!N80="","",'DF raw data'!N80) -> -5.11489e-05 | C80: =IF('DF raw data'!O80="","",'DF raw data'!O80) -> 0.000104991 | D80: =IF('DF raw data'!P80="","",'DF raw data'!P80) -> -2.12445e-05 | F80: -9.920137096e-06 | G80: 1.18135888e-05 | H80: 6.307288236e-06 | J80: -4.952822564e-06 | K80: -3.367597149e-06 | L80: 9.948580508e-05 | M80: 0.000381713941 | N80: 2.788846369e-08
A81: =IF('DF raw data'!M81="","",'DF raw data'!M81) -> -293 | B81: =IF('DF raw data'!N81="","",'DF raw data'!N81) -> -4.85257e-05 | C81: =IF('DF raw data'!O81="","",'DF raw data'!O81) -> 0.000104889 | D81: =IF('DF raw data'!P81="","",'DF raw data'!P81) -> -2.04385e-05 | F81: -7.284870376e-06 | G81: 1.17111196e-05 | H81: 7.116995836e-06 | J81: -8.595257753e-06 | K81: -7.665226025e-06 | L81: 0.0001053413649 | M81: 0.0004343846234 | N81: 3.34738045e-08
A82: =IF('DF raw data'!M82="","",'DF raw data'!M82) -> -292.5 | B82: =IF('DF raw data'!N82="","",'DF raw data'!N82) -> -4.30115e-05 | C82: =IF('DF raw data'!O82="","",'DF raw data'!O82) -> 0.000109333 | D82: =IF('DF raw data'!P82="","",'DF raw data'!P82) -> -2.0439e-05 | F82: -1.745305056e-06 | G82: 1.6175562e-05 | H82: 7.116493536e-06 | J82: -9.467910281e-06 | K82: -1.239918117e-05 | L82: 0.0001134291459 | M82: 0.0004910991964 | N82: 3.995171073e-08
A83: =IF('DF raw data'!M83="","",'DF raw data'!M83) -> -292 | B83: =IF('DF raw data'!N83="","",'DF raw data'!N83) -> -4.17332e-05 | C83: =IF('DF raw data'!O83="","",'DF raw data'!O83) -> 9.88227e-05 | D83: =IF('DF raw data'!P83="","",'DF raw data'!P83) -> -2.08478e-05 | F83: -4.611248763e-07 | G83: 5.61691462e-06 | H83: 6.705813056e-06 | J83: -9.698472719e-06 | K83: -1.724841753e-05 | L83: 0.0001162376032 | M83: 0.000549217998 | N83: 4.675433111e-08
A84: =IF('DF raw data'!M84="","",'DF raw data'!M84) -> -291.5 | B84: =IF('DF raw data'!N84="","",'DF raw data'!N84) -> -4.90308e-05 | C84: =IF('DF raw data'!O84="","",'DF raw data'!O84) -> 0.000107818 | D84: =IF('DF raw data'!P84="","",'DF raw data'!P84) -> -2.62493e-05 | F84: -7.792293836e-06 | G84: 1.4653593e-05 | H84: 1.279466156e-06 | J84: -1.359461964e-05 | K84: -2.404572734e-05 | L84: 0.0001235643997 | M84: 0.0006110001978 | N84: 5.448081839e-08
A85: =IF('DF raw data'!M85="","",'DF raw data'!M85) -> -291 | B85: =IF('DF raw data'!N85="","",'DF raw data'!N85) -> -4.122e-05 | C85: =IF('DF raw data'!O85="","",'DF raw data'!O85) -> 0.00010814 | D85: =IF('DF raw data'!P85="","",'DF raw data'!P85) -> -2.19561e-05 | F85: 5.443584366e-08 | G85: 1.49770742e-05 | H85: 5.592414876e-06 | J85: -1.356740172e-05 | K85: -3.08294282e-05 | L85: 0.0001310529368 | M85: 0.0006765266662 | N85: 6.31602917e-08
A86: =IF('DF raw data'!M86="","",'DF raw data'!M86) -> -290.5 | B86: =IF('DF raw data'!N86="","",'DF raw data'!N86) -> -4.29463e-05 | C86: =IF('DF raw data'!O86="","",'DF raw data'!O86) -> 9.64238e-05 | D86: =IF('DF raw data'!P86="","",'DF raw data'!P86) -> -2.19828e-05 | F86: -1.679805136e-06 | G86: 3.20697968e-06 | H86: 5.565592056e-06 | J86: -1.440730428e-05 | K86: -3.803308034e-05 | L86: 0.0001326564266 | M86: 0.0007428548795 | N86: 7.206294067e-08
A87: =IF('DF raw data'!M87="","",'DF raw data'!M87) -> -290 | B87: =IF('DF raw data'!N87="","",'DF raw data'!N87) -> -3.74359e-05 | C87: =IF('DF raw data'!O87="","",'DF raw data'!O87) -> 8.90141e-05 | D87: =IF('DF raw data'!P87="","",'DF raw data'!P87) -> -2.73878e-05 | F87: 3.855942704e-06 | G87: -4.23680494e-06 | H87: 1.357290558e-07 | J87: -1.247933293e-05 | K87: -4.427274681e-05 | L87: 0.0001305380242 | M87: 0.0008081238916 | N87: 8.066089542e-08
A88: =IF('DF raw data'!M88="","",'DF raw data'!M88) -> -289.5 | B88: =IF('DF raw data'!N88="","",'DF raw data'!N88) -> -3.98636e-05 | C88: =IF('DF raw data'!O88="","",'DF raw data'!O88) -> 0.000100464 | D88: =IF('DF raw data'!P88="","",'DF raw data'!P88) -> -3.2499e-05 | F88: 1.417075284e-06 | G88: 7.2657646e-06 | H88: -4.998982464e-06 | J88: -1.177079529e-05 | K88: -5.015814445e-05 | L88: 0.0001341709065 | M88: 0.0008752093448 | N88: 8.973108731e-08
A89: =IF('DF raw data'!M89="","",'DF raw data'!M89) -> -289 | B89: =IF('DF raw data'!N89="","",'DF raw data'!N89) -> -4.42882e-05 | C89: =IF('DF raw data'!O89="","",'DF raw data'!O89) -> 0.000106854 | D89: =IF('DF raw data'!P89="","",'DF raw data'!P89) -> -3.44725e-05 | F89: -3.027877876e-06 | G89: 1.36851586e-05 | H89: -6.981560564e-06 | J89: -1.328473423e-05 | K89: -5.680051157e-05 | L89: 0.0001410134858 | M89: 0.0009457160877 | N89: 9.976173097e-08
A90: =IF('DF raw data'!M90="","",'DF raw data'!M90) -> -288.5 | B90: =IF('DF raw data'!N90="","",'DF raw data'!N90) -> -3.87779e-05 | C90: =IF('DF raw data'!O90="","",'DF raw data'!O90) -> 0.000104509 | D90: =IF('DF raw data'!P90="","",'DF raw data'!P90) -> -2.70481e-05 | F90: 2.507769504e-06 | G90: 1.13293716e-05 | H90: 4.769916758e-07 | J90: -1.203084948e-05 | K90: -6.281593631e-05 | L90: 0.0001466781716 | M90: 0.001019055173 | N90: 1.105913446e-07
A91: =IF('DF raw data'!M91="","",'DF raw data'!M91) -> -288 | B91: =IF('DF raw data'!N91="","",'DF raw data'!N91) -> -4.41648e-05 | C91: =IF('DF raw data'!O91="","",'DF raw data'!O91) -> 9.39068e-05 | D91: =IF('DF raw data'!P91="","",'DF raw data'!P91) -> -2.73102e-05 | F91: -2.903910236e-06 | G91: 6.784014795e-07 | H91: 2.136860158e-07 | J91: -1.348280459e-05 | K91: -6.95573386e-05 | L91: 0.0001470173723 | M91: 0.00109256386 | N91: 1.214892915e-07
A92: =IF('DF raw data'!M92="","",'DF raw data'!M92) -> -287.5 | B92: =IF('DF raw data'!N92="","",'DF raw data'!N92) -> -4.09516e-05 | C92: =IF('DF raw data'!O92="","",'DF raw data'!O92) -> 0.000100219 | D92: =IF('DF raw data'!P92="","",'DF raw data'!P92) -> -3.41685e-05 | F92: 3.240704837e-07 | G92: 7.0196376e-06 | H92: -6.676162164e-06 | J92: -1.332076935e-05 | K92: -7.621772328e-05 | L92: 0.0001505271911 | M92: 0.001167827455 | N92: 1.329072306e-07
A93: =IF('DF raw data'!M93="","",'DF raw data'!M93) -> -287 | B93: =IF('DF raw data'!N93="","",'DF raw data'!N93) -> -4.51949e-05 | C93: =IF('DF raw data'!O93="","",'DF raw data'!O93) -> 0.000104256 | D93: =IF('DF raw data'!P93="","",'DF raw data'!P93) -> -2.00012e-05 | F93: -3.938748696e-06 | G93: 1.10752078e-05 | H93: 7.556307416e-06 | J93: -1.52901437e-05 | K93: -8.386279513e-05 | L93: 0.000156064795 | M93: 0.001245859853 | N93: 1.45202235e-07
A94: =IF('DF raw data'!M94="","",'DF raw data'!M94) -> -286.5 | B94: =IF('DF raw data'!N94="","",'DF raw data'!N94) -> -3.4035e-05 | C94: =IF('DF raw data'!O94="","",'DF raw data'!O94) -> 0.000105185 | D94: =IF('DF raw data'!P94="","",'DF raw data'!P94) -> -2.89466e-05 | F94: 7.272486844e-06 | G94: 1.20084812e-05 | H94: -1.430241424e-06 | J94: -1.165390028e-05 | K94: -8.968974527e-05 | L94: 0.0001620690356 | M94: 0.00132689437 | N94: 1.584033278e-07
A95: =IF('DF raw data'!M95="","",'DF raw data'!M95) -> -286 | B95: =IF('DF raw data'!N95="","",'DF raw data'!N95) -> -3.37827e-05 | C95: =IF('DF raw data'!O95="","",'DF raw data'!O95) -> 0.000102796 | D95: =IF('DF raw data'!P95="","",'DF raw data'!P95) -> -2.86049e-05 | F95: 7.525947424e-06 | G95: 9.6084918e-06 | H95: -1.086969604e-06 | J95: -7.890926567e-06 | K95: -9.363520855e-05 | L95: 0.0001668732815 | M95: 0.001410331011 | N95: 1.723578072e-07
A96: =IF('DF raw data'!M96="","",'DF raw data'!M96) -> -285.5 | B96: =IF('DF raw data'!N96="","",'DF raw data'!N96) -> -4.00568e-05 | C96: =IF('DF raw data'!O96="","",'DF raw data'!O96) -> 0.000109115 | D96: =IF('DF raw data'!P96="","",'DF raw data'!P96) -> -3.09295e-05 | F96: 1.222986564e-06 | G96: 1.59565592e-05 | H96: -3.422262764e-06 | J96: -7.279433285e-06 | K96: -9.727492519e-05 | L96: 0.0001748515611 | M96: 0.001497756792 | N96: 1.876708365e-07
A97: =IF('DF raw data'!M97="","",'DF raw data'!M97) -> -285 | B97: =IF('DF raw data'!N97="","",'DF raw data'!N97) -> -4.23064e-05 | C97: =IF('DF raw data'!O97="","",'DF raw data'!O97) -> 0.00011326 | D97: =IF('DF raw data'!P97="","",'DF raw data'!P97) -> -2.68726e-05 | F97: -1.036961596e-06 | G97: 2.01206262e-05 | H97: 6.532989758e-07 | J97: -7.797914083e-06 | K97: -0.0001011738822 | L97: 0.0001849118742 | M97: 0.001590212729 | N97: 2.047974408e-07
A98: =IF('DF raw data'!M98="","",'DF raw data'!M98) -> -284.5 | B98: =IF('DF raw data'!N98="","",'DF raw data'!N98) -> -2.19301e-05 | C98: =IF('DF raw data'!O98="","",'DF raw data'!O98) -> 0.000104695 | D98: =IF('DF raw data'!P98="","",'DF raw data'!P98) -> -2.1463e-05 | F98: 1.943306938e-05 | G98: 1.15162272e-05 | H98: 6.087783136e-06 | J98: 1.918620609e-06 | K98: -0.0001002145719 | L98: 0.0001906699878 | M98: 0.001685547723 | N98: 2.229768035e-07
A99: =IF('DF raw data'!M99="","",'DF raw data'!M99) -> -284 | B99: =IF('DF raw data'!N99="","",'DF raw data'!N99) -> -3.94271e-05 | C99: =IF('DF raw data'!O99="","",'DF raw data'!O99) -> 0.000115057 | D99: =IF('DF raw data'!P99="","",'DF raw data'!P99) -> -2.00553e-05 | F99: 1.855583184e-06 | G99: 2.19258924e-05 | H99: 7.501958556e-06 | J99: 2.8464122e-06 | K99: -9.879136583e-05 | L99: 0.000201632934 | M99: 0.00178636419 | N99: 2.433087746e-07
A100: =IF('DF raw data'!M100="","",'DF raw data'!M100) -> -283.5 | B100: =IF('DF raw data'!N100="","",'DF raw data'!N100) -> -3.03231e-05 | C100: =IF('DF raw data'!O100="","",'DF raw data'!O100) -> 0.000124826 | D100: =IF('DF raw data'!P100="","",'DF raw data'!P100) -> -2.23604e-05 | F100: 1.100146158e-05 | G100: 3.17398298e-05 | H100: 5.186255096e-06 | J100: 8.347142992e-06 | K100: -9.461779434e-05 | L100: 0.0002175028489 | M100: 0.001895115614 | N100: 2.669973566e-07
A101: =IF('DF raw data'!M101="","",'DF raw data'!M101) -> -283 | B101: =IF('DF raw data'!N101="","",'DF raw data'!N101) -> -5.34015e-05 | C101: =IF('DF raw data'!O101="","",'DF raw data'!O101) -> 0.000120719 | D101: =IF('DF raw data'!P101="","",'DF raw data'!P101) -> -1.24118e-05 | F101: -1.218309906e-05 | G101: 2.76139376e-05 | H101: 1.518061866e-05 | J101: 2.255593464e-06 | K101: -9.34899976e-05 | L101: 0.0002313098177 | M101: 0.002010770523 | N101: 2.937520164e-07
A102: =IF('DF raw data'!M102="","",'DF raw data'!M102) -> -282.5 | B102: =IF('DF raw data'!N102="","",'DF raw data'!N102) -> -4.98678e-05 | C102: =IF('DF raw data'!O102="","",'DF raw data'!O102) -> 0.000123553 | D102: =IF('DF raw data'!P102="","",'DF raw data'!P102) -> -1.97303e-05 | F102: -8.633144036e-06 | G102: 3.0460974e-05 | H102: 7.828453556e-06 | J102: -2.060978554e-06 | K102: -9.452048688e-05 | L102: 0.0002465403047 | M102: 0.002134040675 | N102: 3.241452011e-07
A103: =IF('DF raw data'!M103="","",'DF raw data'!M103) -> -282 | B103: =IF('DF raw data'!N103="","",'DF raw data'!N103) -> -5.36508e-05 | C103: =IF('DF raw data'!O103="","",'DF raw data'!O103) -> 0.00012574 | D103: =IF('DF raw data'!P103="","",'DF raw data'!P103) -> -2.29084e-05 | F103: -1.243354584e-05 | G103: 3.26580342e-05 | H103: 4.635734296e-06 | J103: -8.277751472e-06 | K103: -9.865936262e-05 | L103: 0.0002628693218 | M103: 0.002265475336 | N103: 3.587296018e-07
A104: =IF('DF raw data'!M104="","",'DF raw data'!M104) -> -281.5 | B104: =IF('DF raw data'!N104="","",'DF raw data'!N104) -> -3.80104e-05 | C104: =IF('DF raw data'!O104="","",'DF raw data'!O104) -> 0.00012261 | D104: =IF('DF raw data'!P104="","",'DF raw data'!P104) -> -2.55875e-05 | F104: 3.278800004e-06 | G104: 2.95136362e-05 | H104: 1.944310436e-06 | J104: -6.63835147e-06 | K104: -0.0001019785384 | L104: 0.0002776261399 | M104: 0.002404288406 | N104: 3.972897725e-07
A105: =IF('DF raw data'!M105="","",'DF raw data'!M105) -> -281 | B105: =IF('DF raw data'!N105="","",'DF raw data'!N105) -> -3.61654e-05 | C105: =IF('DF raw data'!O105="","",'DF raw data'!O105) -> 0.000110916 | D105: =IF('DF raw data'!P105="","",'DF raw data'!P105) -> -9.76993e-06 | F105: 5.132287004e-06 | G105: 1.77658438e-05 | H105: 1.783464126e-05 | J105: -4.072207969e-06 | K105: -0.0001040146423 | L105: 0.0002865090618 | M105: 0.002547542937 | N105: 4.383417852e-07
A106: =IF('DF raw data'!M106="","",'DF raw data'!M106) -> -280.5 | B106: =IF('DF raw data'!N106="","",'DF raw data'!N106) -> -2.80801e-05 | C106: =IF('DF raw data'!O106="","",'DF raw data'!O106) -> 0.00011581 | D106: =IF('DF raw data'!P106="","",'DF raw data'!P106) -> -2.36116e-05 | F106: 1.325477938e-05 | G106: 2.26823562e-05 | H106: 3.929299576e-06 | J106: 2.555181723e-06 | K106: -0.0001027370515 | L106: 0.0002978502399 | M106: 0.002696468057 | N106: 4.827024323e-07
A107: =IF('DF raw data'!M107="","",'DF raw data'!M107) -> -280 | B107: =IF('DF raw data'!N107="","",'DF raw data'!N107) -> -5.23629e-05 | C107: =IF('DF raw data'!O107="","",'DF raw data'!O107) -> 0.000107048 | D107: =IF('DF raw data'!P107="","",'DF raw data'!P107) -> -3.23874e-05 | F107: -1.11397215e-05 | G107: 1.3880051e-05 | H107: -4.886869104e-06 | J107: -3.014679025e-06 | K107: -0.000104244391 | L107: 0.0003047902654 | M107: 0.00284886319 | N107: 5.291555294e-07
A108: =IF('DF raw data'!M108="","",'DF raw data'!M108) -> -279.5 | B108: =IF('DF raw data'!N108="","",'DF raw data'!N108) -> -3.22412e-05 | C108: =IF('DF raw data'!O108="","",'DF raw data'!O108) -> 0.000117867 | D108: =IF('DF raw data'!P108="","",'DF raw data'!P108) -> -2.9447e-05 | F108: 9.074538324e-06 | G108: 2.47488184e-05 | H108: -1.932943264e-06 | J108: 1.522590137e-06 | K108: -0.0001034830959 | L108: 0.0003171646746 | M108: 0.003007445527 | N108: 5.79453404e-07
A109: =IF('DF raw data'!M109="","",'DF raw data'!M109) -> -279 | B109: =IF('DF raw data'!N109="","",'DF raw data'!N109) -> -4.25054e-05 | C109: =IF('DF raw data'!O109="","",'DF raw data'!O109) -> 0.000108894 | D109: =IF('DF raw data'!P109="","",'DF raw data'!P109) -> -1.54432e-05 | F109: -1.236876996e-06 | G109: 1.57345426e-05 | H109: 1.213527422e-05 | J109: 9.041516387e-07 | K109: -0.0001030310201 | L109: 0.0003250319459 | M109: 0.0031699615 | N109: 6.322766956e-07
A110: =IF('DF raw data'!M110="","",'DF raw data'!M110) -> -278.5 | B110: =IF('DF raw data'!N110="","",'DF raw data'!N110) -> -3.49977e-05 | C110: =IF('DF raw data'!O110="","",'DF raw data'!O110) -> 0.000111746 | D110: =IF('DF raw data'!P110="","",'DF raw data'!P110) -> -2.75181e-05 | F110: 6.305358424e-06 | G110: 1.85996618e-05 | H110: 4.829675756e-09 | J110: 4.05683085e-06 | K110: -0.0001010026047 | L110: 0.0003343317768 | M110: 0.003337127388 | N110: 6.881737931e-07
A111: =IF('DF raw data'!M111="","",'DF raw data'!M111) -> -278 | B111: =IF('DF raw data'!N111="","",'DF raw data'!N111) -> -4.48692e-05 | C111: =IF('DF raw data'!O111="","",'DF raw data'!O111) -> 0.000111714 | D111: =IF('DF raw data'!P111="","",'DF raw data'!P111) -> -2.64675e-05 | F111: -3.611550476e-06 | G111: 1.85675146e-05 | H111: 1.060262436e-06 | J111: 2.251055612e-06 | K111: -9.987707687e-05 | L111: 0.0003436155341 | M111: 0.003508935155 | N111: 7.472121443e-07
A112: =IF('DF raw data'!M112="","",'DF raw data'!M112) -> -277.5 | B112: =IF('DF raw data'!N112="","",'DF raw data'!N112) -> -3.85147e-05 | C112: =IF('DF raw data'!O112="","",'DF raw data'!O112) -> 0.000113108 | D112: =IF('DF raw data'!P112="","",'DF raw data'!P112) -> -3.85391e-05 | F112: 2.772180224e-06 | G112: 1.9967927e-05 | H112: -1.106686692e-05 | J112: 3.637145724e-06 | K112: -9.805850401e-05 | L112: 0.0003535994976 | M112: 0.003685734904 | N112: 8.097350611e-07
A113: =IF('DF raw data'!M113="","",'DF raw data'!M113) -> -277 | B113: =IF('DF raw data'!N113="","",'DF raw data'!N113) -> -3.62169e-05 | C113: =IF('DF raw data'!O113="","",'DF raw data'!O113) -> 0.00011946 | D113: =IF('DF raw data'!P113="","",'DF raw data'!P113) -> -2.86891e-05 | F113: 5.080550104e-06 | G113: 2.63491462e-05 | H113: -1.171556924e-06 | J113: 6.177420776e-06 | K113: -9.496979362e-05 | L113: 0.0003667740707 | M113: 0.00386912194 | N113: 8.770157508e-07
A114: =IF('DF raw data'!M114="","",'DF raw data'!M114) -> -276.5 | B114: =IF('DF raw data'!N114="","",'DF raw data'!N114) -> -3.49247e-05 | C114: =IF('DF raw data'!O114="","",'DF raw data'!O114) -> 0.000111332 | D114: =IF('DF raw data'!P114="","",'DF raw data'!P114) -> -4.09051e-05 | F114: 6.378694224e-06 | G114: 1.81837574e-05 | H114: -1.344375052e-05 | J114: 9.366767888e-06 | K114: -9.028640967e-05 | L114: 0.0003758659494 | M114: 0.004057054914 | N114: 9.476972249e-07
A115: =IF('DF raw data'!M115="","",'DF raw data'!M115) -> -276 | B115: =IF('DF raw data'!N115="","",'DF raw data'!N115) -> -4.23802e-05 | C115: =IF('DF raw data'!O115="","",'DF raw data'!O115) -> 0.000112408 | D115: =IF('DF raw data'!P115="","",'DF raw data'!P115) -> -1.05943e-05 | F115: -1.111101076e-06 | G115: 1.9264707e-05 | H115: 1.700647916e-05 | J115: 8.81121735e-06 | K115: -8.5880801e-05 | L115: 0.0003854983029 | M115: 0.004249804066 | N115: 1.022040514e-06
A116: =IF('DF raw data'!M116="","",'DF raw data'!M116) -> -275.5 | B116: =IF('DF raw data'!N116="","",'DF raw data'!N116) -> -3.37169e-05 | C116: =IF('DF raw data'!O116="","",'DF raw data'!O116) -> 0.000103756 | D116: =IF('DF raw data'!P116="","",'DF raw data'!P116) -> -2.61533e-05 | F116: 7.592050104e-06 | G116: 1.05729078e-05 | H116: 1.375907756e-06 | J116: 1.26072424e-05 | K116: -7.95771798e-05 | L116: 0.0003907847568 | M116: 0.004445196444 | N116: 1.098476349e-06
A117: =IF('DF raw data'!M117="","",'DF raw data'!M117) -> -275 | B117: =IF('DF raw data'!N117="","",'DF raw data'!N117) -> -4.96764e-05 | C117: =IF('DF raw data'!O117="","",'DF raw data'!O117) -> 9.94157e-05 | D117: =IF('DF raw data'!P117="","",'DF raw data'!P117) -> -2.41605e-05 | F117: -8.440863596e-06 | G117: 6.21264242e-06 | H117: 3.377874636e-06 | J117: 8.386810603e-06 | K117: -7.53837745e-05 | L117: 0.000393891078 | M117: 0.004642141983 | N117: 1.176086609e-06
A118: =IF('DF raw data'!M118="","",'DF raw data'!M118) -> -274.5 | B118: =IF('DF raw data'!N118="","",'DF raw data'!N118) -> -4.0644e-05 | C118: =IF('DF raw data'!O118="","",'DF raw data'!O118) -> 9.78517e-05 | D118: =IF('DF raw data'!P118="","",'DF raw data'!P118) -> -1.60858e-05 | F118: 6.330854437e-07 | G118: 4.64144802e-06 | H118: 1.148971826e-05 | J118: 8.703353325e-06 | K118: -7.103209783e-05 | L118: 0.000396211802 | M118: 0.004840247884 | N118: 1.254616379e-06
A119: =IF('DF raw data'!M119="","",'DF raw data'!M119) -> -274 | B119: =IF('DF raw data'!N119="","",'DF raw data'!N119) -> -4.30211e-05 | C119: =IF('DF raw data'!O119="","",'DF raw data'!O119) -> 0.000104053 | D119: =IF('DF raw data'!P119="","",'DF raw data'!P119) -> -9.96784e-06 | F119: -1.754949216e-06 | G119: 1.0871274e-05 | H119: 1.763582087e-05 | J119: 7.825878717e-06 | K119: -6.711915848e-05 | L119: 0.000401647439 | M119: 0.005041071604 | N119: 1.335307334e-06
A120: =IF('DF raw data'!M120="","",'DF raw data'!M120) -> -273.5 | B120: =IF('DF raw data'!N120="","",'DF raw data'!N120) -> -3.01286e-05 | C120: =IF('DF raw data'!O120="","",'DF raw data'!O120) -> 0.000100704 | D120: =IF('DF raw data'!P120="","",'DF raw data'!P120) -> -2.70091e-05 | F120: 1.119685628e-05 | G120: 7.5068686e-06 | H120: 5.161710758e-07 | J120: 1.342430686e-05 | K120: -6.040700505e-05 | L120: 0.0004054008733 | M120: 0.00524377204 | N120: 1.417572374e-06
A121: =IF('DF raw data'!M121="","",'DF raw data'!M121) -> -273 | B121: =IF('DF raw data'!N121="","",'DF raw data'!N121) -> -5.03269e-05 | C121: =IF('DF raw data'!O121="","",'DF raw data'!O121) -> 9.84189e-05 | D121: =IF('DF raw data'!P121="","",'DF raw data'!P121) -> -8.82622e-06 | F121: -9.094355896e-06 | G121: 5.21125714e-06 | H121: 1.878269232e-05 | J121: 8.877128911e-06 | K121: -5.596844059e-05 | L121: 0.0004080065019 | M121: 0.005447775291 | N121: 1.500846428e-06
A122: =IF('DF raw data'!M122="","",'DF raw data'!M122) -> -272.5 | B122: =IF('DF raw data'!N122="","",'DF raw data'!N122) -> -3.10305e-05 | C122: =IF('DF raw data'!O122="","",'DF raw data'!O122) -> 0.000101963 | D122: =IF('DF raw data'!P122="","",'DF raw data'!P122) -> -1.97847e-05 | F122: 1.029080754e-05 | G122: 8.77166e-06 | H122: 7.773803316e-06 | J122: 1.402253268e-05 | K122: -4.895717425e-05 | L122: 0.0004123923319 | M122: 0.005653971457 | N122: 1.585978462e-06
A123: =IF('DF raw data'!M123="","",'DF raw data'!M123) -> -272 | B123: =IF('DF raw data'!N123="","",'DF raw data'!N123) -> -3.68686e-05 | C123: =IF('DF raw data'!O123="","",'DF raw data'!O123) -> 9.90572e-05 | D123: =IF('DF raw data'!P123="","",'DF raw data'!P123) -> -1.07548e-05 | F123: 4.425852284e-06 | G123: 5.85249332e-06 | H123: 1.684524086e-05 | J123: 1.623545882e-05 | K123: -4.083944484e-05 | L123: 0.0004153185785 | M123: 0.005861630746 | N123: 1.672355018e-06
A124: =IF('DF raw data'!M124="","",'DF raw data'!M124) -> -271.5 | B124: =IF('DF raw data'!N124="","",'DF raw data'!N124) -> -2.76954e-05 | C124: =IF('DF raw data'!O124="","",'DF raw data'!O124) -> 0.000104172 | D124: =IF('DF raw data'!P124="","",'DF raw data'!P124) -> -2.46212e-05 | F124: 1.3641249e-05 | G124: 1.09908214e-05 | H124: 2.915055416e-06 | J124: 2.305608333e-05 | K124: -2.931140318e-05 | L124: 0.0004208139892 | M124: 0.006072037741 | N124: 1.761163016e-06
A125: =IF('DF raw data'!M125="","",'DF raw data'!M125) -> -271 | B125: =IF('DF raw data'!N125="","",'DF raw data'!N125) -> -4.03299e-05 | C125: =IF('DF raw data'!O125="","",'DF raw data'!O125) -> 0.000105685 | D125: =IF('DF raw data'!P125="","",'DF raw data'!P125) -> -8.85564e-06 | F125: 9.486303037e-07 | G125: 1.25107812e-05 | H125: 1.875313699e-05 | J125: 2.353039848e-05 | K125: -1.754620394e-05 | L125: 0.0004270693798 | M125: 0.006285572431 | N125: 1.852633983e-06
A126: =IF('DF raw data'!M126="","",'DF raw data'!M126) -> -270.5 | B126: =IF('DF raw data'!N126="","",'DF raw data'!N126) -> -3.52534e-05 | C126: =IF('DF raw data'!O126="","",'DF raw data'!O126) -> 0.000111828 | D126: =IF('DF raw data'!P126="","",'DF raw data'!P126) -> -2.98674e-05 | F126: 6.048482204e-06 | G126: 1.8682039e-05 | H126: -2.355277104e-06 | J126: 2.655463958e-05 | K126: -4.268884146e-06 | L126: 0.0004364103993 | M126: 0.006503777631 | N126: 1.948213576e-06
A127: =IF('DF raw data'!M127="","",'DF raw data'!M127) -> -270 | B127: =IF('DF raw data'!N127="","",'DF raw data'!N127) -> -5.65313e-05 | C127: =IF('DF raw data'!O127="","",'DF raw data'!O127) -> 0.000114629 | D127: =IF('DF raw data'!P127="","",'DF raw data'!P127) -> -2.44219e-05 | F127: -1.532729614e-05 | G127: 2.14959236e-05 | H127: 3.115272196e-06 | J127: 1.889099151e-05 | K127: 5.17661161e-06 | L127: 0.0004471583611 | M127: 0.006727356811 | N127: 2.048367311e-06
A128: =IF('DF raw data'!M128="","",'DF raw data'!M128) -> -269.5 | B128: =IF('DF raw data'!N128="","",'DF raw data'!N128) -> -4.08981e-05 | C128: =IF('DF raw data'!O128="","",'DF raw data'!O128) -> 0.000112552 | D128: =IF('DF raw data'!P128="","",'DF raw data'!P128) -> -2.12236e-05 | F128: 3.778165837e-07 | G128: 1.94093694e-05 | H128: 6.328284376e-06 | J128: 1.90798998e-05 | K128: 1.471656151e-05 | L128: 0.0004568630458 | M128: 0.006955788334 | N128: 2.152911253e-06
A129: =IF('DF raw data'!M129="","",'DF raw data'!M129) -> -269 | B129: =IF('DF raw data'!N129="","",'DF raw data'!N129) -> -4.10355e-05 | C129: =IF('DF raw data'!O129="","",'DF raw data'!O129) -> 0.000112777 | D129: =IF('DF raw data'!P129="","",'DF raw data'!P129) -> -7.28415e-06 | F129: 2.397845437e-07 | G129: 1.96354044e-05 | H129: 2.033185585e-05 | J129: 1.919979208e-05 | K129: 2.431645755e-05 | L129: 0.000466680748 | M129: 0.007189128708 | N129: 2.26199103e-06
A130: =IF('DF raw data'!M130="","",'DF raw data'!M130) -> -268.5 | B130: =IF('DF raw data'!N130="","",'DF raw data'!N130) -> -4.19918e-05 | C130: =IF('DF raw data'!O130="","",'DF raw data'!O130) -> 0.000120783 | D130: =IF('DF raw data'!P130="","",'DF raw data'!P130) -> -1.43607e-05 | F130: -7.209144363e-07 | G130: 2.7678232e-05 | H130: 1.322275372e-05 | J130: 1.883933486e-05 | K130: 3.373612498e-05 | L130: 0.000480519864 | M130: 0.00742938864 | N130: 2.37761816e-06
A131: =IF('DF raw data'!M131="","",'DF raw data'!M131) -> -268 | B131: =IF('DF raw data'!N131="","",'DF raw data'!N131) -> -5.14724e-05 | C131: =IF('DF raw data'!O131="","",'DF raw data'!O131) -> 0.000116911 | D131: =IF('DF raw data'!P131="","",'DF raw data'!P131) -> -1.90984e-05 | F131: =(1-$G$1*($B$54-$G$2))*(B131-F$5) -> -1.02451252e-05 | G131: =(1-$G$1*($B$54-$G$2))*(C131-G$5) -> 2.37884208e-05 | H131: =(1-$G$1*($B$54-$G$2))*(D131-H$5) -> 8.463260296e-06 | J131: 1.371677226e-05 | K131: 4.059451111e-05 | L131: 0.0004924140744 | M131: 0.007675595677 | N131: 2.498948045e-06
A132: =IF('DF raw data'!M132="","",'DF raw data'!M132) -> -267.5 | B132: =IF('DF raw data'!N132="","",'DF raw data'!N132) -> -4.34603e-05 | C132: =IF('DF raw data'!O132="","",'DF raw data'!O132) -> 0.000101093 | D132: =IF('DF raw data'!P132="","",'DF raw data'!P132) -> -2.26936e-05 | F132: -2.196169536e-06 | G132: 7.897658e-06 | H132: 4.851522376e-06 | J132: =F132*$G$3+J131 -> 1.261868749e-05 | K132: =J132*$G$3+K131 -> 4.690385485e-05 | L132: =G132*$G$3+L131 -> 0.0004963629034 | M132: =L132*$G$3+M131 -> 0.007923777129 | N132: =(J132^2+L132^2)*$G$3+N131 -> 2.622215727e-06
A133: =IF('DF raw data'!M133="","",'DF raw data'!M133) -> -267 | B133: =IF('DF raw data'!N133="","",'DF raw data'!N133) -> -3.83388e-05 | C133: =IF('DF raw data'!O133="","",'DF raw data'!O133) -> 9.20624e-05 | D133: =IF('DF raw data'!P133="","",'DF raw data'!P133) -> -1.53759e-05 | F133: 2.948889364e-06 | G133: -1.17448276e-06 | H133: 1.22028838e-05 | J133: 1.409313217e-05 | K133: 5.395042094e-05 | L133: 0.0004957756621 | M133: 0.00817166496 | N133: 2.745211788e-06
A134: =IF('DF raw data'!M134="","",'DF raw data'!M134) -> -266.5 | B134: =IF('DF raw data'!N134="","",'DF raw data'!N134) -> -3.5071e-05 | C134: =IF('DF raw data'!O134="","",'DF raw data'!O134) -> 9.97982e-05 | D134: =IF('DF raw data'!P134="","",'DF raw data'!P134) -> -1.50169e-05 | F134: 6.231721244e-06 | G134: 6.59690192e-06 | H134: 1.25635352e-05 | J134: 1.720899279e-05 | K134: 6.255491734e-05 | L134: 0.000499074113 | M134: 0.008421202017 | N134: 2.869897348e-06
A135: =IF('DF raw data'!M135="","",'DF raw data'!M135) -> -266 | B135: =IF('DF raw data'!N135="","",'DF raw data'!N135) -> -4.12272e-05 | C135: =IF('DF raw data'!O135="","",'DF raw data'!O135) -> 9.8392e-05 | D135: =IF('DF raw data'!P135="","",'DF raw data'!P135) -> -7.81986e-06 | F135: 4.720272366e-08 | G135: 5.1842334e-06 | H135: 1.979368158e-05 | J135: 1.723259416e-05 | K135: 7.117121441e-05 | L135: 0.0005016662297 | M135: 0.008672035131 | N135: 2.995880333e-06
A136: =IF('DF raw data'!M136="","",'DF raw data'!M136) -> -265.5 | B136: =IF('DF raw data'!N136="","",'DF raw data'!N136) -> -2.96865e-05 | C136: =IF('DF raw data'!O136="","",'DF raw data'!O136) -> 0.000103846 | D136: =IF('DF raw data'!P136="","",'DF raw data'!P136) -> -1.81218e-05 | F136: 1.164098994e-05 | G136: 1.06633218e-05 | H136: 9.444352656e-06 | J136: 2.305308913e-05 | K136: 8.269775898e-05 | L136: 0.0005069978906 | M136: 0.008925534077 | N136: 3.124669486e-06
A137: =IF('DF raw data'!M137="","",'DF raw data'!M137) -> -265 | B137: =IF('DF raw data'!N137="","",'DF raw data'!N137) -> -4.08994e-05 | C137: =IF('DF raw data'!O137="","",'DF raw data'!O137) -> 0.000112957 | D137: =IF('DF raw data'!P137="","",'DF raw data'!P137) -> -1.95185e-05 | F137: 3.765106037e-07 | G137: 1.98162324e-05 | H137: 8.041227836e-06 | J137: 2.324134443e-05 | K137: 9.431843119e-05 | L137: 0.0005169060068 | M137: 0.00918398708 | N137: 3.258535475e-06
A138: =IF('DF raw data'!M138="","",'DF raw data'!M138) -> -264.5 | B138: =IF('DF raw data'!N138="","",'DF raw data'!N138) -> -4.62157e-05 | C138: =IF('DF raw data'!O138="","",'DF raw data'!O138) -> 0.000111681 | D138: =IF('DF raw data'!P138="","",'DF raw data'!P138) -> -2.24886e-05 | F138: -4.964244376e-06 | G138: 1.85343628e-05 | H138: 5.057465376e-06 | J138: 2.075922224e-05 | K138: 0.0001046980423 | L138: 0.0005261731882 | M138: 0.009447073674 | N138: 3.39718006e-06
A139: =IF('DF raw data'!M139="","",'DF raw data'!M139) -> -264 | B139: =IF('DF raw data'!N139="","",'DF raw data'!N139) -> -4.87851e-05 | C139: =IF('DF raw data'!O139="","",'DF raw data'!O139) -> 0.000117985 | D139: =IF('DF raw data'!P139="","",'DF raw data'!P139) -> -1.27272e-05 | F139: -7.545463616e-06 | G139: 2.48673612e-05 | H139: 1.486376782e-05 | J139: 1.698649043e-05 | K139: 0.0001131912875 | L139: 0.0005386068688 | M139: 0.009716377109 | N139: 3.54237301e-06
A140: =IF('DF raw data'!M140="","",'DF raw data'!M140) -> -263.5 | B140: =IF('DF raw data'!N140="","",'DF raw data'!N140) -> -4.91611e-05 | C140: =IF('DF raw data'!O140="","",'DF raw data'!O140) -> 0.000107185 | D140: =IF('DF raw data'!P140="","",'DF raw data'!P140) -> -2.56659e-05 | F140: -7.923193216e-06 | G140: 1.40176812e-05 | H140: 1.865549796e-06 | J140: 1.302489383e-05 | K140: 0.0001197037344 | L140: 0.0005456157094 | M140: 0.009989184963 | N140: 3.691306085e-06
A141: =IF('DF raw data'!M141="","",'DF raw data'!M141) -> -263 | B141: =IF('DF raw data'!N141="","",'DF raw data'!N141) -> -5.17303e-05 | C141: =IF('DF raw data'!O141="","",'DF raw data'!O141) -> 0.000108387 | D141: =IF('DF raw data'!P141="","",'DF raw data'!P141) -> -1.66095e-05 | F141: -1.050421154e-05 | G141: 1.52252104e-05 | H141: 1.096360924e-05 | J141: 7.772788057e-06 | K141: 0.0001235901285 | L141: 0.0005532283146 | M141: 0.01026579912 | N141: 3.844367077e-06
A142: =IF('DF raw data'!M142="","",'DF raw data'!M142) -> -262.5 | B142: =IF('DF raw data'!N142="","",'DF raw data'!N142) -> -4.44275e-05 | C142: =IF('DF raw data'!O142="","",'DF raw data'!O142) -> 0.000109029 | D142: =IF('DF raw data'!P142="","",'DF raw data'!P142) -> -1.33894e-05 | F142: -3.167818656e-06 | G142: 1.58701636e-05 | H142: 1.41985217e-05 | J142: 6.188878729e-06 | K142: 0.0001266845678 | L142: 0.0005611633964 | M142: 0.01054638082 | N142: 4.001838407e-06
A143: =IF('DF raw data'!M143="","",'DF raw data'!M143) -> -262 | B143: =IF('DF raw data'!N143="","",'DF raw data'!N143) -> -4.55253e-05 | C143: =IF('DF raw data'!O143="","",'DF raw data'!O143) -> 0.000111908 | D143: =IF('DF raw data'!P143="","",'DF raw data'!P143) -> -2.02326e-07 | F143: -4.270668536e-06 | G143: 1.8762407e-05 | H143: 2.744625624e-05 | J143: 4.053544461e-06 | K143: 0.0001287113401 | L143: 0.0005705445999 | M143: 0.01083165312 | N143: 4.164607193e-06
A144: =IF('DF raw data'!M144="","",'DF raw data'!M144) -> -261.5 | B144: =IF('DF raw data'!N144="","",'DF raw data'!N144) -> -5.14097e-05 | C144: =IF('DF raw data'!O144="","",'DF raw data'!O144) -> 0.000106281 | D144: =IF('DF raw data'!P144="","",'DF raw data'!P144) -> -1.67182e-05 | F144: -1.018213678e-05 | G144: 1.31095228e-05 | H144: 1.085440922e-05 | J144: -1.037523927e-06 | K144: 0.0001281925781 | L144: 0.0005770993613 | M144: 0.0111202028 | N144: 4.331129568e-06
A145: =IF('DF raw data'!M145="","",'DF raw data'!M145) -> -261 | B145: =IF('DF raw data'!N145="","",'DF raw data'!N145) -> -4.33336e-05 | C145: =IF('DF raw data'!O145="","",'DF raw data'!O145) -> 0.000102399 | D145: =IF('DF raw data'!P145="","",'DF raw data'!P145) -> -2.0437e-05 | F145: -2.068886716e-06 | G145: 9.2096656e-06 | H145: 7.118502736e-06 | J145: -2.071967285e-06 | K145: 0.0001271565945 | L145: 0.0005817041941 | M145: 0.0114110549 | N145: 4.500321599e-06
A146: =IF('DF raw data'!M146="","",'DF raw data'!M146) -> -260.5 | B146: =IF('DF raw data'!N146="","",'DF raw data'!N146) -> -3.9744e-05 | C146: =IF('DF raw data'!O146="","",'DF raw data'!O146) -> 9.26512e-05 | D146: =IF('DF raw data'!P146="","",'DF raw data'!P146) -> -2.20526e-05 | F146: 1.537225444e-06 | G146: -5.829742805e-07 | H146: 5.495470976e-06 | J146: -1.303354564e-06 | K146: 0.0001265049172 | L146: 0.000581412707 | M146: 0.01170176125 | N146: 4.669342816e-06
A147: =IF('DF raw data'!M147="","",'DF raw data'!M147) -> -260 | B147: =IF('DF raw data'!N147="","",'DF raw data'!N147) -> -5.89663e-05 | C147: =IF('DF raw data'!O147="","",'DF raw data'!O147) -> 9.83255e-05 | D147: =IF('DF raw data'!P147="","",'DF raw data'!P147) -> -2.4177e-05 | F147: -1.777349714e-05 | G147: 5.1174275e-06 | H147: 3.361298736e-06 | J147: -1.019010313e-05 | K147: 0.0001214098656 | L147: 0.0005839714207 | M147: 0.01199374696 | N147: 4.839906045e-06
A148: =IF('DF raw data'!M148="","",'DF raw data'!M148) -> -259.5 | B148: =IF('DF raw data'!N148="","",'DF raw data'!N148) -> -5.3588e-05 | C148: =IF('DF raw data'!O148="","",'DF raw data'!O148) -> 0.000102626 | D148: =IF('DF raw data'!P148="","",'DF raw data'!P148) -> -1.74294e-05 | F148: -1.237045696e-05 | G148: 9.4377098e-06 | H148: 1.01399377e-05 | J148: -1.637533161e-05 | K148: 0.0001132221998 | L148: 0.0005886902756 | M148: 0.0122880921 | N148: 5.013318242e-06
A149: =IF('DF raw data'!M149="","",'DF raw data'!M149) -> -259 | B149: =IF('DF raw data'!N149="","",'DF raw data'!N149) -> -4.38459e-05 | C149: =IF('DF raw data'!O149="","",'DF raw data'!O149) -> 0.00010451 | D149: =IF('DF raw data'!P149="","",'DF raw data'!P149) -> -2.09676e-05 | F149: -2.583543296e-06 | G149: 1.13303762e-05 | H149: 6.585461976e-06 | J149: -1.766710326e-05 | K149: 0.0001043886482 | L149: 0.0005943554637 | M149: 0.01258526983 | N149: 5.190103513e-06
A150: =IF('DF raw data'!M150="","",'DF raw data'!M150) -> -258.5 | B150: =IF('DF raw data'!N150="","",'DF raw data'!N150) -> -5.16727e-05 | C150: =IF('DF raw data'!O150="","",'DF raw data'!O150) -> 0.000107485 | D150: =IF('DF raw data'!P150="","",'DF raw data'!P150) -> -6.35416e-06 | F150: -1.044634658e-05 | G150: 1.43190612e-05 | H150: 2.12661238e-05 | J150: -2.289027655e-05 | K150: 9.294350991e-05 | L150: 0.0006015149943 | M150: 0.01288602733 | N150: 5.37127564e-06
A151: =IF('DF raw data'!M151="","",'DF raw data'!M151) -> -258 | B151: =IF('DF raw data'!N151="","",'DF raw data'!N151) -> -4.71185e-05 | C151: =IF('DF raw data'!O151="","",'DF raw data'!O151) -> 0.000103579 | D151: =IF('DF raw data'!P151="","",'DF raw data'!P151) -> -1.36678e-05 | F151: -5.871197256e-06 | G151: 1.03950936e-05 | H151: 1.391884106e-05 | J151: -2.582587517e-05 | K151: 8.003057232e-05 | L151: 0.0006067125411 | M151: 0.0131893836 | N151: 5.555659182e-06
A152: =IF('DF raw data'!M152="","",'DF raw data'!M152) -> -257.5 | B152: =IF('DF raw data'!N152="","",'DF raw data'!N152) -> -5.53869e-05 | C152: =IF('DF raw data'!O152="","",'DF raw data'!O152) -> 0.000102736 | D152: =IF('DF raw data'!P152="","",'DF raw data'!P152) -> -9.93107e-06 | F152: -1.41776319e-05 | G152: 9.5482158e-06 | H152: 1.767276001e-05 | J152: -3.291469112e-05 | K152: 6.357322676e-05 | L152: 0.000611486649 | M152: 0.01349512692 | N152: 5.743158831e-06
A153: =IF('DF raw data'!M153="","",'DF raw data'!M153) -> -257 | B153: =IF('DF raw data'!N153="","",'DF raw data'!N153) -> -4.30164e-05 | C153: =IF('DF raw data'!O153="","",'DF raw data'!O153) -> 0.000103322 | D153: =IF('DF raw data'!P153="","",'DF raw data'!P153) -> -1.53054e-05 | F153: -1.750227596e-06 | G153: 1.01369114e-05 | H153: 1.22737081e-05 | J153: -3.378980492e-05 | K153: 4.66783243e-05 | L153: 0.0006165551047 | M153: 0.01380340447 | N153: 5.933799805e-06
A154: =IF('DF raw data'!M154="","",'DF raw data'!M154) -> -256.5 | B154: =IF('DF raw data'!N154="","",'DF raw data'!N154) -> -4.56374e-05 | C154: =IF('DF raw data'!O154="","",'DF raw data'!O154) -> 0.000103983 | D154: =IF('DF raw data'!P154="","",'DF raw data'!P154) -> -2.48833e-05 | F154: -4.383284196e-06 | G154: 1.0800952e-05 | H154: 2.651749756e-06 | J154: -3.598144702e-05 | K154: 2.868760079e-05 | L154: 0.0006219555807 | M154: 0.01411438227 | N154: 6.12786151e-06
A155: =IF('DF raw data'!M155="","",'DF raw data'!M155) -> -256 | B155: =IF('DF raw data'!N155="","",'DF raw data'!N155) -> -4.74949e-05 | C155: =IF('DF raw data'!O155="","",'DF raw data'!O155) -> 0.00010704 | D155: =IF('DF raw data'!P155="","",'DF raw data'!P155) -> -2.61449e-05 | F155: -6.249328696e-06 | G155: 1.38720142e-05 | H155: 1.384346396e-06 | J155: -3.910611137e-05 | K155: 9.134545103e-06 | L155: 0.0006288915878 | M155: 0.01442882806 | N155: 6.326378468e-06
A156: =IF('DF raw data'!M156="","",'DF raw data'!M156) -> -255.5 | B156: =IF('DF raw data'!N156="","",'DF raw data'!N156) -> -4.51283e-05 | C156: =IF('DF raw data'!O156="","",'DF raw data'!O156) -> 0.000107919 | D156: =IF('DF raw data'!P156="","",'DF raw data'!P156) -> -1.94346e-05 | F156: -3.871842336e-06 | G156: 1.47550576e-05 | H156: 8.125513776e-06 | J156: -4.104203254e-05 | K156: -1.138647116e-05 | L156: 0.0006362691166 | M156: 0.01474696262 | N156: 6.529639887e-06
A157: =IF('DF raw data'!M157="","",'DF raw data'!M157) -> -255 | B157: =IF('DF raw data'!N157="","",'DF raw data'!N157) -> -3.76994e-05 | C157: =IF('DF raw data'!O157="","",'DF raw data'!O157) -> 0.000100099 | D157: =IF('DF raw data'!P157="","",'DF raw data'!P157) -> -1.3177e-05 | F157: 3.591230604e-06 | G157: 6.8990856e-06 | H157: 1.441189874e-05 | J157: -3.924641723e-05 | K157: -3.100967978e-05 | L157: 0.0006397186594 | M157: 0.01506682195 | N157: 6.735030009e-06
A158: =IF('DF raw data'!M158="","",'DF raw data'!M158) -> -254.5 | B158: =IF('DF raw data'!N158="","",'DF raw data'!N158) -> -5.25609e-05 | C158: =IF('DF raw data'!O158="","",'DF raw data'!O158) -> 0.000119397 | D158: =IF('DF raw data'!P158="","",'DF raw data'!P158) -> -2.00754e-05 | F158: -1.13386323e-05 | G158: 2.62858564e-05 | H158: 7.481766096e-06 | J158: -4.491573338e-05 | K158: -5.346754647e-05 | L158: 0.0006528615876 | M158: 0.01539325274 | N158: 6.949152847e-06
A159: =IF('DF raw data'!M159="","",'DF raw data'!M159) -> -254 | B159: =IF('DF raw data'!N159="","",'DF raw data'!N159) -> -3.90366e-05 | C159: =IF('DF raw data'!O159="","",'DF raw data'!O159) -> 0.000132648 | D159: =IF('DF raw data'!P159="","",'DF raw data'!P159) -> -2.63361e-05 | F159: 2.247879484e-06 | G159: 3.9597811e-05 | H159: 1.192266876e-06 | J159: -4.379179364e-05 | K159: -7.536344329e-05 | L159: 0.0006726604931 | M159: 0.01572958299 | N159: 7.176347777e-06
A160: =IF('DF raw data'!M160="","",'DF raw data'!M160) -> -253.5 | B160: =IF('DF raw data'!N160="","",'DF raw data'!N160) -> -3.67429e-05 | C160: =IF('DF raw data'!O160="","",'DF raw data'!O160) -> 0.000132294 | D160: =IF('DF raw data'!P160="","",'DF raw data'!P160) -> -5.98554e-06 | F160: 4.552130504e-06 | G160: 3.92421826e-05 | H160: 2.163643945e-05 | J160: -4.151572839e-05 | K160: -9.612130749e-05 | L160: 0.0006922815844 | M160: 0.01607572378 | N160: 7.416836451e-06
A161: =IF('DF raw data'!M161="","",'DF raw data'!M161) -> -253 | B161: =IF('DF raw data'!N161="","",'DF raw data'!N161) -> -4.52621e-05 | C161: =IF('DF raw data'!O161="","",'DF raw data'!O161) -> 0.00013114 | D161: =IF('DF raw data'!P161="","",'DF raw data'!P161) -> -1.05584e-05 | F161: -4.006257816e-06 | G161: 3.80828742e-05 | H161: 1.70425443e-05 | J161: -4.35188573e-05 | K161: -0.0001178807361 | L161: 0.0007113230215 | M161: 0.01643138529 | N161: 7.670773617e-06
